Workbook

Sheet ACCUEILPRO
A1: Accueil
F7: =ACCUEIL!F7 -> 2022-03-06

Sheet ACCUEILPREM
A1: Accueil
F7: =ACCUEIL!F7 -> 2022-03-06

Sheet ACCUEILGP
A1: Accueil
F7: =ACCUEIL!F7 -> 2022-03-06

Sheet ACCUEIL
F7: 2022-03-06

Sheet Accueilagence
A1: Accueil
E7: =ACCUEIL!F7 -> 2022-03-06

Sheet Accueilsecteur
A1: Accueil
E7: =ACCUEIL!F7 -> 2022-03-06

Sheet AccueilDircom
A1: Accueil
E7: =ACCUEIL!F7 -> 2022-03-06

Sheet DC_FICHE
A1: Accueil
A2: BAROMETRE BDD
A4: UNITE: | B4: DIRECTION REGIONALE | E4: ETP perf : | F4: =VLOOKUP(A5,'RECAP DIRCOM'!$G$6:$I$12,3,FALSE) -> 198.41
A5: =VLOOKUP(B5,LISTES!$M$6:$N$12,2,FALSE) -> 262 | B5: BAS-RHIN
C6: Coefficient du critére | E6: Résultats | I6: Ecart au 1ier | M6: Evolution | O6: Rang
E7: du 1ier | G7: DIRECTION | I7: Du mois | K7: Au 31/12/2019
A9: RANG au CLASSEMENT GENERAL | K9: =VLOOKUP($A$5,#REF!,168,FALSE) ->  | M9: =+K9-O9 ->  | O9: =VLOOKUP($A$5,'RECAP DIRCOM'!$G$6:$CY$312,168,FALSE) -> 
A11: CRITERE CLIENTS | C11: 15% | O11: =VLOOKUP($A$5,'RECAP DIRCOM'!$G$6:$CY$312,23,FALSE) -> 12.09091115
B12: PNB Evolution nette Clients BP | C12: 4% | E12: ='RECAP DIRCOM'!#REF! ->  | G12: =VLOOKUP($A$5,'RECAP DIRCOM'!$G$6:$CY$312,6,FALSE) -> 0.8 | I12: =VLOOKUP($A$5,'RECAP DIRCOM'!$G$6:$CY$312,7,FALSE) -> 500% | K12: =VLOOKUP($A$5,#REF!,7,FALSE) ->  | M12: =+K12-I12 ->  | O12: =VLOOKUP($A$5,'RECAP DIRCOM'!$G$6:$CY$312,8,FALSE) -> 0.5719433719
B13: PNB Evolution nette Clients PREMIUM | C13: 5% | E13: ='RECAP DIRCOM'!#REF! ->  | G13: =VLOOKUP($A$5,'RECAP DIRCOM'!$G$6:$CY$312,10,FALSE) -> 4.0 | I13: =VLOOKUP($A$5,'RECAP DIRCOM'!$G$6:$CY$312,11,FALSE) -> 47% | K13: =VLOOKUP($A$5,#REF!,11,FALSE) ->  | M13: =+K13-I13 ->  | O13: =VLOOKUP($A$5,'RECAP DIRCOM'!$G$6:$CY$312,12,FALSE) -> 0.4309099205
B14: PNB Evolution nette Clients Jeunes Equipés | C14: 3% | E14: ='RECAP DIRCOM'!#REF! ->  | G14: =VLOOKUP($A$5,'RECAP DIRCOM'!$G$6:$CY$312,14,FALSE) -> 0.0 | I14: =VLOOKUP($A$5,'RECAP DIRCOM'!$G$6:$CY$312,15,FALSE) -> 0% | K14: =VLOOKUP($A$5,#REF!,15,FALSE) ->  | M14: =+K14-I14 ->  | O14: =VLOOKUP($A$5,'RECAP DIRCOM'!$G$6:$CY$312,16,FALSE) -> 0
B15: PNB Evolution nette Clients Pro Actifs Equipés | C15: 3% | E15: ='RECAP DIRCOM'!W4 -> 0.0 | G15: =VLOOKUP($A$5,'RECAP DIRCOM'!$G$6:$CY$312,18,FALSE) -> 1094.0 | I15: =VLOOKUP($A$5,'RECAP DIRCOM'!$G$6:$CY$312,19,FALSE) -> 551% | K15: =VLOOKUP($A$5,#REF!,19,FALSE) ->  | M15: =+K15-I15 ->  | O15: =VLOOKUP($A$5,'RECAP DIRCOM'!$G$6:$CY$312,20,FALSE) -> 0.3071257477
A17: CRITERE BANCARISATION | C17: 15% | O17: =VLOOKUP($A$5,'RECAP DIRCOM'!$G$6:$CY$312,48,FALSE) -> 3634.886358
B18: PNB Ventes nettes forfaits | C18: 4% | E18: ='RECAP DIRCOM'!X4 -> 8.0 | G18: =VLOOKUP($A$5,'RECAP DIRCOM'!$G$6:$CY$312,31,FALSE) -> 0.0 | I18: =VLOOKUP($A$5,'RECAP DIRCOM'!$G$6:$CY$312,32,FALSE) -> 0% | K18: =VLOOKUP($A$5,#REF!,32,FALSE) ->  | M18: =+K18-I18 ->  | O18: =VLOOKUP($A$5,'RECAP DIRCOM'!$G$6:$CY$312,33,FALSE) -> 26393.44847
B19: PNB Ventes nettes IZICARTES Débit Différé | C19: 4% | E19: ='RECAP DIRCOM'!AB4 -> 16.3 | G19: =VLOOKUP($A$5,'RECAP DIRCOM'!$G$6:$CY$312,35,FALSE) -> 0.2 | I19: =VLOOKUP($A$5,'RECAP DIRCOM'!$G$6:$CY$312,36,FALSE) -> 300% | K19: =VLOOKUP($A$5,#REF!,36,FALSE) ->  | M19: =+K19-I19 ->  | O19: =VLOOKUP($A$5,'RECAP DIRCOM'!$G$6:$CY$312,37,FALSE) -> 2762
B20: PNB Ventes nettes cartes HDG Débit Différé | C20: 4% | E20: ='RECAP DIRCOM'!#REF! ->  | G20: =VLOOKUP($A$5,'RECAP DIRCOM'!$G$6:$CY$312,39,FALSE) -> 0.2 | I20: =VLOOKUP($A$5,'RECAP DIRCOM'!$G$6:$CY$312,40,FALSE) -> 300% | K20: =VLOOKUP($A$5,#REF!,40,FALSE) ->  | M20: =+K20-I20 ->  | O20: =VLOOKUP($A$5,'RECAP DIRCOM'!$G$6:$CY$312,41,FALSE) -> 0.1892819723
B21: PNB Ventes nettes Forfaits Pro, Carte pro | C21: 3% | E21: ='RECAP DIRCOM'!#REF! ->  | G21: =VLOOKUP($A$5,'RECAP DIRCOM'!$G$6:$CY$312,43,FALSE) -> 2.0 | I21: =VLOOKUP($A$5,'RECAP DIRCOM'!$G$6:$CY$312,44,FALSE) -> 0% | K21: =VLOOKUP($A$5,#REF!,44,FALSE) ->  | M21: =+K21-I21 ->  | O21: =VLOOKUP($A$5,'RECAP DIRCOM'!$G$6:$CY$312,45,FALSE) -> 0
A23: CRITERE EPARGNE | C23: 10% | O23: =VLOOKUP($A$5,'RECAP DIRCOM'!$G$6:$CY$312,69,FALSE) -> 0.2383164404
B24: PNB Epargne Liquide | C24: 3% | E24: ='RECAP DIRCOM'!AM4 -> 159.8 | G24: =VLOOKUP($A$5,'RECAP DIRCOM'!$G$6:$CY$312,56,FALSE) -> 795.0 | I24: =VLOOKUP($A$5,'RECAP DIRCOM'!$G$6:$CY$312,57,FALSE) -> 401% | K24: =VLOOKUP($A$5,#REF!,57,FALSE) ->  | M24: =+K24-I24 ->  | O24: =VLOOKUP($A$5,'RECAP DIRCOM'!$G$6:$CY$312,58,FALSE) -> 0.3942452716
B25: PNB CA UC + arbitrage | C25: 4% | E25: ='RECAP DIRCOM'!AQ4 -> 17.9 | G25: =VLOOKUP($A$5,'RECAP DIRCOM'!$G$6:$CY$312,60,FALSE) -> 0.4 | I25: =VLOOKUP($A$5,'RECAP DIRCOM'!$G$6:$CY$312,61,FALSE) -> 39% | K25: =VLOOKUP($A$5,#REF!,61,FALSE) ->  | M25: =+K25-I25 ->  | O25: =VLOOKUP($A$5,'RECAP DIRCOM'!$G$6:$CY$312,62,FALSE) -> 6
B26: PNB Excédent assurance vie | C26: 3% | E26: ='RECAP DIRCOM'!#REF! ->  | G26: =VLOOKUP($A$5,'RECAP DIRCOM'!$G$6:$CY$312,64,FALSE) -> 0.0 | I26: =VLOOKUP($A$5,'RECAP DIRCOM'!$G$6:$CY$312,65,FALSE) -> 0% | K26: =VLOOKUP($A$5,#REF!,65,FALSE) ->  | M26: =+K26-I26 ->  | O26: =VLOOKUP($A$5,'RECAP DIRCOM'!$G$6:$CY$312,66,FALSE) -> 0
A28: CRITERE CREDITS | C28: 15% | O28: =VLOOKUP($A$5,'RECAP DIRCOM'!$G$6:$CY$312,102,FALSE) -> 
B29: PNB crédit conso | C29: 4% | E29: ='RECAP DIRCOM'!BB4 -> 41.9 | G29: =VLOOKUP($A$5,'RECAP DIRCOM'!$G$6:$CY$312,77,FALSE) -> 2.0 | I29: =VLOOKUP($A$5,'RECAP DIRCOM'!$G$6:$CY$312,78,FALSE) -> 0% | K29: =VLOOKUP($A$5,#REF!,78,FALSE) ->  | M29: =+K29-I29 ->  | O29: =VLOOKUP($A$5,'RECAP DIRCOM'!$G$6:$CY$312,79,FALSE) -> 0
B30: PNB ADE crédit conso | C30: 1% | E30: ='RECAP DIRCOM'!#REF! ->  | G30: =VLOOKUP($A$5,'RECAP DIRCOM'!$G$6:$CY$312,81,FALSE) -> 0.0 | I30: =VLOOKUP($A$5,'RECAP DIRCOM'!$G$6:$CY$312,82,FALSE) -> 0% | K30: =VLOOKUP($A$5,#REF!,82,FALSE) ->  | O30: =VLOOKUP($A$5,'RECAP DIRCOM'!$G$6:$CY$312,83,FALSE) -> 0
B31: PNB crédit immo | C31: 4% | E31: ='RECAP DIRCOM'!BF4 -> 18.7 | G31: =VLOOKUP($A$5,'RECAP DIRCOM'!$G$6:$CY$312,85,FALSE) -> 0.0 | I31: =VLOOKUP($A$5,'RECAP DIRCOM'!$G$6:$CY$312,86,FALSE) -> 0% | K31: =VLOOKUP($A$5,#REF!,86,FALSE) ->  | O31: =VLOOKUP($A$5,'RECAP DIRCOM'!$G$6:$CY$312,87,FALSE) -> 0
B32: PNB ADE crédit immo | C32: 2% | E32: ='RECAP DIRCOM'!#REF! ->  | G32: =VLOOKUP($A$5,'RECAP DIRCOM'!$G$6:$CY$312,89,FALSE) -> 0.0 | I32: =VLOOKUP($A$5,'RECAP DIRCOM'!$G$6:$CY$312,90,FALSE) -> 0% | K32: =VLOOKUP($A$5,#REF!,90,FALSE) ->  | O32: =VLOOKUP($A$5,'RECAP DIRCOM'!$G$6:$CY$312,91,FALSE) -> 0
B33: PNB SACCEF | C33: 2% | E33: ='RECAP DIRCOM'!#REF! ->  | G33: =VLOOKUP($A$5,'RECAP DIRCOM'!$G$6:$CY$312,93,FALSE) -> 0.0 | I33: =VLOOKUP($A$5,'RECAP DIRCOM'!$G$6:$CY$312,94,FALSE) -> 29% | K33: =VLOOKUP($A$5,#REF!,94,FALSE) ->  | O33: =VLOOKUP($A$5,'RECAP DIRCOM'!$G$6:$CY$312,95,FALSE) -> 0.2927502105
B34: PNB Crédit MLT + Crédit Bail | C34: 2% | E34: ='RECAP DIRCOM'!BJ4 -> 6.6 | G34: =VLOOKUP($A$5,'RECAP DIRCOM'!$G$6:$CY$312,97,FALSE) -> 0.0 | I34: =VLOOKUP($A$5,'RECAP DIRCOM'!$G$6:$CY$312,98,FALSE) ->  | K34: =VLOOKUP($A$5,#REF!,98,FALSE) ->  | O34: =VLOOKUP($A$5,'RECAP DIRCOM'!$G$6:$CY$312,99,FALSE) -> 
A36: CRITERE IARD PREVOYANCE | C36: 15% | O36: =VLOOKUP($A$5,'RECAP DIRCOM'!$G$6:$CY$312,119,FALSE) -> 
B37: PNB Ventes nettes IARD | C37: 9% | E37: ='RECAP DIRCOM'!BU4 -> 49.4 | G37: =VLOOKUP($A$5,'RECAP DIRCOM'!$G$6:$CY$312,110,FALSE) ->  | I37: =VLOOKUP($A$5,'RECAP DIRCOM'!$G$6:$CY$312,111,FALSE) ->  | K37: =VLOOKUP($A$5,#REF!,111,FALSE) ->  | M37: =+K37-I37 ->  | O37: =VLOOKUP($A$5,'RECAP DIRCOM'!$G$6:$CY$312,112,FALSE) -> 
B38: PNB Ventes nettes Prévoyance | C38: 6% | E38: ='RECAP DIRCOM'!BY4 -> 12.2 | G38: =VLOOKUP($A$5,'RECAP DIRCOM'!$G$6:$CY$312,114,FALSE) ->  | I38: =VLOOKUP($A$5,'RECAP DIRCOM'!$G$6:$CY$312,115,FALSE) ->  | K38: =VLOOKUP($A$5,#REF!,115,FALSE) ->  | M38: =+K38-I38 ->  | O38: =VLOOKUP($A$5,'RECAP DIRCOM'!$G$6:$CY$312,116,FALSE) -> 
A40: CRITERE ACCELERATEURS PNB | C40: 15% | O40: =VLOOKUP($A$5,'RECAP DIRCOM'!$G$6:$CY$312,144,FALSE) -> 
B41: PNB Ventes brutes SED Finalisées | C41: 6% | E41: ='RECAP DIRCOM'!#REF! ->  | G41: =VLOOKUP($A$5,'RECAP DIRCOM'!$G$6:$CY$312,127,FALSE) ->  | I41: =VLOOKUP($A$5,'RECAP DIRCOM'!$G$6:$CY$312,128,FALSE) ->  | K41: =VLOOKUP($A$5,#REF!,128,FALSE) ->  | M41: =+K41-I41 ->  | O41: =VLOOKUP($A$5,'RECAP DIRCOM'!$G$6:$CY$312,129,FALSE) -> 
B42: PNB clients équipés E documents | C42: 3% | E42: ='RECAP DIRCOM'!#REF! ->  | G42: =VLOOKUP($A$5,'RECAP DIRCOM'!$G$6:$CY$312,131,FALSE) ->  | I42: =VLOOKUP($A$5,'RECAP DIRCOM'!$G$6:$CY$312,132,FALSE) ->  | K42: =VLOOKUP($A$5,#REF!,132,FALSE) ->  | M42: =+K42-I42 ->  | O42: =VLOOKUP($A$5,'RECAP DIRCOM'!$G$6:$CY$312,133,FALSE) -> 
B43: Economie opt'in | C43: 3% | E43: ='RECAP DIRCOM'!#REF! ->  | G43: =VLOOKUP($A$5,'RECAP DIRCOM'!$G$6:$CY$312,135,FALSE) ->  | I43: =VLOOKUP($A$5,'RECAP DIRCOM'!$G$6:$CY$312,136,FALSE) ->  | K43: =VLOOKUP($A$5,#REF!,136,FALSE) ->  | M43: =+K43-I43 ->  | O43: =VLOOKUP($A$5,'RECAP DIRCOM'!$G$6:$CY$312,137,FALSE) -> 
B44: Remises commerciales | C44: 3% | E44: ='RECAP DIRCOM'!#REF! ->  | G44: =VLOOKUP($A$5,'RECAP DIRCOM'!$G$6:$CY$312,139,FALSE) ->  | I44: =VLOOKUP($A$5,'RECAP DIRCOM'!$G$6:$CY$312,140,FALSE) ->  | K44: =VLOOKUP($A$5,#REF!,140,FALSE) ->  | M44: =+K44-I44 ->  | O44: =VLOOKUP($A$5,'RECAP DIRCOM'!$G$6:$CY$312,141,FALSE) -> 
A46: CRITERE Qualité-Satisfaction Clients | C46: 15% | O46: =VLOOKUP($A$5,'RECAP DIRCOM'!$G$6:$CY$312,159,FALSE) -> 
B47: Objectifs NPS* | C47: 8% | E47: ='RECAP DIRCOM'!K4 -> 20 | G47: =VLOOKUP($A$5,'RECAP DIRCOM'!$G$6:$CY$312,151,FALSE) ->  | I47: =VLOOKUP($A$5,'RECAP DIRCOM'!$G$6:$CY$312,152,FALSE) ->  | K47: =VLOOKUP($A$5,#REF!,152,FALSE) ->  | M47: =+K47-I47 ->  | O47: =VLOOKUP($A$5,'RECAP DIRCOM'!$G$6:$CY$312,153,FALSE) -> 
B48: Enquête Qualité Haute Définition | C48: 7% | E48: ='RECAP DIRCOM'!N4 -> 68% | G48: =VLOOKUP($A$5,'RECAP DIRCOM'!$G$6:$CY$312,154,FALSE) ->  | I48: =VLOOKUP($A$5,'RECAP DIRCOM'!$G$6:$CY$312,155,FALSE) ->  | K48: =VLOOKUP($A$5,#REF!,155,FALSE) ->  | M48: =+K48-I48 ->  | O48: =VLOOKUP($A$5,'RECAP DIRCOM'!$G$6:$CY$312,156,FALSE) -> 

Sheet DC_TOTAL
B1: Accueil | D1: BAROMETRE BDD - DIRECTIONS REGIONALES
D2: TOTAL GENERAL
D3: =ACCUEIL!F7 -> 2022-03-06
D7: TOTAL GENERAL | G7: Total Satisfaction Clients | J7: Total Bancarisation | M7: Total Epargne | P7: Total IARD Prévoyance | S7: Total Crédits
E8: coef | F8: =+I8+L8+O8+R8+U8 -> 100% | H8: coef | I8: =DC_SATISFACTION!L8 -> 20% | K8: coef | L8: =DC_BANCA!N8 -> 20% | N8: coef | O8: =DC_EPARGNE!N8 -> 20% | Q8: coef | R8: =DC_IARD!N8 -> 20% | T8: coef | U8: =DC_CREDIT!R8 -> 20%
A9: eds | B9: Direction | C9: ="ETP perf "&DATEMAJ!$C$28 -> ETP perf 31-janv | D9: Moyenne ecart au 1er | E9: % Ecart au 1er | F9: Rang CEGEE | G9: Moyenne ecart au 1er | H9: % Ecart au 1er | I9: Rang CEGEE | J9: Moyenne ecart au 1er | K9: % Ecart au 1er | L9: Rang CEGEE | M9: Moyenne ecart au 1er | N9: % Ecart au 1er | O9: Rang CEGEE | P9: Moyenne ecart au 1er | Q9: % Ecart au 1er | R9: Rang CEGEE | S9: Moyenne ecart au 1er | T9: % Ecart au 1er | U9: Rang CEGEE
A10: 50 | B10: Moselle | C10: 207 | D10: 0% | E10: 0% | F10: 1 | G10: 4% | H10: 0% | I10: 1 | J10: 0% | K10: 0% | L10: 1 | M10: 0% | N10: 0% | O10: 1 | P10: 0% | Q10: 0% | R10: 1 | S10: 0% | T10: 0% | U10: 1
A11: 262 | B11: Marne-Ardennes | C11: 182 | D11: 20% | E11: 20% | F11: 2 | G11: 11% | H11: 8% | I11: 2 | J11: 23% | K11: 23% | L11: 2 | M11: 30% | N11: 30% | O11: 6 | P11: 26% | Q11: 26% | R11: 4 | S11: 11% | T11: 11% | U11: 2
A12: 264 | B12: Bas-Rhin | C12: 198 | D12: 29% | E12: 29% | F12: 3 | G12: 47% | H12: 43% | I12: 5 | J12: 29% | K12: 29% | L12: 3 | M12: 19% | N12: 19% | O12: 2 | P12: 16% | Q12: 16% | R12: 2 | S12: 39% | T12: 39% | U12: 6
A13: 30 | B13: Meurthe et Moselle Meuse | C13: 182 | D13: 30% | E13: 30% | F13: 4 | G13: 53% | H13: 49% | I13: 6 | J13: 31% | K13: 31% | L13: 4 | M13: 29% | N13: 29% | O13: 5 | P13: 26% | Q13: 26% | R13: 3 | S13: 15% | T13: 15% | U13: 3
A14: 110 | B14: Vosges | C14: 110 | D14: 32% | E14: 32% | F14: 5 | G14: 14% | H14: 11% | I14: 3 | J14: 45% | K14: 45% | L14: 5 | M14: 22% | N14: 22% | O14: 3 | P14: 43% | Q14: 43% | R14: 7 | S14: 40% | T14: 40% | U14: 7
A15: 160 | B15: Haut-Rhin | C15: 96 | D15: 43% | E15: 43% | F15: 6 | G15: 56% | H15: 52% | I15: 7 | J15: 56% | K15: 56% | L15: 6 | M15: 28% | N15: 28% | O15: 4 | P15: 39% | Q15: 39% | R15: 6 | S15: 39% | T15: 39% | U15: 5
A16: 80 | B16: Aube Haute Marne | C16: 98 | D16: 43% | E16: 43% | F16: 7 | G16: 34% | H16: 31% | I16: 4 | J16: 58% | K16: 58% | L16: 7 | M16: 52% | N16: 52% | O16: 7 | P16: 37% | Q16: 37% | R16: 5 | S16: 38% | T16: 38% | U16: 4
B17: Total CEGEE Directions Régionales | C17: =SUM(C10:C16) -> 1073

Sheet DC_BANCA
B1: Accueil | D1: BAROMETRE BDD - DIRECTIONS REGIONALES
D2: BANCARISATION
D3: =ACCUEIL!F7 -> 2022-03-06
D7: Ventes Nettes produits pondérés | H7: Ventes sur client non détenteur de l’univers | L7: Total Bancarisation
D8: =DATEMAJ!C8 -> au 06/03 | F8: coef | G8: ='RECAP DIRCOM'!AA4 -> 12% | H8: =DATEMAJ!C9 -> au 06/03 | J8: coef | K8: ='RECAP DIRCOM'!AE4 -> 8% | M8: coef | N8: ='RECAP DIRCOM'!AH4 -> 20%
B9: Direction | C9: ="ETP perf "&DATEMAJ!$C$28 -> ETP perf 31-janv | D9: VN | E9: VN / ETP | F9: % Ecart au 1er | G9: Rang | H9: VB | I9: VB / ETP | J9: % Ecart au 1er | K9: Rang | L9: Moyenne ecart au 1er | M9: % Ecart au 1er | N9: Rang CEGEE
A10: 50 | B10: Aube Haute Marne | C10: =VLOOKUP($A10,'RECAP DIRCOM'!$G$6:$CU$12,3,FALSE) -> 98 | D10: =VLOOKUP($A10,'RECAP DIRCOM'!$G$6:$CU$12,18,FALSE) -> 175 | E10: =VLOOKUP($A10,'RECAP DIRCOM'!$G$6:$CU$12,19,FALSE) -> 1.79 | F10: =VLOOKUP($A10,'RECAP DIRCOM'!$G$6:$CU$12,20,FALSE) -> 78% | G10: =VLOOKUP($A10,'RECAP DIRCOM'!$G$6:$CU$12,21,FALSE) -> 7 | H10: =VLOOKUP($A10,'RECAP DIRCOM'!$G$6:$CU$12,22,FALSE) -> 1,139 | I10: =VLOOKUP($A10,'RECAP DIRCOM'!$G$6:$CU$12,23,FALSE) -> 11.65 | J10: =VLOOKUP($A10,'RECAP DIRCOM'!$G$6:$CU$12,24,FALSE) -> 29% | K10: =VLOOKUP($A10,'RECAP DIRCOM'!$G$6:$CU$12,25,FALSE) -> 5 | L10: =VLOOKUP($A10,'RECAP DIRCOM'!$G$6:$CU$12,26,FALSE) -> 58% | M10: =VLOOKUP($A10,'RECAP DIRCOM'!$G$6:$CU$12,27,FALSE) -> 58% | N10: =VLOOKUP($A10,'RECAP DIRCOM'!$G$6:$CU$12,28,FALSE) -> 7
A11: 262 | B11: Bas-Rhin | C11: =VLOOKUP($A11,'RECAP DIRCOM'!$G$6:$CU$12,3,FALSE) -> 198 | D11: =VLOOKUP($A11,'RECAP DIRCOM'!$G$6:$CU$12,18,FALSE) -> 1,094 | E11: =VLOOKUP($A11,'RECAP DIRCOM'!$G$6:$CU$12,19,FALSE) -> 5.51 | F11: =VLOOKUP($A11,'RECAP DIRCOM'!$G$6:$CU$12,20,FALSE) -> 31% | G11: =VLOOKUP($A11,'RECAP DIRCOM'!$G$6:$CU$12,21,FALSE) -> 2 | H11: =VLOOKUP($A11,'RECAP DIRCOM'!$G$6:$CU$12,22,FALSE) -> 2,399 | I11: =VLOOKUP($A11,'RECAP DIRCOM'!$G$6:$CU$12,23,FALSE) -> 12.09 | J11: =VLOOKUP($A11,'RECAP DIRCOM'!$G$6:$CU$12,24,FALSE) -> 26% | K11: =VLOOKUP($A11,'RECAP DIRCOM'!$G$6:$CU$12,25,FALSE) -> 4 | L11: =VLOOKUP($A11,'RECAP DIRCOM'!$G$6:$CU$12,26,FALSE) -> 29% | M11: =VLOOKUP($A11,'RECAP DIRCOM'!$G$6:$CU$12,27,FALSE) -> 29% | N11: =VLOOKUP($A11,'RECAP DIRCOM'!$G$6:$CU$12,28,FALSE) -> 3
A12: 264 | B12: Haut-Rhin | C12: =VLOOKUP($A12,'RECAP DIRCOM'!$G$6:$CU$12,3,FALSE) -> 96 | D12: =VLOOKUP($A12,'RECAP DIRCOM'!$G$6:$CU$12,18,FALSE) -> 206 | E12: =VLOOKUP($A12,'RECAP DIRCOM'!$G$6:$CU$12,19,FALSE) -> 2.15 | F12: =VLOOKUP($A12,'RECAP DIRCOM'!$G$6:$CU$12,20,FALSE) -> 73% | G12: =VLOOKUP($A12,'RECAP DIRCOM'!$G$6:$CU$12,21,FALSE) -> 6 | H12: =VLOOKUP($A12,'RECAP DIRCOM'!$G$6:$CU$12,22,FALSE) -> 1,094 | I12: =VLOOKUP($A12,'RECAP DIRCOM'!$G$6:$CU$12,23,FALSE) -> 11.42 | J12: =VLOOKUP($A12,'RECAP DIRCOM'!$G$6:$CU$12,24,FALSE) -> 30% | K12: =VLOOKUP($A12,'RECAP DIRCOM'!$G$6:$CU$12,25,FALSE) -> 6 | L12: =VLOOKUP($A12,'RECAP DIRCOM'!$G$6:$CU$12,26,FALSE) -> 56% | M12: =VLOOKUP($A12,'RECAP DIRCOM'!$G$6:$CU$12,27,FALSE) -> 56% | N12: =VLOOKUP($A12,'RECAP DIRCOM'!$G$6:$CU$12,28,FALSE) -> 6
A13: 30 | B13: Marne-Ardennes | C13: =VLOOKUP($A13,'RECAP DIRCOM'!$G$6:$CU$12,3,FALSE) -> 182 | D13: =VLOOKUP($A13,'RECAP DIRCOM'!$G$6:$CU$12,18,FALSE) -> 1,000 | E13: =VLOOKUP($A13,'RECAP DIRCOM'!$G$6:$CU$12,19,FALSE) -> 5.50 | F13: =VLOOKUP($A13,'RECAP DIRCOM'!$G$6:$CU$12,20,FALSE) -> 31% | G13: =VLOOKUP($A13,'RECAP DIRCOM'!$G$6:$CU$12,21,FALSE) -> 3 | H13: =VLOOKUP($A13,'RECAP DIRCOM'!$G$6:$CU$12,22,FALSE) -> 2,624 | I13: =VLOOKUP($A13,'RECAP DIRCOM'!$G$6:$CU$12,23,FALSE) -> 14.41 | J13: =VLOOKUP($A13,'RECAP DIRCOM'!$G$6:$CU$12,24,FALSE) -> 12% | K13: =VLOOKUP($A13,'RECAP DIRCOM'!$G$6:$CU$12,25,FALSE) -> 3 | L13: =VLOOKUP($A13,'RECAP DIRCOM'!$G$6:$CU$12,26,FALSE) -> 23% | M13: =VLOOKUP($A13,'RECAP DIRCOM'!$G$6:$CU$12,27,FALSE) -> 23% | N13: =VLOOKUP($A13,'RECAP DIRCOM'!$G$6:$CU$12,28,FALSE) -> 2
A14: 110 | B14: Meurthe et Moselle Meuse | C14: =VLOOKUP($A14,'RECAP DIRCOM'!$G$6:$CU$12,3,FALSE) -> 182 | D14: =VLOOKUP($A14,'RECAP DIRCOM'!$G$6:$CU$12,18,FALSE) -> 793 | E14: =VLOOKUP($A14,'RECAP DIRCOM'!$G$6:$CU$12,19,FALSE) -> 4.35 | F14: =VLOOKUP($A14,'RECAP DIRCOM'!$G$6:$CU$12,20,FALSE) -> 45% | G14: =VLOOKUP($A14,'RECAP DIRCOM'!$G$6:$CU$12,21,FALSE) -> 4 | H14: =VLOOKUP($A14,'RECAP DIRCOM'!$G$6:$CU$12,22,FALSE) -> 2,712 | I14: =VLOOKUP($A14,'RECAP DIRCOM'!$G$6:$CU$12,23,FALSE) -> 14.87 | J14: =VLOOKUP($A14,'RECAP DIRCOM'!$G$6:$CU$12,24,FALSE) -> 9% | K14: =VLOOKUP($A14,'RECAP DIRCOM'!$G$6:$CU$12,25,FALSE) -> 2 | L14: =VLOOKUP($A14,'RECAP DIRCOM'!$G$6:$CU$12,26,FALSE) -> 31% | M14: =VLOOKUP($A14,'RECAP DIRCOM'!$G$6:$CU$12,27,FALSE) -> 31% | N14: =VLOOKUP($A14,'RECAP DIRCOM'!$G$6:$CU$12,28,FALSE) -> 4
A15: 160 | B15: Moselle | C15: =VLOOKUP($A15,'RECAP DIRCOM'!$G$6:$CU$12,3,FALSE) -> 207 | D15: =VLOOKUP($A15,'RECAP DIRCOM'!$G$6:$CU$12,18,FALSE) -> 1,643 | E15: =VLOOKUP($A15,'RECAP DIRCOM'!$G$6:$CU$12,19,FALSE) -> 7.96 | F15: =VLOOKUP($A15,'RECAP DIRCOM'!$G$6:$CU$12,20,FALSE) -> 0% | G15: =VLOOKUP($A15,'RECAP DIRCOM'!$G$6:$CU$12,21,FALSE) -> 1 | H15: =VLOOKUP($A15,'RECAP DIRCOM'!$G$6:$CU$12,22,FALSE) -> 3,372 | I15: =VLOOKUP($A15,'RECAP DIRCOM'!$G$6:$CU$12,23,FALSE) -> 16.33 | J15: =VLOOKUP($A15,'RECAP DIRCOM'!$G$6:$CU$12,24,FALSE) -> 0% | K15: =VLOOKUP($A15,'RECAP DIRCOM'!$G$6:$CU$12,25,FALSE) -> 1 | L15: =VLOOKUP($A15,'RECAP DIRCOM'!$G$6:$CU$12,26,FALSE) -> 0% | M15: =VLOOKUP($A15,'RECAP DIRCOM'!$G$6:$CU$12,27,FALSE) -> 0% | N15: =VLOOKUP($A15,'RECAP DIRCOM'!$G$6:$CU$12,28,FALSE) -> 1
A16: 80 | B16: Vosges | C16: =VLOOKUP($A16,'RECAP DIRCOM'!$G$6:$CU$12,3,FALSE) -> 110 | D16: =VLOOKUP($A16,'RECAP DIRCOM'!$G$6:$CU$12,18,FALSE) -> 423 | E16: =VLOOKUP($A16,'RECAP DIRCOM'!$G$6:$CU$12,19,FALSE) -> 3.84 | F16: =VLOOKUP($A16,'RECAP DIRCOM'!$G$6:$CU$12,20,FALSE) -> 52% | G16: =VLOOKUP($A16,'RECAP DIRCOM'!$G$6:$CU$12,21,FALSE) -> 5 | H16: =VLOOKUP($A16,'RECAP DIRCOM'!$G$6:$CU$12,22,FALSE) -> 1,156 | I16: =VLOOKUP($A16,'RECAP DIRCOM'!$G$6:$CU$12,23,FALSE) -> 10.48 | J16: =VLOOKUP($A16,'RECAP DIRCOM'!$G$6:$CU$12,24,FALSE) -> 36% | K16: =VLOOKUP($A16,'RECAP DIRCOM'!$G$6:$CU$12,25,FALSE) -> 7 | L16: =VLOOKUP($A16,'RECAP DIRCOM'!$G$6:$CU$12,26,FALSE) -> 45% | M16: =VLOOKUP($A16,'RECAP DIRCOM'!$G$6:$CU$12,27,FALSE) -> 45% | N16: =VLOOKUP($A16,'RECAP DIRCOM'!$G$6:$CU$12,28,FALSE) -> 5
B17: Total CEGEE Directions Régionales | C17: =SUM(C10:C16) -> 1073

Sheet DC_EPARGNE
B1: Accueil | D1: BAROMETRE BDD - DIRECTIONS REGIONALES
D2: EPARGNE
D3: =ACCUEIL!F7 -> 2022-03-06
D7: Excédent Epargne hors DAV pondéré | H7: Ventes sur client non détenteur de l’univers | L7: Total Epargne
D8: =DATEMAJ!C14 -> au 06/03 | F8: coef | G8: ='RECAP DIRCOM'!AP4 -> 12% | H8: =DATEMAJ!C15 -> au 06/03 | J8: coef | K8: ='RECAP DIRCOM'!AT4 -> 8% | M8: coef | N8: ='RECAP DIRCOM'!AW4 -> 20%
B9: Direction | C9: ="ETP perf "&DATEMAJ!$C$28 -> ETP perf 31-janv | D9: Excédent | E9: Excédent / ETP | F9: % Ecart au 1er | G9: Rang | H9: VB | I9: VB / ETP | J9: % Ecart au 1er | K9: Rang | L9: Moyenne ecart au 1er | M9: % Ecart au 1er | N9: Rang CEGEE
A10: 50 | B10: Aube Haute Marne | C10: =VLOOKUP($A10,'RECAP DIRCOM'!$G$6:$CU$12,3,FALSE) -> 98 | D10: =VLOOKUP($A10,'RECAP DIRCOM'!$G$6:$CU$12,33,FALSE) -> 5,424 | E10: =VLOOKUP($A10,'RECAP DIRCOM'!$G$6:$CU$12,34,FALSE) -> 55.47 | F10: =VLOOKUP($A10,'RECAP DIRCOM'!$G$6:$CU$12,35,FALSE) -> 65% | G10: =VLOOKUP($A10,'RECAP DIRCOM'!$G$6:$CU$12,36,FALSE) -> 7 | H10: =VLOOKUP($A10,'RECAP DIRCOM'!$G$6:$CU$12,37,FALSE) -> 1,178 | I10: =VLOOKUP($A10,'RECAP DIRCOM'!$G$6:$CU$12,38,FALSE) -> 12.05 | J10: =VLOOKUP($A10,'RECAP DIRCOM'!$G$6:$CU$12,39,FALSE) -> 33% | K10: =VLOOKUP($A10,'RECAP DIRCOM'!$G$6:$CU$12,40,FALSE) -> 5 | L10: =VLOOKUP($A10,'RECAP DIRCOM'!$G$6:$CU$12,41,FALSE) -> 52% | M10: =VLOOKUP($A10,'RECAP DIRCOM'!$G$6:$CU$12,42,FALSE) -> 52% | N10: =VLOOKUP($A10,'RECAP DIRCOM'!$G$6:$CU$12,43,FALSE) -> 7
A11: 262 | B11: Bas-Rhin | C11: =VLOOKUP($A11,'RECAP DIRCOM'!$G$6:$CU$12,3,FALSE) -> 198 | D11: =VLOOKUP($A11,'RECAP DIRCOM'!$G$6:$CU$12,33,FALSE) -> 26,393 | E11: =VLOOKUP($A11,'RECAP DIRCOM'!$G$6:$CU$12,34,FALSE) -> 133.02 | F11: =VLOOKUP($A11,'RECAP DIRCOM'!$G$6:$CU$12,35,FALSE) -> 17% | G11: =VLOOKUP($A11,'RECAP DIRCOM'!$G$6:$CU$12,36,FALSE) -> 3 | H11: =VLOOKUP($A11,'RECAP DIRCOM'!$G$6:$CU$12,37,FALSE) -> 2,762 | I11: =VLOOKUP($A11,'RECAP DIRCOM'!$G$6:$CU$12,38,FALSE) -> 13.92 | J11: =VLOOKUP($A11,'RECAP DIRCOM'!$G$6:$CU$12,39,FALSE) -> 22% | K11: =VLOOKUP($A11,'RECAP DIRCOM'!$G$6:$CU$12,40,FALSE) -> 3 | L11: =VLOOKUP($A11,'RECAP DIRCOM'!$G$6:$CU$12,41,FALSE) -> 19% | M11: =VLOOKUP($A11,'RECAP DIRCOM'!$G$6:$CU$12,42,FALSE) -> 19% | N11: =VLOOKUP($A11,'RECAP DIRCOM'!$G$6:$CU$12,43,FALSE) -> 2
A12: 264 | B12: Haut-Rhin | C12: =VLOOKUP($A12,'RECAP DIRCOM'!$G$6:$CU$12,3,FALSE) -> 96 | D12: =VLOOKUP($A12,'RECAP DIRCOM'!$G$6:$CU$12,33,FALSE) -> 12,080 | E12: =VLOOKUP($A12,'RECAP DIRCOM'!$G$6:$CU$12,34,FALSE) -> 126.08 | F12: =VLOOKUP($A12,'RECAP DIRCOM'!$G$6:$CU$12,35,FALSE) -> 21% | G12: =VLOOKUP($A12,'RECAP DIRCOM'!$G$6:$CU$12,36,FALSE) -> 4 | H12: =VLOOKUP($A12,'RECAP DIRCOM'!$G$6:$CU$12,37,FALSE) -> 1,053 | I12: =VLOOKUP($A12,'RECAP DIRCOM'!$G$6:$CU$12,38,FALSE) -> 10.99 | J12: =VLOOKUP($A12,'RECAP DIRCOM'!$G$6:$CU$12,39,FALSE) -> 39% | K12: =VLOOKUP($A12,'RECAP DIRCOM'!$G$6:$CU$12,40,FALSE) -> 6 | L12: =VLOOKUP($A12,'RECAP DIRCOM'!$G$6:$CU$12,41,FALSE) -> 28% | M12: =VLOOKUP($A12,'RECAP DIRCOM'!$G$6:$CU$12,42,FALSE) -> 28% | N12: =VLOOKUP($A12,'RECAP DIRCOM'!$G$6:$CU$12,43,FALSE) -> 4
A13: 30 | B13: Marne-Ardennes | C13: =VLOOKUP($A13,'RECAP DIRCOM'!$G$6:$CU$12,3,FALSE) -> 182 | D13: =VLOOKUP($A13,'RECAP DIRCOM'!$G$6:$CU$12,33,FALSE) -> 17,048 | E13: =VLOOKUP($A13,'RECAP DIRCOM'!$G$6:$CU$12,34,FALSE) -> 93.64 | F13: =VLOOKUP($A13,'RECAP DIRCOM'!$G$6:$CU$12,35,FALSE) -> 41% | G13: =VLOOKUP($A13,'RECAP DIRCOM'!$G$6:$CU$12,36,FALSE) -> 6 | H13: =VLOOKUP($A13,'RECAP DIRCOM'!$G$6:$CU$12,37,FALSE) -> 2,816 | I13: =VLOOKUP($A13,'RECAP DIRCOM'!$G$6:$CU$12,38,FALSE) -> 15.47 | J13: =VLOOKUP($A13,'RECAP DIRCOM'!$G$6:$CU$12,39,FALSE) -> 14% | K13: =VLOOKUP($A13,'RECAP DIRCOM'!$G$6:$CU$12,40,FALSE) -> 2 | L13: =VLOOKUP($A13,'RECAP DIRCOM'!$G$6:$CU$12,41,FALSE) -> 30% | M13: =VLOOKUP($A13,'RECAP DIRCOM'!$G$6:$CU$12,42,FALSE) -> 30% | N13: =VLOOKUP($A13,'RECAP DIRCOM'!$G$6:$CU$12,43,FALSE) -> 6
A14: 110 | B14: Meurthe et Moselle Meuse | C14: =VLOOKUP($A14,'RECAP DIRCOM'!$G$6:$CU$12,3,FALSE) -> 182 | D14: =VLOOKUP($A14,'RECAP DIRCOM'!$G$6:$CU$12,33,FALSE) -> 20,378 | E14: =VLOOKUP($A14,'RECAP DIRCOM'!$G$6:$CU$12,34,FALSE) -> 111.73 | F14: =VLOOKUP($A14,'RECAP DIRCOM'!$G$6:$CU$12,35,FALSE) -> 30% | G14: =VLOOKUP($A14,'RECAP DIRCOM'!$G$6:$CU$12,36,FALSE) -> 5 | H14: =VLOOKUP($A14,'RECAP DIRCOM'!$G$6:$CU$12,37,FALSE) -> 2,364 | I14: =VLOOKUP($A14,'RECAP DIRCOM'!$G$6:$CU$12,38,FALSE) -> 12.96 | J14: =VLOOKUP($A14,'RECAP DIRCOM'!$G$6:$CU$12,39,FALSE) -> 28% | K14: =VLOOKUP($A14,'RECAP DIRCOM'!$G$6:$CU$12,40,FALSE) -> 4 | L14: =VLOOKUP($A14,'RECAP DIRCOM'!$G$6:$CU$12,41,FALSE) -> 29% | M14: =VLOOKUP($A14,'RECAP DIRCOM'!$G$6:$CU$12,42,FALSE) -> 29% | N14: =VLOOKUP($A14,'RECAP DIRCOM'!$G$6:$CU$12,43,FALSE) -> 5
A15: 160 | B15: Moselle | C15: =VLOOKUP($A15,'RECAP DIRCOM'!$G$6:$CU$12,3,FALSE) -> 207 | D15: =VLOOKUP($A15,'RECAP DIRCOM'!$G$6:$CU$12,33,FALSE) -> 33,003 | E15: =VLOOKUP($A15,'RECAP DIRCOM'!$G$6:$CU$12,34,FALSE) -> 159.81 | F15: =VLOOKUP($A15,'RECAP DIRCOM'!$G$6:$CU$12,35,FALSE) -> 0% | G15: =VLOOKUP($A15,'RECAP DIRCOM'!$G$6:$CU$12,36,FALSE) -> 1 | H15: =VLOOKUP($A15,'RECAP DIRCOM'!$G$6:$CU$12,37,FALSE) -> 3,694 | I15: =VLOOKUP($A15,'RECAP DIRCOM'!$G$6:$CU$12,38,FALSE) -> 17.89 | J15: =VLOOKUP($A15,'RECAP DIRCOM'!$G$6:$CU$12,39,FALSE) -> 0% | K15: =VLOOKUP($A15,'RECAP DIRCOM'!$G$6:$CU$12,40,FALSE) -> 1 | L15: =VLOOKUP($A15,'RECAP DIRCOM'!$G$6:$CU$12,41,FALSE) -> 0% | M15: =VLOOKUP($A15,'RECAP DIRCOM'!$G$6:$CU$12,42,FALSE) -> 0% | N15: =VLOOKUP($A15,'RECAP DIRCOM'!$G$6:$CU$12,43,FALSE) -> 1
A16: 80 | B16: Vosges | C16: =VLOOKUP($A16,'RECAP DIRCOM'!$G$6:$CU$12,3,FALSE) -> 110 | D16: =VLOOKUP($A16,'RECAP DIRCOM'!$G$6:$CU$12,33,FALSE) -> 15,970 | E16: =VLOOKUP($A16,'RECAP DIRCOM'!$G$6:$CU$12,34,FALSE) -> 144.74 | F16: =VLOOKUP($A16,'RECAP DIRCOM'!$G$6:$CU$12,35,FALSE) -> 9% | G16: =VLOOKUP($A16,'RECAP DIRCOM'!$G$6:$CU$12,36,FALSE) -> 2 | H16: =VLOOKUP($A16,'RECAP DIRCOM'!$G$6:$CU$12,37,FALSE) -> 1,161 | I16: =VLOOKUP($A16,'RECAP DIRCOM'!$G$6:$CU$12,38,FALSE) -> 10.52 | J16: =VLOOKUP($A16,'RECAP DIRCOM'!$G$6:$CU$12,39,FALSE) -> 41% | K16: =VLOOKUP($A16,'RECAP DIRCOM'!$G$6:$CU$12,40,FALSE) -> 7 | L16: =VLOOKUP($A16,'RECAP DIRCOM'!$G$6:$CU$12,41,FALSE) -> 22% | M16: =VLOOKUP($A16,'RECAP DIRCOM'!$G$6:$CU$12,42,FALSE) -> 22% | N16: =VLOOKUP($A16,'RECAP DIRCOM'!$G$6:$CU$12,43,FALSE) -> 3
B17: Total CEGEE Directions Régionales | C17: =SUM(C10:C16) -> 1073

Sheet DC_CREDIT
B1: Accueil | D1: BAROMETRE BDD - DIRECTIONS REGIONALES
D2: CREDITS
D3: =ACCUEIL!F7 -> 2022-03-06
D7: Engagements et ventes accessoires pondérés Immo | H7: Engagements et ventes accessoires pondérés Conso | L7: Ventes sur client non détenteur de l’univers | P7: Total Crédits
D8: =DATEMAJ!C18 -> au 06/03 | F8: coef | G8: ='RECAP DIRCOM'!BE4 -> 6% | H8: =DATEMAJ!C19 -> au 06/03 | J8: coef | K8: ='RECAP DIRCOM'!BI4 -> 6% | L8: =DATEMAJ!C20 -> au 06/03 | N8: coef | O8: ='RECAP DIRCOM'!BM4 -> 8% | Q8: coef | R8: ='RECAP DIRCOM'!BP4 -> 20%
B9: Direction | C9: ="ETP perf "&DATEMAJ!$C$28 -> ETP perf 31-janv | D9: PNB | E9: PNB / ETP | F9: % Ecart au 1er | G9: Rang | H9: PNB | I9: PNB / ETP | J9: % Ecart au 1er | K9: Rang | L9: VB | M9: VB / ETP | N9: % Ecart au 1er | O9: Rang | P9: Moyenne ecart au 1er | Q9: % Ecart au 1er | R9: Rang CEGEE
A10: 50 | B10: Aube Haute Marne | C10: =VLOOKUP($A10,'RECAP DIRCOM'!$G$6:$CU$12,3,FALSE) -> 98 | D10: =VLOOKUP($A10,'RECAP DIRCOM'!$G$6:$CU$12,48,FALSE) -> 1,758 | E10: =VLOOKUP($A10,'RECAP DIRCOM'!$G$6:$CU$12,49,FALSE) -> 17.98 | F10: =VLOOKUP($A10,'RECAP DIRCOM'!$G$6:$CU$12,50,FALSE) -> 57% | G10: =VLOOKUP($A10,'RECAP DIRCOM'!$G$6:$CU$12,51,FALSE) -> 7 | H10: =VLOOKUP($A10,'RECAP DIRCOM'!$G$6:$CU$12,52,FALSE) -> 1,397 | I10: =VLOOKUP($A10,'RECAP DIRCOM'!$G$6:$CU$12,53,FALSE) -> 14.28 | J10: =VLOOKUP($A10,'RECAP DIRCOM'!$G$6:$CU$12,54,FALSE) -> 24% | K10: =VLOOKUP($A10,'RECAP DIRCOM'!$G$6:$CU$12,55,FALSE) -> 3 | L10: =VLOOKUP($A10,'RECAP DIRCOM'!$G$6:$CU$12,56,FALSE) -> 421 | M10: =VLOOKUP($A10,'RECAP DIRCOM'!$G$6:$CU$12,57,FALSE) -> 4.31 | N10: =VLOOKUP($A10,'RECAP DIRCOM'!$G$6:$CU$12,58,FALSE) -> 35% | O10: =VLOOKUP($A10,'RECAP DIRCOM'!$G$6:$CU$12,59,FALSE) -> 5 | P10: =VLOOKUP($A10,'RECAP DIRCOM'!$G$6:$CU$12,60,FALSE) -> 38% | Q10: =VLOOKUP($A10,'RECAP DIRCOM'!$G$6:$CU$12,61,FALSE) -> 38% | R10: =VLOOKUP($A10,'RECAP DIRCOM'!$G$6:$CU$12,62,FALSE) -> 4
A11: 262 | B11: Bas-Rhin | C11: =VLOOKUP($A11,'RECAP DIRCOM'!$G$6:$CU$12,3,FALSE) -> 198 | D11: =VLOOKUP($A11,'RECAP DIRCOM'!$G$6:$CU$12,48,FALSE) -> 3,635 | E11: =VLOOKUP($A11,'RECAP DIRCOM'!$G$6:$CU$12,49,FALSE) -> 18.32 | F11: =VLOOKUP($A11,'RECAP DIRCOM'!$G$6:$CU$12,50,FALSE) -> 56% | G11: =VLOOKUP($A11,'RECAP DIRCOM'!$G$6:$CU$12,51,FALSE) -> 6 | H11: =VLOOKUP($A11,'RECAP DIRCOM'!$G$6:$CU$12,52,FALSE) -> 2,874 | I11: =VLOOKUP($A11,'RECAP DIRCOM'!$G$6:$CU$12,53,FALSE) -> 14.49 | J11: =VLOOKUP($A11,'RECAP DIRCOM'!$G$6:$CU$12,54,FALSE) -> 23% | K11: =VLOOKUP($A11,'RECAP DIRCOM'!$G$6:$CU$12,55,FALSE) -> 2 | L11: =VLOOKUP($A11,'RECAP DIRCOM'!$G$6:$CU$12,56,FALSE) -> 795 | M11: =VLOOKUP($A11,'RECAP DIRCOM'!$G$6:$CU$12,57,FALSE) -> 4.01 | N11: =VLOOKUP($A11,'RECAP DIRCOM'!$G$6:$CU$12,58,FALSE) -> 39% | O11: =VLOOKUP($A11,'RECAP DIRCOM'!$G$6:$CU$12,59,FALSE) -> 7 | P11: =VLOOKUP($A11,'RECAP DIRCOM'!$G$6:$CU$12,60,FALSE) -> 39% | Q11: =VLOOKUP($A11,'RECAP DIRCOM'!$G$6:$CU$12,61,FALSE) -> 39% | R11: =VLOOKUP($A11,'RECAP DIRCOM'!$G$6:$CU$12,62,FALSE) -> 6
A12: 264 | B12: Haut-Rhin | C12: =VLOOKUP($A12,'RECAP DIRCOM'!$G$6:$CU$12,3,FALSE) -> 96 | D12: =VLOOKUP($A12,'RECAP DIRCOM'!$G$6:$CU$12,48,FALSE) -> 2,014 | E12: =VLOOKUP($A12,'RECAP DIRCOM'!$G$6:$CU$12,49,FALSE) -> 21.02 | F12: =VLOOKUP($A12,'RECAP DIRCOM'!$G$6:$CU$12,50,FALSE) -> 50% | G12: =VLOOKUP($A12,'RECAP DIRCOM'!$G$6:$CU$12,51,FALSE) -> 4 | H12: =VLOOKUP($A12,'RECAP DIRCOM'!$G$6:$CU$12,52,FALSE) -> 1,309 | I12: =VLOOKUP($A12,'RECAP DIRCOM'!$G$6:$CU$12,53,FALSE) -> 13.66 | J12: =VLOOKUP($A12,'RECAP DIRCOM'!$G$6:$CU$12,54,FALSE) -> 27% | K12: =VLOOKUP($A12,'RECAP DIRCOM'!$G$6:$CU$12,55,FALSE) -> 5 | L12: =VLOOKUP($A12,'RECAP DIRCOM'!$G$6:$CU$12,56,FALSE) -> 389 | M12: =VLOOKUP($A12,'RECAP DIRCOM'!$G$6:$CU$12,57,FALSE) -> 4.06 | N12: =VLOOKUP($A12,'RECAP DIRCOM'!$G$6:$CU$12,58,FALSE) -> 39% | O12: =VLOOKUP($A12,'RECAP DIRCOM'!$G$6:$CU$12,59,FALSE) -> 6 | P12: =VLOOKUP($A12,'RECAP DIRCOM'!$G$6:$CU$12,60,FALSE) -> 39% | Q12: =VLOOKUP($A12,'RECAP DIRCOM'!$G$6:$CU$12,61,FALSE) -> 39% | R12: =VLOOKUP($A12,'RECAP DIRCOM'!$G$6:$CU$12,62,FALSE) -> 5
A13: 30 | B13: Marne-Ardennes | C13: =VLOOKUP($A13,'RECAP DIRCOM'!$G$6:$CU$12,3,FALSE) -> 182 | D13: =VLOOKUP($A13,'RECAP DIRCOM'!$G$6:$CU$12,48,FALSE) -> 7,505 | E13: =VLOOKUP($A13,'RECAP DIRCOM'!$G$6:$CU$12,49,FALSE) -> 41.22 | F13: =VLOOKUP($A13,'RECAP DIRCOM'!$G$6:$CU$12,50,FALSE) -> 2% | G13: =VLOOKUP($A13,'RECAP DIRCOM'!$G$6:$CU$12,51,FALSE) -> 2 | H13: =VLOOKUP($A13,'RECAP DIRCOM'!$G$6:$CU$12,52,FALSE) -> 2,358 | I13: =VLOOKUP($A13,'RECAP DIRCOM'!$G$6:$CU$12,53,FALSE) -> 12.95 | J13: =VLOOKUP($A13,'RECAP DIRCOM'!$G$6:$CU$12,54,FALSE) -> 31% | K13: =VLOOKUP($A13,'RECAP DIRCOM'!$G$6:$CU$12,55,FALSE) -> 6 | L13: =VLOOKUP($A13,'RECAP DIRCOM'!$G$6:$CU$12,56,FALSE) -> 1,168 | M13: =VLOOKUP($A13,'RECAP DIRCOM'!$G$6:$CU$12,57,FALSE) -> 6.42 | N13: =VLOOKUP($A13,'RECAP DIRCOM'!$G$6:$CU$12,58,FALSE) -> 3% | O13: =VLOOKUP($A13,'RECAP DIRCOM'!$G$6:$CU$12,59,FALSE) -> 2 | P13: =VLOOKUP($A13,'RECAP DIRCOM'!$G$6:$CU$12,60,FALSE) -> 11% | Q13: =VLOOKUP($A13,'RECAP DIRCOM'!$G$6:$CU$12,61,FALSE) -> 11% | R13: =VLOOKUP($A13,'RECAP DIRCOM'!$G$6:$CU$12,62,FALSE) -> 2
A14: 110 | B14: Meurthe et Moselle Meuse | C14: =VLOOKUP($A14,'RECAP DIRCOM'!$G$6:$CU$12,3,FALSE) -> 182 | D14: =VLOOKUP($A14,'RECAP DIRCOM'!$G$6:$CU$12,48,FALSE) -> 6,824 | E14: =VLOOKUP($A14,'RECAP DIRCOM'!$G$6:$CU$12,49,FALSE) -> 37.42 | F14: =VLOOKUP($A14,'RECAP DIRCOM'!$G$6:$CU$12,50,FALSE) -> 11% | G14: =VLOOKUP($A14,'RECAP DIRCOM'!$G$6:$CU$12,51,FALSE) -> 3 | H14: =VLOOKUP($A14,'RECAP DIRCOM'!$G$6:$CU$12,52,FALSE) -> 2,600 | I14: =VLOOKUP($A14,'RECAP DIRCOM'!$G$6:$CU$12,53,FALSE) -> 14.26 | J14: =VLOOKUP($A14,'RECAP DIRCOM'!$G$6:$CU$12,54,FALSE) -> 24% | K14: =VLOOKUP($A14,'RECAP DIRCOM'!$G$6:$CU$12,55,FALSE) -> 4 | L14: =VLOOKUP($A14,'RECAP DIRCOM'!$G$6:$CU$12,56,FALSE) -> 1,072 | M14: =VLOOKUP($A14,'RECAP DIRCOM'!$G$6:$CU$12,57,FALSE) -> 5.88 | N14: =VLOOKUP($A14,'RECAP DIRCOM'!$G$6:$CU$12,58,FALSE) -> 11% | O14: =VLOOKUP($A14,'RECAP DIRCOM'!$G$6:$CU$12,59,FALSE) -> 3 | P14: =VLOOKUP($A14,'RECAP DIRCOM'!$G$6:$CU$12,60,FALSE) -> 15% | Q14: =VLOOKUP($A14,'RECAP DIRCOM'!$G$6:$CU$12,61,FALSE) -> 15% | R14: =VLOOKUP($A14,'RECAP DIRCOM'!$G$6:$CU$12,62,FALSE) -> 3
A15: 160 | B15: Moselle | C15: =VLOOKUP($A15,'RECAP DIRCOM'!$G$6:$CU$12,3,FALSE) -> 207 | D15: =VLOOKUP($A15,'RECAP DIRCOM'!$G$6:$CU$12,48,FALSE) -> 8,657 | E15: =VLOOKUP($A15,'RECAP DIRCOM'!$G$6:$CU$12,49,FALSE) -> 41.92 | F15: =VLOOKUP($A15,'RECAP DIRCOM'!$G$6:$CU$12,50,FALSE) -> 0% | G15: =VLOOKUP($A15,'RECAP DIRCOM'!$G$6:$CU$12,51,FALSE) -> 1 | H15: =VLOOKUP($A15,'RECAP DIRCOM'!$G$6:$CU$12,52,FALSE) -> 3,867 | I15: =VLOOKUP($A15,'RECAP DIRCOM'!$G$6:$CU$12,53,FALSE) -> 18.73 | J15: =VLOOKUP($A15,'RECAP DIRCOM'!$G$6:$CU$12,54,FALSE) -> 0% | K15: =VLOOKUP($A15,'RECAP DIRCOM'!$G$6:$CU$12,55,FALSE) -> 1 | L15: =VLOOKUP($A15,'RECAP DIRCOM'!$G$6:$CU$12,56,FALSE) -> 1,366 | M15: =VLOOKUP($A15,'RECAP DIRCOM'!$G$6:$CU$12,57,FALSE) -> 6.61 | N15: =VLOOKUP($A15,'RECAP DIRCOM'!$G$6:$CU$12,58,FALSE) -> 0% | O15: =VLOOKUP($A15,'RECAP DIRCOM'!$G$6:$CU$12,59,FALSE) -> 1 | P15: =VLOOKUP($A15,'RECAP DIRCOM'!$G$6:$CU$12,60,FALSE) -> 0% | Q15: =VLOOKUP($A15,'RECAP DIRCOM'!$G$6:$CU$12,61,FALSE) -> 0% | R15: =VLOOKUP($A15,'RECAP DIRCOM'!$G$6:$CU$12,62,FALSE) -> 1
A16: 80 | B16: Vosges | C16: =VLOOKUP($A16,'RECAP DIRCOM'!$G$6:$CU$12,3,FALSE) -> 110 | D16: =VLOOKUP($A16,'RECAP DIRCOM'!$G$6:$CU$12,48,FALSE) -> 2,154 | E16: =VLOOKUP($A16,'RECAP DIRCOM'!$G$6:$CU$12,49,FALSE) -> 19.52 | F16: =VLOOKUP($A16,'RECAP DIRCOM'!$G$6:$CU$12,50,FALSE) -> 53% | G16: =VLOOKUP($A16,'RECAP DIRCOM'!$G$6:$CU$12,51,FALSE) -> 5 | H16: =VLOOKUP($A16,'RECAP DIRCOM'!$G$6:$CU$12,52,FALSE) -> 1,230 | I16: =VLOOKUP($A16,'RECAP DIRCOM'!$G$6:$CU$12,53,FALSE) -> 11.15 | J16: =VLOOKUP($A16,'RECAP DIRCOM'!$G$6:$CU$12,54,FALSE) -> 40% | K16: =VLOOKUP($A16,'RECAP DIRCOM'!$G$6:$CU$12,55,FALSE) -> 7 | L16: =VLOOKUP($A16,'RECAP DIRCOM'!$G$6:$CU$12,56,FALSE) -> 515 | M16: =VLOOKUP($A16,'RECAP DIRCOM'!$G$6:$CU$12,57,FALSE) -> 4.67 | N16: =VLOOKUP($A16,'RECAP DIRCOM'!$G$6:$CU$12,58,FALSE) -> 29% | O16: =VLOOKUP($A16,'RECAP DIRCOM'!$G$6:$CU$12,59,FALSE) -> 4 | P16: =VLOOKUP($A16,'RECAP DIRCOM'!$G$6:$CU$12,60,FALSE) -> 40% | Q16: =VLOOKUP($A16,'RECAP DIRCOM'!$G$6:$CU$12,61,FALSE) -> 40% | R16: =VLOOKUP($A16,'RECAP DIRCOM'!$G$6:$CU$12,62,FALSE) -> 7
B17: Total CEGEE Directions Régionales | C17: =SUM(C10:C16) -> 1073

Sheet DC_IARD
B1: Accueil | D1: BAROMETRE BDD - DIRECTIONS REGIONALES
D2: IARD ET PREVOYANCE
D3: =ACCUEIL!F7 -> 2022-03-06
D7: Ventes Nettes produits pondérés | H7: Ventes sur client non détenteur de l’univers | L7: Total IARD Prévoyance
D8: =DATEMAJ!C23 -> au 06/03 | F8: coef | G8: ='RECAP DIRCOM'!BX4 -> 12% | H8: =DATEMAJ!C24 -> au 06/03 | J8: coef | K8: ='RECAP DIRCOM'!CB4 -> 8% | M8: coef | N8: ='RECAP DIRCOM'!CE4 -> 20%
B9: Direction | C9: ="ETP perf "&DATEMAJ!$C$28 -> ETP perf 31-janv | D9: VN | E9: VN / ETP | F9: % Ecart au 1er | G9: Rang | H9: VB | I9: VB / ETP | J9: % Ecart au 1er | K9: Rang | L9: Moyenne ecart au 1er | M9: % Ecart au 1er | N9: Rang CEGEE
A10: 50 | B10: Aube Haute Marne | C10: =VLOOKUP($A10,'RECAP DIRCOM'!$G$6:$CU$12,3,FALSE) -> 98 | D10: =VLOOKUP($A10,'RECAP DIRCOM'!$G$6:$CU$12,67,FALSE) -> 2,467 | E10: =VLOOKUP($A10,'RECAP DIRCOM'!$G$6:$CU$12,68,FALSE) -> 25.23 | F10: =VLOOKUP($A10,'RECAP DIRCOM'!$G$6:$CU$12,69,FALSE) -> 49% | G10: =VLOOKUP($A10,'RECAP DIRCOM'!$G$6:$CU$12,70,FALSE) -> 5 | H10: =VLOOKUP($A10,'RECAP DIRCOM'!$G$6:$CU$12,71,FALSE) -> 949 | I10: =VLOOKUP($A10,'RECAP DIRCOM'!$G$6:$CU$12,72,FALSE) -> 9.70 | J10: =VLOOKUP($A10,'RECAP DIRCOM'!$G$6:$CU$12,73,FALSE) -> 20% | K10: =VLOOKUP($A10,'RECAP DIRCOM'!$G$6:$CU$12,74,FALSE) -> 6 | L10: =VLOOKUP($A10,'RECAP DIRCOM'!$G$6:$CU$12,75,FALSE) -> 37% | M10: =VLOOKUP($A10,'RECAP DIRCOM'!$G$6:$CU$12,76,FALSE) -> 37% | N10: =VLOOKUP($A10,'RECAP DIRCOM'!$G$6:$CU$12,77,FALSE) -> 5
A11: 262 | B11: Bas-Rhin | C11: =VLOOKUP($A11,'RECAP DIRCOM'!$G$6:$CU$12,3,FALSE) -> 198 | D11: =VLOOKUP($A11,'RECAP DIRCOM'!$G$6:$CU$12,67,FALSE) -> 7,460 | E11: =VLOOKUP($A11,'RECAP DIRCOM'!$G$6:$CU$12,68,FALSE) -> 37.60 | F11: =VLOOKUP($A11,'RECAP DIRCOM'!$G$6:$CU$12,69,FALSE) -> 24% | G11: =VLOOKUP($A11,'RECAP DIRCOM'!$G$6:$CU$12,70,FALSE) -> 2 | H11: =VLOOKUP($A11,'RECAP DIRCOM'!$G$6:$CU$12,71,FALSE) -> 2,304 | I11: =VLOOKUP($A11,'RECAP DIRCOM'!$G$6:$CU$12,72,FALSE) -> 11.61 | J11: =VLOOKUP($A11,'RECAP DIRCOM'!$G$6:$CU$12,73,FALSE) -> 4% | K11: =VLOOKUP($A11,'RECAP DIRCOM'!$G$6:$CU$12,74,FALSE) -> 2 | L11: =VLOOKUP($A11,'RECAP DIRCOM'!$G$6:$CU$12,75,FALSE) -> 16% | M11: =VLOOKUP($A11,'RECAP DIRCOM'!$G$6:$CU$12,76,FALSE) -> 16% | N11: =VLOOKUP($A11,'RECAP DIRCOM'!$G$6:$CU$12,77,FALSE) -> 2
A12: 264 | B12: Haut-Rhin | C12: =VLOOKUP($A12,'RECAP DIRCOM'!$G$6:$CU$12,3,FALSE) -> 96 | D12: =VLOOKUP($A12,'RECAP DIRCOM'!$G$6:$CU$12,67,FALSE) -> 2,172 | E12: =VLOOKUP($A12,'RECAP DIRCOM'!$G$6:$CU$12,68,FALSE) -> 22.67 | F12: =VLOOKUP($A12,'RECAP DIRCOM'!$G$6:$CU$12,69,FALSE) -> 54% | G12: =VLOOKUP($A12,'RECAP DIRCOM'!$G$6:$CU$12,70,FALSE) -> 7 | H12: =VLOOKUP($A12,'RECAP DIRCOM'!$G$6:$CU$12,71,FALSE) -> 986 | I12: =VLOOKUP($A12,'RECAP DIRCOM'!$G$6:$CU$12,72,FALSE) -> 10.29 | J12: =VLOOKUP($A12,'RECAP DIRCOM'!$G$6:$CU$12,73,FALSE) -> 15% | K12: =VLOOKUP($A12,'RECAP DIRCOM'!$G$6:$CU$12,74,FALSE) -> 5 | L12: =VLOOKUP($A12,'RECAP DIRCOM'!$G$6:$CU$12,75,FALSE) -> 39% | M12: =VLOOKUP($A12,'RECAP DIRCOM'!$G$6:$CU$12,76,FALSE) -> 39% | N12: =VLOOKUP($A12,'RECAP DIRCOM'!$G$6:$CU$12,77,FALSE) -> 6
A13: 30 | B13: Marne-Ardennes | C13: =VLOOKUP($A13,'RECAP DIRCOM'!$G$6:$CU$12,3,FALSE) -> 182 | D13: =VLOOKUP($A13,'RECAP DIRCOM'!$G$6:$CU$12,67,FALSE) -> 5,777 | E13: =VLOOKUP($A13,'RECAP DIRCOM'!$G$6:$CU$12,68,FALSE) -> 31.73 | F13: =VLOOKUP($A13,'RECAP DIRCOM'!$G$6:$CU$12,69,FALSE) -> 36% | G13: =VLOOKUP($A13,'RECAP DIRCOM'!$G$6:$CU$12,70,FALSE) -> 3 | H13: =VLOOKUP($A13,'RECAP DIRCOM'!$G$6:$CU$12,71,FALSE) -> 1,947 | I13: =VLOOKUP($A13,'RECAP DIRCOM'!$G$6:$CU$12,72,FALSE) -> 10.69 | J13: =VLOOKUP($A13,'RECAP DIRCOM'!$G$6:$CU$12,73,FALSE) -> 12% | K13: =VLOOKUP($A13,'RECAP DIRCOM'!$G$6:$CU$12,74,FALSE) -> 4 | L13: =VLOOKUP($A13,'RECAP DIRCOM'!$G$6:$CU$12,75,FALSE) -> 26% | M13: =VLOOKUP($A13,'RECAP DIRCOM'!$G$6:$CU$12,76,FALSE) -> 26% | N13: =VLOOKUP($A13,'RECAP DIRCOM'!$G$6:$CU$12,77,FALSE) -> 4
A14: 110 | B14: Meurthe et Moselle Meuse | C14: =VLOOKUP($A14,'RECAP DIRCOM'!$G$6:$CU$12,3,FALSE) -> 182 | D14: =VLOOKUP($A14,'RECAP DIRCOM'!$G$6:$CU$12,67,FALSE) -> 5,508 | E14: =VLOOKUP($A14,'RECAP DIRCOM'!$G$6:$CU$12,68,FALSE) -> 30.20 | F14: =VLOOKUP($A14,'RECAP DIRCOM'!$G$6:$CU$12,69,FALSE) -> 39% | G14: =VLOOKUP($A14,'RECAP DIRCOM'!$G$6:$CU$12,70,FALSE) -> 4 | H14: =VLOOKUP($A14,'RECAP DIRCOM'!$G$6:$CU$12,71,FALSE) -> 2,076 | I14: =VLOOKUP($A14,'RECAP DIRCOM'!$G$6:$CU$12,72,FALSE) -> 11.38 | J14: =VLOOKUP($A14,'RECAP DIRCOM'!$G$6:$CU$12,73,FALSE) -> 6% | K14: =VLOOKUP($A14,'RECAP DIRCOM'!$G$6:$CU$12,74,FALSE) -> 3 | L14: =VLOOKUP($A14,'RECAP DIRCOM'!$G$6:$CU$12,75,FALSE) -> 26% | M14: =VLOOKUP($A14,'RECAP DIRCOM'!$G$6:$CU$12,76,FALSE) -> 26% | N14: =VLOOKUP($A14,'RECAP DIRCOM'!$G$6:$CU$12,77,FALSE) -> 3
A15: 160 | B15: Moselle | C15: =VLOOKUP($A15,'RECAP DIRCOM'!$G$6:$CU$12,3,FALSE) -> 207 | D15: =VLOOKUP($A15,'RECAP DIRCOM'!$G$6:$CU$12,67,FALSE) -> 10,194 | E15: =VLOOKUP($A15,'RECAP DIRCOM'!$G$6:$CU$12,68,FALSE) -> 49.36 | F15: =VLOOKUP($A15,'RECAP DIRCOM'!$G$6:$CU$12,69,FALSE) -> 0% | G15: =VLOOKUP($A15,'RECAP DIRCOM'!$G$6:$CU$12,70,FALSE) -> 1 | H15: =VLOOKUP($A15,'RECAP DIRCOM'!$G$6:$CU$12,71,FALSE) -> 2,511 | I15: =VLOOKUP($A15,'RECAP DIRCOM'!$G$6:$CU$12,72,FALSE) -> 12.16 | J15: =VLOOKUP($A15,'RECAP DIRCOM'!$G$6:$CU$12,73,FALSE) -> 0% | K15: =VLOOKUP($A15,'RECAP DIRCOM'!$G$6:$CU$12,74,FALSE) -> 1 | L15: =VLOOKUP($A15,'RECAP DIRCOM'!$G$6:$CU$12,75,FALSE) -> 0% | M15: =VLOOKUP($A15,'RECAP DIRCOM'!$G$6:$CU$12,76,FALSE) -> 0% | N15: =VLOOKUP($A15,'RECAP DIRCOM'!$G$6:$CU$12,77,FALSE) -> 1
A16: 80 | B16: Vosges | C16: =VLOOKUP($A16,'RECAP DIRCOM'!$G$6:$CU$12,3,FALSE) -> 110 | D16: =VLOOKUP($A16,'RECAP DIRCOM'!$G$6:$CU$12,67,FALSE) -> 2,534 | E16: =VLOOKUP($A16,'RECAP DIRCOM'!$G$6:$CU$12,68,FALSE) -> 22.97 | F16: =VLOOKUP($A16,'RECAP DIRCOM'!$G$6:$CU$12,69,FALSE) -> 53% | G16: =VLOOKUP($A16,'RECAP DIRCOM'!$G$6:$CU$12,70,FALSE) -> 6 | H16: =VLOOKUP($A16,'RECAP DIRCOM'!$G$6:$CU$12,71,FALSE) -> 967 | I16: =VLOOKUP($A16,'RECAP DIRCOM'!$G$6:$CU$12,72,FALSE) -> 8.76 | J16: =VLOOKUP($A16,'RECAP DIRCOM'!$G$6:$CU$12,73,FALSE) -> 28% | K16: =VLOOKUP($A16,'RECAP DIRCOM'!$G$6:$CU$12,74,FALSE) -> 7 | L16: =VLOOKUP($A16,'RECAP DIRCOM'!$G$6:$CU$12,75,FALSE) -> 43% | M16: =VLOOKUP($A16,'RECAP DIRCOM'!$G$6:$CU$12,76,FALSE) -> 43% | N16: =VLOOKUP($A16,'RECAP DIRCOM'!$G$6:$CU$12,77,FALSE) -> 7
B17: Total CEGEE Directions Régionales | C17: =SUM(C10:C16) -> 1073

Sheet DC_SATISFACTION
B1: Accueil | D1: BAROMETRE BDD - DIRECTIONS REGIONALES
D2: SATISFACTION
D3: =ACCUEIL!F7 -> 2022-03-06
D7: NPS à froid (SAE) | G7: NPS à chaud (QHD) | J7: Total Satisfaction Clients
D8: =DATEMAJ!E4 -> au 31/01 | E8: coef | F8: ='RECAP DIRCOM'!M4 -> 10% | G8: =DATEMAJ!C5 -> au 31/01 | H8: coef | I8: ='RECAP DIRCOM'!P4 -> 10% | K8: coef | L8: ='RECAP DIRCOM'!S4 -> 20%
B9: Direction | C9: ="ETP perf "&DATEMAJ!$C$28 -> ETP perf 31-janv | E9: % Ecart au 1er | F9: Rang | H9: % Ecart au 1er | I9: Rang | J9: Moyenne ecart au 1er | K9: % Ecart au 1er | L9: Rang CEGEE
A10: 50 | B10: Aube Haute Marne | C10: =VLOOKUP($A10,'RECAP DIRCOM'!$G$6:$CU$12,3,FALSE) -> 98 | D10: =VLOOKUP($A10,'RECAP DIRCOM'!$G$6:$CU$12,5,FALSE) -> 10.5 | E10: =VLOOKUP($A10,'RECAP DIRCOM'!$G$6:$CU$12,6,FALSE) -> 48% | F10: =VLOOKUP($A10,'RECAP DIRCOM'!$G$6:$CU$12,7,FALSE) -> 4 | G10: =VLOOKUP($A10,'RECAP DIRCOM'!$G$6:$CU$12,8,FALSE) -> 54% | H10: =VLOOKUP($A10,'RECAP DIRCOM'!$G$6:$CU$12,9,FALSE) -> 21% | I10: =VLOOKUP($A10,'RECAP DIRCOM'!$G$6:$CU$12,10,FALSE) -> 5 | J10: =VLOOKUP($A10,'RECAP DIRCOM'!$G$6:$CU$12,11,FALSE) -> 34% | K10: =VLOOKUP($A10,'RECAP DIRCOM'!$G$6:$CU$12,12,FALSE) -> 31% | L10: =VLOOKUP($A10,'RECAP DIRCOM'!$G$6:$CU$12,13,FALSE) -> 4
A11: 262 | B11: Bas-Rhin | C11: =VLOOKUP($A11,'RECAP DIRCOM'!$G$6:$CU$12,3,FALSE) -> 198 | D11: =VLOOKUP($A11,'RECAP DIRCOM'!$G$6:$CU$12,5,FALSE) -> 4.5 | E11: =VLOOKUP($A11,'RECAP DIRCOM'!$G$6:$CU$12,6,FALSE) -> 78% | F11: =VLOOKUP($A11,'RECAP DIRCOM'!$G$6:$CU$12,7,FALSE) -> 5 | G11: =VLOOKUP($A11,'RECAP DIRCOM'!$G$6:$CU$12,8,FALSE) -> 57% | H11: =VLOOKUP($A11,'RECAP DIRCOM'!$G$6:$CU$12,9,FALSE) -> 16% | I11: =VLOOKUP($A11,'RECAP DIRCOM'!$G$6:$CU$12,10,FALSE) -> 4 | J11: =VLOOKUP($A11,'RECAP DIRCOM'!$G$6:$CU$12,11,FALSE) -> 47% | K11: =VLOOKUP($A11,'RECAP DIRCOM'!$G$6:$CU$12,12,FALSE) -> 43% | L11: =VLOOKUP($A11,'RECAP DIRCOM'!$G$6:$CU$12,13,FALSE) -> 5
A12: 264 | B12: Haut-Rhin | C12: =VLOOKUP($A12,'RECAP DIRCOM'!$G$6:$CU$12,3,FALSE) -> 96 | D12: =VLOOKUP($A12,'RECAP DIRCOM'!$G$6:$CU$12,5,FALSE) -> 3.25 | E12: =VLOOKUP($A12,'RECAP DIRCOM'!$G$6:$CU$12,6,FALSE) -> 84% | F12: =VLOOKUP($A12,'RECAP DIRCOM'!$G$6:$CU$12,7,FALSE) -> 6 | G12: =VLOOKUP($A12,'RECAP DIRCOM'!$G$6:$CU$12,8,FALSE) -> 49% | H12: =VLOOKUP($A12,'RECAP DIRCOM'!$G$6:$CU$12,9,FALSE) -> 28% | I12: =VLOOKUP($A12,'RECAP DIRCOM'!$G$6:$CU$12,10,FALSE) -> 7 | J12: =VLOOKUP($A12,'RECAP DIRCOM'!$G$6:$CU$12,11,FALSE) -> 56% | K12: =VLOOKUP($A12,'RECAP DIRCOM'!$G$6:$CU$12,12,FALSE) -> 52% | L12: =VLOOKUP($A12,'RECAP DIRCOM'!$G$6:$CU$12,13,FALSE) -> 7
A13: 30 | B13: Marne-Ardennes | C13: =VLOOKUP($A13,'RECAP DIRCOM'!$G$6:$CU$12,3,FALSE) -> 182 | D13: =VLOOKUP($A13,'RECAP DIRCOM'!$G$6:$CU$12,5,FALSE) -> 16 | E13: =VLOOKUP($A13,'RECAP DIRCOM'!$G$6:$CU$12,6,FALSE) -> 21% | F13: =VLOOKUP($A13,'RECAP DIRCOM'!$G$6:$CU$12,7,FALSE) -> 2 | G13: =VLOOKUP($A13,'RECAP DIRCOM'!$G$6:$CU$12,8,FALSE) -> 66% | H13: =VLOOKUP($A13,'RECAP DIRCOM'!$G$6:$CU$12,9,FALSE) -> 2% | I13: =VLOOKUP($A13,'RECAP DIRCOM'!$G$6:$CU$12,10,FALSE) -> 2 | J13: =VLOOKUP($A13,'RECAP DIRCOM'!$G$6:$CU$12,11,FALSE) -> 11% | K13: =VLOOKUP($A13,'RECAP DIRCOM'!$G$6:$CU$12,12,FALSE) -> 8% | L13: =VLOOKUP($A13,'RECAP DIRCOM'!$G$6:$CU$12,13,FALSE) -> 2
A14: 110 | B14: Meurthe et Moselle Meuse | C14: =VLOOKUP($A14,'RECAP DIRCOM'!$G$6:$CU$12,3,FALSE) -> 182 | D14: =VLOOKUP($A14,'RECAP DIRCOM'!$G$6:$CU$12,5,FALSE) -> 3.25 | E14: =VLOOKUP($A14,'RECAP DIRCOM'!$G$6:$CU$12,6,FALSE) -> 84% | F14: =VLOOKUP($A14,'RECAP DIRCOM'!$G$6:$CU$12,7,FALSE) -> 6 | G14: =VLOOKUP($A14,'RECAP DIRCOM'!$G$6:$CU$12,8,FALSE) -> 53% | H14: =VLOOKUP($A14,'RECAP DIRCOM'!$G$6:$CU$12,9,FALSE) -> 21% | I14: =VLOOKUP($A14,'RECAP DIRCOM'!$G$6:$CU$12,10,FALSE) -> 6 | J14: =VLOOKUP($A14,'RECAP DIRCOM'!$G$6:$CU$12,11,FALSE) -> 53% | K14: =VLOOKUP($A14,'RECAP DIRCOM'!$G$6:$CU$12,12,FALSE) -> 49% | L14: =VLOOKUP($A14,'RECAP DIRCOM'!$G$6:$CU$12,13,FALSE) -> 6
A15: 160 | B15: Moselle | C15: =VLOOKUP($A15,'RECAP DIRCOM'!$G$6:$CU$12,3,FALSE) -> 207 | D15: =VLOOKUP($A15,'RECAP DIRCOM'!$G$6:$CU$12,5,FALSE) -> 20.25 | E15: =VLOOKUP($A15,'RECAP DIRCOM'!$G$6:$CU$12,6,FALSE) -> 0% | F15: =VLOOKUP($A15,'RECAP DIRCOM'!$G$6:$CU$12,7,FALSE) -> 1 | G15: =VLOOKUP($A15,'RECAP DIRCOM'!$G$6:$CU$12,8,FALSE) -> 63% | H15: =VLOOKUP($A15,'RECAP DIRCOM'!$G$6:$CU$12,9,FALSE) -> 7% | I15: =VLOOKUP($A15,'RECAP DIRCOM'!$G$6:$CU$12,10,FALSE) -> 3 | J15: =VLOOKUP($A15,'RECAP DIRCOM'!$G$6:$CU$12,11,FALSE) -> 4% | K15: =VLOOKUP($A15,'RECAP DIRCOM'!$G$6:$CU$12,12,FALSE) -> 0% | L15: =VLOOKUP($A15,'RECAP DIRCOM'!$G$6:$CU$12,13,FALSE) -> 1
A16: 80 | B16: Vosges | C16: =VLOOKUP($A16,'RECAP DIRCOM'!$G$6:$CU$12,3,FALSE) -> 110 | D16: =VLOOKUP($A16,'RECAP DIRCOM'!$G$6:$CU$12,5,FALSE) -> 14.5 | E16: =VLOOKUP($A16,'RECAP DIRCOM'!$G$6:$CU$12,6,FALSE) -> 28% | F16: =VLOOKUP($A16,'RECAP DIRCOM'!$G$6:$CU$12,7,FALSE) -> 3 | G16: =VLOOKUP($A16,'RECAP DIRCOM'!$G$6:$CU$12,8,FALSE) -> 68% | H16: =VLOOKUP($A16,'RECAP DIRCOM'!$G$6:$CU$12,9,FALSE) -> 0% | I16: =VLOOKUP($A16,'RECAP DIRCOM'!$G$6:$CU$12,10,FALSE) -> 1 | J16: =VLOOKUP($A16,'RECAP DIRCOM'!$G$6:$CU$12,11,FALSE) -> 14% | K16: =VLOOKUP($A16,'RECAP DIRCOM'!$G$6:$CU$12,12,FALSE) -> 11% | L16: =VLOOKUP($A16,'RECAP DIRCOM'!$G$6:$CU$12,13,FALSE) -> 3
B17: Total CEGEE Directions Régionales | C17: =SUM(C10:C16) -> 1073

Sheet SE_FICHE
A1: Accueil
A2: BAROMETRE BDD
A4: UNITE: | B4: TERRITOIRE | E4: ETP perf : | F4: =VLOOKUP(A5,'RECAP SECT'!$G$6:$I$23,3,FALSE) -> 48.26
A5: =VLOOKUP(B5,LISTES!$H$6:$I$23,2,FALSE) -> 5130 | B5: COLMAR
C6: Coefficient du critére | E6: Résultats | I6: Ecart au 1ier | M6: Evolution | O6: Rang
E7: du 1ier | G7: du territoire | I7: Du mois | K7: Au 31/12/2019
A9: RANG au CLASSEMENT GENERAL | K9: =VLOOKUP($A$5,#REF!,168,FALSE) ->  | M9: =+K9-O9 ->  | O9: =VLOOKUP($A$5,'RECAP SECT'!$G$6:$CY$312,168,FALSE) ->  | S9: =VLOOKUP($A$5,#REF!,154,FALSE) ->  | U9: =+S9-O9 -> 
A11: CRITERE CONQUETE | C11: 15% | O11: =VLOOKUP($A$5,'RECAP SECT'!$G$6:$CY$312,23,FALSE) -> 11.56201113
B12: PNB Evolution nette Clients BP | C12: 4% | E12: ='RECAP SECT'!#REF! ->  | G12: =VLOOKUP($A$5,'RECAP SECT'!$G$6:$CY$312,6,FALSE) -> 0.8 | I12: =VLOOKUP($A$5,'RECAP SECT'!$G$6:$CY$312,7,FALSE) -> 1200% | K12: =VLOOKUP($A$5,#REF!,7,FALSE) ->  | M12: =+K12-I12 ->  | O12: =VLOOKUP($A$5,'RECAP SECT'!$G$6:$CY$312,8,FALSE) -> 0.516025641 | S12: =VLOOKUP($A$5,#REF!,6,FALSE) ->  | U12: =+S12-I12 -> 
B13: PNB Evolution nette Clients PREMIUM | C13: 5% | E13: ='RECAP SECT'!#REF! ->  | G13: =VLOOKUP($A$5,'RECAP SECT'!$G$6:$CY$312,10,FALSE) -> 15.0 | I13: =VLOOKUP($A$5,'RECAP SECT'!$G$6:$CY$312,11,FALSE) -> 53% | K13: =VLOOKUP($A$5,#REF!,11,FALSE) ->  | M13: =+K13-I13 ->  | O13: =VLOOKUP($A$5,'RECAP SECT'!$G$6:$CY$312,12,FALSE) -> 0.475563369 | S13: =VLOOKUP($A$5,#REF!,9,FALSE) ->  | U13: =+S13-I13 -> 
B14: PNB Evolution nette Clients Jeunes Equipés | C14: 3% | E14: ='RECAP SECT'!#REF! ->  | G14: =VLOOKUP($A$5,'RECAP SECT'!$G$6:$CY$312,14,FALSE) -> 0.0 | I14: =VLOOKUP($A$5,'RECAP SECT'!$G$6:$CY$312,15,FALSE) -> 0% | K14: =VLOOKUP($A$5,#REF!,15,FALSE) ->  | M14: =+K14-I14 ->  | O14: =VLOOKUP($A$5,'RECAP SECT'!$G$6:$CY$312,16,FALSE) -> 0 | S14: =VLOOKUP($A$5,#REF!,12,FALSE) ->  | U14: =+S14-I14 -> 
B15: PNB Evolution nette Clients Pro Actifs Equipés | C15: 3% | E15: ='RECAP SECT'!W4 -> 0.0 | G15: =VLOOKUP($A$5,'RECAP SECT'!$G$6:$CY$312,18,FALSE) -> 204.3 | I15: =VLOOKUP($A$5,'RECAP SECT'!$G$6:$CY$312,19,FALSE) -> 423% | K15: =VLOOKUP($A$5,#REF!,19,FALSE) ->  | M15: =+K15-I15 ->  | O15: =VLOOKUP($A$5,'RECAP SECT'!$G$6:$CY$312,20,FALSE) -> 0.5835951951 | S15: =VLOOKUP($A$5,#REF!,15,FALSE) ->  | U15: =+S15-I15 -> 
A17: CRITERE BANCARISATION | C17: 15% | O17: =VLOOKUP($A$5,'RECAP SECT'!$G$6:$CY$312,48,FALSE) -> 861.4667756
B18: PNB Ventes nettes forfaits | C18: 4% | E18: ='RECAP SECT'!X4 -> 10.2 | G18: =VLOOKUP($A$5,'RECAP SECT'!$G$6:$CY$312,31,FALSE) -> 0.0 | I18: =VLOOKUP($A$5,'RECAP SECT'!$G$6:$CY$312,32,FALSE) -> 0% | K18: =VLOOKUP($A$5,#REF!,32,FALSE) ->  | M18: =+K18-I18 ->  | O18: =VLOOKUP($A$5,'RECAP SECT'!$G$6:$CY$312,33,FALSE) -> 6310.285682 | S18: =VLOOKUP($A$5,#REF!,27,FALSE) ->  | U18: =+S18-I18 -> 
B19: PNB Ventes nettes IZICARTES Débit Différé | C19: 4% | E19: ='RECAP SECT'!AB4 -> 17.0 | G19: =VLOOKUP($A$5,'RECAP SECT'!$G$6:$CY$312,35,FALSE) -> 0.3 | I19: =VLOOKUP($A$5,'RECAP SECT'!$G$6:$CY$312,36,FALSE) -> 900% | K19: =VLOOKUP($A$5,#REF!,36,FALSE) ->  | M19: =+K19-I19 ->  | O19: =VLOOKUP($A$5,'RECAP SECT'!$G$6:$CY$312,37,FALSE) -> 517 | S19: =VLOOKUP($A$5,#REF!,30,FALSE) ->  | U19: =+S19-I19 -> 
B20: PNB Ventes nettes cartes HDG Débit Différé | C20: 4% | E20: ='RECAP SECT'!#REF! ->  | G20: =VLOOKUP($A$5,'RECAP SECT'!$G$6:$CY$312,39,FALSE) -> 0.4 | I20: =VLOOKUP($A$5,'RECAP SECT'!$G$6:$CY$312,40,FALSE) -> 1700% | K20: =VLOOKUP($A$5,#REF!,40,FALSE) ->  | M20: =+K20-I20 ->  | O20: =VLOOKUP($A$5,'RECAP SECT'!$G$6:$CY$312,41,FALSE) -> 0.3350061886 | S20: =VLOOKUP($A$5,#REF!,33,FALSE) ->  | U20: =+S20-I20 -> 
B21: PNB Ventes nettes Forfaits Pro, Carte pro | C21: 3% | E21: ='RECAP SECT'!#REF! ->  | G21: =VLOOKUP($A$5,'RECAP SECT'!$G$6:$CY$312,43,FALSE) -> 12.0 | I21: =VLOOKUP($A$5,'RECAP SECT'!$G$6:$CY$312,44,FALSE) -> 0% | K21: =VLOOKUP($A$5,#REF!,44,FALSE) ->  | M21: =+K21-I21 ->  | O21: =VLOOKUP($A$5,'RECAP SECT'!$G$6:$CY$312,45,FALSE) -> 0 | S21: =VLOOKUP($A$5,#REF!,39,FALSE) ->  | U21: =+S21-I21 -> 
A23: CRITERE EPARGNE | C23: 10% | O23: =VLOOKUP($A$5,'RECAP SECT'!$G$6:$CY$312,69,FALSE) -> 0.4780840423
B24: PNB Epargne Liquide | C24: 3% | E24: ='RECAP SECT'!AM4 -> 179.7 | G24: =VLOOKUP($A$5,'RECAP SECT'!$G$6:$CY$312,56,FALSE) -> 198.0 | I24: =VLOOKUP($A$5,'RECAP SECT'!$G$6:$CY$312,57,FALSE) -> 410% | K24: =VLOOKUP($A$5,#REF!,57,FALSE) ->  | M24: =+K24-I24 ->  | O24: =VLOOKUP($A$5,'RECAP SECT'!$G$6:$CY$312,58,FALSE) -> 0.4520646043 | S24: =VLOOKUP($A$5,#REF!,51,FALSE) ->  | U24: =+S24-I24 -> 
B25: PNB CA UC + arbitrage | C25: 4% | E25: ='RECAP SECT'!AQ4 -> 18.8 | G25: =VLOOKUP($A$5,'RECAP SECT'!$G$6:$CY$312,60,FALSE) -> 0.5 | I25: =VLOOKUP($A$5,'RECAP SECT'!$G$6:$CY$312,61,FALSE) -> 42% | K25: =VLOOKUP($A$5,#REF!,61,FALSE) ->  | M25: =+K25-I25 ->  | O25: =VLOOKUP($A$5,'RECAP SECT'!$G$6:$CY$312,62,FALSE) -> 13 | S25: =VLOOKUP($A$5,#REF!,57,FALSE) ->  | U25: =+S25-I25 -> 
B26: PNB Excédent assurance vie | C26: 3% | E26: ='RECAP SECT'!#REF! ->  | G26: =VLOOKUP($A$5,'RECAP SECT'!$G$6:$CY$312,64,FALSE) -> 0.0 | I26: =VLOOKUP($A$5,'RECAP SECT'!$G$6:$CY$312,65,FALSE) -> 0% | K26: =VLOOKUP($A$5,#REF!,65,FALSE) ->  | M26: =+K26-I26 ->  | O26: =VLOOKUP($A$5,'RECAP SECT'!$G$6:$CY$312,66,FALSE) -> 0 | S26: =VLOOKUP($A$5,#REF!,60,FALSE) ->  | U26: =+S26-I26 -> 
A28: CRITERE CREDITS | C28: 15% | O28: =VLOOKUP($A$5,'RECAP SECT'!$G$6:$CY$312,102,FALSE) -> 
B29: PNB crédit conso | C29: 4% | E29: ='RECAP SECT'!BB4 -> 54.1 | G29: =VLOOKUP($A$5,'RECAP SECT'!$G$6:$CY$312,77,FALSE) -> 11.0 | I29: =VLOOKUP($A$5,'RECAP SECT'!$G$6:$CY$312,78,FALSE) -> 0% | K29: =VLOOKUP($A$5,#REF!,78,FALSE) ->  | M29: =+K29-I29 ->  | O29: =VLOOKUP($A$5,'RECAP SECT'!$G$6:$CY$312,79,FALSE) -> 0 | S29: =VLOOKUP($A$5,#REF!,75,FALSE) ->  | U29: =+S29-I29 -> 
B30: PNB ADE crédit conso | C30: 1% | E30: ='RECAP SECT'!#REF! ->  | G30: =VLOOKUP($A$5,'RECAP SECT'!$G$6:$CY$312,81,FALSE) -> 0.0 | I30: =VLOOKUP($A$5,'RECAP SECT'!$G$6:$CY$312,82,FALSE) -> 0% | K30: =VLOOKUP($A$5,#REF!,82,FALSE) ->  | O30: =VLOOKUP($A$5,'RECAP SECT'!$G$6:$CY$312,83,FALSE) -> 0 | S30: =VLOOKUP($A$5,#REF!,78,FALSE) -> 
B31: PNB crédit immo | C31: 4% | E31: ='RECAP SECT'!BF4 -> 21.2 | G31: =VLOOKUP($A$5,'RECAP SECT'!$G$6:$CY$312,85,FALSE) -> 0.0 | I31: =VLOOKUP($A$5,'RECAP SECT'!$G$6:$CY$312,86,FALSE) -> 0% | K31: =VLOOKUP($A$5,#REF!,86,FALSE) ->  | O31: =VLOOKUP($A$5,'RECAP SECT'!$G$6:$CY$312,87,FALSE) -> 0 | S31: =VLOOKUP($A$5,#REF!,81,FALSE) -> 
B32: PNB ADE crédit immo | C32: 2% | E32: ='RECAP SECT'!#REF! ->  | G32: =VLOOKUP($A$5,'RECAP SECT'!$G$6:$CY$312,89,FALSE) -> 0.0 | I32: =VLOOKUP($A$5,'RECAP SECT'!$G$6:$CY$312,90,FALSE) -> 0% | K32: =VLOOKUP($A$5,#REF!,90,FALSE) ->  | O32: =VLOOKUP($A$5,'RECAP SECT'!$G$6:$CY$312,91,FALSE) -> 0 | S32: =VLOOKUP($A$5,#REF!,84,FALSE) -> 
B33: PNB SACCEF | C33: 2% | E33: ='RECAP SECT'!#REF! ->  | G33: =VLOOKUP($A$5,'RECAP SECT'!$G$6:$CY$312,93,FALSE) -> 0.0 | I33: =VLOOKUP($A$5,'RECAP SECT'!$G$6:$CY$312,94,FALSE) -> 41% | K33: =VLOOKUP($A$5,#REF!,94,FALSE) ->  | O33: =VLOOKUP($A$5,'RECAP SECT'!$G$6:$CY$312,95,FALSE) -> 0.330136791 | S33: =VLOOKUP($A$5,#REF!,87,FALSE) -> 
B34: PNB Crédit MLT + Crédit Bail | C34: 2% | E34: ='RECAP SECT'!BJ4 -> 7.5 | G34: =VLOOKUP($A$5,'RECAP SECT'!$G$6:$CY$312,97,FALSE) -> 0.0 | I34: =VLOOKUP($A$5,'RECAP SECT'!$G$6:$CY$312,98,FALSE) ->  | K34: =VLOOKUP($A$5,#REF!,98,FALSE) ->  | O34: =VLOOKUP($A$5,'RECAP SECT'!$G$6:$CY$312,99,FALSE) ->  | S34: =VLOOKUP($A$5,#REF!,90,FALSE) -> 
A36: CRITERE IARD PREVOYANCE | C36: 15% | O36: =VLOOKUP($A$5,'RECAP SECT'!$G$6:$CY$312,119,FALSE) -> 
B37: PNB Ventes nettes IARD | C37: 9% | E37: ='RECAP SECT'!BU4 -> 54.7 | G37: =VLOOKUP($A$5,'RECAP SECT'!$G$6:$CY$312,110,FALSE) ->  | I37: =VLOOKUP($A$5,'RECAP SECT'!$G$6:$CY$312,111,FALSE) ->  | K37: =VLOOKUP($A$5,#REF!,111,FALSE) ->  | M37: =+K37-I37 ->  | O37: =VLOOKUP($A$5,'RECAP SECT'!$G$6:$CY$312,112,FALSE) ->  | S37: =VLOOKUP($A$5,#REF!,102,FALSE) ->  | U37: =+S37-I37 -> 
B38: PNB Ventes nettes Prévoyance | C38: 6% | E38: ='RECAP SECT'!BY4 -> 14.9 | G38: =VLOOKUP($A$5,'RECAP SECT'!$G$6:$CY$312,114,FALSE) ->  | I38: =VLOOKUP($A$5,'RECAP SECT'!$G$6:$CY$312,115,FALSE) ->  | K38: =VLOOKUP($A$5,#REF!,115,FALSE) ->  | M38: =+K38-I38 ->  | O38: =VLOOKUP($A$5,'RECAP SECT'!$G$6:$CY$312,116,FALSE) ->  | S38: =VLOOKUP($A$5,#REF!,105,FALSE) ->  | U38: =+S38-I38 -> 
A40: CRITERE ACCELERATEURS PNB | C40: 15% | O40: =VLOOKUP($A$5,'RECAP SECT'!$G$6:$CY$312,144,FALSE) -> 
B41: PNB Ventes brutes SED Finalisées | C41: 6% | E41: ='RECAP SECT'!#REF! ->  | G41: =VLOOKUP($A$5,'RECAP SECT'!$G$6:$CY$312,127,FALSE) ->  | I41: =VLOOKUP($A$5,'RECAP SECT'!$G$6:$CY$312,128,FALSE) ->  | K41: =VLOOKUP($A$5,#REF!,128,FALSE) ->  | M41: =+K41-I41 ->  | O41: =VLOOKUP($A$5,'RECAP SECT'!$G$6:$CY$312,129,FALSE) ->  | S41: =VLOOKUP($A$5,#REF!,120,FALSE) ->  | U41: =+S41-I41 -> 
B42: PNB clients équipés E documents | C42: 3% | E42: ='RECAP SECT'!#REF! ->  | G42: =VLOOKUP($A$5,'RECAP SECT'!$G$6:$CY$312,131,FALSE) ->  | I42: =VLOOKUP($A$5,'RECAP SECT'!$G$6:$CY$312,132,FALSE) ->  | K42: =VLOOKUP($A$5,#REF!,132,FALSE) ->  | M42: =+K42-I42 ->  | O42: =VLOOKUP($A$5,'RECAP SECT'!$G$6:$CY$312,133,FALSE) ->  | S42: =VLOOKUP($A$5,#REF!,123,FALSE) ->  | U42: =+S42-I42 -> 
B43: Economie opt'in | C43: 3% | E43: ='RECAP SECT'!#REF! ->  | G43: =VLOOKUP($A$5,'RECAP SECT'!$G$6:$CY$312,135,FALSE) ->  | I43: =VLOOKUP($A$5,'RECAP SECT'!$G$6:$CY$312,136,FALSE) ->  | K43: =VLOOKUP($A$5,#REF!,136,FALSE) ->  | M43: =+K43-I43 ->  | O43: =VLOOKUP($A$5,'RECAP SECT'!$G$6:$CY$312,137,FALSE) -> 
B44: Remises commerciales | C44: 3% | E44: ='RECAP SECT'!#REF! ->  | G44: =VLOOKUP($A$5,'RECAP SECT'!$G$6:$CY$312,139,FALSE) ->  | I44: =VLOOKUP($A$5,'RECAP SECT'!$G$6:$CY$312,140,FALSE) ->  | K44: =VLOOKUP($A$5,#REF!,140,FALSE) ->  | M44: =+K44-I44 ->  | O44: =VLOOKUP($A$5,'RECAP SECT'!$G$6:$CY$312,141,FALSE) ->  | S44: =VLOOKUP($A$5,#REF!,126,FALSE) ->  | U44: =+S44-I44 -> 
A46: CRITERE Satisfaction Clients | C46: 15% | O46: =VLOOKUP($A$5,'RECAP SECT'!$G$6:$CY$312,159,FALSE) -> 
B47: Objectifs NPS* | C47: 8% | E47: ='RECAP SECT'!K4 -> 33 | G47: =VLOOKUP($A$5,'RECAP SECT'!$G$6:$CY$312,151,FALSE) ->  | I47: =VLOOKUP($A$5,'RECAP SECT'!$G$6:$CY$312,152,FALSE) ->  | K47: =VLOOKUP($A$5,#REF!,152,FALSE) ->  | M47: =+K47-I47 ->  | O47: =VLOOKUP($A$5,'RECAP SECT'!$G$6:$CY$312,153,FALSE) ->  | S47: =VLOOKUP($A$5,#REF!,138,FALSE) ->  | U47: =+S47-I47 -> 
B48: Enquête Qualité Haute Définition | C48: 7% | E48: ='RECAP SECT'!N4 -> 72% | G48: =VLOOKUP($A$5,'RECAP SECT'!$G$6:$CY$312,154,FALSE) ->  | I48: =VLOOKUP($A$5,'RECAP SECT'!$G$6:$CY$312,155,FALSE) ->  | K48: =VLOOKUP($A$5,#REF!,155,FALSE) ->  | M48: =+K48-I48 ->  | O48: =VLOOKUP($A$5,'RECAP SECT'!$G$6:$CY$312,156,FALSE) ->  | S48: =VLOOKUP($A$5,#REF!,141,FALSE) ->  | U48: =+S48-I48 -> 

Sheet SE_TOTAL
B1: Accueil | F1: BAROMETRE BDD - TERRITOIRES
F2: TOTAL GENERAL
F3: =ACCUEIL!F7 -> 2022-03-06
F7: TOTAL GENERAL | I7: Total Satisfaction Clients | L7: Total Bancarisation | O7: Total Epargne | R7: Total IARD Prévoyance | U7: Total Crédits
G8: coef | H8: =K8+N8+Q8+T8+W8 -> 100% | J8: coef | K8: =SE_SATISFACTION!N8 -> 20% | M8: coef | N8: =SE_BANCA!P8 -> 20% | P8: coef | Q8: =SE_EPARGNE!P8 -> 20% | S8: coef | T8: =SE_IARD!P8 -> 20% | V8: coef | W8: =SE_CREDIT!T8 -> 20%
B9: Direction | C9: eds | D9: Territoire | E9: ="ETP perf "&DATEMAJ!$C$28 -> ETP perf 31-janv | F9: Moyenne ecart au 1er | G9: % Ecart au 1er | H9: Rang CEGEE | I9: Moyenne ecart au 1er | J9: % Ecart au 1er | K9: Rang CEGEE | L9: Moyenne ecart au 1er | M9: % Ecart au 1er | N9: Rang CEGEE | O9: Moyenne ecart au 1er | P9: % Ecart au 1er | Q9: Rang CEGEE | R9: Moyenne ecart au 1er | S9: % Ecart au 1er | T9: Rang CEGEE | U9: Moyenne ecart au 1er | V9: % Ecart au 1er | W9: Rang CEGEE
A10: 50 | B10: MOSELLE | C10: 42 | D10: MOSELLE EST | E10: 64.8 | F10: 8% | G10: 0% | H10: 1 | I10: 27% | J10: 21% | K10: 5 | L10: 5% | M10: 5% | N10: 2 | O10: 1% | P10: 0% | Q10: 1 | R10: 8% | S10: 4% | T10: 2 | U10: 16% | V10: 10% | W10: 3
A11: 50 | B11: MOSELLE | C11: 44 | D11: MOSELLE NORD | E11: 63.8 | F11: 9% | G11: 1% | H11: 2 | I11: 31% | J11: 25% | K11: 7 | L11: 0% | M11: 0% | N11: 1 | O11: 21% | P11: 20% | Q11: 5 | R11: 4% | S11: 0% | T11: 1 | U11: 6% | V11: 0% | W11: 1
A12: 262 | B12: MOSELLE | C12: 45 | D12: METZ | E12: 77.9 | F12: 18% | G12: 10% | H12: 3 | I12: 20% | J12: 14% | K12: 3 | L12: 34% | M12: 34% | N12: 6 | O12: 5% | P12: 4% | Q12: 2 | R12: 25% | S12: 21% | T12: 4 | U12: 22% | V12: 16% | W12: 4
A13: 262 | B13: MARNE-ARDENNES | C13: 11 | D13: REIMS | E13: 79.7 | F13: 23% | G13: 15% | H13: 4 | I13: 33% | J13: 27% | K13: 8 | L13: 21% | M13: 21% | N13: 3 | O13: 28% | P13: 27% | Q13: 8 | R13: 33% | S13: 29% | T13: 7 | U13: 15% | V13: 9% | W13: 2
A14: 262 | B14: AUBE HAUTE MARNE | C14: 21 | D14: CHAUMONT | E14: 35.6 | F14: 23% | G14: 15% | H14: 5 | I14: 6% | J14: 0% | K14: 1 | L14: 46% | M14: 46% | N14: 12 | O14: 16% | P14: 15% | Q14: 4 | R14: 29% | S14: 25% | T14: 6 | U14: 36% | V14: 30% | W14: 9
A15: 264 | B15: BAS-RHIN | C15: 5006 | D15: STRASBOURG | E15: 73.6 | F15: 24% | G15: 15% | H15: 6 | I15: 49% | J15: 44% | K15: 12 | L15: 26% | M15: 26% | N15: 4 | O15: 8% | P15: 7% | Q15: 3 | R15: 12% | S15: 7% | T15: 3 | U15: 40% | V15: 34% | W15: 10
A16: 264 | B16: MARNE-ARDENNES | C16: 2 | D16: CHARLEVILLE MEZIERES | E16: 56.9 | F16: 30% | G16: 22% | H16: 7 | I16: 34% | J16: 29% | K16: 10 | L16: 43% | M16: 43% | N16: 11 | O16: 31% | P16: 30% | Q16: 11 | R16: 37% | S16: 33% | T16: 9 | U16: 23% | V16: 17% | W16: 5
A17: 30 | B17: MEURTHE ET MOSELLE MEUSE | C17: 27 | D17: PONT A MOUSSON | E17: 64.3 | F17: 34% | G17: 26% | H17: 8 | I17: 66% | J17: 61% | K17: 17 | L17: 41% | M17: 41% | N17: 7 | O17: 24% | P17: 23% | Q17: 7 | R17: 27% | S17: 23% | T17: 5 | U17: 27% | V17: 21% | W17: 7
A18: 30 | B18: BAS-RHIN | C18: 5060 | D18: HAGUENAU | E18: 63.6 | F18: 34% | G18: 26% | H18: 9 | I18: 20% | J18: 14% | K18: 4 | L18: 50% | M18: 50% | N18: 15 | O18: 22% | P18: 21% | Q18: 6 | R18: 40% | S18: 36% | T18: 10 | U18: 55% | V18: 49% | W18: 18
A19: 30 | B19: MEURTHE ET MOSELLE MEUSE | C19: 31 | D19: VERDUN | E19: 56.1 | F19: 36% | G19: 28% | H19: 10 | I19: 38% | J19: 32% | K19: 11 | L19: 43% | M19: 43% | N19: 8 | O19: 40% | P19: 39% | Q19: 14 | R19: 42% | S19: 38% | T19: 14 | U19: 33% | V19: 27% | W19: 8
A20: 110 | B20: MARNE-ARDENNES | C20: 6 | D20: CHALONS EN CHAMPAGNE | E20: 45.5 | F20: 36% | G20: 28% | H20: 11 | I20: 16% | J20: 10% | K20: 2 | L20: 43% | M20: 43% | N20: 9 | O20: 54% | P20: 53% | Q20: 17 | R20: 41% | S20: 37% | T20: 13 | U20: 45% | V20: 39% | W20: 11
A21: 110 | B21: MEURTHE ET MOSELLE MEUSE | C21: 26 | D21: NANCY | E21: 62.0 | F21: 37% | G21: 29% | H21: 12 | I21: 61% | J21: 55% | K21: 14 | L21: 34% | M21: 34% | N21: 5 | O21: 42% | P21: 41% | Q21: 15 | R21: 41% | S21: 37% | T21: 12 | U21: 24% | V21: 18% | W21: 6
A22: 110 | B22: VOSGES | C22: 57 | D22: EPINAL | E22: 61.1 | F22: 37% | G22: 29% | H22: 13 | I22: 34% | J22: 28% | K22: 9 | L22: 47% | M22: 47% | N22: 13 | O22: 29% | P22: 28% | Q22: 10 | R22: 42% | S22: 38% | T22: 15 | U22: 49% | V22: 43% | W22: 15
A23: 160 | B23: HAUT-RHIN | C23: 5130 | D23: COLMAR | E23: 48.3 | F23: 41% | G23: 33% | H23: 14 | I23: 53% | J23: 48% | K23: 13 | L23: 48% | M23: 48% | N23: 14 | O23: 34% | P23: 32% | Q23: 12 | R23: 40% | S23: 36% | T23: 11 | U23: 47% | V23: 42% | W23: 13
A24: 160 | B24: VOSGES | C24: 55 | D24: SAINT DIE | E24: 49.2 | F24: 42% | G24: 34% | H24: 15 | I24: 29% | J24: 23% | K24: 6 | L24: 60% | M24: 60% | N24: 16 | O24: 29% | P24: 28% | Q24: 9 | R24: 62% | S24: 58% | T24: 18 | U24: 48% | V24: 42% | W24: 14
A25: 160 | B25: BAS-RHIN | C25: 5101 | D25: SELESTAT | E25: 61.2 | F25: 45% | G25: 37% | H25: 16 | I25: 63% | J25: 57% | K25: 15 | L25: 43% | M25: 43% | N25: 10 | O25: 51% | P25: 50% | Q25: 16 | R25: 34% | S25: 30% | T25: 8 | U25: 51% | V25: 45% | W25: 16
A26: 80 | B26: HAUT-RHIN | C26: 5169 | D26: MULHOUSE | E26: 47.6 | F26: 52% | G26: 44% | H26: 17 | I26: 65% | J26: 59% | K26: 16 | L26: 73% | M26: 73% | N26: 18 | O26: 35% | P26: 34% | Q26: 13 | R26: 55% | S26: 51% | T26: 16 | U26: 47% | V26: 41% | W26: 12
A27: 80 | B27: AUBE HAUTE MARNE | C27: 14 | D27: TROYES | E27: 62.2 | F27: 62% | G27: 54% | H27: 18 | I27: 67% | J27: 62% | K27: 18 | L27: 71% | M27: 71% | N27: 17 | O27: 78% | P27: 77% | Q27: 18 | R27: 56% | S27: 52% | T27: 17 | U27: 53% | V27: 47% | W27: 17
A28: Total CEGEE Directions Régionales | E28: =SUM(E10:E27) -> 1073

Sheet SE_BANCA
B1: Accueil | F1: BAROMETRE BDD - TERRITOIRES
F2: BANCARISATION
F3: =ACCUEIL!F7 -> 2022-03-06
F7: Ventes Nettes produits pondérés | J7: Ventes sur client non détenteur de l’univers | N7: Total Bancarisation
F8: =DATEMAJ!C8 -> au 06/03 | H8: coef | I8: ='RECAP DIRCOM'!AA4 -> 12% | J8: =DATEMAJ!C9 -> au 06/03 | L8: coef | M8: ='RECAP DIRCOM'!AE4 -> 8% | O8: coef | P8: ='RECAP DIRCOM'!AH4 -> 20%
B9: Direction | C9: eds | D9: Territoire | E9: ="ETP perf "&DATEMAJ!$C$28 -> ETP perf 31-janv | F9: VN | G9: VN / ETP | H9: % Ecart au 1er | I9: Rang | J9: VB | K9: VB / ETP | L9: % Ecart au 1er | M9: Rang | N9: Moyenne ecart au 1er | O9: % Ecart au 1er | P9: Rang CEGEE
A10: 50 | B10: AUBE HAUTE MARNE | C10: 21 | D10: CHAUMONT | E10: =VLOOKUP($C10,'RECAP SECT'!$G$6:$CU$253,3,FALSE) -> 35.6 | F10: =VLOOKUP($C10,'RECAP SECT'!$G$6:$CU$253,18,FALSE) -> 141 | G10: =VLOOKUP($C10,'RECAP SECT'!$G$6:$CU$253,19,FALSE) -> 3.95 | H10: =VLOOKUP($C10,'RECAP SECT'!$G$6:$CU$253,20,FALSE) -> 61% | I10: =VLOOKUP($C10,'RECAP SECT'!$G$6:$CU$253,21,FALSE) -> 13 | J10: =VLOOKUP($C10,'RECAP SECT'!$G$6:$CU$253,22,FALSE) -> 463 | K10: =VLOOKUP($C10,'RECAP SECT'!$G$6:$CU$253,23,FALSE) -> 13.01 | L10: =VLOOKUP($C10,'RECAP SECT'!$G$6:$CU$253,24,FALSE) -> 23% | M10: =VLOOKUP($C10,'RECAP SECT'!$G$6:$CU$253,25,FALSE) -> 9 | N10: =VLOOKUP($C10,'RECAP SECT'!$G$6:$CU$253,26,FALSE) -> 46% | O10: =VLOOKUP($C10,'RECAP SECT'!$G$6:$CU$253,27,FALSE) -> 46% | P10: =VLOOKUP($C10,'RECAP SECT'!$G$6:$CU$253,28,FALSE) -> 12
A11: 50 | B11: AUBE HAUTE MARNE | C11: 14 | D11: TROYES | E11: =VLOOKUP($C11,'RECAP SECT'!$G$6:$CU$253,3,FALSE) -> 62.2 | F11: =VLOOKUP($C11,'RECAP SECT'!$G$6:$CU$253,18,FALSE) -> 34 | G11: =VLOOKUP($C11,'RECAP SECT'!$G$6:$CU$253,19,FALSE) -> 0.55 | H11: =VLOOKUP($C11,'RECAP SECT'!$G$6:$CU$253,20,FALSE) -> 95% | I11: =VLOOKUP($C11,'RECAP SECT'!$G$6:$CU$253,21,FALSE) -> 17 | J11: =VLOOKUP($C11,'RECAP SECT'!$G$6:$CU$253,22,FALSE) -> 676 | K11: =VLOOKUP($C11,'RECAP SECT'!$G$6:$CU$253,23,FALSE) -> 10.87 | L11: =VLOOKUP($C11,'RECAP SECT'!$G$6:$CU$253,24,FALSE) -> 36% | M11: =VLOOKUP($C11,'RECAP SECT'!$G$6:$CU$253,25,FALSE) -> 15 | N11: =VLOOKUP($C11,'RECAP SECT'!$G$6:$CU$253,26,FALSE) -> 71% | O11: =VLOOKUP($C11,'RECAP SECT'!$G$6:$CU$253,27,FALSE) -> 71% | P11: =VLOOKUP($C11,'RECAP SECT'!$G$6:$CU$253,28,FALSE) -> 17
A12: 262 | B12: BAS-RHIN | C12: 5060 | D12: HAGUENAU | E12: =VLOOKUP($C12,'RECAP SECT'!$G$6:$CU$253,3,FALSE) -> 63.6 | F12: =VLOOKUP($C12,'RECAP SECT'!$G$6:$CU$253,18,FALSE) -> 278 | G12: =VLOOKUP($C12,'RECAP SECT'!$G$6:$CU$253,19,FALSE) -> 4.37 | H12: =VLOOKUP($C12,'RECAP SECT'!$G$6:$CU$253,20,FALSE) -> 57% | I12: =VLOOKUP($C12,'RECAP SECT'!$G$6:$CU$253,21,FALSE) -> 10 | J12: =VLOOKUP($C12,'RECAP SECT'!$G$6:$CU$253,22,FALSE) -> 642 | K12: =VLOOKUP($C12,'RECAP SECT'!$G$6:$CU$253,23,FALSE) -> 10.09 | L12: =VLOOKUP($C12,'RECAP SECT'!$G$6:$CU$253,24,FALSE) -> 41% | M12: =VLOOKUP($C12,'RECAP SECT'!$G$6:$CU$253,25,FALSE) -> 16 | N12: =VLOOKUP($C12,'RECAP SECT'!$G$6:$CU$253,26,FALSE) -> 50% | O12: =VLOOKUP($C12,'RECAP SECT'!$G$6:$CU$253,27,FALSE) -> 50% | P12: =VLOOKUP($C12,'RECAP SECT'!$G$6:$CU$253,28,FALSE) -> 15
A13: 262 | B13: BAS-RHIN | C13: 5101 | D13: SELESTAT | E13: =VLOOKUP($C13,'RECAP SECT'!$G$6:$CU$253,3,FALSE) -> 61.2 | F13: =VLOOKUP($C13,'RECAP SECT'!$G$6:$CU$253,18,FALSE) -> 350 | G13: =VLOOKUP($C13,'RECAP SECT'!$G$6:$CU$253,19,FALSE) -> 5.73 | H13: =VLOOKUP($C13,'RECAP SECT'!$G$6:$CU$253,20,FALSE) -> 44% | I13: =VLOOKUP($C13,'RECAP SECT'!$G$6:$CU$253,21,FALSE) -> 5 | J13: =VLOOKUP($C13,'RECAP SECT'!$G$6:$CU$253,22,FALSE) -> 602 | K13: =VLOOKUP($C13,'RECAP SECT'!$G$6:$CU$253,23,FALSE) -> 9.84 | L13: =VLOOKUP($C13,'RECAP SECT'!$G$6:$CU$253,24,FALSE) -> 42% | M13: =VLOOKUP($C13,'RECAP SECT'!$G$6:$CU$253,25,FALSE) -> 17 | N13: =VLOOKUP($C13,'RECAP SECT'!$G$6:$CU$253,26,FALSE) -> 43% | O13: =VLOOKUP($C13,'RECAP SECT'!$G$6:$CU$253,27,FALSE) -> 43% | P13: =VLOOKUP($C13,'RECAP SECT'!$G$6:$CU$253,28,FALSE) -> 10
A14: 262 | B14: BAS-RHIN | C14: 5006 | D14: STRASBOURG | E14: =VLOOKUP($C14,'RECAP SECT'!$G$6:$CU$253,3,FALSE) -> 73.6 | F14: =VLOOKUP($C14,'RECAP SECT'!$G$6:$CU$253,18,FALSE) -> 466 | G14: =VLOOKUP($C14,'RECAP SECT'!$G$6:$CU$253,19,FALSE) -> 6.32 | H14: =VLOOKUP($C14,'RECAP SECT'!$G$6:$CU$253,20,FALSE) -> 38% | I14: =VLOOKUP($C14,'RECAP SECT'!$G$6:$CU$253,21,FALSE) -> 4 | J14: =VLOOKUP($C14,'RECAP SECT'!$G$6:$CU$253,22,FALSE) -> 1,155 | K14: =VLOOKUP($C14,'RECAP SECT'!$G$6:$CU$253,23,FALSE) -> 15.69 | L14: =VLOOKUP($C14,'RECAP SECT'!$G$6:$CU$253,24,FALSE) -> 8% | M14: =VLOOKUP($C14,'RECAP SECT'!$G$6:$CU$253,25,FALSE) -> 5 | N14: =VLOOKUP($C14,'RECAP SECT'!$G$6:$CU$253,26,FALSE) -> 26% | O14: =VLOOKUP($C14,'RECAP SECT'!$G$6:$CU$253,27,FALSE) -> 26% | P14: =VLOOKUP($C14,'RECAP SECT'!$G$6:$CU$253,28,FALSE) -> 4
A15: 264 | B15: HAUT-RHIN | C15: 5130 | D15: COLMAR | E15: =VLOOKUP($C15,'RECAP SECT'!$G$6:$CU$253,3,FALSE) -> 48.3 | F15: =VLOOKUP($C15,'RECAP SECT'!$G$6:$CU$253,18,FALSE) -> 204 | G15: =VLOOKUP($C15,'RECAP SECT'!$G$6:$CU$253,19,FALSE) -> 4.23 | H15: =VLOOKUP($C15,'RECAP SECT'!$G$6:$CU$253,20,FALSE) -> 58% | I15: =VLOOKUP($C15,'RECAP SECT'!$G$6:$CU$253,21,FALSE) -> 11 | J15: =VLOOKUP($C15,'RECAP SECT'!$G$6:$CU$253,22,FALSE) -> 558 | K15: =VLOOKUP($C15,'RECAP SECT'!$G$6:$CU$253,23,FALSE) -> 11.56 | L15: =VLOOKUP($C15,'RECAP SECT'!$G$6:$CU$253,24,FALSE) -> 32% | M15: =VLOOKUP($C15,'RECAP SECT'!$G$6:$CU$253,25,FALSE) -> 12 | N15: =VLOOKUP($C15,'RECAP SECT'!$G$6:$CU$253,26,FALSE) -> 48% | O15: =VLOOKUP($C15,'RECAP SECT'!$G$6:$CU$253,27,FALSE) -> 48% | P15: =VLOOKUP($C15,'RECAP SECT'!$G$6:$CU$253,28,FALSE) -> 14
A16: 264 | B16: HAUT-RHIN | C16: 5169 | D16: MULHOUSE | E16: =VLOOKUP($C16,'RECAP SECT'!$G$6:$CU$253,3,FALSE) -> 47.6 | F16: =VLOOKUP($C16,'RECAP SECT'!$G$6:$CU$253,18,FALSE) -> 2 | G16: =VLOOKUP($C16,'RECAP SECT'!$G$6:$CU$253,19,FALSE) -> 0.03 | H16: =VLOOKUP($C16,'RECAP SECT'!$G$6:$CU$253,20,FALSE) -> 100% | I16: =VLOOKUP($C16,'RECAP SECT'!$G$6:$CU$253,21,FALSE) -> 18 | J16: =VLOOKUP($C16,'RECAP SECT'!$G$6:$CU$253,22,FALSE) -> 536 | K16: =VLOOKUP($C16,'RECAP SECT'!$G$6:$CU$253,23,FALSE) -> 11.27 | L16: =VLOOKUP($C16,'RECAP SECT'!$G$6:$CU$253,24,FALSE) -> 34% | M16: =VLOOKUP($C16,'RECAP SECT'!$G$6:$CU$253,25,FALSE) -> 13 | N16: =VLOOKUP($C16,'RECAP SECT'!$G$6:$CU$253,26,FALSE) -> 73% | O16: =VLOOKUP($C16,'RECAP SECT'!$G$6:$CU$253,27,FALSE) -> 73% | P16: =VLOOKUP($C16,'RECAP SECT'!$G$6:$CU$253,28,FALSE) -> 18
A17: 30 | B17: MARNE-ARDENNES | C17: 6 | D17: CHALONS EN CHAMPAGNE | E17: =VLOOKUP($C17,'RECAP SECT'!$G$6:$CU$253,3,FALSE) -> 45.5 | F17: =VLOOKUP($C17,'RECAP SECT'!$G$6:$CU$253,18,FALSE) -> 236 | G17: =VLOOKUP($C17,'RECAP SECT'!$G$6:$CU$253,19,FALSE) -> 5.19 | H17: =VLOOKUP($C17,'RECAP SECT'!$G$6:$CU$253,20,FALSE) -> 49% | I17: =VLOOKUP($C17,'RECAP SECT'!$G$6:$CU$253,21,FALSE) -> 6 | J17: =VLOOKUP($C17,'RECAP SECT'!$G$6:$CU$253,22,FALSE) -> 511 | K17: =VLOOKUP($C17,'RECAP SECT'!$G$6:$CU$253,23,FALSE) -> 11.23 | L17: =VLOOKUP($C17,'RECAP SECT'!$G$6:$CU$253,24,FALSE) -> 34% | M17: =VLOOKUP($C17,'RECAP SECT'!$G$6:$CU$253,25,FALSE) -> 14 | N17: =VLOOKUP($C17,'RECAP SECT'!$G$6:$CU$253,26,FALSE) -> 43% | O17: =VLOOKUP($C17,'RECAP SECT'!$G$6:$CU$253,27,FALSE) -> 43% | P17: =VLOOKUP($C17,'RECAP SECT'!$G$6:$CU$253,28,FALSE) -> 9
A18: 30 | B18: MARNE-ARDENNES | C18: 2 | D18: CHARLEVILLE MEZIERES | E18: =VLOOKUP($C18,'RECAP SECT'!$G$6:$CU$253,3,FALSE) -> 56.9 | F18: =VLOOKUP($C18,'RECAP SECT'!$G$6:$CU$253,18,FALSE) -> 216 | G18: =VLOOKUP($C18,'RECAP SECT'!$G$6:$CU$253,19,FALSE) -> 3.80 | H18: =VLOOKUP($C18,'RECAP SECT'!$G$6:$CU$253,20,FALSE) -> 63% | I18: =VLOOKUP($C18,'RECAP SECT'!$G$6:$CU$253,21,FALSE) -> 14 | J18: =VLOOKUP($C18,'RECAP SECT'!$G$6:$CU$253,22,FALSE) -> 826 | K18: =VLOOKUP($C18,'RECAP SECT'!$G$6:$CU$253,23,FALSE) -> 14.53 | L18: =VLOOKUP($C18,'RECAP SECT'!$G$6:$CU$253,24,FALSE) -> 15% | M18: =VLOOKUP($C18,'RECAP SECT'!$G$6:$CU$253,25,FALSE) -> 8 | N18: =VLOOKUP($C18,'RECAP SECT'!$G$6:$CU$253,26,FALSE) -> 43% | O18: =VLOOKUP($C18,'RECAP SECT'!$G$6:$CU$253,27,FALSE) -> 43% | P18: =VLOOKUP($C18,'RECAP SECT'!$G$6:$CU$253,28,FALSE) -> 11
A19: 30 | B19: MARNE-ARDENNES | C19: 11 | D19: REIMS | E19: =VLOOKUP($C19,'RECAP SECT'!$G$6:$CU$253,3,FALSE) -> 79.7 | F19: =VLOOKUP($C19,'RECAP SECT'!$G$6:$CU$253,18,FALSE) -> 548 | G19: =VLOOKUP($C19,'RECAP SECT'!$G$6:$CU$253,19,FALSE) -> 6.88 | H19: =VLOOKUP($C19,'RECAP SECT'!$G$6:$CU$253,20,FALSE) -> 32% | I19: =VLOOKUP($C19,'RECAP SECT'!$G$6:$CU$253,21,FALSE) -> 3 | J19: =VLOOKUP($C19,'RECAP SECT'!$G$6:$CU$253,22,FALSE) -> 1,287 | K19: =VLOOKUP($C19,'RECAP SECT'!$G$6:$CU$253,23,FALSE) -> 16.15 | L19: =VLOOKUP($C19,'RECAP SECT'!$G$6:$CU$253,24,FALSE) -> 5% | M19: =VLOOKUP($C19,'RECAP SECT'!$G$6:$CU$253,25,FALSE) -> 3 | N19: =VLOOKUP($C19,'RECAP SECT'!$G$6:$CU$253,26,FALSE) -> 21% | O19: =VLOOKUP($C19,'RECAP SECT'!$G$6:$CU$253,27,FALSE) -> 21% | P19: =VLOOKUP($C19,'RECAP SECT'!$G$6:$CU$253,28,FALSE) -> 3
A20: 110 | B20: MEURTHE ET MOSELLE MEUSE | C20: 26 | D20: NANCY | E20: =VLOOKUP($C20,'RECAP SECT'!$G$6:$CU$253,3,FALSE) -> 62.0 | F20: =VLOOKUP($C20,'RECAP SECT'!$G$6:$CU$253,18,FALSE) -> 310 | G20: =VLOOKUP($C20,'RECAP SECT'!$G$6:$CU$253,19,FALSE) -> 5.01 | H20: =VLOOKUP($C20,'RECAP SECT'!$G$6:$CU$253,20,FALSE) -> 51% | I20: =VLOOKUP($C20,'RECAP SECT'!$G$6:$CU$253,21,FALSE) -> 8 | J20: =VLOOKUP($C20,'RECAP SECT'!$G$6:$CU$253,22,FALSE) -> 955 | K20: =VLOOKUP($C20,'RECAP SECT'!$G$6:$CU$253,23,FALSE) -> 15.41 | L20: =VLOOKUP($C20,'RECAP SECT'!$G$6:$CU$253,24,FALSE) -> 9% | M20: =VLOOKUP($C20,'RECAP SECT'!$G$6:$CU$253,25,FALSE) -> 6 | N20: =VLOOKUP($C20,'RECAP SECT'!$G$6:$CU$253,26,FALSE) -> 34% | O20: =VLOOKUP($C20,'RECAP SECT'!$G$6:$CU$253,27,FALSE) -> 34% | P20: =VLOOKUP($C20,'RECAP SECT'!$G$6:$CU$253,28,FALSE) -> 5
A21: 110 | B21: MEURTHE ET MOSELLE MEUSE | C21: 27 | D21: PONT A MOUSSON | E21: =VLOOKUP($C21,'RECAP SECT'!$G$6:$CU$253,3,FALSE) -> 64.3 | F21: =VLOOKUP($C21,'RECAP SECT'!$G$6:$CU$253,18,FALSE) -> 228 | G21: =VLOOKUP($C21,'RECAP SECT'!$G$6:$CU$253,19,FALSE) -> 3.54 | H21: =VLOOKUP($C21,'RECAP SECT'!$G$6:$CU$253,20,FALSE) -> 65% | I21: =VLOOKUP($C21,'RECAP SECT'!$G$6:$CU$253,21,FALSE) -> 15 | J21: =VLOOKUP($C21,'RECAP SECT'!$G$6:$CU$253,22,FALSE) -> 1,029 | K21: =VLOOKUP($C21,'RECAP SECT'!$G$6:$CU$253,23,FALSE) -> 16.00 | L21: =VLOOKUP($C21,'RECAP SECT'!$G$6:$CU$253,24,FALSE) -> 6% | M21: =VLOOKUP($C21,'RECAP SECT'!$G$6:$CU$253,25,FALSE) -> 4 | N21: =VLOOKUP($C21,'RECAP SECT'!$G$6:$CU$253,26,FALSE) -> 41% | O21: =VLOOKUP($C21,'RECAP SECT'!$G$6:$CU$253,27,FALSE) -> 41% | P21: =VLOOKUP($C21,'RECAP SECT'!$G$6:$CU$253,28,FALSE) -> 7
A22: 110 | B22: MEURTHE ET MOSELLE MEUSE | C22: 31 | D22: VERDUN | E22: =VLOOKUP($C22,'RECAP SECT'!$G$6:$CU$253,3,FALSE) -> 56.1 | F22: =VLOOKUP($C22,'RECAP SECT'!$G$6:$CU$253,18,FALSE) -> 255 | G22: =VLOOKUP($C22,'RECAP SECT'!$G$6:$CU$253,19,FALSE) -> 4.54 | H22: =VLOOKUP($C22,'RECAP SECT'!$G$6:$CU$253,20,FALSE) -> 55% | I22: =VLOOKUP($C22,'RECAP SECT'!$G$6:$CU$253,21,FALSE) -> 9 | J22: =VLOOKUP($C22,'RECAP SECT'!$G$6:$CU$253,22,FALSE) -> 728 | K22: =VLOOKUP($C22,'RECAP SECT'!$G$6:$CU$253,23,FALSE) -> 12.97 | L22: =VLOOKUP($C22,'RECAP SECT'!$G$6:$CU$253,24,FALSE) -> 24% | M22: =VLOOKUP($C22,'RECAP SECT'!$G$6:$CU$253,25,FALSE) -> 10 | N22: =VLOOKUP($C22,'RECAP SECT'!$G$6:$CU$253,26,FALSE) -> 43% | O22: =VLOOKUP($C22,'RECAP SECT'!$G$6:$CU$253,27,FALSE) -> 43% | P22: =VLOOKUP($C22,'RECAP SECT'!$G$6:$CU$253,28,FALSE) -> 8
A23: 160 | B23: MOSELLE | C23: 45 | D23: METZ | E23: =VLOOKUP($C23,'RECAP SECT'!$G$6:$CU$253,3,FALSE) -> 77.9 | F23: =VLOOKUP($C23,'RECAP SECT'!$G$6:$CU$253,18,FALSE) -> 391 | G23: =VLOOKUP($C23,'RECAP SECT'!$G$6:$CU$253,19,FALSE) -> 5.02 | H23: =VLOOKUP($C23,'RECAP SECT'!$G$6:$CU$253,20,FALSE) -> 51% | I23: =VLOOKUP($C23,'RECAP SECT'!$G$6:$CU$253,21,FALSE) -> 7 | J23: =VLOOKUP($C23,'RECAP SECT'!$G$6:$CU$253,22,FALSE) -> 1,193 | K23: =VLOOKUP($C23,'RECAP SECT'!$G$6:$CU$253,23,FALSE) -> 15.31 | L23: =VLOOKUP($C23,'RECAP SECT'!$G$6:$CU$253,24,FALSE) -> 10% | M23: =VLOOKUP($C23,'RECAP SECT'!$G$6:$CU$253,25,FALSE) -> 7 | N23: =VLOOKUP($C23,'RECAP SECT'!$G$6:$CU$253,26,FALSE) -> 34% | O23: =VLOOKUP($C23,'RECAP SECT'!$G$6:$CU$253,27,FALSE) -> 34% | P23: =VLOOKUP($C23,'RECAP SECT'!$G$6:$CU$253,28,FALSE) -> 6
A24: 160 | B24: MOSELLE | C24: 42 | D24: MOSELLE EST | E24: =VLOOKUP($C24,'RECAP SECT'!$G$6:$CU$253,3,FALSE) -> 64.8 | F24: =VLOOKUP($C24,'RECAP SECT'!$G$6:$CU$253,18,FALSE) -> 603 | G24: =VLOOKUP($C24,'RECAP SECT'!$G$6:$CU$253,19,FALSE) -> 9.31 | H24: =VLOOKUP($C24,'RECAP SECT'!$G$6:$CU$253,20,FALSE) -> 8% | I24: =VLOOKUP($C24,'RECAP SECT'!$G$6:$CU$253,21,FALSE) -> 2 | J24: =VLOOKUP($C24,'RECAP SECT'!$G$6:$CU$253,22,FALSE) -> 1,094 | K24: =VLOOKUP($C24,'RECAP SECT'!$G$6:$CU$253,23,FALSE) -> 16.89 | L24: =VLOOKUP($C24,'RECAP SECT'!$G$6:$CU$253,24,FALSE) -> 1% | M24: =VLOOKUP($C24,'RECAP SECT'!$G$6:$CU$253,25,FALSE) -> 2 | N24: =VLOOKUP($C24,'RECAP SECT'!$G$6:$CU$253,26,FALSE) -> 5% | O24: =VLOOKUP($C24,'RECAP SECT'!$G$6:$CU$253,27,FALSE) -> 5% | P24: =VLOOKUP($C24,'RECAP SECT'!$G$6:$CU$253,28,FALSE) -> 2
A25: 160 | B25: MOSELLE | C25: 44 | D25: MOSELLE NORD | E25: =VLOOKUP($C25,'RECAP SECT'!$G$6:$CU$253,3,FALSE) -> 63.8 | F25: =VLOOKUP($C25,'RECAP SECT'!$G$6:$CU$253,18,FALSE) -> 649 | G25: =VLOOKUP($C25,'RECAP SECT'!$G$6:$CU$253,19,FALSE) -> 10.17 | H25: =VLOOKUP($C25,'RECAP SECT'!$G$6:$CU$253,20,FALSE) -> 0% | I25: =VLOOKUP($C25,'RECAP SECT'!$G$6:$CU$253,21,FALSE) -> 1 | J25: =VLOOKUP($C25,'RECAP SECT'!$G$6:$CU$253,22,FALSE) -> 1,085 | K25: =VLOOKUP($C25,'RECAP SECT'!$G$6:$CU$253,23,FALSE) -> 17.00 | L25: =VLOOKUP($C25,'RECAP SECT'!$G$6:$CU$253,24,FALSE) -> 0% | M25: =VLOOKUP($C25,'RECAP SECT'!$G$6:$CU$253,25,FALSE) -> 1 | N25: =VLOOKUP($C25,'RECAP SECT'!$G$6:$CU$253,26,FALSE) -> 0% | O25: =VLOOKUP($C25,'RECAP SECT'!$G$6:$CU$253,27,FALSE) -> 0% | P25: =VLOOKUP($C25,'RECAP SECT'!$G$6:$CU$253,28,FALSE) -> 1
A26: 80 | B26: VOSGES | C26: 57 | D26: EPINAL | E26: =VLOOKUP($C26,'RECAP SECT'!$G$6:$CU$253,3,FALSE) -> 61.1 | F26: =VLOOKUP($C26,'RECAP SECT'!$G$6:$CU$253,18,FALSE) -> 258 | G26: =VLOOKUP($C26,'RECAP SECT'!$G$6:$CU$253,19,FALSE) -> 4.22 | H26: =VLOOKUP($C26,'RECAP SECT'!$G$6:$CU$253,20,FALSE) -> 59% | I26: =VLOOKUP($C26,'RECAP SECT'!$G$6:$CU$253,21,FALSE) -> 12 | J26: =VLOOKUP($C26,'RECAP SECT'!$G$6:$CU$253,22,FALSE) -> 735 | K26: =VLOOKUP($C26,'RECAP SECT'!$G$6:$CU$253,23,FALSE) -> 12.02 | L26: =VLOOKUP($C26,'RECAP SECT'!$G$6:$CU$253,24,FALSE) -> 29% | M26: =VLOOKUP($C26,'RECAP SECT'!$G$6:$CU$253,25,FALSE) -> 11 | N26: =VLOOKUP($C26,'RECAP SECT'!$G$6:$CU$253,26,FALSE) -> 47% | O26: =VLOOKUP($C26,'RECAP SECT'!$G$6:$CU$253,27,FALSE) -> 47% | P26: =VLOOKUP($C26,'RECAP SECT'!$G$6:$CU$253,28,FALSE) -> 13
A27: 80 | B27: VOSGES | C27: 55 | D27: SAINT DIE | E27: =VLOOKUP($C27,'RECAP SECT'!$G$6:$CU$253,3,FALSE) -> 49.2 | F27: =VLOOKUP($C27,'RECAP SECT'!$G$6:$CU$253,18,FALSE) -> 166 | G27: =VLOOKUP($C27,'RECAP SECT'!$G$6:$CU$253,19,FALSE) -> 3.36 | H27: =VLOOKUP($C27,'RECAP SECT'!$G$6:$CU$253,20,FALSE) -> 67% | I27: =VLOOKUP($C27,'RECAP SECT'!$G$6:$CU$253,21,FALSE) -> 16 | J27: =VLOOKUP($C27,'RECAP SECT'!$G$6:$CU$253,22,FALSE) -> 421 | K27: =VLOOKUP($C27,'RECAP SECT'!$G$6:$CU$253,23,FALSE) -> 8.56 | L27: =VLOOKUP($C27,'RECAP SECT'!$G$6:$CU$253,24,FALSE) -> 50% | M27: =VLOOKUP($C27,'RECAP SECT'!$G$6:$CU$253,25,FALSE) -> 18 | N27: =VLOOKUP($C27,'RECAP SECT'!$G$6:$CU$253,26,FALSE) -> 60% | O27: =VLOOKUP($C27,'RECAP SECT'!$G$6:$CU$253,27,FALSE) -> 60% | P27: =VLOOKUP($C27,'RECAP SECT'!$G$6:$CU$253,28,FALSE) -> 16
A28: Total CEGEE Directions Régionales | E28: =SUM(E10:E27) -> 1073

Sheet SE_EPARGNE
B1: Accueil | F1: BAROMETRE BDD - TERRITOIRES
F2: EPARGNE
F3: =ACCUEIL!F7 -> 2022-03-06
F7: Excédent Epargne y/c DAV pondéré | J7: Ventes sur client non détenteur de l’univers | N7: Total Epargne
F8: =DATEMAJ!C14 -> au 06/03 | H8: coef | I8: ='RECAP DIRCOM'!AP4 -> 12% | J8: =DATEMAJ!C15 -> au 06/03 | L8: coef | M8: ='RECAP DIRCOM'!AT4 -> 8% | O8: coef | P8: ='RECAP DIRCOM'!AW4 -> 20%
A9: eds | B9: Direction | C9: eds | D9: Territoire | E9: ="ETP perf "&DATEMAJ!$C$28 -> ETP perf 31-janv | F9: Excédent | G9: Excédent / ETP | H9: % Ecart au 1er | I9: Rang | J9: VB | K9: VB / ETP | L9: % Ecart au 1er | M9: Rang | N9: Moyenne ecart au 1er | O9: % Ecart au 1er | P9: Rang CEGEE
A10: 50 | B10: AUBE HAUTE MARNE | C10: 21 | D10: CHAUMONT | E10: =VLOOKUP($C10,'RECAP SECT'!$G$6:$CU$253,3,FALSE) -> 35.6 | F10: =VLOOKUP($C10,'RECAP SECT'!$G$6:$CU$253,33,FALSE) -> 5,990 | G10: =VLOOKUP($C10,'RECAP SECT'!$G$6:$CU$253,34,FALSE) -> 168.36 | H10: =VLOOKUP($C10,'RECAP SECT'!$G$6:$CU$253,35,FALSE) -> 6% | I10: =VLOOKUP($C10,'RECAP SECT'!$G$6:$CU$253,36,FALSE) -> 3 | J10: =VLOOKUP($C10,'RECAP SECT'!$G$6:$CU$253,37,FALSE) -> 456 | K10: =VLOOKUP($C10,'RECAP SECT'!$G$6:$CU$253,38,FALSE) -> 12.82 | L10: =VLOOKUP($C10,'RECAP SECT'!$G$6:$CU$253,39,FALSE) -> 32% | M10: =VLOOKUP($C10,'RECAP SECT'!$G$6:$CU$253,40,FALSE) -> 10 | N10: =VLOOKUP($C10,'RECAP SECT'!$G$6:$CU$253,41,FALSE) -> 16% | O10: =VLOOKUP($C10,'RECAP SECT'!$G$6:$CU$253,42,FALSE) -> 15% | P10: =VLOOKUP($C10,'RECAP SECT'!$G$6:$CU$253,43,FALSE) -> 4
A11: 50 | B11: AUBE HAUTE MARNE | C11: 14 | D11: TROYES | E11: =VLOOKUP($C11,'RECAP SECT'!$G$6:$CU$253,3,FALSE) -> 62.2 | F11: =VLOOKUP($C11,'RECAP SECT'!$G$6:$CU$253,33,FALSE) -> -566 | G11: =VLOOKUP($C11,'RECAP SECT'!$G$6:$CU$253,34,FALSE) -> -9.10 | H11: =VLOOKUP($C11,'RECAP SECT'!$G$6:$CU$253,35,FALSE) -> 105% | I11: =VLOOKUP($C11,'RECAP SECT'!$G$6:$CU$253,36,FALSE) -> 18 | J11: =VLOOKUP($C11,'RECAP SECT'!$G$6:$CU$253,37,FALSE) -> 722 | K11: =VLOOKUP($C11,'RECAP SECT'!$G$6:$CU$253,38,FALSE) -> 11.61 | L11: =VLOOKUP($C11,'RECAP SECT'!$G$6:$CU$253,39,FALSE) -> 38% | M11: =VLOOKUP($C11,'RECAP SECT'!$G$6:$CU$253,40,FALSE) -> 13 | N11: =VLOOKUP($C11,'RECAP SECT'!$G$6:$CU$253,41,FALSE) -> 78% | O11: =VLOOKUP($C11,'RECAP SECT'!$G$6:$CU$253,42,FALSE) -> 77% | P11: =VLOOKUP($C11,'RECAP SECT'!$G$6:$CU$253,43,FALSE) -> 18
A12: 262 | B12: BAS-RHIN | C12: 5060 | D12: HAGUENAU | E12: =VLOOKUP($C12,'RECAP SECT'!$G$6:$CU$253,3,FALSE) -> 63.6 | F12: =VLOOKUP($C12,'RECAP SECT'!$G$6:$CU$253,33,FALSE) -> 10,136 | G12: =VLOOKUP($C12,'RECAP SECT'!$G$6:$CU$253,34,FALSE) -> 159.25 | H12: =VLOOKUP($C12,'RECAP SECT'!$G$6:$CU$253,35,FALSE) -> 11% | I12: =VLOOKUP($C12,'RECAP SECT'!$G$6:$CU$253,36,FALSE) -> 5 | J12: =VLOOKUP($C12,'RECAP SECT'!$G$6:$CU$253,37,FALSE) -> 741 | K12: =VLOOKUP($C12,'RECAP SECT'!$G$6:$CU$253,38,FALSE) -> 11.64 | L12: =VLOOKUP($C12,'RECAP SECT'!$G$6:$CU$253,39,FALSE) -> 38% | M12: =VLOOKUP($C12,'RECAP SECT'!$G$6:$CU$253,40,FALSE) -> 12 | N12: =VLOOKUP($C12,'RECAP SECT'!$G$6:$CU$253,41,FALSE) -> 22% | O12: =VLOOKUP($C12,'RECAP SECT'!$G$6:$CU$253,42,FALSE) -> 21% | P12: =VLOOKUP($C12,'RECAP SECT'!$G$6:$CU$253,43,FALSE) -> 6
A13: 262 | B13: BAS-RHIN | C13: 5101 | D13: SELESTAT | E13: =VLOOKUP($C13,'RECAP SECT'!$G$6:$CU$253,3,FALSE) -> 61.2 | F13: =VLOOKUP($C13,'RECAP SECT'!$G$6:$CU$253,33,FALSE) -> 4,210 | G13: =VLOOKUP($C13,'RECAP SECT'!$G$6:$CU$253,34,FALSE) -> 68.84 | H13: =VLOOKUP($C13,'RECAP SECT'!$G$6:$CU$253,35,FALSE) -> 62% | I13: =VLOOKUP($C13,'RECAP SECT'!$G$6:$CU$253,36,FALSE) -> 16 | J13: =VLOOKUP($C13,'RECAP SECT'!$G$6:$CU$253,37,FALSE) -> 732 | K13: =VLOOKUP($C13,'RECAP SECT'!$G$6:$CU$253,38,FALSE) -> 11.97 | L13: =VLOOKUP($C13,'RECAP SECT'!$G$6:$CU$253,39,FALSE) -> 36% | M13: =VLOOKUP($C13,'RECAP SECT'!$G$6:$CU$253,40,FALSE) -> 11 | N13: =VLOOKUP($C13,'RECAP SECT'!$G$6:$CU$253,41,FALSE) -> 51% | O13: =VLOOKUP($C13,'RECAP SECT'!$G$6:$CU$253,42,FALSE) -> 50% | P13: =VLOOKUP($C13,'RECAP SECT'!$G$6:$CU$253,43,FALSE) -> 16
A14: 262 | B14: BAS-RHIN | C14: 5006 | D14: STRASBOURG | E14: =VLOOKUP($C14,'RECAP SECT'!$G$6:$CU$253,3,FALSE) -> 73.6 | F14: =VLOOKUP($C14,'RECAP SECT'!$G$6:$CU$253,33,FALSE) -> 12,048 | G14: =VLOOKUP($C14,'RECAP SECT'!$G$6:$CU$253,34,FALSE) -> 163.66 | H14: =VLOOKUP($C14,'RECAP SECT'!$G$6:$CU$253,35,FALSE) -> 9% | I14: =VLOOKUP($C14,'RECAP SECT'!$G$6:$CU$253,36,FALSE) -> 4 | J14: =VLOOKUP($C14,'RECAP SECT'!$G$6:$CU$253,37,FALSE) -> 1,289 | K14: =VLOOKUP($C14,'RECAP SECT'!$G$6:$CU$253,38,FALSE) -> 17.51 | L14: =VLOOKUP($C14,'RECAP SECT'!$G$6:$CU$253,39,FALSE) -> 7% | M14: =VLOOKUP($C14,'RECAP SECT'!$G$6:$CU$253,40,FALSE) -> 3 | N14: =VLOOKUP($C14,'RECAP SECT'!$G$6:$CU$253,41,FALSE) -> 8% | O14: =VLOOKUP($C14,'RECAP SECT'!$G$6:$CU$253,42,FALSE) -> 7% | P14: =VLOOKUP($C14,'RECAP SECT'!$G$6:$CU$253,43,FALSE) -> 3
A15: 264 | B15: HAUT-RHIN | C15: 5130 | D15: COLMAR | E15: =VLOOKUP($C15,'RECAP SECT'!$G$6:$CU$253,3,FALSE) -> 48.3 | F15: =VLOOKUP($C15,'RECAP SECT'!$G$6:$CU$253,33,FALSE) -> 6,310 | G15: =VLOOKUP($C15,'RECAP SECT'!$G$6:$CU$253,34,FALSE) -> 130.75 | H15: =VLOOKUP($C15,'RECAP SECT'!$G$6:$CU$253,35,FALSE) -> 27% | I15: =VLOOKUP($C15,'RECAP SECT'!$G$6:$CU$253,36,FALSE) -> 9 | J15: =VLOOKUP($C15,'RECAP SECT'!$G$6:$CU$253,37,FALSE) -> 517 | K15: =VLOOKUP($C15,'RECAP SECT'!$G$6:$CU$253,38,FALSE) -> 10.71 | L15: =VLOOKUP($C15,'RECAP SECT'!$G$6:$CU$253,39,FALSE) -> 43% | M15: =VLOOKUP($C15,'RECAP SECT'!$G$6:$CU$253,40,FALSE) -> 17 | N15: =VLOOKUP($C15,'RECAP SECT'!$G$6:$CU$253,41,FALSE) -> 34% | O15: =VLOOKUP($C15,'RECAP SECT'!$G$6:$CU$253,42,FALSE) -> 32% | P15: =VLOOKUP($C15,'RECAP SECT'!$G$6:$CU$253,43,FALSE) -> 12
A16: 264 | B16: HAUT-RHIN | C16: 5169 | D16: MULHOUSE | E16: =VLOOKUP($C16,'RECAP SECT'!$G$6:$CU$253,3,FALSE) -> 47.6 | F16: =VLOOKUP($C16,'RECAP SECT'!$G$6:$CU$253,33,FALSE) -> 5,770 | G16: =VLOOKUP($C16,'RECAP SECT'!$G$6:$CU$253,34,FALSE) -> 121.34 | H16: =VLOOKUP($C16,'RECAP SECT'!$G$6:$CU$253,35,FALSE) -> 32% | I16: =VLOOKUP($C16,'RECAP SECT'!$G$6:$CU$253,36,FALSE) -> 10 | J16: =VLOOKUP($C16,'RECAP SECT'!$G$6:$CU$253,37,FALSE) -> 536 | K16: =VLOOKUP($C16,'RECAP SECT'!$G$6:$CU$253,38,FALSE) -> 11.27 | L16: =VLOOKUP($C16,'RECAP SECT'!$G$6:$CU$253,39,FALSE) -> 40% | M16: =VLOOKUP($C16,'RECAP SECT'!$G$6:$CU$253,40,FALSE) -> 15 | N16: =VLOOKUP($C16,'RECAP SECT'!$G$6:$CU$253,41,FALSE) -> 35% | O16: =VLOOKUP($C16,'RECAP SECT'!$G$6:$CU$253,42,FALSE) -> 34% | P16: =VLOOKUP($C16,'RECAP SECT'!$G$6:$CU$253,43,FALSE) -> 13
A17: 30 | B17: MARNE-ARDENNES | C17: 6 | D17: CHALONS EN CHAMPAGNE | E17: =VLOOKUP($C17,'RECAP SECT'!$G$6:$CU$253,3,FALSE) -> 45.5 | F17: =VLOOKUP($C17,'RECAP SECT'!$G$6:$CU$253,33,FALSE) -> 2,235 | G17: =VLOOKUP($C17,'RECAP SECT'!$G$6:$CU$253,34,FALSE) -> 49.14 | H17: =VLOOKUP($C17,'RECAP SECT'!$G$6:$CU$253,35,FALSE) -> 73% | I17: =VLOOKUP($C17,'RECAP SECT'!$G$6:$CU$253,36,FALSE) -> 17 | J17: =VLOOKUP($C17,'RECAP SECT'!$G$6:$CU$253,37,FALSE) -> 624 | K17: =VLOOKUP($C17,'RECAP SECT'!$G$6:$CU$253,38,FALSE) -> 13.72 | L17: =VLOOKUP($C17,'RECAP SECT'!$G$6:$CU$253,39,FALSE) -> 27% | M17: =VLOOKUP($C17,'RECAP SECT'!$G$6:$CU$253,40,FALSE) -> 8 | N17: =VLOOKUP($C17,'RECAP SECT'!$G$6:$CU$253,41,FALSE) -> 54% | O17: =VLOOKUP($C17,'RECAP SECT'!$G$6:$CU$253,42,FALSE) -> 53% | P17: =VLOOKUP($C17,'RECAP SECT'!$G$6:$CU$253,43,FALSE) -> 17
A18: 30 | B18: MARNE-ARDENNES | C18: 2 | D18: CHARLEVILLE MEZIERES | E18: =VLOOKUP($C18,'RECAP SECT'!$G$6:$CU$253,3,FALSE) -> 56.9 | F18: =VLOOKUP($C18,'RECAP SECT'!$G$6:$CU$253,33,FALSE) -> 5,887 | G18: =VLOOKUP($C18,'RECAP SECT'!$G$6:$CU$253,34,FALSE) -> 103.53 | H18: =VLOOKUP($C18,'RECAP SECT'!$G$6:$CU$253,35,FALSE) -> 42% | I18: =VLOOKUP($C18,'RECAP SECT'!$G$6:$CU$253,36,FALSE) -> 14 | J18: =VLOOKUP($C18,'RECAP SECT'!$G$6:$CU$253,37,FALSE) -> 909 | K18: =VLOOKUP($C18,'RECAP SECT'!$G$6:$CU$253,38,FALSE) -> 15.99 | L18: =VLOOKUP($C18,'RECAP SECT'!$G$6:$CU$253,39,FALSE) -> 15% | M18: =VLOOKUP($C18,'RECAP SECT'!$G$6:$CU$253,40,FALSE) -> 6 | N18: =VLOOKUP($C18,'RECAP SECT'!$G$6:$CU$253,41,FALSE) -> 31% | O18: =VLOOKUP($C18,'RECAP SECT'!$G$6:$CU$253,42,FALSE) -> 30% | P18: =VLOOKUP($C18,'RECAP SECT'!$G$6:$CU$253,43,FALSE) -> 11
A19: 30 | B19: MARNE-ARDENNES | C19: 11 | D19: REIMS | E19: =VLOOKUP($C19,'RECAP SECT'!$G$6:$CU$253,3,FALSE) -> 79.7 | F19: =VLOOKUP($C19,'RECAP SECT'!$G$6:$CU$253,33,FALSE) -> 8,926 | G19: =VLOOKUP($C19,'RECAP SECT'!$G$6:$CU$253,34,FALSE) -> 111.99 | H19: =VLOOKUP($C19,'RECAP SECT'!$G$6:$CU$253,35,FALSE) -> 38% | I19: =VLOOKUP($C19,'RECAP SECT'!$G$6:$CU$253,36,FALSE) -> 12 | J19: =VLOOKUP($C19,'RECAP SECT'!$G$6:$CU$253,37,FALSE) -> 1,283 | K19: =VLOOKUP($C19,'RECAP SECT'!$G$6:$CU$253,38,FALSE) -> 16.10 | L19: =VLOOKUP($C19,'RECAP SECT'!$G$6:$CU$253,39,FALSE) -> 14% | M19: =VLOOKUP($C19,'RECAP SECT'!$G$6:$CU$253,40,FALSE) -> 5 | N19: =VLOOKUP($C19,'RECAP SECT'!$G$6:$CU$253,41,FALSE) -> 28% | O19: =VLOOKUP($C19,'RECAP SECT'!$G$6:$CU$253,42,FALSE) -> 27% | P19: =VLOOKUP($C19,'RECAP SECT'!$G$6:$CU$253,43,FALSE) -> 8
A20: 110 | B20: MEURTHE ET MOSELLE MEUSE | C20: 26 | D20: NANCY | E20: =VLOOKUP($C20,'RECAP SECT'!$G$6:$CU$253,3,FALSE) -> 62.0 | F20: =VLOOKUP($C20,'RECAP SECT'!$G$6:$CU$253,33,FALSE) -> 4,937 | G20: =VLOOKUP($C20,'RECAP SECT'!$G$6:$CU$253,34,FALSE) -> 79.69 | H20: =VLOOKUP($C20,'RECAP SECT'!$G$6:$CU$253,35,FALSE) -> 56% | I20: =VLOOKUP($C20,'RECAP SECT'!$G$6:$CU$253,36,FALSE) -> 15 | J20: =VLOOKUP($C20,'RECAP SECT'!$G$6:$CU$253,37,FALSE) -> 911 | K20: =VLOOKUP($C20,'RECAP SECT'!$G$6:$CU$253,38,FALSE) -> 14.70 | L20: =VLOOKUP($C20,'RECAP SECT'!$G$6:$CU$253,39,FALSE) -> 22% | M20: =VLOOKUP($C20,'RECAP SECT'!$G$6:$CU$253,40,FALSE) -> 7 | N20: =VLOOKUP($C20,'RECAP SECT'!$G$6:$CU$253,41,FALSE) -> 42% | O20: =VLOOKUP($C20,'RECAP SECT'!$G$6:$CU$253,42,FALSE) -> 41% | P20: =VLOOKUP($C20,'RECAP SECT'!$G$6:$CU$253,43,FALSE) -> 15
A21: 110 | B21: MEURTHE ET MOSELLE MEUSE | C21: 27 | D21: PONT A MOUSSON | E21: =VLOOKUP($C21,'RECAP SECT'!$G$6:$CU$253,3,FALSE) -> 64.3 | F21: =VLOOKUP($C21,'RECAP SECT'!$G$6:$CU$253,33,FALSE) -> 9,263 | G21: =VLOOKUP($C21,'RECAP SECT'!$G$6:$CU$253,34,FALSE) -> 144.04 | H21: =VLOOKUP($C21,'RECAP SECT'!$G$6:$CU$253,35,FALSE) -> 20% | I21: =VLOOKUP($C21,'RECAP SECT'!$G$6:$CU$253,36,FALSE) -> 7 | J21: =VLOOKUP($C21,'RECAP SECT'!$G$6:$CU$253,37,FALSE) -> 846 | K21: =VLOOKUP($C21,'RECAP SECT'!$G$6:$CU$253,38,FALSE) -> 13.16 | L21: =VLOOKUP($C21,'RECAP SECT'!$G$6:$CU$253,39,FALSE) -> 30% | M21: =VLOOKUP($C21,'RECAP SECT'!$G$6:$CU$253,40,FALSE) -> 9 | N21: =VLOOKUP($C21,'RECAP SECT'!$G$6:$CU$253,41,FALSE) -> 24% | O21: =VLOOKUP($C21,'RECAP SECT'!$G$6:$CU$253,42,FALSE) -> 23% | P21: =VLOOKUP($C21,'RECAP SECT'!$G$6:$CU$253,43,FALSE) -> 7
A22: 110 | B22: MEURTHE ET MOSELLE MEUSE | C22: 31 | D22: VERDUN | E22: =VLOOKUP($C22,'RECAP SECT'!$G$6:$CU$253,3,FALSE) -> 56.1 | F22: =VLOOKUP($C22,'RECAP SECT'!$G$6:$CU$253,33,FALSE) -> 6,177 | G22: =VLOOKUP($C22,'RECAP SECT'!$G$6:$CU$253,34,FALSE) -> 110.09 | H22: =VLOOKUP($C22,'RECAP SECT'!$G$6:$CU$253,35,FALSE) -> 39% | I22: =VLOOKUP($C22,'RECAP SECT'!$G$6:$CU$253,36,FALSE) -> 13 | J22: =VLOOKUP($C22,'RECAP SECT'!$G$6:$CU$253,37,FALSE) -> 607 | K22: =VLOOKUP($C22,'RECAP SECT'!$G$6:$CU$253,38,FALSE) -> 10.82 | L22: =VLOOKUP($C22,'RECAP SECT'!$G$6:$CU$253,39,FALSE) -> 42% | M22: =VLOOKUP($C22,'RECAP SECT'!$G$6:$CU$253,40,FALSE) -> 16 | N22: =VLOOKUP($C22,'RECAP SECT'!$G$6:$CU$253,41,FALSE) -> 40% | O22: =VLOOKUP($C22,'RECAP SECT'!$G$6:$CU$253,42,FALSE) -> 39% | P22: =VLOOKUP($C22,'RECAP SECT'!$G$6:$CU$253,43,FALSE) -> 14
A23: 160 | B23: MOSELLE | C23: 45 | D23: METZ | E23: =VLOOKUP($C23,'RECAP SECT'!$G$6:$CU$253,3,FALSE) -> 77.9 | F23: =VLOOKUP($C23,'RECAP SECT'!$G$6:$CU$253,33,FALSE) -> 14,004 | G23: =VLOOKUP($C23,'RECAP SECT'!$G$6:$CU$253,34,FALSE) -> 179.74 | H23: =VLOOKUP($C23,'RECAP SECT'!$G$6:$CU$253,35,FALSE) -> 0% | I23: =VLOOKUP($C23,'RECAP SECT'!$G$6:$CU$253,36,FALSE) -> 1 | J23: =VLOOKUP($C23,'RECAP SECT'!$G$6:$CU$253,37,FALSE) -> 1,285 | K23: =VLOOKUP($C23,'RECAP SECT'!$G$6:$CU$253,38,FALSE) -> 16.49 | L23: =VLOOKUP($C23,'RECAP SECT'!$G$6:$CU$253,39,FALSE) -> 12% | M23: =VLOOKUP($C23,'RECAP SECT'!$G$6:$CU$253,40,FALSE) -> 4 | N23: =VLOOKUP($C23,'RECAP SECT'!$G$6:$CU$253,41,FALSE) -> 5% | O23: =VLOOKUP($C23,'RECAP SECT'!$G$6:$CU$253,42,FALSE) -> 4% | P23: =VLOOKUP($C23,'RECAP SECT'!$G$6:$CU$253,43,FALSE) -> 2
A24: 160 | B24: MOSELLE | C24: 42 | D24: MOSELLE EST | E24: =VLOOKUP($C24,'RECAP SECT'!$G$6:$CU$253,3,FALSE) -> 64.8 | F24: =VLOOKUP($C24,'RECAP SECT'!$G$6:$CU$253,33,FALSE) -> 11,461 | G24: =VLOOKUP($C24,'RECAP SECT'!$G$6:$CU$253,34,FALSE) -> 176.97 | H24: =VLOOKUP($C24,'RECAP SECT'!$G$6:$CU$253,35,FALSE) -> 2% | I24: =VLOOKUP($C24,'RECAP SECT'!$G$6:$CU$253,36,FALSE) -> 2 | J24: =VLOOKUP($C24,'RECAP SECT'!$G$6:$CU$253,37,FALSE) -> 1,212 | K24: =VLOOKUP($C24,'RECAP SECT'!$G$6:$CU$253,38,FALSE) -> 18.71 | L24: =VLOOKUP($C24,'RECAP SECT'!$G$6:$CU$253,39,FALSE) -> 0% | M24: =VLOOKUP($C24,'RECAP SECT'!$G$6:$CU$253,40,FALSE) -> 2 | N24: =VLOOKUP($C24,'RECAP SECT'!$G$6:$CU$253,41,FALSE) -> 1% | O24: =VLOOKUP($C24,'RECAP SECT'!$G$6:$CU$253,42,FALSE) -> 0% | P24: =VLOOKUP($C24,'RECAP SECT'!$G$6:$CU$253,43,FALSE) -> 1
A25: 160 | B25: MOSELLE | C25: 44 | D25: MOSELLE NORD | E25: =VLOOKUP($C25,'RECAP SECT'!$G$6:$CU$253,3,FALSE) -> 63.8 | F25: =VLOOKUP($C25,'RECAP SECT'!$G$6:$CU$253,33,FALSE) -> 7,538 | G25: =VLOOKUP($C25,'RECAP SECT'!$G$6:$CU$253,34,FALSE) -> 118.08 | H25: =VLOOKUP($C25,'RECAP SECT'!$G$6:$CU$253,35,FALSE) -> 34% | I25: =VLOOKUP($C25,'RECAP SECT'!$G$6:$CU$253,36,FALSE) -> 11 | J25: =VLOOKUP($C25,'RECAP SECT'!$G$6:$CU$253,37,FALSE) -> 1,197 | K25: =VLOOKUP($C25,'RECAP SECT'!$G$6:$CU$253,38,FALSE) -> 18.75 | L25: =VLOOKUP($C25,'RECAP SECT'!$G$6:$CU$253,39,FALSE) -> 0% | M25: =VLOOKUP($C25,'RECAP SECT'!$G$6:$CU$253,40,FALSE) -> 1 | N25: =VLOOKUP($C25,'RECAP SECT'!$G$6:$CU$253,41,FALSE) -> 21% | O25: =VLOOKUP($C25,'RECAP SECT'!$G$6:$CU$253,42,FALSE) -> 20% | P25: =VLOOKUP($C25,'RECAP SECT'!$G$6:$CU$253,43,FALSE) -> 5
A26: 80 | B26: VOSGES | C26: 57 | D26: EPINAL | E26: =VLOOKUP($C26,'RECAP SECT'!$G$6:$CU$253,3,FALSE) -> 61.1 | F26: =VLOOKUP($C26,'RECAP SECT'!$G$6:$CU$253,33,FALSE) -> 8,481 | G26: =VLOOKUP($C26,'RECAP SECT'!$G$6:$CU$253,34,FALSE) -> 138.72 | H26: =VLOOKUP($C26,'RECAP SECT'!$G$6:$CU$253,35,FALSE) -> 23% | I26: =VLOOKUP($C26,'RECAP SECT'!$G$6:$CU$253,36,FALSE) -> 8 | J26: =VLOOKUP($C26,'RECAP SECT'!$G$6:$CU$253,37,FALSE) -> 698 | K26: =VLOOKUP($C26,'RECAP SECT'!$G$6:$CU$253,38,FALSE) -> 11.42 | L26: =VLOOKUP($C26,'RECAP SECT'!$G$6:$CU$253,39,FALSE) -> 39% | M26: =VLOOKUP($C26,'RECAP SECT'!$G$6:$CU$253,40,FALSE) -> 14 | N26: =VLOOKUP($C26,'RECAP SECT'!$G$6:$CU$253,41,FALSE) -> 29% | O26: =VLOOKUP($C26,'RECAP SECT'!$G$6:$CU$253,42,FALSE) -> 28% | P26: =VLOOKUP($C26,'RECAP SECT'!$G$6:$CU$253,43,FALSE) -> 10
A27: 80 | B27: VOSGES | C27: 55 | D27: SAINT DIE | E27: =VLOOKUP($C27,'RECAP SECT'!$G$6:$CU$253,3,FALSE) -> 49.2 | F27: =VLOOKUP($C27,'RECAP SECT'!$G$6:$CU$253,33,FALSE) -> 7,489 | G27: =VLOOKUP($C27,'RECAP SECT'!$G$6:$CU$253,34,FALSE) -> 152.22 | H27: =VLOOKUP($C27,'RECAP SECT'!$G$6:$CU$253,35,FALSE) -> 15% | I27: =VLOOKUP($C27,'RECAP SECT'!$G$6:$CU$253,36,FALSE) -> 6 | J27: =VLOOKUP($C27,'RECAP SECT'!$G$6:$CU$253,37,FALSE) -> 463 | K27: =VLOOKUP($C27,'RECAP SECT'!$G$6:$CU$253,38,FALSE) -> 9.41 | L27: =VLOOKUP($C27,'RECAP SECT'!$G$6:$CU$253,39,FALSE) -> 50% | M27: =VLOOKUP($C27,'RECAP SECT'!$G$6:$CU$253,40,FALSE) -> 18 | N27: =VLOOKUP($C27,'RECAP SECT'!$G$6:$CU$253,41,FALSE) -> 29% | O27: =VLOOKUP($C27,'RECAP SECT'!$G$6:$CU$253,42,FALSE) -> 28% | P27: =VLOOKUP($C27,'RECAP SECT'!$G$6:$CU$253,43,FALSE) -> 9
A28: Total CEGEE Directions Régionales | E28: =SUM(E10:E27) -> 1073

Sheet SE_CREDIT
B1: Accueil | F1: BAROMETRE BDD - TERRITOIRES
F2: CREDITS
F3: =ACCUEIL!F7 -> 2022-03-06
F7: Engagements et ventes accessoires pondérés Immo | J7: Engagements et ventes accessoires pondérés Conso | N7: Ventes sur client non détenteur de l’univers | R7: Total Crédits
F8: =DATEMAJ!C18 -> au 06/03 | H8: coef | I8: ='RECAP DIRCOM'!BE4 -> 6% | J8: =DATEMAJ!C19 -> au 06/03 | L8: coef | M8: ='RECAP DIRCOM'!BI4 -> 6% | N8: =DATEMAJ!C20 -> au 06/03 | P8: coef | Q8: ='RECAP DIRCOM'!BM4 -> 8% | S8: coef | T8: ='RECAP DIRCOM'!BP4 -> 20%
B9: Direction | C9: eds | D9: Territoire | E9: ="ETP perf "&DATEMAJ!$C$28 -> ETP perf 31-janv | F9: PNB | G9: PNB / ETP | H9: % Ecart au 1er | I9: Rang | J9: PNB | K9: PNB / ETP | L9: % Ecart au 1er | M9: Rang | N9: VB | O9: VB / ETP | P9: % Ecart au 1er | Q9: Rang | R9: Moyenne ecart au 1er | S9: % Ecart au 1er | T9: Rang CEGEE
A10: 50 | B10: AUBE HAUTE MARNE | C10: 21 | D10: CHAUMONT | E10: =VLOOKUP($C10,'RECAP SECT'!$G$6:$CU$253,3,FALSE) -> 35.6 | F10: =VLOOKUP($C10,'RECAP SECT'!$G$6:$CU$253,48,FALSE) -> 691 | G10: =VLOOKUP($C10,'RECAP SECT'!$G$6:$CU$253,49,FALSE) -> 19.41 | H10: =VLOOKUP($C10,'RECAP SECT'!$G$6:$CU$253,50,FALSE) -> 64% | I10: =VLOOKUP($C10,'RECAP SECT'!$G$6:$CU$253,51,FALSE) -> 14 | J10: =VLOOKUP($C10,'RECAP SECT'!$G$6:$CU$253,52,FALSE) -> 578 | K10: =VLOOKUP($C10,'RECAP SECT'!$G$6:$CU$253,53,FALSE) -> 16.25 | L10: =VLOOKUP($C10,'RECAP SECT'!$G$6:$CU$253,54,FALSE) -> 23% | M10: =VLOOKUP($C10,'RECAP SECT'!$G$6:$CU$253,55,FALSE) -> 4 | N10: =VLOOKUP($C10,'RECAP SECT'!$G$6:$CU$253,56,FALSE) -> 200 | O10: =VLOOKUP($C10,'RECAP SECT'!$G$6:$CU$253,57,FALSE) -> 5.62 | P10: =VLOOKUP($C10,'RECAP SECT'!$G$6:$CU$253,58,FALSE) -> 25% | Q10: =VLOOKUP($C10,'RECAP SECT'!$G$6:$CU$253,59,FALSE) -> 8 | R10: =VLOOKUP($C10,'RECAP SECT'!$G$6:$CU$253,60,FALSE) -> 36% | S10: =VLOOKUP($C10,'RECAP SECT'!$G$6:$CU$253,61,FALSE) -> 30% | T10: =VLOOKUP($C10,'RECAP SECT'!$G$6:$CU$253,62,FALSE) -> 9
A11: 50 | B11: AUBE HAUTE MARNE | C11: 14 | D11: TROYES | E11: =VLOOKUP($C11,'RECAP SECT'!$G$6:$CU$253,3,FALSE) -> 62.2 | F11: =VLOOKUP($C11,'RECAP SECT'!$G$6:$CU$253,48,FALSE) -> 1,067 | G11: =VLOOKUP($C11,'RECAP SECT'!$G$6:$CU$253,49,FALSE) -> 17.16 | H11: =VLOOKUP($C11,'RECAP SECT'!$G$6:$CU$253,50,FALSE) -> 68% | I11: =VLOOKUP($C11,'RECAP SECT'!$G$6:$CU$253,51,FALSE) -> 17 | J11: =VLOOKUP($C11,'RECAP SECT'!$G$6:$CU$253,52,FALSE) -> 818 | K11: =VLOOKUP($C11,'RECAP SECT'!$G$6:$CU$253,53,FALSE) -> 13.15 | L11: =VLOOKUP($C11,'RECAP SECT'!$G$6:$CU$253,54,FALSE) -> 38% | M11: =VLOOKUP($C11,'RECAP SECT'!$G$6:$CU$253,55,FALSE) -> 13 | N11: =VLOOKUP($C11,'RECAP SECT'!$G$6:$CU$253,56,FALSE) -> 221 | O11: =VLOOKUP($C11,'RECAP SECT'!$G$6:$CU$253,57,FALSE) -> 3.55 | P11: =VLOOKUP($C11,'RECAP SECT'!$G$6:$CU$253,58,FALSE) -> 53% | Q11: =VLOOKUP($C11,'RECAP SECT'!$G$6:$CU$253,59,FALSE) -> 16 | R11: =VLOOKUP($C11,'RECAP SECT'!$G$6:$CU$253,60,FALSE) -> 53% | S11: =VLOOKUP($C11,'RECAP SECT'!$G$6:$CU$253,61,FALSE) -> 47% | T11: =VLOOKUP($C11,'RECAP SECT'!$G$6:$CU$253,62,FALSE) -> 17
A12: 262 | B12: BAS-RHIN | C12: 5060 | D12: HAGUENAU | E12: =VLOOKUP($C12,'RECAP SECT'!$G$6:$CU$253,3,FALSE) -> 63.6 | F12: =VLOOKUP($C12,'RECAP SECT'!$G$6:$CU$253,48,FALSE) -> 747 | G12: =VLOOKUP($C12,'RECAP SECT'!$G$6:$CU$253,49,FALSE) -> 11.74 | H12: =VLOOKUP($C12,'RECAP SECT'!$G$6:$CU$253,50,FALSE) -> 78% | I12: =VLOOKUP($C12,'RECAP SECT'!$G$6:$CU$253,51,FALSE) -> 18 | J12: =VLOOKUP($C12,'RECAP SECT'!$G$6:$CU$253,52,FALSE) -> 964 | K12: =VLOOKUP($C12,'RECAP SECT'!$G$6:$CU$253,53,FALSE) -> 15.15 | L12: =VLOOKUP($C12,'RECAP SECT'!$G$6:$CU$253,54,FALSE) -> 29% | M12: =VLOOKUP($C12,'RECAP SECT'!$G$6:$CU$253,55,FALSE) -> 6 | N12: =VLOOKUP($C12,'RECAP SECT'!$G$6:$CU$253,56,FALSE) -> 204 | O12: =VLOOKUP($C12,'RECAP SECT'!$G$6:$CU$253,57,FALSE) -> 3.21 | P12: =VLOOKUP($C12,'RECAP SECT'!$G$6:$CU$253,58,FALSE) -> 57% | Q12: =VLOOKUP($C12,'RECAP SECT'!$G$6:$CU$253,59,FALSE) -> 18 | R12: =VLOOKUP($C12,'RECAP SECT'!$G$6:$CU$253,60,FALSE) -> 55% | S12: =VLOOKUP($C12,'RECAP SECT'!$G$6:$CU$253,61,FALSE) -> 49% | T12: =VLOOKUP($C12,'RECAP SECT'!$G$6:$CU$253,62,FALSE) -> 18
A13: 262 | B13: BAS-RHIN | C13: 5101 | D13: SELESTAT | E13: =VLOOKUP($C13,'RECAP SECT'!$G$6:$CU$253,3,FALSE) -> 61.2 | F13: =VLOOKUP($C13,'RECAP SECT'!$G$6:$CU$253,48,FALSE) -> 1,201 | G13: =VLOOKUP($C13,'RECAP SECT'!$G$6:$CU$253,49,FALSE) -> 19.64 | H13: =VLOOKUP($C13,'RECAP SECT'!$G$6:$CU$253,50,FALSE) -> 64% | I13: =VLOOKUP($C13,'RECAP SECT'!$G$6:$CU$253,51,FALSE) -> 13 | J13: =VLOOKUP($C13,'RECAP SECT'!$G$6:$CU$253,52,FALSE) -> 844 | K13: =VLOOKUP($C13,'RECAP SECT'!$G$6:$CU$253,53,FALSE) -> 13.80 | L13: =VLOOKUP($C13,'RECAP SECT'!$G$6:$CU$253,54,FALSE) -> 35% | M13: =VLOOKUP($C13,'RECAP SECT'!$G$6:$CU$253,55,FALSE) -> 10 | N13: =VLOOKUP($C13,'RECAP SECT'!$G$6:$CU$253,56,FALSE) -> 217 | O13: =VLOOKUP($C13,'RECAP SECT'!$G$6:$CU$253,57,FALSE) -> 3.55 | P13: =VLOOKUP($C13,'RECAP SECT'!$G$6:$CU$253,58,FALSE) -> 53% | Q13: =VLOOKUP($C13,'RECAP SECT'!$G$6:$CU$253,59,FALSE) -> 17 | R13: =VLOOKUP($C13,'RECAP SECT'!$G$6:$CU$253,60,FALSE) -> 51% | S13: =VLOOKUP($C13,'RECAP SECT'!$G$6:$CU$253,61,FALSE) -> 45% | T13: =VLOOKUP($C13,'RECAP SECT'!$G$6:$CU$253,62,FALSE) -> 16
A14: 262 | B14: BAS-RHIN | C14: 5006 | D14: STRASBOURG | E14: =VLOOKUP($C14,'RECAP SECT'!$G$6:$CU$253,3,FALSE) -> 73.6 | F14: =VLOOKUP($C14,'RECAP SECT'!$G$6:$CU$253,48,FALSE) -> 1,687 | G14: =VLOOKUP($C14,'RECAP SECT'!$G$6:$CU$253,49,FALSE) -> 22.91 | H14: =VLOOKUP($C14,'RECAP SECT'!$G$6:$CU$253,50,FALSE) -> 58% | I14: =VLOOKUP($C14,'RECAP SECT'!$G$6:$CU$253,51,FALSE) -> 11 | J14: =VLOOKUP($C14,'RECAP SECT'!$G$6:$CU$253,52,FALSE) -> 1,066 | K14: =VLOOKUP($C14,'RECAP SECT'!$G$6:$CU$253,53,FALSE) -> 14.49 | L14: =VLOOKUP($C14,'RECAP SECT'!$G$6:$CU$253,54,FALSE) -> 32% | M14: =VLOOKUP($C14,'RECAP SECT'!$G$6:$CU$253,55,FALSE) -> 8 | N14: =VLOOKUP($C14,'RECAP SECT'!$G$6:$CU$253,56,FALSE) -> 374 | O14: =VLOOKUP($C14,'RECAP SECT'!$G$6:$CU$253,57,FALSE) -> 5.08 | P14: =VLOOKUP($C14,'RECAP SECT'!$G$6:$CU$253,58,FALSE) -> 32% | Q14: =VLOOKUP($C14,'RECAP SECT'!$G$6:$CU$253,59,FALSE) -> 10 | R14: =VLOOKUP($C14,'RECAP SECT'!$G$6:$CU$253,60,FALSE) -> 40% | S14: =VLOOKUP($C14,'RECAP SECT'!$G$6:$CU$253,61,FALSE) -> 34% | T14: =VLOOKUP($C14,'RECAP SECT'!$G$6:$CU$253,62,FALSE) -> 10
A15: 264 | B15: HAUT-RHIN | C15: 5130 | D15: COLMAR | E15: =VLOOKUP($C15,'RECAP SECT'!$G$6:$CU$253,3,FALSE) -> 48.3 | F15: =VLOOKUP($C15,'RECAP SECT'!$G$6:$CU$253,48,FALSE) -> 861 | G15: =VLOOKUP($C15,'RECAP SECT'!$G$6:$CU$253,49,FALSE) -> 17.85 | H15: =VLOOKUP($C15,'RECAP SECT'!$G$6:$CU$253,50,FALSE) -> 67% | I15: =VLOOKUP($C15,'RECAP SECT'!$G$6:$CU$253,51,FALSE) -> 16 | J15: =VLOOKUP($C15,'RECAP SECT'!$G$6:$CU$253,52,FALSE) -> 707 | K15: =VLOOKUP($C15,'RECAP SECT'!$G$6:$CU$253,53,FALSE) -> 14.65 | L15: =VLOOKUP($C15,'RECAP SECT'!$G$6:$CU$253,54,FALSE) -> 31% | M15: =VLOOKUP($C15,'RECAP SECT'!$G$6:$CU$253,55,FALSE) -> 7 | N15: =VLOOKUP($C15,'RECAP SECT'!$G$6:$CU$253,56,FALSE) -> 198 | O15: =VLOOKUP($C15,'RECAP SECT'!$G$6:$CU$253,57,FALSE) -> 4.10 | P15: =VLOOKUP($C15,'RECAP SECT'!$G$6:$CU$253,58,FALSE) -> 45% | Q15: =VLOOKUP($C15,'RECAP SECT'!$G$6:$CU$253,59,FALSE) -> 14 | R15: =VLOOKUP($C15,'RECAP SECT'!$G$6:$CU$253,60,FALSE) -> 47% | S15: =VLOOKUP($C15,'RECAP SECT'!$G$6:$CU$253,61,FALSE) -> 42% | T15: =VLOOKUP($C15,'RECAP SECT'!$G$6:$CU$253,62,FALSE) -> 13
A16: 264 | B16: HAUT-RHIN | C16: 5169 | D16: MULHOUSE | E16: =VLOOKUP($C16,'RECAP SECT'!$G$6:$CU$253,3,FALSE) -> 47.6 | F16: =VLOOKUP($C16,'RECAP SECT'!$G$6:$CU$253,48,FALSE) -> 1,152 | G16: =VLOOKUP($C16,'RECAP SECT'!$G$6:$CU$253,49,FALSE) -> 24.23 | H16: =VLOOKUP($C16,'RECAP SECT'!$G$6:$CU$253,50,FALSE) -> 55% | I16: =VLOOKUP($C16,'RECAP SECT'!$G$6:$CU$253,51,FALSE) -> 10 | J16: =VLOOKUP($C16,'RECAP SECT'!$G$6:$CU$253,52,FALSE) -> 602 | K16: =VLOOKUP($C16,'RECAP SECT'!$G$6:$CU$253,53,FALSE) -> 12.65 | L16: =VLOOKUP($C16,'RECAP SECT'!$G$6:$CU$253,54,FALSE) -> 40% | M16: =VLOOKUP($C16,'RECAP SECT'!$G$6:$CU$253,55,FALSE) -> 14 | N16: =VLOOKUP($C16,'RECAP SECT'!$G$6:$CU$253,56,FALSE) -> 191 | O16: =VLOOKUP($C16,'RECAP SECT'!$G$6:$CU$253,57,FALSE) -> 4.02 | P16: =VLOOKUP($C16,'RECAP SECT'!$G$6:$CU$253,58,FALSE) -> 46% | Q16: =VLOOKUP($C16,'RECAP SECT'!$G$6:$CU$253,59,FALSE) -> 15 | R16: =VLOOKUP($C16,'RECAP SECT'!$G$6:$CU$253,60,FALSE) -> 47% | S16: =VLOOKUP($C16,'RECAP SECT'!$G$6:$CU$253,61,FALSE) -> 41% | T16: =VLOOKUP($C16,'RECAP SECT'!$G$6:$CU$253,62,FALSE) -> 12
A17: 30 | B17: MARNE-ARDENNES | C17: 6 | D17: CHALONS EN CHAMPAGNE | E17: =VLOOKUP($C17,'RECAP SECT'!$G$6:$CU$253,3,FALSE) -> 45.5 | F17: =VLOOKUP($C17,'RECAP SECT'!$G$6:$CU$253,48,FALSE) -> 1,160 | G17: =VLOOKUP($C17,'RECAP SECT'!$G$6:$CU$253,49,FALSE) -> 25.51 | H17: =VLOOKUP($C17,'RECAP SECT'!$G$6:$CU$253,50,FALSE) -> 53% | I17: =VLOOKUP($C17,'RECAP SECT'!$G$6:$CU$253,51,FALSE) -> 9 | J17: =VLOOKUP($C17,'RECAP SECT'!$G$6:$CU$253,52,FALSE) -> 528 | K17: =VLOOKUP($C17,'RECAP SECT'!$G$6:$CU$253,53,FALSE) -> 11.60 | L17: =VLOOKUP($C17,'RECAP SECT'!$G$6:$CU$253,54,FALSE) -> 45% | M17: =VLOOKUP($C17,'RECAP SECT'!$G$6:$CU$253,55,FALSE) -> 17 | N17: =VLOOKUP($C17,'RECAP SECT'!$G$6:$CU$253,56,FALSE) -> 212 | O17: =VLOOKUP($C17,'RECAP SECT'!$G$6:$CU$253,57,FALSE) -> 4.66 | P17: =VLOOKUP($C17,'RECAP SECT'!$G$6:$CU$253,58,FALSE) -> 38% | Q17: =VLOOKUP($C17,'RECAP SECT'!$G$6:$CU$253,59,FALSE) -> 12 | R17: =VLOOKUP($C17,'RECAP SECT'!$G$6:$CU$253,60,FALSE) -> 45% | S17: =VLOOKUP($C17,'RECAP SECT'!$G$6:$CU$253,61,FALSE) -> 39% | T17: =VLOOKUP($C17,'RECAP SECT'!$G$6:$CU$253,62,FALSE) -> 11
A18: 30 | B18: MARNE-ARDENNES | C18: 2 | D18: CHARLEVILLE MEZIERES | E18: =VLOOKUP($C18,'RECAP SECT'!$G$6:$CU$253,3,FALSE) -> 56.9 | F18: =VLOOKUP($C18,'RECAP SECT'!$G$6:$CU$253,48,FALSE) -> 2,528 | G18: =VLOOKUP($C18,'RECAP SECT'!$G$6:$CU$253,49,FALSE) -> 44.46 | H18: =VLOOKUP($C18,'RECAP SECT'!$G$6:$CU$253,50,FALSE) -> 18% | I18: =VLOOKUP($C18,'RECAP SECT'!$G$6:$CU$253,51,FALSE) -> 3 | J18: =VLOOKUP($C18,'RECAP SECT'!$G$6:$CU$253,52,FALSE) -> 685 | K18: =VLOOKUP($C18,'RECAP SECT'!$G$6:$CU$253,53,FALSE) -> 12.05 | L18: =VLOOKUP($C18,'RECAP SECT'!$G$6:$CU$253,54,FALSE) -> 43% | M18: =VLOOKUP($C18,'RECAP SECT'!$G$6:$CU$253,55,FALSE) -> 16 | N18: =VLOOKUP($C18,'RECAP SECT'!$G$6:$CU$253,56,FALSE) -> 380 | O18: =VLOOKUP($C18,'RECAP SECT'!$G$6:$CU$253,57,FALSE) -> 6.68 | P18: =VLOOKUP($C18,'RECAP SECT'!$G$6:$CU$253,58,FALSE) -> 11% | Q18: =VLOOKUP($C18,'RECAP SECT'!$G$6:$CU$253,59,FALSE) -> 3 | R18: =VLOOKUP($C18,'RECAP SECT'!$G$6:$CU$253,60,FALSE) -> 23% | S18: =VLOOKUP($C18,'RECAP SECT'!$G$6:$CU$253,61,FALSE) -> 17% | T18: =VLOOKUP($C18,'RECAP SECT'!$G$6:$CU$253,62,FALSE) -> 5
A19: 30 | B19: MARNE-ARDENNES | C19: 11 | D19: REIMS | E19: =VLOOKUP($C19,'RECAP SECT'!$G$6:$CU$253,3,FALSE) -> 79.7 | F19: =VLOOKUP($C19,'RECAP SECT'!$G$6:$CU$253,48,FALSE) -> 3,816 | G19: =VLOOKUP($C19,'RECAP SECT'!$G$6:$CU$253,49,FALSE) -> 47.88 | H19: =VLOOKUP($C19,'RECAP SECT'!$G$6:$CU$253,50,FALSE) -> 11% | I19: =VLOOKUP($C19,'RECAP SECT'!$G$6:$CU$253,51,FALSE) -> 2 | J19: =VLOOKUP($C19,'RECAP SECT'!$G$6:$CU$253,52,FALSE) -> 1,146 | K19: =VLOOKUP($C19,'RECAP SECT'!$G$6:$CU$253,53,FALSE) -> 14.37 | L19: =VLOOKUP($C19,'RECAP SECT'!$G$6:$CU$253,54,FALSE) -> 32% | M19: =VLOOKUP($C19,'RECAP SECT'!$G$6:$CU$253,55,FALSE) -> 9 | N19: =VLOOKUP($C19,'RECAP SECT'!$G$6:$CU$253,56,FALSE) -> 576 | O19: =VLOOKUP($C19,'RECAP SECT'!$G$6:$CU$253,57,FALSE) -> 7.23 | P19: =VLOOKUP($C19,'RECAP SECT'!$G$6:$CU$253,58,FALSE) -> 3% | Q19: =VLOOKUP($C19,'RECAP SECT'!$G$6:$CU$253,59,FALSE) -> 2 | R19: =VLOOKUP($C19,'RECAP SECT'!$G$6:$CU$253,60,FALSE) -> 15% | S19: =VLOOKUP($C19,'RECAP SECT'!$G$6:$CU$253,61,FALSE) -> 9% | T19: =VLOOKUP($C19,'RECAP SECT'!$G$6:$CU$253,62,FALSE) -> 2
A20: 110 | B20: MEURTHE ET MOSELLE MEUSE | C20: 26 | D20: NANCY | E20: =VLOOKUP($C20,'RECAP SECT'!$G$6:$CU$253,3,FALSE) -> 62.0 | F20: =VLOOKUP($C20,'RECAP SECT'!$G$6:$CU$253,48,FALSE) -> 2,589 | G20: =VLOOKUP($C20,'RECAP SECT'!$G$6:$CU$253,49,FALSE) -> 41.79 | H20: =VLOOKUP($C20,'RECAP SECT'!$G$6:$CU$253,50,FALSE) -> 23% | I20: =VLOOKUP($C20,'RECAP SECT'!$G$6:$CU$253,51,FALSE) -> 4 | J20: =VLOOKUP($C20,'RECAP SECT'!$G$6:$CU$253,52,FALSE) -> 831 | K20: =VLOOKUP($C20,'RECAP SECT'!$G$6:$CU$253,53,FALSE) -> 13.41 | L20: =VLOOKUP($C20,'RECAP SECT'!$G$6:$CU$253,54,FALSE) -> 37% | M20: =VLOOKUP($C20,'RECAP SECT'!$G$6:$CU$253,55,FALSE) -> 12 | N20: =VLOOKUP($C20,'RECAP SECT'!$G$6:$CU$253,56,FALSE) -> 397 | O20: =VLOOKUP($C20,'RECAP SECT'!$G$6:$CU$253,57,FALSE) -> 6.41 | P20: =VLOOKUP($C20,'RECAP SECT'!$G$6:$CU$253,58,FALSE) -> 14% | Q20: =VLOOKUP($C20,'RECAP SECT'!$G$6:$CU$253,59,FALSE) -> 4 | R20: =VLOOKUP($C20,'RECAP SECT'!$G$6:$CU$253,60,FALSE) -> 24% | S20: =VLOOKUP($C20,'RECAP SECT'!$G$6:$CU$253,61,FALSE) -> 18% | T20: =VLOOKUP($C20,'RECAP SECT'!$G$6:$CU$253,62,FALSE) -> 6
A21: 110 | B21: MEURTHE ET MOSELLE MEUSE | C21: 27 | D21: PONT A MOUSSON | E21: =VLOOKUP($C21,'RECAP SECT'!$G$6:$CU$253,3,FALSE) -> 64.3 | F21: =VLOOKUP($C21,'RECAP SECT'!$G$6:$CU$253,48,FALSE) -> 2,471 | G21: =VLOOKUP($C21,'RECAP SECT'!$G$6:$CU$253,49,FALSE) -> 38.43 | H21: =VLOOKUP($C21,'RECAP SECT'!$G$6:$CU$253,50,FALSE) -> 29% | I21: =VLOOKUP($C21,'RECAP SECT'!$G$6:$CU$253,51,FALSE) -> 5 | J21: =VLOOKUP($C21,'RECAP SECT'!$G$6:$CU$253,52,FALSE) -> 875 | K21: =VLOOKUP($C21,'RECAP SECT'!$G$6:$CU$253,53,FALSE) -> 13.60 | L21: =VLOOKUP($C21,'RECAP SECT'!$G$6:$CU$253,54,FALSE) -> 36% | M21: =VLOOKUP($C21,'RECAP SECT'!$G$6:$CU$253,55,FALSE) -> 11 | N21: =VLOOKUP($C21,'RECAP SECT'!$G$6:$CU$253,56,FALSE) -> 386 | O21: =VLOOKUP($C21,'RECAP SECT'!$G$6:$CU$253,57,FALSE) -> 6.00 | P21: =VLOOKUP($C21,'RECAP SECT'!$G$6:$CU$253,58,FALSE) -> 20% | Q21: =VLOOKUP($C21,'RECAP SECT'!$G$6:$CU$253,59,FALSE) -> 7 | R21: =VLOOKUP($C21,'RECAP SECT'!$G$6:$CU$253,60,FALSE) -> 27% | S21: =VLOOKUP($C21,'RECAP SECT'!$G$6:$CU$253,61,FALSE) -> 21% | T21: =VLOOKUP($C21,'RECAP SECT'!$G$6:$CU$253,62,FALSE) -> 7
A22: 110 | B22: MEURTHE ET MOSELLE MEUSE | C22: 31 | D22: VERDUN | E22: =VLOOKUP($C22,'RECAP SECT'!$G$6:$CU$253,3,FALSE) -> 56.1 | F22: =VLOOKUP($C22,'RECAP SECT'!$G$6:$CU$253,48,FALSE) -> 1,763 | G22: =VLOOKUP($C22,'RECAP SECT'!$G$6:$CU$253,49,FALSE) -> 31.43 | H22: =VLOOKUP($C22,'RECAP SECT'!$G$6:$CU$253,50,FALSE) -> 42% | I22: =VLOOKUP($C22,'RECAP SECT'!$G$6:$CU$253,51,FALSE) -> 8 | J22: =VLOOKUP($C22,'RECAP SECT'!$G$6:$CU$253,52,FALSE) -> 895 | K22: =VLOOKUP($C22,'RECAP SECT'!$G$6:$CU$253,53,FALSE) -> 15.94 | L22: =VLOOKUP($C22,'RECAP SECT'!$G$6:$CU$253,54,FALSE) -> 25% | M22: =VLOOKUP($C22,'RECAP SECT'!$G$6:$CU$253,55,FALSE) -> 5 | N22: =VLOOKUP($C22,'RECAP SECT'!$G$6:$CU$253,56,FALSE) -> 289 | O22: =VLOOKUP($C22,'RECAP SECT'!$G$6:$CU$253,57,FALSE) -> 5.15 | P22: =VLOOKUP($C22,'RECAP SECT'!$G$6:$CU$253,58,FALSE) -> 31% | Q22: =VLOOKUP($C22,'RECAP SECT'!$G$6:$CU$253,59,FALSE) -> 9 | R22: =VLOOKUP($C22,'RECAP SECT'!$G$6:$CU$253,60,FALSE) -> 33% | S22: =VLOOKUP($C22,'RECAP SECT'!$G$6:$CU$253,61,FALSE) -> 27% | T22: =VLOOKUP($C22,'RECAP SECT'!$G$6:$CU$253,62,FALSE) -> 8
A23: 160 | B23: MOSELLE | C23: 45 | D23: METZ | E23: =VLOOKUP($C23,'RECAP SECT'!$G$6:$CU$253,3,FALSE) -> 77.9 | F23: =VLOOKUP($C23,'RECAP SECT'!$G$6:$CU$253,48,FALSE) -> 2,828 | G23: =VLOOKUP($C23,'RECAP SECT'!$G$6:$CU$253,49,FALSE) -> 36.29 | H23: =VLOOKUP($C23,'RECAP SECT'!$G$6:$CU$253,50,FALSE) -> 33% | I23: =VLOOKUP($C23,'RECAP SECT'!$G$6:$CU$253,51,FALSE) -> 7 | J23: =VLOOKUP($C23,'RECAP SECT'!$G$6:$CU$253,52,FALSE) -> 1,405 | K23: =VLOOKUP($C23,'RECAP SECT'!$G$6:$CU$253,53,FALSE) -> 18.04 | L23: =VLOOKUP($C23,'RECAP SECT'!$G$6:$CU$253,54,FALSE) -> 15% | M23: =VLOOKUP($C23,'RECAP SECT'!$G$6:$CU$253,55,FALSE) -> 2 | N23: =VLOOKUP($C23,'RECAP SECT'!$G$6:$CU$253,56,FALSE) -> 479 | O23: =VLOOKUP($C23,'RECAP SECT'!$G$6:$CU$253,57,FALSE) -> 6.15 | P23: =VLOOKUP($C23,'RECAP SECT'!$G$6:$CU$253,58,FALSE) -> 18% | Q23: =VLOOKUP($C23,'RECAP SECT'!$G$6:$CU$253,59,FALSE) -> 6 | R23: =VLOOKUP($C23,'RECAP SECT'!$G$6:$CU$253,60,FALSE) -> 22% | S23: =VLOOKUP($C23,'RECAP SECT'!$G$6:$CU$253,61,FALSE) -> 16% | T23: =VLOOKUP($C23,'RECAP SECT'!$G$6:$CU$253,62,FALSE) -> 4
A24: 160 | B24: MOSELLE | C24: 42 | D24: MOSELLE EST | E24: =VLOOKUP($C24,'RECAP SECT'!$G$6:$CU$253,3,FALSE) -> 64.8 | F24: =VLOOKUP($C24,'RECAP SECT'!$G$6:$CU$253,48,FALSE) -> 2,376 | G24: =VLOOKUP($C24,'RECAP SECT'!$G$6:$CU$253,49,FALSE) -> 36.68 | H24: =VLOOKUP($C24,'RECAP SECT'!$G$6:$CU$253,50,FALSE) -> 32% | I24: =VLOOKUP($C24,'RECAP SECT'!$G$6:$CU$253,51,FALSE) -> 6 | J24: =VLOOKUP($C24,'RECAP SECT'!$G$6:$CU$253,52,FALSE) -> 1,375 | K24: =VLOOKUP($C24,'RECAP SECT'!$G$6:$CU$253,53,FALSE) -> 21.23 | L24: =VLOOKUP($C24,'RECAP SECT'!$G$6:$CU$253,54,FALSE) -> 0% | M24: =VLOOKUP($C24,'RECAP SECT'!$G$6:$CU$253,55,FALSE) -> 1 | N24: =VLOOKUP($C24,'RECAP SECT'!$G$6:$CU$253,56,FALSE) -> 409 | O24: =VLOOKUP($C24,'RECAP SECT'!$G$6:$CU$253,57,FALSE) -> 6.32 | P24: =VLOOKUP($C24,'RECAP SECT'!$G$6:$CU$253,58,FALSE) -> 16% | Q24: =VLOOKUP($C24,'RECAP SECT'!$G$6:$CU$253,59,FALSE) -> 5 | R24: =VLOOKUP($C24,'RECAP SECT'!$G$6:$CU$253,60,FALSE) -> 16% | S24: =VLOOKUP($C24,'RECAP SECT'!$G$6:$CU$253,61,FALSE) -> 10% | T24: =VLOOKUP($C24,'RECAP SECT'!$G$6:$CU$253,62,FALSE) -> 3
A25: 160 | B25: MOSELLE | C25: 44 | D25: MOSELLE NORD | E25: =VLOOKUP($C25,'RECAP SECT'!$G$6:$CU$253,3,FALSE) -> 63.8 | F25: =VLOOKUP($C25,'RECAP SECT'!$G$6:$CU$253,48,FALSE) -> 3,454 | G25: =VLOOKUP($C25,'RECAP SECT'!$G$6:$CU$253,49,FALSE) -> 54.10 | H25: =VLOOKUP($C25,'RECAP SECT'!$G$6:$CU$253,50,FALSE) -> 0% | I25: =VLOOKUP($C25,'RECAP SECT'!$G$6:$CU$253,51,FALSE) -> 1 | J25: =VLOOKUP($C25,'RECAP SECT'!$G$6:$CU$253,52,FALSE) -> 1,087 | K25: =VLOOKUP($C25,'RECAP SECT'!$G$6:$CU$253,53,FALSE) -> 17.02 | L25: =VLOOKUP($C25,'RECAP SECT'!$G$6:$CU$253,54,FALSE) -> 20% | M25: =VLOOKUP($C25,'RECAP SECT'!$G$6:$CU$253,55,FALSE) -> 3 | N25: =VLOOKUP($C25,'RECAP SECT'!$G$6:$CU$253,56,FALSE) -> 478 | O25: =VLOOKUP($C25,'RECAP SECT'!$G$6:$CU$253,57,FALSE) -> 7.49 | P25: =VLOOKUP($C25,'RECAP SECT'!$G$6:$CU$253,58,FALSE) -> 0% | Q25: =VLOOKUP($C25,'RECAP SECT'!$G$6:$CU$253,59,FALSE) -> 1 | R25: =VLOOKUP($C25,'RECAP SECT'!$G$6:$CU$253,60,FALSE) -> 6% | S25: =VLOOKUP($C25,'RECAP SECT'!$G$6:$CU$253,61,FALSE) -> 0% | T25: =VLOOKUP($C25,'RECAP SECT'!$G$6:$CU$253,62,FALSE) -> 1
A26: 80 | B26: VOSGES | C26: 57 | D26: EPINAL | E26: =VLOOKUP($C26,'RECAP SECT'!$G$6:$CU$253,3,FALSE) -> 61.1 | F26: =VLOOKUP($C26,'RECAP SECT'!$G$6:$CU$253,48,FALSE) -> 1,220 | G26: =VLOOKUP($C26,'RECAP SECT'!$G$6:$CU$253,49,FALSE) -> 19.95 | H26: =VLOOKUP($C26,'RECAP SECT'!$G$6:$CU$253,50,FALSE) -> 63% | I26: =VLOOKUP($C26,'RECAP SECT'!$G$6:$CU$253,51,FALSE) -> 12 | J26: =VLOOKUP($C26,'RECAP SECT'!$G$6:$CU$253,52,FALSE) -> 624 | K26: =VLOOKUP($C26,'RECAP SECT'!$G$6:$CU$253,53,FALSE) -> 10.21 | L26: =VLOOKUP($C26,'RECAP SECT'!$G$6:$CU$253,54,FALSE) -> 52% | M26: =VLOOKUP($C26,'RECAP SECT'!$G$6:$CU$253,55,FALSE) -> 18 | N26: =VLOOKUP($C26,'RECAP SECT'!$G$6:$CU$253,56,FALSE) -> 290 | O26: =VLOOKUP($C26,'RECAP SECT'!$G$6:$CU$253,57,FALSE) -> 4.74 | P26: =VLOOKUP($C26,'RECAP SECT'!$G$6:$CU$253,58,FALSE) -> 37% | Q26: =VLOOKUP($C26,'RECAP SECT'!$G$6:$CU$253,59,FALSE) -> 11 | R26: =VLOOKUP($C26,'RECAP SECT'!$G$6:$CU$253,60,FALSE) -> 49% | S26: =VLOOKUP($C26,'RECAP SECT'!$G$6:$CU$253,61,FALSE) -> 43% | T26: =VLOOKUP($C26,'RECAP SECT'!$G$6:$CU$253,62,FALSE) -> 15
A27: 80 | B27: VOSGES | C27: 55 | D27: SAINT DIE | E27: =VLOOKUP($C27,'RECAP SECT'!$G$6:$CU$253,3,FALSE) -> 49.2 | F27: =VLOOKUP($C27,'RECAP SECT'!$G$6:$CU$253,48,FALSE) -> 934 | G27: =VLOOKUP($C27,'RECAP SECT'!$G$6:$CU$253,49,FALSE) -> 18.99 | H27: =VLOOKUP($C27,'RECAP SECT'!$G$6:$CU$253,50,FALSE) -> 65% | I27: =VLOOKUP($C27,'RECAP SECT'!$G$6:$CU$253,51,FALSE) -> 15 | J27: =VLOOKUP($C27,'RECAP SECT'!$G$6:$CU$253,52,FALSE) -> 606 | K27: =VLOOKUP($C27,'RECAP SECT'!$G$6:$CU$253,53,FALSE) -> 12.31 | L27: =VLOOKUP($C27,'RECAP SECT'!$G$6:$CU$253,54,FALSE) -> 42% | M27: =VLOOKUP($C27,'RECAP SECT'!$G$6:$CU$253,55,FALSE) -> 15 | N27: =VLOOKUP($C27,'RECAP SECT'!$G$6:$CU$253,56,FALSE) -> 225 | O27: =VLOOKUP($C27,'RECAP SECT'!$G$6:$CU$253,57,FALSE) -> 4.57 | P27: =VLOOKUP($C27,'RECAP SECT'!$G$6:$CU$253,58,FALSE) -> 39% | Q27: =VLOOKUP($C27,'RECAP SECT'!$G$6:$CU$253,59,FALSE) -> 13 | R27: =VLOOKUP($C27,'RECAP SECT'!$G$6:$CU$253,60,FALSE) -> 48% | S27: =VLOOKUP($C27,'RECAP SECT'!$G$6:$CU$253,61,FALSE) -> 42% | T27: =VLOOKUP($C27,'RECAP SECT'!$G$6:$CU$253,62,FALSE) -> 14
A28: Total CEGEE Directions Régionales | E28: =SUM(E10:E27) -> 1073

Sheet SE_IARD
B1: Accueil | F1: BAROMETRE BDD - TERRITOIRES
F2: IARD ET PREVOYANCE
F3: =ACCUEIL!F7 -> 2022-03-06
F7: Ventes Nettes produits pondérés | J7: Ventes sur client non détenteur de l’univers | N7: Total IARD Prévoyance
F8: =DATEMAJ!C23 -> au 06/03 | H8: coef | I8: ='RECAP DIRCOM'!BX4 -> 12% | J8: =DATEMAJ!C24 -> au 06/03 | L8: coef | M8: ='RECAP DIRCOM'!CB4 -> 8% | O8: coef | P8: ='RECAP DIRCOM'!CE4 -> 20%
B9: Direction | C9: eds | D9: Territoire | E9: ="ETP perf "&DATEMAJ!$C$28 -> ETP perf 31-janv | F9: VN | G9: VN / ETP | H9: % Ecart au 1er | I9: Rang | J9: VB | K9: VB / ETP | L9: % Ecart au 1er | M9: Rang | N9: Moyenne ecart au 1er | O9: % Ecart au 1er | P9: Rang CEGEE
A10: 50 | B10: AUBE HAUTE MARNE | C10: 21 | D10: CHAUMONT | E10: =VLOOKUP($C10,'RECAP SECT'!$G$6:$CU$253,3,FALSE) -> 35.6 | F10: =VLOOKUP($C10,'RECAP SECT'!$G$6:$CU$253,67,FALSE) -> 1,353 | G10: =VLOOKUP($C10,'RECAP SECT'!$G$6:$CU$253,68,FALSE) -> 38.03 | H10: =VLOOKUP($C10,'RECAP SECT'!$G$6:$CU$253,69,FALSE) -> 30% | I10: =VLOOKUP($C10,'RECAP SECT'!$G$6:$CU$253,70,FALSE) -> 5 | J10: =VLOOKUP($C10,'RECAP SECT'!$G$6:$CU$253,71,FALSE) -> 390 | K10: =VLOOKUP($C10,'RECAP SECT'!$G$6:$CU$253,72,FALSE) -> 10.96 | L10: =VLOOKUP($C10,'RECAP SECT'!$G$6:$CU$253,73,FALSE) -> 26% | M10: =VLOOKUP($C10,'RECAP SECT'!$G$6:$CU$253,74,FALSE) -> 8 | N10: =VLOOKUP($C10,'RECAP SECT'!$G$6:$CU$253,75,FALSE) -> 29% | O10: =VLOOKUP($C10,'RECAP SECT'!$G$6:$CU$253,76,FALSE) -> 25% | P10: =VLOOKUP($C10,'RECAP SECT'!$G$6:$CU$253,77,FALSE) -> 6
A11: 50 | B11: AUBE HAUTE MARNE | C11: 14 | D11: TROYES | E11: =VLOOKUP($C11,'RECAP SECT'!$G$6:$CU$253,3,FALSE) -> 62.2 | F11: =VLOOKUP($C11,'RECAP SECT'!$G$6:$CU$253,67,FALSE) -> 1,114 | G11: =VLOOKUP($C11,'RECAP SECT'!$G$6:$CU$253,68,FALSE) -> 17.91 | H11: =VLOOKUP($C11,'RECAP SECT'!$G$6:$CU$253,69,FALSE) -> 67% | I11: =VLOOKUP($C11,'RECAP SECT'!$G$6:$CU$253,70,FALSE) -> 16 | J11: =VLOOKUP($C11,'RECAP SECT'!$G$6:$CU$253,71,FALSE) -> 559 | K11: =VLOOKUP($C11,'RECAP SECT'!$G$6:$CU$253,72,FALSE) -> 8.99 | L11: =VLOOKUP($C11,'RECAP SECT'!$G$6:$CU$253,73,FALSE) -> 40% | M11: =VLOOKUP($C11,'RECAP SECT'!$G$6:$CU$253,74,FALSE) -> 17 | N11: =VLOOKUP($C11,'RECAP SECT'!$G$6:$CU$253,75,FALSE) -> 56% | O11: =VLOOKUP($C11,'RECAP SECT'!$G$6:$CU$253,76,FALSE) -> 52% | P11: =VLOOKUP($C11,'RECAP SECT'!$G$6:$CU$253,77,FALSE) -> 17
A12: 262 | B12: BAS-RHIN | C12: 5060 | D12: HAGUENAU | E12: =VLOOKUP($C12,'RECAP SECT'!$G$6:$CU$253,3,FALSE) -> 63.6 | F12: =VLOOKUP($C12,'RECAP SECT'!$G$6:$CU$253,67,FALSE) -> 2,006 | G12: =VLOOKUP($C12,'RECAP SECT'!$G$6:$CU$253,68,FALSE) -> 31.52 | H12: =VLOOKUP($C12,'RECAP SECT'!$G$6:$CU$253,69,FALSE) -> 42% | I12: =VLOOKUP($C12,'RECAP SECT'!$G$6:$CU$253,70,FALSE) -> 10 | J12: =VLOOKUP($C12,'RECAP SECT'!$G$6:$CU$253,71,FALSE) -> 603 | K12: =VLOOKUP($C12,'RECAP SECT'!$G$6:$CU$253,72,FALSE) -> 9.47 | L12: =VLOOKUP($C12,'RECAP SECT'!$G$6:$CU$253,73,FALSE) -> 36% | M12: =VLOOKUP($C12,'RECAP SECT'!$G$6:$CU$253,74,FALSE) -> 16 | N12: =VLOOKUP($C12,'RECAP SECT'!$G$6:$CU$253,75,FALSE) -> 40% | O12: =VLOOKUP($C12,'RECAP SECT'!$G$6:$CU$253,76,FALSE) -> 36% | P12: =VLOOKUP($C12,'RECAP SECT'!$G$6:$CU$253,77,FALSE) -> 10
A13: 262 | B13: BAS-RHIN | C13: 5101 | D13: SELESTAT | E13: =VLOOKUP($C13,'RECAP SECT'!$G$6:$CU$253,3,FALSE) -> 61.2 | F13: =VLOOKUP($C13,'RECAP SECT'!$G$6:$CU$253,67,FALSE) -> 2,206 | G13: =VLOOKUP($C13,'RECAP SECT'!$G$6:$CU$253,68,FALSE) -> 36.07 | H13: =VLOOKUP($C13,'RECAP SECT'!$G$6:$CU$253,69,FALSE) -> 34% | I13: =VLOOKUP($C13,'RECAP SECT'!$G$6:$CU$253,70,FALSE) -> 6 | J13: =VLOOKUP($C13,'RECAP SECT'!$G$6:$CU$253,71,FALSE) -> 607 | K13: =VLOOKUP($C13,'RECAP SECT'!$G$6:$CU$253,72,FALSE) -> 9.93 | L13: =VLOOKUP($C13,'RECAP SECT'!$G$6:$CU$253,73,FALSE) -> 33% | M13: =VLOOKUP($C13,'RECAP SECT'!$G$6:$CU$253,74,FALSE) -> 14 | N13: =VLOOKUP($C13,'RECAP SECT'!$G$6:$CU$253,75,FALSE) -> 34% | O13: =VLOOKUP($C13,'RECAP SECT'!$G$6:$CU$253,76,FALSE) -> 30% | P13: =VLOOKUP($C13,'RECAP SECT'!$G$6:$CU$253,77,FALSE) -> 8
A14: 262 | B14: BAS-RHIN | C14: 5006 | D14: STRASBOURG | E14: =VLOOKUP($C14,'RECAP SECT'!$G$6:$CU$253,3,FALSE) -> 73.6 | F14: =VLOOKUP($C14,'RECAP SECT'!$G$6:$CU$253,67,FALSE) -> 3,248 | G14: =VLOOKUP($C14,'RECAP SECT'!$G$6:$CU$253,68,FALSE) -> 44.12 | H14: =VLOOKUP($C14,'RECAP SECT'!$G$6:$CU$253,69,FALSE) -> 19% | I14: =VLOOKUP($C14,'RECAP SECT'!$G$6:$CU$253,70,FALSE) -> 3 | J14: =VLOOKUP($C14,'RECAP SECT'!$G$6:$CU$253,71,FALSE) -> 1,094 | K14: =VLOOKUP($C14,'RECAP SECT'!$G$6:$CU$253,72,FALSE) -> 14.86 | L14: =VLOOKUP($C14,'RECAP SECT'!$G$6:$CU$253,73,FALSE) -> 0% | M14: =VLOOKUP($C14,'RECAP SECT'!$G$6:$CU$253,74,FALSE) -> 1 | N14: =VLOOKUP($C14,'RECAP SECT'!$G$6:$CU$253,75,FALSE) -> 12% | O14: =VLOOKUP($C14,'RECAP SECT'!$G$6:$CU$253,76,FALSE) -> 7% | P14: =VLOOKUP($C14,'RECAP SECT'!$G$6:$CU$253,77,FALSE) -> 3
A15: 264 | B15: HAUT-RHIN | C15: 5130 | D15: COLMAR | E15: =VLOOKUP($C15,'RECAP SECT'!$G$6:$CU$253,3,FALSE) -> 48.3 | F15: =VLOOKUP($C15,'RECAP SECT'!$G$6:$CU$253,67,FALSE) -> 1,377 | G15: =VLOOKUP($C15,'RECAP SECT'!$G$6:$CU$253,68,FALSE) -> 28.53 | H15: =VLOOKUP($C15,'RECAP SECT'!$G$6:$CU$253,69,FALSE) -> 48% | I15: =VLOOKUP($C15,'RECAP SECT'!$G$6:$CU$253,70,FALSE) -> 13 | J15: =VLOOKUP($C15,'RECAP SECT'!$G$6:$CU$253,71,FALSE) -> 510 | K15: =VLOOKUP($C15,'RECAP SECT'!$G$6:$CU$253,72,FALSE) -> 10.57 | L15: =VLOOKUP($C15,'RECAP SECT'!$G$6:$CU$253,73,FALSE) -> 29% | M15: =VLOOKUP($C15,'RECAP SECT'!$G$6:$CU$253,74,FALSE) -> 9 | N15: =VLOOKUP($C15,'RECAP SECT'!$G$6:$CU$253,75,FALSE) -> 40% | O15: =VLOOKUP($C15,'RECAP SECT'!$G$6:$CU$253,76,FALSE) -> 36% | P15: =VLOOKUP($C15,'RECAP SECT'!$G$6:$CU$253,77,FALSE) -> 11
A16: 264 | B16: HAUT-RHIN | C16: 5169 | D16: MULHOUSE | E16: =VLOOKUP($C16,'RECAP SECT'!$G$6:$CU$253,3,FALSE) -> 47.6 | F16: =VLOOKUP($C16,'RECAP SECT'!$G$6:$CU$253,67,FALSE) -> 795 | G16: =VLOOKUP($C16,'RECAP SECT'!$G$6:$CU$253,68,FALSE) -> 16.72 | H16: =VLOOKUP($C16,'RECAP SECT'!$G$6:$CU$253,69,FALSE) -> 69% | I16: =VLOOKUP($C16,'RECAP SECT'!$G$6:$CU$253,70,FALSE) -> 17 | J16: =VLOOKUP($C16,'RECAP SECT'!$G$6:$CU$253,71,FALSE) -> 476 | K16: =VLOOKUP($C16,'RECAP SECT'!$G$6:$CU$253,72,FALSE) -> 10.01 | L16: =VLOOKUP($C16,'RECAP SECT'!$G$6:$CU$253,73,FALSE) -> 33% | M16: =VLOOKUP($C16,'RECAP SECT'!$G$6:$CU$253,74,FALSE) -> 11 | N16: =VLOOKUP($C16,'RECAP SECT'!$G$6:$CU$253,75,FALSE) -> 55% | O16: =VLOOKUP($C16,'RECAP SECT'!$G$6:$CU$253,76,FALSE) -> 51% | P16: =VLOOKUP($C16,'RECAP SECT'!$G$6:$CU$253,77,FALSE) -> 16
A17: 30 | B17: MARNE-ARDENNES | C17: 6 | D17: CHALONS EN CHAMPAGNE | E17: =VLOOKUP($C17,'RECAP SECT'!$G$6:$CU$253,3,FALSE) -> 45.5 | F17: =VLOOKUP($C17,'RECAP SECT'!$G$6:$CU$253,67,FALSE) -> 1,366 | G17: =VLOOKUP($C17,'RECAP SECT'!$G$6:$CU$253,68,FALSE) -> 30.03 | H17: =VLOOKUP($C17,'RECAP SECT'!$G$6:$CU$253,69,FALSE) -> 45% | I17: =VLOOKUP($C17,'RECAP SECT'!$G$6:$CU$253,70,FALSE) -> 11 | J17: =VLOOKUP($C17,'RECAP SECT'!$G$6:$CU$253,71,FALSE) -> 435 | K17: =VLOOKUP($C17,'RECAP SECT'!$G$6:$CU$253,72,FALSE) -> 9.56 | L17: =VLOOKUP($C17,'RECAP SECT'!$G$6:$CU$253,73,FALSE) -> 36% | M17: =VLOOKUP($C17,'RECAP SECT'!$G$6:$CU$253,74,FALSE) -> 15 | N17: =VLOOKUP($C17,'RECAP SECT'!$G$6:$CU$253,75,FALSE) -> 41% | O17: =VLOOKUP($C17,'RECAP SECT'!$G$6:$CU$253,76,FALSE) -> 37% | P17: =VLOOKUP($C17,'RECAP SECT'!$G$6:$CU$253,77,FALSE) -> 13
A18: 30 | B18: MARNE-ARDENNES | C18: 2 | D18: CHARLEVILLE MEZIERES | E18: =VLOOKUP($C18,'RECAP SECT'!$G$6:$CU$253,3,FALSE) -> 56.9 | F18: =VLOOKUP($C18,'RECAP SECT'!$G$6:$CU$253,67,FALSE) -> 1,825 | G18: =VLOOKUP($C18,'RECAP SECT'!$G$6:$CU$253,68,FALSE) -> 32.10 | H18: =VLOOKUP($C18,'RECAP SECT'!$G$6:$CU$253,69,FALSE) -> 41% | I18: =VLOOKUP($C18,'RECAP SECT'!$G$6:$CU$253,70,FALSE) -> 9 | J18: =VLOOKUP($C18,'RECAP SECT'!$G$6:$CU$253,71,FALSE) -> 588 | K18: =VLOOKUP($C18,'RECAP SECT'!$G$6:$CU$253,72,FALSE) -> 10.34 | L18: =VLOOKUP($C18,'RECAP SECT'!$G$6:$CU$253,73,FALSE) -> 30% | M18: =VLOOKUP($C18,'RECAP SECT'!$G$6:$CU$253,74,FALSE) -> 10 | N18: =VLOOKUP($C18,'RECAP SECT'!$G$6:$CU$253,75,FALSE) -> 37% | O18: =VLOOKUP($C18,'RECAP SECT'!$G$6:$CU$253,76,FALSE) -> 33% | P18: =VLOOKUP($C18,'RECAP SECT'!$G$6:$CU$253,77,FALSE) -> 9
A19: 30 | B19: MARNE-ARDENNES | C19: 11 | D19: REIMS | E19: =VLOOKUP($C19,'RECAP SECT'!$G$6:$CU$253,3,FALSE) -> 79.7 | F19: =VLOOKUP($C19,'RECAP SECT'!$G$6:$CU$253,67,FALSE) -> 2,586 | G19: =VLOOKUP($C19,'RECAP SECT'!$G$6:$CU$253,68,FALSE) -> 32.45 | H19: =VLOOKUP($C19,'RECAP SECT'!$G$6:$CU$253,69,FALSE) -> 41% | I19: =VLOOKUP($C19,'RECAP SECT'!$G$6:$CU$253,70,FALSE) -> 8 | J19: =VLOOKUP($C19,'RECAP SECT'!$G$6:$CU$253,71,FALSE) -> 924 | K19: =VLOOKUP($C19,'RECAP SECT'!$G$6:$CU$253,72,FALSE) -> 11.59 | L19: =VLOOKUP($C19,'RECAP SECT'!$G$6:$CU$253,73,FALSE) -> 22% | M19: =VLOOKUP($C19,'RECAP SECT'!$G$6:$CU$253,74,FALSE) -> 5 | N19: =VLOOKUP($C19,'RECAP SECT'!$G$6:$CU$253,75,FALSE) -> 33% | O19: =VLOOKUP($C19,'RECAP SECT'!$G$6:$CU$253,76,FALSE) -> 29% | P19: =VLOOKUP($C19,'RECAP SECT'!$G$6:$CU$253,77,FALSE) -> 7
A20: 110 | B20: MEURTHE ET MOSELLE MEUSE | C20: 26 | D20: NANCY | E20: =VLOOKUP($C20,'RECAP SECT'!$G$6:$CU$253,3,FALSE) -> 62.0 | F20: =VLOOKUP($C20,'RECAP SECT'!$G$6:$CU$253,67,FALSE) -> 1,589 | G20: =VLOOKUP($C20,'RECAP SECT'!$G$6:$CU$253,68,FALSE) -> 25.65 | H20: =VLOOKUP($C20,'RECAP SECT'!$G$6:$CU$253,69,FALSE) -> 53% | I20: =VLOOKUP($C20,'RECAP SECT'!$G$6:$CU$253,70,FALSE) -> 15 | J20: =VLOOKUP($C20,'RECAP SECT'!$G$6:$CU$253,71,FALSE) -> 711 | K20: =VLOOKUP($C20,'RECAP SECT'!$G$6:$CU$253,72,FALSE) -> 11.47 | L20: =VLOOKUP($C20,'RECAP SECT'!$G$6:$CU$253,73,FALSE) -> 23% | M20: =VLOOKUP($C20,'RECAP SECT'!$G$6:$CU$253,74,FALSE) -> 6 | N20: =VLOOKUP($C20,'RECAP SECT'!$G$6:$CU$253,75,FALSE) -> 41% | O20: =VLOOKUP($C20,'RECAP SECT'!$G$6:$CU$253,76,FALSE) -> 37% | P20: =VLOOKUP($C20,'RECAP SECT'!$G$6:$CU$253,77,FALSE) -> 12
A21: 110 | B21: MEURTHE ET MOSELLE MEUSE | C21: 27 | D21: PONT A MOUSSON | E21: =VLOOKUP($C21,'RECAP SECT'!$G$6:$CU$253,3,FALSE) -> 64.3 | F21: =VLOOKUP($C21,'RECAP SECT'!$G$6:$CU$253,67,FALSE) -> 2,313 | G21: =VLOOKUP($C21,'RECAP SECT'!$G$6:$CU$253,68,FALSE) -> 35.97 | H21: =VLOOKUP($C21,'RECAP SECT'!$G$6:$CU$253,69,FALSE) -> 34% | I21: =VLOOKUP($C21,'RECAP SECT'!$G$6:$CU$253,70,FALSE) -> 7 | J21: =VLOOKUP($C21,'RECAP SECT'!$G$6:$CU$253,71,FALSE) -> 807 | K21: =VLOOKUP($C21,'RECAP SECT'!$G$6:$CU$253,72,FALSE) -> 12.55 | L21: =VLOOKUP($C21,'RECAP SECT'!$G$6:$CU$253,73,FALSE) -> 16% | M21: =VLOOKUP($C21,'RECAP SECT'!$G$6:$CU$253,74,FALSE) -> 3 | N21: =VLOOKUP($C21,'RECAP SECT'!$G$6:$CU$253,75,FALSE) -> 27% | O21: =VLOOKUP($C21,'RECAP SECT'!$G$6:$CU$253,76,FALSE) -> 23% | P21: =VLOOKUP($C21,'RECAP SECT'!$G$6:$CU$253,77,FALSE) -> 5
A22: 110 | B22: MEURTHE ET MOSELLE MEUSE | C22: 31 | D22: VERDUN | E22: =VLOOKUP($C22,'RECAP SECT'!$G$6:$CU$253,3,FALSE) -> 56.1 | F22: =VLOOKUP($C22,'RECAP SECT'!$G$6:$CU$253,67,FALSE) -> 1,606 | G22: =VLOOKUP($C22,'RECAP SECT'!$G$6:$CU$253,68,FALSE) -> 28.62 | H22: =VLOOKUP($C22,'RECAP SECT'!$G$6:$CU$253,69,FALSE) -> 48% | I22: =VLOOKUP($C22,'RECAP SECT'!$G$6:$CU$253,70,FALSE) -> 12 | J22: =VLOOKUP($C22,'RECAP SECT'!$G$6:$CU$253,71,FALSE) -> 558 | K22: =VLOOKUP($C22,'RECAP SECT'!$G$6:$CU$253,72,FALSE) -> 9.94 | L22: =VLOOKUP($C22,'RECAP SECT'!$G$6:$CU$253,73,FALSE) -> 33% | M22: =VLOOKUP($C22,'RECAP SECT'!$G$6:$CU$253,74,FALSE) -> 13 | N22: =VLOOKUP($C22,'RECAP SECT'!$G$6:$CU$253,75,FALSE) -> 42% | O22: =VLOOKUP($C22,'RECAP SECT'!$G$6:$CU$253,76,FALSE) -> 38% | P22: =VLOOKUP($C22,'RECAP SECT'!$G$6:$CU$253,77,FALSE) -> 14
A23: 160 | B23: MOSELLE | C23: 45 | D23: METZ | E23: =VLOOKUP($C23,'RECAP SECT'!$G$6:$CU$253,3,FALSE) -> 77.9 | F23: =VLOOKUP($C23,'RECAP SECT'!$G$6:$CU$253,67,FALSE) -> 3,246 | G23: =VLOOKUP($C23,'RECAP SECT'!$G$6:$CU$253,68,FALSE) -> 41.66 | H23: =VLOOKUP($C23,'RECAP SECT'!$G$6:$CU$253,69,FALSE) -> 24% | I23: =VLOOKUP($C23,'RECAP SECT'!$G$6:$CU$253,70,FALSE) -> 4 | J23: =VLOOKUP($C23,'RECAP SECT'!$G$6:$CU$253,71,FALSE) -> 855 | K23: =VLOOKUP($C23,'RECAP SECT'!$G$6:$CU$253,72,FALSE) -> 10.97 | L23: =VLOOKUP($C23,'RECAP SECT'!$G$6:$CU$253,73,FALSE) -> 26% | M23: =VLOOKUP($C23,'RECAP SECT'!$G$6:$CU$253,74,FALSE) -> 7 | N23: =VLOOKUP($C23,'RECAP SECT'!$G$6:$CU$253,75,FALSE) -> 25% | O23: =VLOOKUP($C23,'RECAP SECT'!$G$6:$CU$253,76,FALSE) -> 21% | P23: =VLOOKUP($C23,'RECAP SECT'!$G$6:$CU$253,77,FALSE) -> 4
A24: 160 | B24: MOSELLE | C24: 42 | D24: MOSELLE EST | E24: =VLOOKUP($C24,'RECAP SECT'!$G$6:$CU$253,3,FALSE) -> 64.8 | F24: =VLOOKUP($C24,'RECAP SECT'!$G$6:$CU$253,67,FALSE) -> 3,458 | G24: =VLOOKUP($C24,'RECAP SECT'!$G$6:$CU$253,68,FALSE) -> 53.39 | H24: =VLOOKUP($C24,'RECAP SECT'!$G$6:$CU$253,69,FALSE) -> 2% | I24: =VLOOKUP($C24,'RECAP SECT'!$G$6:$CU$253,70,FALSE) -> 2 | J24: =VLOOKUP($C24,'RECAP SECT'!$G$6:$CU$253,71,FALSE) -> 804 | K24: =VLOOKUP($C24,'RECAP SECT'!$G$6:$CU$253,72,FALSE) -> 12.41 | L24: =VLOOKUP($C24,'RECAP SECT'!$G$6:$CU$253,73,FALSE) -> 16% | M24: =VLOOKUP($C24,'RECAP SECT'!$G$6:$CU$253,74,FALSE) -> 4 | N24: =VLOOKUP($C24,'RECAP SECT'!$G$6:$CU$253,75,FALSE) -> 8% | O24: =VLOOKUP($C24,'RECAP SECT'!$G$6:$CU$253,76,FALSE) -> 4% | P24: =VLOOKUP($C24,'RECAP SECT'!$G$6:$CU$253,77,FALSE) -> 2
A25: 160 | B25: MOSELLE | C25: 44 | D25: MOSELLE NORD | E25: =VLOOKUP($C25,'RECAP SECT'!$G$6:$CU$253,3,FALSE) -> 63.8 | F25: =VLOOKUP($C25,'RECAP SECT'!$G$6:$CU$253,67,FALSE) -> 3,490 | G25: =VLOOKUP($C25,'RECAP SECT'!$G$6:$CU$253,68,FALSE) -> 54.67 | H25: =VLOOKUP($C25,'RECAP SECT'!$G$6:$CU$253,69,FALSE) -> 0% | I25: =VLOOKUP($C25,'RECAP SECT'!$G$6:$CU$253,70,FALSE) -> 1 | J25: =VLOOKUP($C25,'RECAP SECT'!$G$6:$CU$253,71,FALSE) -> 852 | K25: =VLOOKUP($C25,'RECAP SECT'!$G$6:$CU$253,72,FALSE) -> 13.35 | L25: =VLOOKUP($C25,'RECAP SECT'!$G$6:$CU$253,73,FALSE) -> 10% | M25: =VLOOKUP($C25,'RECAP SECT'!$G$6:$CU$253,74,FALSE) -> 2 | N25: =VLOOKUP($C25,'RECAP SECT'!$G$6:$CU$253,75,FALSE) -> 4% | O25: =VLOOKUP($C25,'RECAP SECT'!$G$6:$CU$253,76,FALSE) -> 0% | P25: =VLOOKUP($C25,'RECAP SECT'!$G$6:$CU$253,77,FALSE) -> 1
A26: 80 | B26: VOSGES | C26: 57 | D26: EPINAL | E26: =VLOOKUP($C26,'RECAP SECT'!$G$6:$CU$253,3,FALSE) -> 61.1 | F26: =VLOOKUP($C26,'RECAP SECT'!$G$6:$CU$253,67,FALSE) -> 1,712 | G26: =VLOOKUP($C26,'RECAP SECT'!$G$6:$CU$253,68,FALSE) -> 28.00 | H26: =VLOOKUP($C26,'RECAP SECT'!$G$6:$CU$253,69,FALSE) -> 49% | I26: =VLOOKUP($C26,'RECAP SECT'!$G$6:$CU$253,70,FALSE) -> 14 | J26: =VLOOKUP($C26,'RECAP SECT'!$G$6:$CU$253,71,FALSE) -> 610 | K26: =VLOOKUP($C26,'RECAP SECT'!$G$6:$CU$253,72,FALSE) -> 9.98 | L26: =VLOOKUP($C26,'RECAP SECT'!$G$6:$CU$253,73,FALSE) -> 33% | M26: =VLOOKUP($C26,'RECAP SECT'!$G$6:$CU$253,74,FALSE) -> 12 | N26: =VLOOKUP($C26,'RECAP SECT'!$G$6:$CU$253,75,FALSE) -> 42% | O26: =VLOOKUP($C26,'RECAP SECT'!$G$6:$CU$253,76,FALSE) -> 38% | P26: =VLOOKUP($C26,'RECAP SECT'!$G$6:$CU$253,77,FALSE) -> 15
A27: 80 | B27: VOSGES | C27: 55 | D27: SAINT DIE | E27: =VLOOKUP($C27,'RECAP SECT'!$G$6:$CU$253,3,FALSE) -> 49.2 | F27: =VLOOKUP($C27,'RECAP SECT'!$G$6:$CU$253,67,FALSE) -> 822 | G27: =VLOOKUP($C27,'RECAP SECT'!$G$6:$CU$253,68,FALSE) -> 16.71 | H27: =VLOOKUP($C27,'RECAP SECT'!$G$6:$CU$253,69,FALSE) -> 69% | I27: =VLOOKUP($C27,'RECAP SECT'!$G$6:$CU$253,70,FALSE) -> 18 | J27: =VLOOKUP($C27,'RECAP SECT'!$G$6:$CU$253,71,FALSE) -> 357 | K27: =VLOOKUP($C27,'RECAP SECT'!$G$6:$CU$253,72,FALSE) -> 7.26 | L27: =VLOOKUP($C27,'RECAP SECT'!$G$6:$CU$253,73,FALSE) -> 51% | M27: =VLOOKUP($C27,'RECAP SECT'!$G$6:$CU$253,74,FALSE) -> 18 | N27: =VLOOKUP($C27,'RECAP SECT'!$G$6:$CU$253,75,FALSE) -> 62% | O27: =VLOOKUP($C27,'RECAP SECT'!$G$6:$CU$253,76,FALSE) -> 58% | P27: =VLOOKUP($C27,'RECAP SECT'!$G$6:$CU$253,77,FALSE) -> 18
A28: Total CEGEE Directions Régionales | E28: =SUM(E10:E27) -> 1073

Sheet SE_SATISFACTION
B1: Accueil | F1: BAROMETRE BDD - TERRITOIRES
F2: SATISFACTION
F3: =ACCUEIL!F7 -> 2022-03-06
F7: NPS à froid (SAE) | I7: NPS à chaud (QHD) | L7: Total Satisfaction Clients
F8: =DATEMAJ!E4 -> au 31/01 | G8: coef | H8: ='RECAP DIRCOM'!M4 -> 10% | I8: =DATEMAJ!C5 -> au 31/01 | J8: coef | K8: ='RECAP DIRCOM'!P4 -> 10% | M8: coef | N8: ='RECAP DIRCOM'!S4 -> 20%
B9: Direction | C9: eds | D9: Territoire | E9: ="ETP perf "&DATEMAJ!$C$28 -> ETP perf 31-janv | G9: % Ecart au 1er | H9: Rang | J9: % Ecart au 1er | K9: Rang | L9: Moyenne ecart au 1er | M9: % Ecart au 1er | N9: Rang CEGEE
A10: 50 | B10: AUBE HAUTE MARNE | C10: 21 | D10: CHAUMONT | E10: =VLOOKUP($C10,'RECAP SECT'!$G$6:$CU$253,3,FALSE) -> 35.6 | F10: =VLOOKUP($C10,'RECAP SECT'!$G$6:$CU$253,5,FALSE) -> 32.75 | G10: =VLOOKUP($C10,'RECAP SECT'!$G$6:$CU$253,6,FALSE) -> 0% | H10: =VLOOKUP($C10,'RECAP SECT'!$G$6:$CU$253,7,FALSE) -> 1 | I10: =VLOOKUP($C10,'RECAP SECT'!$G$6:$CU$253,8,FALSE) -> 64% | J10: =VLOOKUP($C10,'RECAP SECT'!$G$6:$CU$253,9,FALSE) -> 11% | K10: =VLOOKUP($C10,'RECAP SECT'!$G$6:$CU$253,10,FALSE) -> 6 | L10: =VLOOKUP($C10,'RECAP SECT'!$G$6:$CU$253,11,FALSE) -> 6% | M10: =VLOOKUP($C10,'RECAP SECT'!$G$6:$CU$253,12,FALSE) -> 0% | N10: =VLOOKUP($C10,'RECAP SECT'!$G$6:$CU$253,13,FALSE) -> 1
A11: 50 | B11: AUBE HAUTE MARNE | C11: 14 | D11: TROYES | E11: =VLOOKUP($C11,'RECAP SECT'!$G$6:$CU$253,3,FALSE) -> 62.2 | F11: =VLOOKUP($C11,'RECAP SECT'!$G$6:$CU$253,5,FALSE) -> 0 | G11: =VLOOKUP($C11,'RECAP SECT'!$G$6:$CU$253,6,FALSE) -> 100% | H11: =VLOOKUP($C11,'RECAP SECT'!$G$6:$CU$253,7,FALSE) -> 17 | I11: =VLOOKUP($C11,'RECAP SECT'!$G$6:$CU$253,8,FALSE) -> 47% | J11: =VLOOKUP($C11,'RECAP SECT'!$G$6:$CU$253,9,FALSE) -> 35% | K11: =VLOOKUP($C11,'RECAP SECT'!$G$6:$CU$253,10,FALSE) -> 17 | L11: =VLOOKUP($C11,'RECAP SECT'!$G$6:$CU$253,11,FALSE) -> 67% | M11: =VLOOKUP($C11,'RECAP SECT'!$G$6:$CU$253,12,FALSE) -> 62% | N11: =VLOOKUP($C11,'RECAP SECT'!$G$6:$CU$253,13,FALSE) -> 18
A12: 262 | B12: BAS-RHIN | C12: 5060 | D12: HAGUENAU | E12: =VLOOKUP($C12,'RECAP SECT'!$G$6:$CU$253,3,FALSE) -> 63.6 | F12: =VLOOKUP($C12,'RECAP SECT'!$G$6:$CU$253,5,FALSE) -> 25 | G12: =VLOOKUP($C12,'RECAP SECT'!$G$6:$CU$253,6,FALSE) -> 24% | H12: =VLOOKUP($C12,'RECAP SECT'!$G$6:$CU$253,7,FALSE) -> 3 | I12: =VLOOKUP($C12,'RECAP SECT'!$G$6:$CU$253,8,FALSE) -> 60% | J12: =VLOOKUP($C12,'RECAP SECT'!$G$6:$CU$253,9,FALSE) -> 16% | K12: =VLOOKUP($C12,'RECAP SECT'!$G$6:$CU$253,10,FALSE) -> 9 | L12: =VLOOKUP($C12,'RECAP SECT'!$G$6:$CU$253,11,FALSE) -> 20% | M12: =VLOOKUP($C12,'RECAP SECT'!$G$6:$CU$253,12,FALSE) -> 14% | N12: =VLOOKUP($C12,'RECAP SECT'!$G$6:$CU$253,13,FALSE) -> 4
A13: 262 | B13: BAS-RHIN | C13: 5101 | D13: SELESTAT | E13: =VLOOKUP($C13,'RECAP SECT'!$G$6:$CU$253,3,FALSE) -> 61.2 | F13: =VLOOKUP($C13,'RECAP SECT'!$G$6:$CU$253,5,FALSE) -> 0 | G13: =VLOOKUP($C13,'RECAP SECT'!$G$6:$CU$253,6,FALSE) -> 100% | H13: =VLOOKUP($C13,'RECAP SECT'!$G$6:$CU$253,7,FALSE) -> 17 | I13: =VLOOKUP($C13,'RECAP SECT'!$G$6:$CU$253,8,FALSE) -> 53% | J13: =VLOOKUP($C13,'RECAP SECT'!$G$6:$CU$253,9,FALSE) -> 26% | K13: =VLOOKUP($C13,'RECAP SECT'!$G$6:$CU$253,10,FALSE) -> 14 | L13: =VLOOKUP($C13,'RECAP SECT'!$G$6:$CU$253,11,FALSE) -> 63% | M13: =VLOOKUP($C13,'RECAP SECT'!$G$6:$CU$253,12,FALSE) -> 57% | N13: =VLOOKUP($C13,'RECAP SECT'!$G$6:$CU$253,13,FALSE) -> 15
A14: 262 | B14: BAS-RHIN | C14: 5006 | D14: STRASBOURG | E14: =VLOOKUP($C14,'RECAP SECT'!$G$6:$CU$253,3,FALSE) -> 73.6 | F14: =VLOOKUP($C14,'RECAP SECT'!$G$6:$CU$253,5,FALSE) -> 6 | G14: =VLOOKUP($C14,'RECAP SECT'!$G$6:$CU$253,6,FALSE) -> 82% | H14: =VLOOKUP($C14,'RECAP SECT'!$G$6:$CU$253,7,FALSE) -> 13 | I14: =VLOOKUP($C14,'RECAP SECT'!$G$6:$CU$253,8,FALSE) -> 60% | J14: =VLOOKUP($C14,'RECAP SECT'!$G$6:$CU$253,9,FALSE) -> 17% | K14: =VLOOKUP($C14,'RECAP SECT'!$G$6:$CU$253,10,FALSE) -> 11 | L14: =VLOOKUP($C14,'RECAP SECT'!$G$6:$CU$253,11,FALSE) -> 49% | M14: =VLOOKUP($C14,'RECAP SECT'!$G$6:$CU$253,12,FALSE) -> 44% | N14: =VLOOKUP($C14,'RECAP SECT'!$G$6:$CU$253,13,FALSE) -> 12
A15: 264 | B15: HAUT-RHIN | C15: 5130 | D15: COLMAR | E15: =VLOOKUP($C15,'RECAP SECT'!$G$6:$CU$253,3,FALSE) -> 48.3 | F15: =VLOOKUP($C15,'RECAP SECT'!$G$6:$CU$253,5,FALSE) -> 7.25 | G15: =VLOOKUP($C15,'RECAP SECT'!$G$6:$CU$253,6,FALSE) -> 78% | H15: =VLOOKUP($C15,'RECAP SECT'!$G$6:$CU$253,7,FALSE) -> 12 | I15: =VLOOKUP($C15,'RECAP SECT'!$G$6:$CU$253,8,FALSE) -> 52% | J15: =VLOOKUP($C15,'RECAP SECT'!$G$6:$CU$253,9,FALSE) -> 29% | K15: =VLOOKUP($C15,'RECAP SECT'!$G$6:$CU$253,10,FALSE) -> 15 | L15: =VLOOKUP($C15,'RECAP SECT'!$G$6:$CU$253,11,FALSE) -> 53% | M15: =VLOOKUP($C15,'RECAP SECT'!$G$6:$CU$253,12,FALSE) -> 48% | N15: =VLOOKUP($C15,'RECAP SECT'!$G$6:$CU$253,13,FALSE) -> 13
A16: 264 | B16: HAUT-RHIN | C16: 5169 | D16: MULHOUSE | E16: =VLOOKUP($C16,'RECAP SECT'!$G$6:$CU$253,3,FALSE) -> 47.6 | F16: =VLOOKUP($C16,'RECAP SECT'!$G$6:$CU$253,5,FALSE) -> 1.75 | G16: =VLOOKUP($C16,'RECAP SECT'!$G$6:$CU$253,6,FALSE) -> 95% | H16: =VLOOKUP($C16,'RECAP SECT'!$G$6:$CU$253,7,FALSE) -> 14 | I16: =VLOOKUP($C16,'RECAP SECT'!$G$6:$CU$253,8,FALSE) -> 47% | J16: =VLOOKUP($C16,'RECAP SECT'!$G$6:$CU$253,9,FALSE) -> 34% | K16: =VLOOKUP($C16,'RECAP SECT'!$G$6:$CU$253,10,FALSE) -> 16 | L16: =VLOOKUP($C16,'RECAP SECT'!$G$6:$CU$253,11,FALSE) -> 65% | M16: =VLOOKUP($C16,'RECAP SECT'!$G$6:$CU$253,12,FALSE) -> 59% | N16: =VLOOKUP($C16,'RECAP SECT'!$G$6:$CU$253,13,FALSE) -> 16
A17: 30 | B17: MARNE-ARDENNES | C17: 6 | D17: CHALONS EN CHAMPAGNE | E17: =VLOOKUP($C17,'RECAP SECT'!$G$6:$CU$253,3,FALSE) -> 45.5 | F17: =VLOOKUP($C17,'RECAP SECT'!$G$6:$CU$253,5,FALSE) -> 22.5 | G17: =VLOOKUP($C17,'RECAP SECT'!$G$6:$CU$253,6,FALSE) -> 31% | H17: =VLOOKUP($C17,'RECAP SECT'!$G$6:$CU$253,7,FALSE) -> 4 | I17: =VLOOKUP($C17,'RECAP SECT'!$G$6:$CU$253,8,FALSE) -> 72% | J17: =VLOOKUP($C17,'RECAP SECT'!$G$6:$CU$253,9,FALSE) -> 0% | K17: =VLOOKUP($C17,'RECAP SECT'!$G$6:$CU$253,10,FALSE) -> 1 | L17: =VLOOKUP($C17,'RECAP SECT'!$G$6:$CU$253,11,FALSE) -> 16% | M17: =VLOOKUP($C17,'RECAP SECT'!$G$6:$CU$253,12,FALSE) -> 10% | N17: =VLOOKUP($C17,'RECAP SECT'!$G$6:$CU$253,13,FALSE) -> 2
A18: 30 | B18: MARNE-ARDENNES | C18: 2 | D18: CHARLEVILLE MEZIERES | E18: =VLOOKUP($C18,'RECAP SECT'!$G$6:$CU$253,3,FALSE) -> 56.9 | F18: =VLOOKUP($C18,'RECAP SECT'!$G$6:$CU$253,5,FALSE) -> 13.25 | G18: =VLOOKUP($C18,'RECAP SECT'!$G$6:$CU$253,6,FALSE) -> 60% | H18: =VLOOKUP($C18,'RECAP SECT'!$G$6:$CU$253,7,FALSE) -> 9 | I18: =VLOOKUP($C18,'RECAP SECT'!$G$6:$CU$253,8,FALSE) -> 66% | J18: =VLOOKUP($C18,'RECAP SECT'!$G$6:$CU$253,9,FALSE) -> 9% | K18: =VLOOKUP($C18,'RECAP SECT'!$G$6:$CU$253,10,FALSE) -> 5 | L18: =VLOOKUP($C18,'RECAP SECT'!$G$6:$CU$253,11,FALSE) -> 34% | M18: =VLOOKUP($C18,'RECAP SECT'!$G$6:$CU$253,12,FALSE) -> 29% | N18: =VLOOKUP($C18,'RECAP SECT'!$G$6:$CU$253,13,FALSE) -> 10
A19: 30 | B19: MARNE-ARDENNES | C19: 11 | D19: REIMS | E19: =VLOOKUP($C19,'RECAP SECT'!$G$6:$CU$253,3,FALSE) -> 79.7 | F19: =VLOOKUP($C19,'RECAP SECT'!$G$6:$CU$253,5,FALSE) -> 15 | G19: =VLOOKUP($C19,'RECAP SECT'!$G$6:$CU$253,6,FALSE) -> 54% | H19: =VLOOKUP($C19,'RECAP SECT'!$G$6:$CU$253,7,FALSE) -> 8 | I19: =VLOOKUP($C19,'RECAP SECT'!$G$6:$CU$253,8,FALSE) -> 64% | J19: =VLOOKUP($C19,'RECAP SECT'!$G$6:$CU$253,9,FALSE) -> 12% | K19: =VLOOKUP($C19,'RECAP SECT'!$G$6:$CU$253,10,FALSE) -> 7 | L19: =VLOOKUP($C19,'RECAP SECT'!$G$6:$CU$253,11,FALSE) -> 33% | M19: =VLOOKUP($C19,'RECAP SECT'!$G$6:$CU$253,12,FALSE) -> 27% | N19: =VLOOKUP($C19,'RECAP SECT'!$G$6:$CU$253,13,FALSE) -> 8
A20: 110 | B20: MEURTHE ET MOSELLE MEUSE | C20: 26 | D20: NANCY | E20: =VLOOKUP($C20,'RECAP SECT'!$G$6:$CU$253,3,FALSE) -> 62.0 | F20: =VLOOKUP($C20,'RECAP SECT'!$G$6:$CU$253,5,FALSE) -> 1 | G20: =VLOOKUP($C20,'RECAP SECT'!$G$6:$CU$253,6,FALSE) -> 97% | H20: =VLOOKUP($C20,'RECAP SECT'!$G$6:$CU$253,7,FALSE) -> 15 | I20: =VLOOKUP($C20,'RECAP SECT'!$G$6:$CU$253,8,FALSE) -> 54% | J20: =VLOOKUP($C20,'RECAP SECT'!$G$6:$CU$253,9,FALSE) -> 25% | K20: =VLOOKUP($C20,'RECAP SECT'!$G$6:$CU$253,10,FALSE) -> 13 | L20: =VLOOKUP($C20,'RECAP SECT'!$G$6:$CU$253,11,FALSE) -> 61% | M20: =VLOOKUP($C20,'RECAP SECT'!$G$6:$CU$253,12,FALSE) -> 55% | N20: =VLOOKUP($C20,'RECAP SECT'!$G$6:$CU$253,13,FALSE) -> 14
A21: 110 | B21: MEURTHE ET MOSELLE MEUSE | C21: 27 | D21: PONT A MOUSSON | E21: =VLOOKUP($C21,'RECAP SECT'!$G$6:$CU$253,3,FALSE) -> 64.3 | F21: =VLOOKUP($C21,'RECAP SECT'!$G$6:$CU$253,5,FALSE) -> 1 | G21: =VLOOKUP($C21,'RECAP SECT'!$G$6:$CU$253,6,FALSE) -> 97% | H21: =VLOOKUP($C21,'RECAP SECT'!$G$6:$CU$253,7,FALSE) -> 15 | I21: =VLOOKUP($C21,'RECAP SECT'!$G$6:$CU$253,8,FALSE) -> 46% | J21: =VLOOKUP($C21,'RECAP SECT'!$G$6:$CU$253,9,FALSE) -> 36% | K21: =VLOOKUP($C21,'RECAP SECT'!$G$6:$CU$253,10,FALSE) -> 18 | L21: =VLOOKUP($C21,'RECAP SECT'!$G$6:$CU$253,11,FALSE) -> 66% | M21: =VLOOKUP($C21,'RECAP SECT'!$G$6:$CU$253,12,FALSE) -> 61% | N21: =VLOOKUP($C21,'RECAP SECT'!$G$6:$CU$253,13,FALSE) -> 17
A22: 110 | B22: MEURTHE ET MOSELLE MEUSE | C22: 31 | D22: VERDUN | E22: =VLOOKUP($C22,'RECAP SECT'!$G$6:$CU$253,3,FALSE) -> 56.1 | F22: =VLOOKUP($C22,'RECAP SECT'!$G$6:$CU$253,5,FALSE) -> 13.25 | G22: =VLOOKUP($C22,'RECAP SECT'!$G$6:$CU$253,6,FALSE) -> 60% | H22: =VLOOKUP($C22,'RECAP SECT'!$G$6:$CU$253,7,FALSE) -> 9 | I22: =VLOOKUP($C22,'RECAP SECT'!$G$6:$CU$253,8,FALSE) -> 60% | J22: =VLOOKUP($C22,'RECAP SECT'!$G$6:$CU$253,9,FALSE) -> 16% | K22: =VLOOKUP($C22,'RECAP SECT'!$G$6:$CU$253,10,FALSE) -> 10 | L22: =VLOOKUP($C22,'RECAP SECT'!$G$6:$CU$253,11,FALSE) -> 38% | M22: =VLOOKUP($C22,'RECAP SECT'!$G$6:$CU$253,12,FALSE) -> 32% | N22: =VLOOKUP($C22,'RECAP SECT'!$G$6:$CU$253,13,FALSE) -> 11
A23: 160 | B23: MOSELLE | C23: 45 | D23: METZ | E23: =VLOOKUP($C23,'RECAP SECT'!$G$6:$CU$253,3,FALSE) -> 77.9 | F23: =VLOOKUP($C23,'RECAP SECT'!$G$6:$CU$253,5,FALSE) -> 25.25 | G23: =VLOOKUP($C23,'RECAP SECT'!$G$6:$CU$253,6,FALSE) -> 23% | H23: =VLOOKUP($C23,'RECAP SECT'!$G$6:$CU$253,7,FALSE) -> 2 | I23: =VLOOKUP($C23,'RECAP SECT'!$G$6:$CU$253,8,FALSE) -> 60% | J23: =VLOOKUP($C23,'RECAP SECT'!$G$6:$CU$253,9,FALSE) -> 17% | K23: =VLOOKUP($C23,'RECAP SECT'!$G$6:$CU$253,10,FALSE) -> 12 | L23: =VLOOKUP($C23,'RECAP SECT'!$G$6:$CU$253,11,FALSE) -> 20% | M23: =VLOOKUP($C23,'RECAP SECT'!$G$6:$CU$253,12,FALSE) -> 14% | N23: =VLOOKUP($C23,'RECAP SECT'!$G$6:$CU$253,13,FALSE) -> 3
A24: 160 | B24: MOSELLE | C24: 42 | D24: MOSELLE EST | E24: =VLOOKUP($C24,'RECAP SECT'!$G$6:$CU$253,3,FALSE) -> 64.8 | F24: =VLOOKUP($C24,'RECAP SECT'!$G$6:$CU$253,5,FALSE) -> 17.5 | G24: =VLOOKUP($C24,'RECAP SECT'!$G$6:$CU$253,6,FALSE) -> 47% | H24: =VLOOKUP($C24,'RECAP SECT'!$G$6:$CU$253,7,FALSE) -> 5 | I24: =VLOOKUP($C24,'RECAP SECT'!$G$6:$CU$253,8,FALSE) -> 67% | J24: =VLOOKUP($C24,'RECAP SECT'!$G$6:$CU$253,9,FALSE) -> 7% | K24: =VLOOKUP($C24,'RECAP SECT'!$G$6:$CU$253,10,FALSE) -> 3 | L24: =VLOOKUP($C24,'RECAP SECT'!$G$6:$CU$253,11,FALSE) -> 27% | M24: =VLOOKUP($C24,'RECAP SECT'!$G$6:$CU$253,12,FALSE) -> 21% | N24: =VLOOKUP($C24,'RECAP SECT'!$G$6:$CU$253,13,FALSE) -> 5
A25: 160 | B25: MOSELLE | C25: 44 | D25: MOSELLE NORD | E25: =VLOOKUP($C25,'RECAP SECT'!$G$6:$CU$253,3,FALSE) -> 63.8 | F25: =VLOOKUP($C25,'RECAP SECT'!$G$6:$CU$253,5,FALSE) -> 17 | G25: =VLOOKUP($C25,'RECAP SECT'!$G$6:$CU$253,6,FALSE) -> 48% | H25: =VLOOKUP($C25,'RECAP SECT'!$G$6:$CU$253,7,FALSE) -> 6 | I25: =VLOOKUP($C25,'RECAP SECT'!$G$6:$CU$253,8,FALSE) -> 62% | J25: =VLOOKUP($C25,'RECAP SECT'!$G$6:$CU$253,9,FALSE) -> 14% | K25: =VLOOKUP($C25,'RECAP SECT'!$G$6:$CU$253,10,FALSE) -> 8 | L25: =VLOOKUP($C25,'RECAP SECT'!$G$6:$CU$253,11,FALSE) -> 31% | M25: =VLOOKUP($C25,'RECAP SECT'!$G$6:$CU$253,12,FALSE) -> 25% | N25: =VLOOKUP($C25,'RECAP SECT'!$G$6:$CU$253,13,FALSE) -> 7
A26: 80 | B26: VOSGES | C26: 57 | D26: EPINAL | E26: =VLOOKUP($C26,'RECAP SECT'!$G$6:$CU$253,3,FALSE) -> 61.1 | F26: =VLOOKUP($C26,'RECAP SECT'!$G$6:$CU$253,5,FALSE) -> 12.25 | G26: =VLOOKUP($C26,'RECAP SECT'!$G$6:$CU$253,6,FALSE) -> 63% | H26: =VLOOKUP($C26,'RECAP SECT'!$G$6:$CU$253,7,FALSE) -> 11 | I26: =VLOOKUP($C26,'RECAP SECT'!$G$6:$CU$253,8,FALSE) -> 68% | J26: =VLOOKUP($C26,'RECAP SECT'!$G$6:$CU$253,9,FALSE) -> 6% | K26: =VLOOKUP($C26,'RECAP SECT'!$G$6:$CU$253,10,FALSE) -> 2 | L26: =VLOOKUP($C26,'RECAP SECT'!$G$6:$CU$253,11,FALSE) -> 34% | M26: =VLOOKUP($C26,'RECAP SECT'!$G$6:$CU$253,12,FALSE) -> 28% | N26: =VLOOKUP($C26,'RECAP SECT'!$G$6:$CU$253,13,FALSE) -> 9
A27: 80 | B27: VOSGES | C27: 55 | D27: SAINT DIE | E27: =VLOOKUP($C27,'RECAP SECT'!$G$6:$CU$253,3,FALSE) -> 49.2 | F27: =VLOOKUP($C27,'RECAP SECT'!$G$6:$CU$253,5,FALSE) -> 16.5 | G27: =VLOOKUP($C27,'RECAP SECT'!$G$6:$CU$253,6,FALSE) -> 50% | H27: =VLOOKUP($C27,'RECAP SECT'!$G$6:$CU$253,7,FALSE) -> 7 | I27: =VLOOKUP($C27,'RECAP SECT'!$G$6:$CU$253,8,FALSE) -> 66% | J27: =VLOOKUP($C27,'RECAP SECT'!$G$6:$CU$253,9,FALSE) -> 8% | K27: =VLOOKUP($C27,'RECAP SECT'!$G$6:$CU$253,10,FALSE) -> 4 | L27: =VLOOKUP($C27,'RECAP SECT'!$G$6:$CU$253,11,FALSE) -> 29% | M27: =VLOOKUP($C27,'RECAP SECT'!$G$6:$CU$253,12,FALSE) -> 23% | N27: =VLOOKUP($C27,'RECAP SECT'!$G$6:$CU$253,13,FALSE) -> 6
A28: Total CEGEE Directions Régionales | E28: =SUM(E10:E27) -> 1073

Sheet AG_CLASS
B1: Accueil | H1: BAROMETRE BDD - AGENCES
H2: CLASSEMENTS
H3: =ACCUEIL!F7 -> 2022-03-06
H8: CLASSEMENT GENERAL | I8: CRITERE Satisfaction Clients | J8: NPS à froid (SAE) | K8: NPS à chaud (QHD) | L8: CRITERE BANCARISATION | M8: Ventes Nettes produits pondérés | N8: Ventes sur client non détenteur de l’univers | O8: CRITERE EPARGNE | P8: Excédent Epargne hors DAV pondéré | Q8: Ventes sur client non détenteur de l’univers | R8: CRITERE IARD PREVOYANCE | S8: Ventes Nettes produits pondérés | T8: Ventes sur client non détenteur de l’univers | U8: CRITERE CREDITS | V8: Engagements et ventes accessoires pondérés Immo | W8: Engagements et ventes accessoires pondérés Conso | X8: Ventes sur client non détenteur de l’univers
B9: Direction | C9: eds | D9: Territoire | E9: eds | F9: Agence | G9: ="ETP perf "&DATEMAJ!$C$28 -> ETP perf 31-janv | H9: Rang | I9: Rang | J9: Rang | K9: Rang | L9: Rang | M9: Rang | N9: Rang | O9: Rang | P9: Rang | Q9: Rang | R9: Rang | S9: Rang | T9: Rang | U9: Rang | V9: Rang | W9: Rang | X9: Rang
A10: 50 | B10: MEURTHE ET MOSELLE MEUSE | C10: 26 | D10: NANCY | E10: 454171 | F10: BLAMONT | G10: 0.5 | H10: 1 | I10: 248 | J10: 1 | K10: 248 | L10: 1 | M10: 1 | N10: 1 | O10: 9 | P10: 37 | Q10: 3 | R10: 2 | S10: 10 | T10: 1 | U10: 1 | V10: 1 | W10: 1 | X10: 1
A11: 50 | B11: MOSELLE | C11: 44 | D11: MOSELLE NORD | E11: 557508 | F11: NILVANGE | G11: 2.0 | H11: 2 | I11: 50 | J11: 1 | K11: 50 | L11: 2 | M11: 2 | N11: 2 | O11: 2 | P11: 179 | Q11: 1 | R11: 1 | S11: 1 | T11: 2 | U11: 3 | V11: 4 | W11: 19 | X11: 2
A12: 50 | B12: MOSELLE | C12: 42 | D12: MOSELLE EST | E12: 457163 | F12: BEHREN LES FORBACH | G12: 2.0 | H12: 3 | I12: 1 | J12: 1 | K12: 1 | L12: 6 | M12: 7 | N12: 4 | O12: 6 | P12: 40 | Q12: 2 | R12: 84 | S12: 149 | T12: 12 | U12: 2 | V12: 2 | W12: 3 | X12: 3
A13: 50 | B13: MOSELLE | C13: 45 | D13: METZ | E13: 557447 | F13: METZ SAINT MAXIMIN | G13: 2.0 | H13: 4 | I13: 127 | J13: 1 | K13: 127 | L13: 12 | M13: 21 | N13: 4 | O13: 25 | P13: 98 | Q13: 5 | R13: 4 | S13: 2 | T13: 5 | U13: 6 | V13: 8 | W13: 16 | X13: 14
A14: 50 | B14: VOSGES | C14: 57 | D14: EPINAL | E14: 488288 | F14: EPINAL LEOPOLD BOURG | G14: 2.0 | H14: 5 | I14: 7 | J14: 1 | K14: 7 | L14: 8 | M14: 8 | N14: 45 | O14: 11 | P14: 10 | Q14: 29 | R14: 25 | S14: 22 | T14: 79 | U14: 44 | V14: 64 | W14: 45 | X14: 33
A15: 50 | B15: MARNE ARDENNES | C15: 11 | D15: REIMS | E15: 551306 | F15: REIMS SAINT MARCEAUX | G15: 4.8 | H15: 6 | I15: 25 | J15: 1 | K15: 25 | L15: 3 | M15: 4 | N15: 9 | O15: 172 | P15: 233 | Q15: 10 | R15: 22 | S15: 23 | T15: 19 | U15: 7 | V15: 6 | W15: 90 | X15: 6
A16: 50 | B16: BAS RHIN | C16: 5006 | D16: STRASBOURG | E16: 4048 | F16: STRASBOURG KOENIGSHOFFEN | G16: 2.9 | H16: 7 | I16: 100 | J16: 1 | K16: 100 | L16: 25 | M16: 36 | N16: 28 | O16: 33 | P16: 48 | Q16: 21 | R16: 5 | S16: 9 | T16: 3 | U16: 52 | V16: 87 | W16: 27 | X16: 36
A17: 50 | B17: MARNE ARDENNES | C17: 2 | D17: CHARLEVILLE MEZIERES | E17: 508820 | F17: VOUZIERS | G17: 2.9 | H17: 8 | I17: 65 | J17: 1 | K17: 65 | L17: 45 | M17: 52 | N17: 47 | O17: 78 | P17: 67 | Q17: 130 | R17: 3 | S17: 3 | T17: 4 | U17: 35 | V17: 75 | W17: 6 | X17: 44
A18: 50 | B18: MARNE ARDENNES | C18: 11 | D18: REIMS | E18: 551349 | F18: REIMS SAINT REMI | G18: 2.9 | H18: 9 | I18: 61 | J18: 1 | K18: 61 | L18: 4 | M18: 5 | N18: 7 | O18: 227 | P18: 241 | Q18: 26 | R18: 34 | S18: 67 | T18: 8 | U18: 4 | V18: 3 | W18: 94 | X18: 4
A19: 50 | B19: BAS RHIN | C19: 5006 | D19: STRASBOURG | E19: 4043 | F19: STRASBOURG HALLES | G19: 7.6 | H19: 10 | I19: 80 | J19: 1 | K19: 80 | L19: 19 | M19: 17 | N19: 19 | O19: 30 | P19: 63 | Q19: 11 | R19: 10 | S19: 14 | T19: 10 | U19: 72 | V19: 53 | W19: 149 | X19: 76
A20: 50 | B20: AUBE HAUTE MARNE | C20: 21 | D20: CHAUMONT | E20: 510590 | F20: CHAUMONT REPUBLIQUE | G20: 2.9 | H20: 11 | I20: 77 | J20: 1 | K20: 77 | L20: 68 | M20: 76 | N20: 47 | O20: 37 | P20: 46 | Q20: 35 | R20: 8 | S20: 8 | T20: 29 | U20: 25 | V20: 47 | W20: 36 | X20: 13
A21: 50 | B21: MOSELLE | C21: 44 | D21: MOSELLE NORD | E21: 557113 | F21: AUDUN LE TICHE | G21: 2.9 | H21: 12 | I21: 26 | J21: 1 | K21: 26 | L21: 92 | M21: 131 | N21: 29 | O21: 73 | P21: 155 | Q21: 9 | R21: 9 | S21: 11 | T21: 16 | U21: 19 | V21: 11 | W21: 75 | X21: 46
A22: 50 | B22: MARNE ARDENNES | C22: 2 | D22: CHARLEVILLE MEZIERES | E22: 408801 | F22: CHARLEVILLE JEAN JAURES | G22: 9.3 | H22: 13 | I22: 24 | J22: 1 | K22: 24 | L22: 31 | M22: 44 | N22: 22 | O22: 117 | P22: 176 | Q22: 17 | R22: 26 | S22: 26 | T22: 61 | U22: 5 | V22: 5 | W22: 102 | X22: 7
A23: 50 | B23: MEURTHE ET MOSELLE MEUSE | C23: 26 | D23: NANCY | E23: 554601 | F23: SAINT MAX | G23: 3.9 | H23: 14 | I23: 33 | J23: 1 | K23: 33 | L23: 40 | M23: 45 | N23: 57 | O23: 20 | P23: 20 | Q23: 67 | R23: 24 | S23: 25 | T23: 32 | U23: 55 | V23: 49 | W23: 48 | X23: 68
A24: 50 | B24: MOSELLE | C24: 45 | D24: METZ | E24: 457443 | F24: METZ REPUBLIQUE | G24: 3.9 | H24: 15 | I24: 4 | J24: 1 | K24: 4 | L24: 136 | M24: 145 | N24: 120 | O24: 14 | P24: 9 | Q24: 105 | R24: 18 | S24: 19 | T24: 24 | U24: 149 | V24: 126 | W24: 169 | X24: 142
A25: 50 | B25: MEURTHE ET MOSELLE MEUSE | C25: 27 | D25: PONT A MOUSSON | E25: 554531 | F25: POMPEY | G25: 2.9 | H25: 16 | I25: 184 | J25: 1 | K25: 184 | L25: 10 | M25: 32 | N25: 3 | O25: 50 | P25: 92 | Q25: 16 | R25: 32 | S25: 63 | T25: 8 | U25: 9 | V25: 15 | W25: 71 | X25: 5
A26: 50 | B26: BAS RHIN | C26: 5101 | D26: SELESTAT | E26: 4104 | F26: ERSTEIN | G26: 4.5 | H26: 17 | I26: 210 | J26: 1 | K26: 210 | L26: 5 | M26: 3 | N26: 40 | O26: 66 | P26: 61 | Q26: 89 | R26: 21 | S26: 13 | T26: 107 | U26: 45 | V26: 36 | W26: 54 | X26: 90
A27: 50 | B27: MARNE ARDENNES | C27: 11 | D27: REIMS | E27: 551305 | F27: REIMS HIPPODROME | G27: 5.7 | H27: 18 | I27: 31 | J27: 1 | K27: 31 | L27: 50 | M27: 97 | N27: 13 | O27: 41 | P27: 36 | Q27: 68 | R27: 38 | S27: 42 | T27: 39 | U27: 29 | V27: 37 | W27: 66 | X27: 22
A28: 262 | B28: MOSELLE | C28: 44 | D28: MOSELLE NORD | E28: 457632 | F28: THIONVILLE CENTRALE | G28: 11.5 | H28: 19 | I28: 71 | J28: 1 | K28: 71 | L28: 22 | M28: 16 | N28: 59 | O28: 119 | P28: 175 | Q28: 19 | R28: 20 | S28: 21 | T28: 43 | U28: 32 | V28: 34 | W28: 37 | X28: 45
A29: 262 | B29: MARNE ARDENNES | C29: 6 | D29: CHALONS EN CHAMPAGNE | E29: 551103 | F29: FAGNIERES LECLERC | G29: 2.9 | H29: 20 | I29: 29 | J29: 1 | K29: 29 | L29: 94 | M29: 103 | N29: 86 | O29: 74 | P29: 130 | Q29: 15 | R29: 19 | S29: 18 | T29: 40 | U29: 41 | V29: 52 | W29: 18 | X29: 64
A30: 262 | B30: MOSELLE | C30: 42 | D30: MOSELLE EST | E30: 457165 | F30: BITCHE | G30: 2.7 | H30: 21 | I30: 248 | J30: 1 | K30: 248 | L30: 7 | M30: 6 | N30: 20 | O30: 13 | P30: 51 | Q30: 4 | R30: 7 | S30: 5 | T30: 27 | U30: 54 | V30: 83 | W30: 22 | X30: 49
A31: 262 | B31: MOSELLE | C31: 42 | D31: MOSELLE EST | E31: 557523 | F31: PHALSBOURG | G31: 1.8 | H31: 22 | I31: 97 | J31: 1 | K31: 97 | L31: 184 | M31: 214 | N31: 51 | O31: 16 | P31: 11 | Q31: 95 | R31: 12 | S31: 7 | T31: 97 | U31: 80 | V31: 95 | W31: 26 | X31: 164
A32: 262 | B32: MOSELLE | C32: 42 | D32: MOSELLE EST | E32: 457583 | F32: SAINT AVOLD | G32: 7.2 | H32: 23 | I32: 91 | J32: 1 | K32: 91 | L32: 9 | M32: 9 | N32: 33 | O32: 61 | P32: 84 | Q32: 27 | R32: 51 | S32: 57 | T32: 59 | U32: 53 | V32: 59 | W32: 33 | X32: 71
A33: 262 | B33: MARNE ARDENNES | C33: 11 | D33: REIMS | E33: 451336 | F33: TINQUEUX | G33: 5.8 | H33: 24 | I33: 139 | J33: 1 | K33: 139 | L33: 121 | M33: 128 | N33: 119 | O33: 1 | P33: 1 | Q33: 83 | R33: 159 | S33: 175 | T33: 85 | U33: 48 | V33: 27 | W33: 152 | X33: 82
A34: 262 | B34: MOSELLE | C34: 45 | D34: METZ | E34: 457574 | F34: ROMBAS | G34: 3.7 | H34: 25 | I34: 58 | J34: 1 | K34: 58 | L34: 78 | M34: 73 | N34: 98 | O34: 67 | P34: 122 | Q34: 14 | R34: 11 | S34: 6 | T34: 102 | U34: 100 | V34: 107 | W34: 76 | X34: 134
A35: 262 | B35: BAS RHIN | C35: 5060 | D35: HAGUENAU | E35: 4079 | F35: SOULTZ SOUS FORETS | G35: 2.0 | H35: 26 | I35: 2 | J35: 1 | K35: 2 | L35: 39 | M35: 38 | N35: 83 | O35: 26 | P35: 23 | Q35: 62 | R35: 55 | S35: 65 | T35: 47 | U35: 175 | V35: 179 | W35: 78 | X35: 207
A36: 262 | B36: MOSELLE | C36: 44 | D36: MOSELLE NORD | E36: 457350 | F36: HAYANGE | G36: 7.7 | H36: 27 | I36: 154 | J36: 1 | K36: 154 | L36: 17 | M36: 13 | N36: 42 | O36: 64 | P36: 83 | Q36: 34 | R36: 27 | S36: 27 | T36: 56 | U36: 27 | V36: 21 | W36: 132 | X36: 38
A37: 262 | B37: MOSELLE | C37: 42 | D37: MOSELLE EST | E37: 457308 | F37: FORBACH CENTRALE | G37: 10.6 | H37: 28 | I37: 96 | J37: 1 | K37: 96 | L37: 14 | M37: 12 | N37: 41 | O37: 86 | P37: 91 | Q37: 74 | R37: 28 | S37: 30 | T37: 55 | U37: 58 | V37: 84 | W37: 13 | X37: 91
A38: 262 | B38: MOSELLE | C38: 45 | D38: METZ | E38: 457453 | F38: MONTIGNY LES METZ | G38: 7.2 | H38: 29 | I38: 13 | J38: 1 | K38: 13 | L38: 24 | M38: 22 | N38: 53 | O38: 89 | P38: 186 | Q38: 7 | R38: 103 | S38: 89 | T38: 134 | U38: 18 | V38: 26 | W38: 11 | X38: 43
A39: 262 | B39: MEURTHE ET MOSELLE MEUSE | C39: 26 | D39: NANCY | E39: 454481 | F39: NANCY PLACE DOMBASLE | G39: 8.6 | H39: 30 | I39: 212 | J39: 1 | K39: 212 | L39: 16 | M39: 24 | N39: 11 | O39: 15 | P39: 32 | Q39: 6 | R39: 98 | S39: 123 | T39: 42 | U39: 10 | V39: 7 | W39: 60 | X39: 12
A40: 262 | B40: MOSELLE | C40: 45 | D40: METZ | E40: 557105 | F40: ARS SUR MOSELLE | G40: 3.9 | H40: 31 | I40: 149 | J40: 1 | K40: 149 | L40: 20 | M40: 25 | N40: 21 | O40: 100 | P40: 131 | Q40: 54 | R40: 43 | S40: 45 | T40: 50 | U40: 8 | V40: 17 | W40: 9 | X40: 11
A41: 262 | B41: MARNE ARDENNES | C41: 6 | D41: CHALONS EN CHAMPAGNE | E41: 551330 | F41: MONTMIRAIL | G41: 2.9 | H41: 32 | I41: 21 | J41: 1 | K41: 21 | L41: 55 | M41: 47 | N41: 97 | O41: 171 | P41: 205 | Q41: 42 | R41: 16 | S41: 15 | T41: 22 | U41: 76 | V41: 70 | W41: 151 | X41: 53
A42: 262 | B42: BAS RHIN | C42: 5006 | D42: STRASBOURG | E42: 4010 | F42: STRASBOURG MEINAU | G42: 2.9 | H42: 33 | I42: 131 | J42: 1 | K42: 131 | L42: 62 | M42: 80 | N42: 43 | O42: 40 | P42: 34 | Q42: 75 | R42: 15 | S42: 20 | T42: 12 | U42: 137 | V42: 225 | W42: 12 | X42: 172
A43: 262 | B43: BAS RHIN | C43: 5006 | D43: STRASBOURG | E43: 4037 | F43: MUNDOLSHEIM | G43: 4.0 | H43: 34 | I43: 60 | J43: 1 | K43: 60 | L43: 107 | M43: 119 | N43: 91 | O43: 82 | P43: 116 | Q43: 32 | R43: 23 | S43: 24 | T43: 35 | U43: 46 | V43: 99 | W43: 31 | X43: 28
A44: 262 | B44: MOSELLE | C44: 44 | D44: MOSELLE NORD | E44: 557303 | F44: FAMECK | G44: 2.7 | H44: 35 | I44: 34 | J44: 1 | K44: 34 | L44: 86 | M44: 146 | N44: 16 | O44: 27 | P44: 31 | Q44: 25 | R44: 161 | S44: 167 | T44: 144 | U44: 13 | V44: 23 | W44: 30 | X44: 10
A45: 262 | B45: MOSELLE | C45: 45 | D45: METZ | E45: 557434 | F45: MARLY | G45: 3.2 | H45: 36 | I45: 15 | J45: 1 | K45: 15 | L45: 81 | M45: 63 | N45: 148 | O45: 34 | P45: 27 | Q45: 87 | R45: 61 | S45: 40 | T45: 168 | U45: 140 | V45: 170 | W45: 113 | X45: 106
A46: 262 | B46: BAS RHIN | C46: 5101 | D46: SELESTAT | E46: 4113 | F46: BARR | G46: 2.9 | H46: 37 | I46: 10 | J46: 1 | K46: 10 | L46: 11 | M46: 10 | N46: 24 | O46: 200 | P46: 232 | Q46: 38 | R46: 80 | S46: 69 | T46: 115 | U46: 62 | V46: 42 | W46: 220 | X46: 27
A47: 262 | B47: MOSELLE | C47: 44 | D47: MOSELLE NORD | E47: 557347 | F47: GUENANGE | G47: 5.5 | H47: 38 | I47: 144 | J47: 1 | K47: 144 | L47: 35 | M47: 28 | N47: 95 | O47: 62 | P47: 43 | Q47: 135 | R47: 78 | S47: 72 | T47: 76 | U47: 22 | V47: 18 | W47: 79 | X47: 34
A48: 262 | B48: MEURTHE ET MOSELLE MEUSE | C48: 26 | D48: NANCY | E48: 554356 | F48: JARVILLE LA MALGRANGE | G48: 4.3 | H48: 39 | I48: 148 | J48: 1 | K48: 148 | L48: 27 | M48: 23 | N48: 55 | O48: 228 | P48: 236 | Q48: 108 | R48: 17 | S48: 16 | T48: 26 | U48: 23 | V48: 19 | W48: 141 | X48: 29
A49: 262 | B49: MOSELLE | C49: 44 | D49: MOSELLE NORD | E49: 457192 | F49: CATTENOM | G49: 1.8 | H49: 40 | I49: 37 | J49: 1 | K49: 37 | L49: 63 | M49: 48 | N49: 118 | O49: 59 | P49: 79 | Q49: 37 | R49: 130 | S49: 125 | T49: 139 | U49: 30 | V49: 20 | W49: 168 | X49: 35
A50: 262 | B50: MARNE ARDENNES | C50: 11 | D50: REIMS | E50: 451350 | F50: REIMS CENTRE VILLE | G50: 7.4 | H50: 41 | I50: 112 | J50: 1 | K50: 112 | L50: 29 | M50: 37 | N50: 34 | O50: 189 | P50: 216 | Q50: 59 | R50: 36 | S50: 31 | T50: 66 | U50: 28 | V50: 54 | W50: 25 | X50: 23
A51: 262 | B51: VOSGES | C51: 57 | D51: EPINAL | E51: 588336 | F51: GOLBEY | G51: 2.9 | H51: 42 | I51: 49 | J51: 1 | K51: 49 | L51: 38 | M51: 30 | N51: 107 | O51: 18 | P51: 12 | Q51: 75 | R51: 177 | S51: 183 | T51: 115 | U51: 103 | V51: 71 | W51: 197 | X51: 96
A52: 262 | B52: AUBE HAUTE MARNE | C52: 21 | D52: CHAUMONT | E52: 451154 | F52: JOINVILLE | G52: 2.0 | H52: 43 | I52: 41 | J52: 1 | K52: 41 | L52: 23 | M52: 27 | N52: 32 | O52: 241 | P52: 240 | Q52: 227 | R52: 13 | S52: 17 | T52: 12 | U52: 86 | V52: 219 | W52: 74 | X52: 18
A53: 262 | B53: MOSELLE | C53: 42 | D53: MOSELLE EST | E53: 457543 | F53: PUTTELANGE AUX LACS | G53: 2.8 | H53: 44 | I53: 123 | J53: 1 | K53: 123 | L53: 90 | M53: 95 | N53: 80 | O53: 75 | P53: 156 | Q53: 8 | R53: 33 | S53: 35 | T53: 46 | U53: 64 | V53: 60 | W53: 119 | X53: 48
A54: 262 | B54: MOSELLE | C54: 42 | D54: MOSELLE EST | E54: 457614 | F54: SARREBOURG | G54: 8.1 | H54: 45 | I54: 99 | J54: 1 | K54: 99 | L54: 82 | M54: 82 | N54: 89 | O54: 91 | P54: 123 | Q54: 45 | R54: 35 | S54: 28 | T54: 120 | U54: 67 | V54: 96 | W54: 32 | X54: 83
A55: 262 | B55: MARNE ARDENNES | C55: 11 | D55: REIMS | E55: 551340 | F55: BETHENY | G55: 2.9 | H55: 46 | I55: 92 | J55: 1 | K55: 92 | L55: 84 | M55: 102 | N55: 60 | O55: 19 | P55: 25 | Q55: 18 | R55: 183 | S55: 178 | T55: 172 | U55: 24 | V55: 13 | W55: 63 | X55: 114
A56: 262 | B56: MEURTHE ET MOSELLE MEUSE | C56: 31 | D56: VERDUN | E56: 455678 | F56: VERDUN CENTRALE | G56: 10.0 | H56: 47 | I56: 82 | J56: 1 | K56: 82 | L56: 59 | M56: 64 | N56: 64 | O56: 155 | P56: 136 | Q56: 172 | R56: 91 | S56: 86 | T56: 100 | U56: 14 | V56: 10 | W56: 68 | X56: 24
A57: 262 | B57: MOSELLE | C57: 44 | D57: MOSELLE NORD | E57: 557352 | F57: HETTANGE GRANDE | G57: 3.9 | H57: 48 | I57: 95 | J57: 1 | K57: 95 | L57: 47 | M57: 57 | N57: 46 | O57: 97 | P57: 100 | Q57: 92 | R57: 124 | S57: 131 | T57: 103 | U57: 21 | V57: 35 | W57: 24 | X57: 17
A58: 262 | B58: MOSELLE | C58: 45 | D58: METZ | E58: 557433 | F58: MARANGE SILVANGE | G58: 2.9 | H58: 49 | I58: 169 | J58: 1 | K58: 169 | L58: 36 | M58: 40 | N58: 68 | O58: 54 | P58: 59 | Q58: 80 | R58: 73 | S58: 58 | T58: 131 | U58: 38 | V58: 63 | W58: 8 | X58: 53
A59: 262 | B59: MOSELLE | C59: 42 | D59: MOSELLE EST | E59: 557305 | F59: FAULQUEMONT | G59: 4.9 | H59: 50 | I59: 197 | J59: 1 | K59: 197 | L59: 13 | M59: 11 | N59: 15 | O59: 182 | P59: 211 | Q59: 51 | R59: 77 | S59: 85 | T59: 53 | U59: 11 | V59: 14 | W59: 86 | X59: 9
A60: 262 | B60: MOSELLE | C60: 42 | D60: MOSELLE EST | E60: 557250 | F60: CREUTZWALD | G60: 2.7 | H60: 51 | I60: 48 | J60: 1 | K60: 48 | L60: 164 | M60: 149 | N60: 213 | O60: 48 | P60: 56 | Q60: 69 | R60: 67 | S60: 44 | T60: 166 | U60: 51 | V60: 72 | W60: 5 | X60: 141
A61: 262 | B61: BAS RHIN | C61: 5006 | D61: STRASBOURG | E61: 4020 | F61: STRASBOURG ROBERTSAU | G61: 5.6 | H61: 52 | I61: 135 | J61: 1 | K61: 135 | L61: 115 | M61: 111 | N61: 155 | O61: 4 | P61: 2 | Q61: 161 | R61: 121 | S61: 114 | T61: 158 | U61: 169 | V61: 193 | W61: 84 | X61: 180
A62: 262 | B62: BAS RHIN | C62: 5060 | D62: HAGUENAU | E62: 4092 | F62: HOCHFELDEN | G62: 1.8 | H62: 53 | I62: 83 | J62: 1 | K62: 83 | L62: 119 | M62: 141 | N62: 76 | O62: 29 | P62: 28 | Q62: 49 | R62: 49 | S62: 60 | T62: 51 | U62: 148 | V62: 159 | W62: 34 | X62: 234
A63: 262 | B63: MARNE ARDENNES | C63: 11 | D63: REIMS | E63: 451301 | F63: REIMS HOTEL DE VILLE | G63: 8.3 | H63: 54 | I63: 113 | J63: 1 | K63: 113 | L63: 69 | M63: 62 | N63: 85 | O63: 108 | P63: 138 | Q63: 50 | R63: 64 | S63: 56 | T63: 94 | U63: 43 | V63: 33 | W63: 118 | X63: 56
A64: 262 | B64: BAS RHIN | C64: 5006 | D64: STRASBOURG | E64: 4047 | F64: STRASBOURG CRONENBOURG | G64: 4.8 | H64: 55 | I64: 72 | J64: 1 | K64: 72 | L64: 52 | M64: 53 | N64: 78 | O64: 77 | P64: 112 | Q64: 23 | R64: 69 | S64: 80 | T64: 45 | U64: 113 | V64: 132 | W64: 145 | X64: 70
A65: 262 | B65: MEURTHE ET MOSELLE MEUSE | C65: 27 | D65: PONT A MOUSSON | E65: 554506 | F65: CHALIGNY NEUVES MAISONS | G65: 3.9 | H65: 56 | I65: 226 | J65: 1 | K65: 226 | L65: 76 | M65: 108 | N65: 31 | O65: 168 | P65: 190 | Q65: 71 | R65: 14 | S65: 12 | T65: 32 | U65: 20 | V65: 25 | W65: 29 | X65: 26
A66: 262 | B66: MARNE ARDENNES | C66: 11 | D66: REIMS | E66: 551365 | F66: DORMANS | G66: 2.7 | H66: 57 | I66: 114 | J66: 1 | K66: 114 | L66: 15 | M66: 15 | N66: 30 | O66: 186 | P66: 214 | Q66: 47 | R66: 52 | S66: 50 | T66: 68 | U66: 73 | V66: 94 | W66: 185 | X66: 25
A67: 262 | B67: BAS RHIN | C67: 5101 | D67: SELESTAT | E67: 4007 | F67: ILLKIRCH CENTRE | G67: 7.7 | H67: 58 | I67: 189 | J67: 1 | K67: 189 | L67: 91 | M67: 74 | N67: 151 | O67: 134 | P67: 121 | Q67: 147 | R67: 6 | S67: 4 | T67: 37 | U67: 164 | V67: 158 | W67: 127 | X67: 193
A68: 262 | B68: MARNE ARDENNES | C68: 2 | D68: CHARLEVILLE MEZIERES | E68: 508839 | F68: GIVET | G68: 3.6 | H68: 59 | I68: 52 | J68: 1 | K68: 52 | L68: 126 | M68: 150 | N68: 94 | O68: 158 | P68: 184 | Q68: 60 | R68: 75 | S68: 73 | T68: 69 | U68: 17 | V68: 12 | W68: 101 | X68: 32
A69: 262 | B69: BAS RHIN | C69: 5006 | D69: STRASBOURG | E69: 4027 | F69: SCHILTIGHEIM CENTRE | G69: 3.9 | H69: 60 | I69: 162 | J69: 1 | K69: 162 | L69: 18 | M69: 14 | N69: 35 | O69: 49 | P69: 70 | Q69: 33 | R69: 85 | S69: 98 | T69: 60 | U69: 129 | V69: 156 | W69: 130 | X69: 84
A70: 262 | B70: MEURTHE ET MOSELLE MEUSE | C70: 27 | D70: PONT A MOUSSON | E70: 554686 | F70: VEZELISE | G70: 2.0 | H70: 61 | I70: 5 | J70: 1 | K70: 5 | L70: 66 | M70: 101 | N70: 17 | O70: 44 | P70: 52 | Q70: 45 | R70: 185 | S70: 185 | T70: 152 | U70: 132 | V70: 121 | W70: 159 | X70: 119
A71: 262 | B71: MEURTHE ET MOSELLE MEUSE | C71: 26 | D71: NANCY | E71: 554476 | F71: NANCY ARTEM | G71: 2.9 | H71: 62 | I71: 79 | J71: 1 | K71: 79 | L71: 43 | M71: 55 | N71: 39 | O71: 194 | P71: 191 | Q71: 173 | R71: 109 | S71: 94 | T71: 149 | U71: 15 | V71: 9 | W71: 157 | X71: 20
A72: 262 | B72: MOSELLE | C72: 44 | D72: MOSELLE NORD | E72: 457348 | F72: HAGONDANGE | G72: 8.6 | H72: 63 | I72: 116 | J72: 1 | K72: 116 | L72: 56 | M72: 60 | N72: 70 | O72: 149 | P72: 166 | Q72: 90 | R72: 56 | S72: 46 | T72: 93 | U72: 50 | V72: 38 | W72: 82 | X72: 66
A73: 262 | B73: MOSELLE | C73: 42 | D73: MOSELLE EST | E73: 557668 | F73: VALMONT | G73: 3.4 | H73: 64 | I73: 85 | J73: 1 | K73: 85 | L73: 112 | M73: 125 | N73: 105 | O73: 21 | P73: 15 | Q73: 112 | R73: 119 | S73: 112 | T73: 155 | U73: 111 | V73: 160 | W73: 53 | X73: 94
A74: 262 | B74: HAUT RHIN | C74: 5130 | D74: COLMAR | E74: 4130 | F74: COLMAR REPUBLIQUE | G74: 5.6 | H74: 65 | I74: 213 | J74: 1 | K74: 213 | L74: 79 | M74: 79 | N74: 87 | O74: 32 | P74: 22 | Q74: 101 | R74: 39 | S74: 34 | T74: 105 | U74: 69 | V74: 98 | W74: 23 | X74: 103
A75: 264 | B75: MOSELLE | C75: 45 | D75: METZ | E75: 557439 | F75: METZ POMPIDOU | G75: 3.7 | H75: 66 | I75: 102 | J75: 1 | K75: 102 | L75: 167 | M75: 190 | N75: 96 | O75: 22 | P75: 14 | Q75: 126 | R75: 68 | S75: 47 | T75: 160 | U75: 123 | V75: 150 | W75: 39 | X75: 169
A76: 264 | B76: HAUT RHIN | C76: 5130 | D76: COLMAR | E76: 4132 | F76: COLMAR MARAICHERS | G76: 3.9 | H76: 67 | I76: 74 | J76: 1 | K76: 74 | L76: 51 | M76: 68 | N76: 44 | O76: 88 | P76: 127 | Q76: 29 | R76: 63 | S76: 59 | T76: 82 | U76: 183 | V76: 217 | W76: 100 | X76: 152
A77: 264 | B77: BAS RHIN | C77: 5006 | D77: STRASBOURG | E77: 4054 | F77: STRASBOURG MONTAGNE VERTE | G77: 2.9 | H77: 68 | I77: 165 | J77: 1 | K77: 165 | L77: 49 | M77: 72 | N77: 27 | O77: 72 | P77: 81 | Q77: 61 | R77: 42 | S77: 61 | T77: 22 | U77: 134 | V77: 165 | W77: 69 | X77: 125
A78: 264 | B78: MEURTHE ET MOSELLE MEUSE | C78: 31 | D78: VERDUN | E78: 454414 | F78: LONGWY HAUT | G78: 3.7 | H78: 69 | I78: 120 | J78: 1 | K78: 120 | L78: 80 | M78: 86 | N78: 67 | O78: 126 | P78: 105 | Q78: 149 | R78: 53 | S78: 62 | T78: 52 | U78: 71 | V78: 80 | W78: 80 | X78: 57
A79: 264 | B79: MOSELLE | C79: 45 | D79: METZ | E79: 557441 | F79: METZ PLAPPEVILLE | G79: 2.9 | H79: 70 | I79: 170 | J79: 1 | K79: 170 | L79: 141 | M79: 137 | N79: 141 | O79: 7 | P79: 5 | Q79: 136 | R79: 129 | S79: 110 | T79: 195 | U79: 126 | V79: 140 | W79: 47 | X79: 172
A80: 264 | B80: MARNE ARDENNES | C80: 2 | D80: CHARLEVILLE MEZIERES | E80: 408822 | F80: CHARLEVILLE MEZIERES | G80: 6.2 | H80: 71 | I80: 194 | J80: 1 | K80: 194 | L80: 181 | M80: 207 | N80: 63 | O80: 28 | P80: 49 | Q80: 13 | R80: 50 | S80: 55 | T80: 62 | U80: 36 | V80: 24 | W80: 225 | X80: 21
A81: 264 | B81: BAS RHIN | C81: 5006 | D81: STRASBOURG | E81: 4038 | F81: OBERHAUSBERGEN | G81: 4.0 | H81: 72 | I81: 89 | J81: 1 | K81: 89 | L81: 48 | M81: 59 | N81: 50 | O81: 17 | P81: 13 | Q81: 41 | R81: 221 | S81: 236 | T81: 96 | U81: 114 | V81: 106 | W81: 97 | X81: 162
A82: 264 | B82: MARNE ARDENNES | C82: 6 | D82: CHALONS EN CHAMPAGNE | E82: 451120 | F82: SARRY | G82: 2.4 | H82: 73 | I82: 18 | J82: 1 | K82: 18 | L82: 67 | M82: 41 | N82: 157 | O82: 87 | P82: 85 | Q82: 91 | R82: 153 | S82: 127 | T82: 230 | U82: 151 | V82: 103 | W82: 221 | X82: 158
A83: 264 | B83: BAS RHIN | C83: 5101 | D83: SELESTAT | E83: 4126 | F83: MUTZIG | G83: 2.9 | H83: 74 | I83: 126 | J83: 1 | K83: 126 | L83: 145 | M83: 113 | N83: 231 | O83: 10 | P83: 7 | Q83: 64 | R83: 144 | S83: 119 | T83: 215 | U83: 142 | V83: 124 | W83: 173 | X83: 125
A84: 264 | B84: MEURTHE ET MOSELLE MEUSE | C84: 27 | D84: PONT A MOUSSON | E84: 554516 | F84: PAGNY SUR MOSELLE | G84: 2.9 | H84: 75 | I84: 175 | J84: 1 | K84: 175 | L84: 162 | M84: 184 | N84: 107 | O84: 38 | P84: 30 | Q84: 86 | R84: 30 | S84: 41 | T84: 18 | U84: 99 | V84: 91 | W84: 111 | X84: 125
A85: 264 | B85: VOSGES | C85: 57 | D85: EPINAL | E85: 588716 | F85: XERTIGNY | G85: 2.9 | H85: 76 | I85: 3 | J85: 1 | K85: 3 | L85: 189 | M85: 163 | N85: 227 | O85: 98 | P85: 73 | Q85: 181 | R85: 44 | S85: 29 | T85: 202 | U85: 230 | V85: 210 | W85: 138 | X85: 244
A86: 264 | B86: MOSELLE | C86: 44 | D86: MOSELLE NORD | E86: 557660 | F86: UCKANGE | G86: 2.0 | H86: 77 | I86: 229 | J86: 1 | K86: 229 | L86: 21 | M86: 31 | N86: 17 | O86: 180 | P86: 224 | Q86: 20 | R86: 37 | S86: 49 | T86: 17 | U86: 33 | V86: 29 | W86: 170 | X86: 18
A87: 264 | B87: MARNE ARDENNES | C87: 6 | D87: CHALONS EN CHAMPAGNE | E87: 451115 | F87: MOURMELON LE GRAND | G87: 2.9 | H87: 78 | I87: 20 | J87: 1 | K87: 20 | L87: 83 | M87: 84 | N87: 82 | O87: 68 | P87: 76 | Q87: 55 | R87: 179 | S87: 173 | T87: 172 | U87: 130 | V87: 130 | W87: 147 | X87: 96
A88: 264 | B88: MOSELLE | C88: 42 | D88: MOSELLE EST | E88: 457617 | F88: SARREGUEMINES | G88: 7.0 | H88: 79 | I88: 168 | J88: 1 | K88: 168 | L88: 74 | M88: 75 | N88: 81 | O88: 56 | P88: 66 | Q88: 56 | R88: 89 | S88: 76 | T88: 119 | U88: 75 | V88: 74 | W88: 99 | X88: 74
A89: 264 | B89: MEURTHE ET MOSELLE MEUSE | C89: 31 | D89: VERDUN | E89: 554700 | F89: VILLERUPT | G89: 2.9 | H89: 80 | I89: 76 | J89: 1 | K89: 76 | L89: 26 | M89: 33 | N89: 36 | O89: 152 | P89: 188 | Q89: 48 | R89: 131 | S89: 133 | T89: 115 | U89: 95 | V89: 133 | W89: 51 | X89: 96
A90: 264 | B90: MARNE ARDENNES | C90: 2 | D90: CHARLEVILLE MEZIERES | E90: 508802 | F90: CHARLEVILLE NEVERS | G90: 2.9 | H90: 81 | I90: 22 | J90: 1 | K90: 22 | L90: 111 | M90: 118 | N90: 117 | O90: 143 | P90: 126 | Q90: 173 | R90: 102 | S90: 93 | T90: 124 | U90: 84 | V90: 46 | W90: 116 | X90: 190
A91: 264 | B91: HAUT RHIN | C91: 5130 | D91: COLMAR | E91: 4144 | F91: RIBEAUVILLE | G91: 3.4 | H91: 82 | I91: 104 | J91: 1 | K91: 104 | L91: 46 | M91: 35 | N91: 116 | O91: 179 | P91: 178 | Q91: 133 | R91: 48 | S91: 48 | T91: 65 | U91: 131 | V91: 101 | W91: 150 | X91: 171
A92: 264 | B92: BAS RHIN | C92: 5101 | D92: SELESTAT | E92: 4121 | F92: SCHIRMECK | G92: 2.9 | H92: 83 | I92: 19 | J92: 1 | K92: 19 | L92: 96 | M92: 70 | N92: 175 | O92: 156 | P92: 164 | Q92: 102 | R92: 113 | S92: 103 | T92: 140 | U92: 88 | V92: 135 | W92: 67 | X92: 64
A93: 264 | B93: VOSGES | C93: 55 | D93: SAINT DIE | E93: 488246 | F93: CORNIMONT LA BRESSE | G93: 2.9 | H93: 84 | I93: 53 | J93: 1 | K93: 53 | L93: 72 | M93: 76 | N93: 72 | O93: 166 | P93: 154 | Q93: 168 | R93: 41 | S93: 32 | T93: 124 | U93: 209 | V93: 238 | W93: 64 | X93: 218
A94: 264 | B94: MEURTHE ET MOSELLE MEUSE | C94: 26 | D94: NANCY | E94: 554266 | F94: DOMBASLE SUR MEURTHE | G94: 3.6 | H94: 85 | I94: 171 | J94: 1 | K94: 171 | L94: 224 | M94: 225 | N94: 178 | O94: 5 | P94: 4 | Q94: 125 | R94: 147 | S94: 159 | T94: 109 | U94: 66 | V94: 31 | W94: 126 | X94: 166
A95: 264 | B95: MOSELLE | C95: 45 | D95: METZ | E95: 557440 | F95: METZ MOZART | G95: 2.9 | H95: 86 | I95: 129 | J95: 1 | K95: 129 | L95: 98 | M95: 94 | N95: 101 | O95: 84 | P95: 95 | Q95: 64 | R95: 109 | S95: 94 | T95: 149 | U95: 60 | V95: 43 | W95: 133 | X95: 53
A96: 264 | B96: MEURTHE ET MOSELLE MEUSE | C96: 31 | D96: VERDUN | E96: 455151 | F96: BAR LE DUC | G96: 9.9 | H96: 87 | I96: 69 | J96: 1 | K96: 69 | L96: 122 | M96: 123 | N96: 136 | O96: 129 | P96: 102 | Q96: 169 | R96: 65 | S96: 54 | T96: 118 | U96: 105 | V96: 136 | W96: 42 | X96: 138
A97: 30 | B97: MEURTHE ET MOSELLE MEUSE | C97: 31 | D97: VERDUN | E97: 554413 | F97: LONGWY BAS | G97: 3.9 | H97: 88 | I97: 27 | J97: 1 | K97: 27 | L97: 97 | M97: 88 | N97: 115 | O97: 95 | P97: 50 | Q97: 240 | R97: 138 | S97: 118 | T97: 181 | U97: 128 | V97: 97 | W97: 108 | X97: 200
A98: 30 | B98: HAUT RHIN | C98: 5130 | D98: COLMAR | E98: 4143 | F98: MUNSTER | G98: 4.6 | H98: 89 | I98: 42 | J98: 1 | K98: 42 | L98: 58 | M98: 29 | N98: 197 | O98: 69 | P98: 33 | Q98: 195 | R98: 162 | S98: 155 | T98: 188 | U98: 178 | V98: 212 | W98: 49 | X98: 211
A99: 30 | B99: MEURTHE ET MOSELLE MEUSE | C99: 27 | D99: PONT A MOUSSON | E99: 554416 | F99: LUDRES | G99: 3.9 | H99: 90 | I99: 73 | J99: 1 | K99: 73 | L99: 138 | M99: 124 | N99: 189 | O99: 35 | P99: 18 | Q99: 212 | R99: 111 | S99: 75 | T99: 212 | U99: 173 | V99: 169 | W99: 180 | X99: 130
A100: 30 | B100: BAS RHIN | C100: 5006 | D100: STRASBOURG | E100: 4006 | F100: STRASBOURG NEUDORF | G100: 8.4 | H100: 91 | I100: 11 | J100: 1 | K100: 11 | L100: 150 | M100: 167 | N100: 112 | O100: 151 | P100: 144 | Q100: 145 | R100: 62 | S100: 68 | T100: 54 | U100: 157 | V100: 186 | W100: 98 | X100: 148
A101: 30 | B101: MARNE ARDENNES | C101: 6 | D101: CHALONS EN CHAMPAGNE | E101: 551128 | F101: SAINTE MENEHOULD | G101: 3.9 | H101: 92 | I101: 109 | J101: 1 | K101: 109 | L101: 44 | M101: 18 | N101: 179 | O101: 142 | P101: 117 | Q101: 196 | R101: 72 | S101: 66 | T101: 95 | U101: 162 | V101: 146 | W101: 110 | X101: 216
A102: 30 | B102: HAUT RHIN | C102: 5130 | D102: COLMAR | E102: 4153 | F102: ROUFFACH | G102: 2.0 | H102: 93 | I102: 145 | J102: 1 | K102: 145 | L102: 146 | M102: 155 | N102: 123 | O102: 12 | P102: 8 | Q102: 109 | R102: 94 | S102: 160 | T102: 11 | U102: 223 | V102: 249 | W102: 10 | X102: 248
A103: 30 | B103: MOSELLE | C103: 45 | D103: METZ | E103: 457446 | F103: METZ SAINT LOUIS | G103: 6.7 | H103: 94 | I103: 87 | J103: 1 | K103: 87 | L103: 99 | M103: 99 | N103: 99 | O103: 90 | P103: 124 | Q103: 44 | R103: 141 | S103: 116 | T103: 206 | U103: 65 | V103: 51 | W103: 92 | X103: 85
A104: 30 | B104: MOSELLE | C104: 45 | D104: METZ | E104: 557444 | F104: SAINT JULIEN LES METZ | G104: 4.6 | H104: 95 | I104: 225 | J104: 1 | K104: 225 | L104: 64 | M104: 71 | N104: 56 | O104: 70 | P104: 86 | Q104: 40 | R104: 57 | S104: 77 | T104: 25 | U104: 59 | V104: 48 | W104: 50 | X104: 93
A105: 30 | B105: MEURTHE ET MOSELLE MEUSE | C105: 26 | D105: NANCY | E105: 554636 | F105: TOMBLAINE | G105: 2.9 | H105: 96 | I105: 63 | J105: 1 | K105: 63 | L105: 88 | M105: 93 | N105: 77 | O105: 120 | P105: 109 | Q105: 130 | R105: 92 | S105: 104 | T105: 63 | U105: 141 | V105: 152 | W105: 142 | X105: 114
A106: 30 | B106: BAS RHIN | C106: 5060 | D106: HAGUENAU | E106: 4041 | F106: HOERDT | G106: 1.8 | H106: 97 | I106: 37 | J106: 1 | K106: 37 | L106: 190 | M106: 172 | N106: 214 | O106: 8 | P106: 6 | Q106: 110 | R106: 236 | S106: 230 | T106: 246 | U106: 116 | V106: 45 | W106: 190 | X106: 217
A107: 30 | B107: HAUT RHIN | C107: 5130 | D107: COLMAR | E107: 4157 | F107: NEUF BRISACH | G107: 3.6 | H107: 98 | I107: 136 | J107: 1 | K107: 136 | L107: 163 | M107: 180 | N107: 121 | O107: 42 | P107: 29 | Q107: 115 | R107: 59 | S107: 52 | T107: 92 | U107: 139 | V107: 172 | W107: 120 | X107: 100
A108: 30 | B108: VOSGES | C108: 55 | D108: SAINT DIE | E108: 588316 | F108: FRAIZE | G108: 3.9 | H108: 99 | I108: 67 | J108: 1 | K108: 67 | L108: 148 | M108: 153 | N108: 134 | O108: 116 | P108: 160 | Q108: 28 | R108: 54 | S108: 38 | T108: 129 | U108: 144 | V108: 143 | W108: 134 | X108: 130
A109: 30 | B109: MOSELLE | C109: 42 | D109: MOSELLE EST | E109: 457258 | F109: DIEUZE | G109: 2.9 | H109: 100 | I109: 55 | J109: 1 | K109: 55 | L109: 70 | M109: 50 | N109: 113 | O109: 99 | P109: 74 | Q109: 181 | R109: 128 | S109: 145 | T109: 72 | U109: 163 | V109: 196 | W109: 109 | X109: 139
A110: 30 | B110: HAUT RHIN | C110: 5169 | D110: MULHOUSE | E110: 4170 | F110: MULHOUSE REUNION | G110: 5.9 | H110: 101 | I110: 211 | J110: 1 | K110: 211 | L110: 32 | M110: 43 | N110: 26 | O110: 109 | P110: 125 | Q110: 73 | R110: 108 | S110: 190 | T110: 7 | U110: 34 | V110: 44 | W110: 20 | X110: 40
A111: 30 | B111: VOSGES | C111: 57 | D111: EPINAL | E111: 488706 | F111: VITTEL | G111: 3.8 | H111: 102 | I111: 17 | J111: 1 | K111: 17 | L111: 188 | M111: 179 | N111: 190 | O111: 165 | P111: 111 | Q111: 244 | R111: 70 | S111: 53 | T111: 145 | U111: 92 | V111: 144 | W111: 140 | X111: 31
A112: 30 | B112: BAS RHIN | C112: 5006 | D112: STRASBOURG | E112: 4019 | F112: STRASBOURG ANVERS | G112: 4.8 | H112: 103 | I112: 204 | J112: 1 | K112: 204 | L112: 41 | M112: 54 | N112: 37 | O112: 58 | P112: 80 | Q112: 36 | R112: 86 | S112: 100 | T112: 57 | U112: 107 | V112: 86 | W112: 235 | X112: 61
A113: 30 | B113: MOSELLE | C113: 44 | D113: MOSELLE NORD | E113: 457158 | F113: YUTZ | G113: 4.6 | H113: 104 | I113: 166 | J113: 1 | K113: 166 | L113: 89 | M113: 61 | N113: 197 | O113: 141 | P113: 147 | Q113: 117 | R113: 47 | S113: 43 | T113: 70 | U113: 79 | V113: 76 | W113: 72 | X113: 108
A114: 30 | B114: VOSGES | C114: 57 | D114: EPINAL | E114: 488286 | F114: EPINAL ARISTIDE BRIAND | G114: 8.6 | H114: 105 | I114: 158 | J114: 1 | K114: 158 | L114: 54 | M114: 65 | N114: 52 | O114: 52 | P114: 55 | Q114: 79 | R114: 116 | S114: 132 | T114: 71 | U114: 158 | V114: 142 | W114: 233 | X114: 101
A115: 30 | B115: MOSELLE | C115: 42 | D115: MOSELLE EST | E115: 457435 | F115: MERLEBACH | G115: 3.4 | H115: 106 | I115: 98 | J115: 1 | K115: 98 | L115: 170 | M115: 193 | N115: 79 | O115: 102 | P115: 140 | Q115: 43 | R115: 40 | S115: 51 | T115: 36 | U115: 168 | V115: 248 | W115: 21 | X115: 155
A116: 30 | B116: MOSELLE | C116: 45 | D116: METZ | E116: 557712 | F116: WOIPPY | G116: 3.9 | H116: 107 | I116: 186 | J116: 1 | K116: 186 | L116: 85 | M116: 106 | N116: 57 | O116: 96 | P116: 151 | Q116: 24 | R116: 87 | S116: 90 | T116: 74 | U116: 57 | V116: 39 | W116: 143 | X116: 68
A117: 30 | B117: BAS RHIN | C117: 5060 | D117: HAGUENAU | E117: 4071 | F117: WISSEMBOURG | G117: 8.1 | H117: 108 | I117: 30 | J117: 1 | K117: 30 | L117: 117 | M117: 121 | N117: 126 | O117: 133 | P117: 139 | Q117: 107 | R117: 83 | S117: 92 | T117: 64 | U117: 207 | V117: 224 | W117: 166 | X117: 181
A118: 30 | B118: MARNE ARDENNES | C118: 11 | D118: REIMS | E118: 551310 | F118: REIMS CHATILLONS | G118: 4.6 | H118: 109 | I118: 143 | J118: 1 | K118: 143 | L118: 128 | M118: 129 | N118: 145 | O118: 107 | P118: 104 | Q118: 98 | R118: 66 | S118: 64 | T118: 77 | U118: 94 | V118: 129 | W118: 123 | X118: 51
A119: 30 | B119: MARNE ARDENNES | C119: 6 | D119: CHALONS EN CHAMPAGNE | E119: 451101 | F119: CHALONS VIVIERS | G119: 9.8 | H119: 110 | I119: 40 | J119: 1 | K119: 40 | L119: 104 | M119: 100 | N119: 110 | O119: 184 | P119: 207 | Q119: 66 | R119: 100 | S119: 99 | T119: 87 | U119: 125 | V119: 115 | W119: 199 | X119: 86
A120: 30 | B120: MOSELLE | C120: 44 | D120: MOSELLE NORD | E120: 457306 | F120: FLORANGE | G120: 5.6 | H120: 111 | I120: 201 | J120: 1 | K120: 201 | L120: 33 | M120: 34 | N120: 65 | O120: 103 | P120: 119 | Q120: 70 | R120: 134 | S120: 136 | T120: 112 | U120: 49 | V120: 30 | W120: 129 | X120: 81
A121: 30 | B121: MARNE ARDENNES | C121: 11 | D121: REIMS | E121: 451370 | F121: EPERNAY | G121: 10.3 | H121: 112 | I121: 44 | J121: 1 | K121: 44 | L121: 101 | M121: 87 | N121: 129 | O121: 150 | P121: 162 | Q121: 96 | R121: 168 | S121: 169 | T121: 148 | U121: 70 | V121: 66 | W121: 81 | X121: 67
A122: 30 | B122: MEURTHE ET MOSELLE MEUSE | C122: 27 | D122: PONT A MOUSSON | E122: 554381 | F122: LAXOU ARISTIDE BRIAND | G122: 2.9 | H122: 113 | I122: 174 | J122: 1 | K122: 174 | L122: 57 | M122: 66 | N122: 54 | O122: 225 | P122: 239 | Q122: 29 | R122: 31 | S122: 36 | T122: 28 | U122: 85 | V122: 67 | W122: 65 | X122: 172
A123: 30 | B123: VOSGES | C123: 55 | D123: SAINT DIE | E123: 588666 | F123: VAGNEY | G123: 3.9 | H123: 114 | I123: 43 | J123: 1 | K123: 43 | L123: 147 | M123: 114 | N123: 238 | O123: 46 | P123: 26 | Q123: 205 | R123: 178 | S123: 150 | T123: 236 | U123: 147 | V123: 149 | W123: 131 | X123: 142
A124: 30 | B124: BAS RHIN | C124: 5060 | D124: HAGUENAU | E124: 4057 | F124: BISCHWILLER | G124: 6.6 | H124: 115 | I124: 45 | J124: 1 | K124: 45 | L124: 118 | M124: 92 | N124: 204 | O124: 123 | P124: 97 | Q124: 165 | R124: 97 | S124: 82 | T124: 127 | U124: 212 | V124: 243 | W124: 44 | X124: 231
A125: 30 | B125: MEURTHE ET MOSELLE MEUSE | C125: 31 | D125: VERDUN | E125: 555624 | F125: STENAY | G125: 2.9 | H125: 116 | I125: 175 | J125: 1 | K125: 175 | L125: 65 | M125: 67 | N125: 68 | O125: 210 | P125: 218 | Q125: 102 | R125: 71 | S125: 84 | T125: 49 | U125: 40 | V125: 110 | W125: 7 | X125: 36
A126: 30 | B126: MEURTHE ET MOSELLE MEUSE | C126: 26 | D126: NANCY | E126: 554116 | F126: BACCARAT | G126: 2.9 | H126: 117 | I126: 31 | J126: 1 | K126: 31 | L126: 30 | M126: 26 | N126: 60 | O126: 188 | P126: 173 | Q126: 181 | R126: 214 | S126: 225 | T126: 140 | U126: 82 | V126: 68 | W126: 105 | X126: 114
A127: 30 | B127: BAS RHIN | C127: 5060 | D127: HAGUENAU | E127: 4082 | F127: BOUXWILLER | G127: 2.7 | H127: 118 | I127: 46 | J127: 1 | K127: 46 | L127: 157 | M127: 188 | N127: 71 | O127: 236 | P127: 237 | Q127: 167 | R127: 29 | S127: 33 | T127: 44 | U127: 110 | V127: 200 | W127: 40 | X127: 75
A128: 30 | B128: BAS RHIN | C128: 5060 | D128: HAGUENAU | E128: 4030 | F128: BRUMATH | G128: 5.1 | H128: 119 | I128: 188 | J128: 1 | K128: 188 | L128: 113 | M128: 98 | N128: 167 | O128: 3 | P128: 3 | Q128: 142 | R128: 204 | S128: 191 | T128: 224 | U128: 233 | V128: 190 | W128: 217 | X128: 237
A129: 30 | B129: MARNE ARDENNES | C129: 11 | D129: REIMS | E129: 551369 | F129: DAMERY | G129: 2.0 | H129: 120 | I129: 181 | J129: 1 | K129: 181 | L129: 28 | M129: 51 | N129: 14 | O129: 192 | P129: 183 | Q129: 201 | R129: 101 | S129: 129 | T129: 47 | U129: 63 | V129: 79 | W129: 46 | X129: 61
A130: 30 | B130: VOSGES | C130: 57 | D130: EPINAL | E130: 588201 | F130: CHANTRAINE | G130: 3.9 | H130: 121 | I130: 81 | J130: 1 | K130: 81 | L130: 77 | M130: 69 | N130: 102 | O130: 106 | P130: 107 | Q130: 92 | R130: 149 | S130: 138 | T130: 198 | U130: 176 | V130: 122 | W130: 204 | X130: 194
A131: 30 | B131: VOSGES | C131: 57 | D131: EPINAL | E131: 588396 | F131: LE VAL D AJOL | G131: 2.9 | H131: 122 | I131: 36 | J131: 1 | K131: 36 | L131: 127 | M131: 117 | N131: 191 | O131: 154 | P131: 143 | Q131: 155 | R131: 104 | S131: 71 | T131: 210 | U131: 184 | V131: 114 | W131: 246 | X131: 172
A132: 30 | B132: MEURTHE ET MOSELLE MEUSE | C132: 27 | D132: PONT A MOUSSON | E132: 554496 | F132: NANCY TROIS MAISONS | G132: 2.0 | H132: 123 | I132: 235 | J132: 1 | K132: 235 | L132: 106 | M132: 134 | N132: 38 | O132: 79 | P132: 96 | Q132: 52 | R132: 45 | S132: 102 | T132: 5 | U132: 81 | V132: 57 | W132: 201 | X132: 78
A133: 30 | B133: MARNE ARDENNES | C133: 6 | D133: CHALONS EN CHAMPAGNE | E133: 451381 | F133: SEZANNE | G133: 6.4 | H133: 124 | I133: 51 | J133: 1 | K133: 51 | L133: 161 | M133: 158 | N133: 170 | O133: 65 | P133: 41 | Q133: 148 | R133: 184 | S133: 179 | T133: 171 | U133: 127 | V133: 111 | W133: 161 | X133: 129
A134: 30 | B134: AUBE HAUTE MARNE | C134: 21 | D134: CHAUMONT | E134: 410541 | F134: LANGRES | G134: 9.3 | H134: 125 | I134: 66 | J134: 1 | K134: 66 | L134: 105 | M134: 81 | N134: 174 | O134: 138 | P134: 135 | Q134: 152 | R134: 122 | S134: 113 | T134: 179 | U134: 171 | V134: 164 | W134: 167 | X134: 147
A135: 30 | B135: MOSELLE | C135: 45 | D135: METZ | E135: 557436 | F135: METZ CATHEDRALE | G135: 3.8 | H135: 126 | I135: 227 | J135: 1 | K135: 227 | L135: 37 | M135: 39 | N135: 74 | O135: 55 | P135: 38 | Q135: 143 | R135: 152 | S135: 147 | T135: 169 | U135: 74 | V135: 78 | W135: 125 | X135: 52
A136: 110 | B136: MEURTHE ET MOSELLE MEUSE | C136: 27 | D136: PONT A MOUSSON | E136: 554357 | F136: JOEUF | G136: 2.9 | H136: 127 | I136: 128 | J136: 1 | K136: 128 | L136: 137 | M136: 197 | N136: 23 | O136: 118 | P136: 172 | Q136: 22 | R136: 118 | S136: 156 | T136: 40 | U136: 90 | V136: 100 | W136: 73 | X136: 125
A137: 110 | B137: AUBE HAUTE MARNE | C137: 14 | D137: TROYES | E137: 510570 | F137: NOGENT SUR SEINE | G137: 4.6 | H137: 128 | I137: 108 | J137: 1 | K137: 108 | L137: 102 | M137: 105 | N137: 100 | O137: 176 | P137: 185 | Q137: 114 | R137: 114 | S137: 101 | T137: 147 | U137: 117 | V137: 90 | W137: 181 | X137: 121
A138: 110 | B138: AUBE HAUTE MARNE | C138: 21 | D138: CHAUMONT | E138: 451151 | F138: WASSY | G138: 2.0 | H138: 129 | I138: 157 | J138: 1 | K138: 157 | L138: 61 | M138: 56 | N138: 93 | O138: 60 | P138: 58 | Q138: 84 | R138: 237 | S138: 240 | T138: 192 | U138: 47 | V138: 58 | W138: 55 | X138: 41
A139: 110 | B139: MEURTHE ET MOSELLE MEUSE | C139: 27 | D139: PONT A MOUSSON | E139: 454696 | F139: VILLERS GENERAL LECLERC | G139: 5.5 | H139: 130 | I139: 146 | J139: 1 | K139: 146 | L139: 175 | M139: 174 | N139: 160 | O139: 31 | P139: 17 | Q139: 193 | R139: 146 | S139: 137 | T139: 182 | U139: 160 | V139: 127 | W139: 187 | X139: 177
A140: 110 | B140: VOSGES | C140: 57 | D140: EPINAL | E140: 488561 | F140: REMIREMONT | G140: 7.7 | H140: 131 | I140: 75 | J140: 1 | K140: 75 | L140: 123 | M140: 110 | N140: 192 | O140: 169 | P140: 148 | Q140: 185 | R140: 115 | S140: 81 | T140: 217 | U140: 153 | V140: 134 | W140: 211 | X140: 105
A141: 110 | B141: MEURTHE ET MOSELLE MEUSE | C141: 27 | D141: PONT A MOUSSON | E141: 554196 | F141: CHAMPIGNEULLES | G141: 3.4 | H141: 132 | I141: 203 | J141: 1 | K141: 203 | L141: 42 | M141: 19 | N141: 169 | O141: 174 | P141: 137 | Q141: 234 | R141: 46 | S141: 39 | T141: 97 | U141: 202 | V141: 163 | W141: 248 | X141: 133
A142: 110 | B142: MEURTHE ET MOSELLE MEUSE | C142: 27 | D142: PONT A MOUSSON | E142: 554376 | F142: LAXOU BOUFFLERS | G142: 3.4 | H142: 133 | I142: 221 | J142: 1 | K142: 221 | L142: 73 | M142: 133 | N142: 12 | O142: 231 | P142: 219 | Q142: 222 | R142: 96 | S142: 142 | T142: 20 | U142: 12 | V142: 16 | W142: 136 | X142: 8
A143: 110 | B143: AUBE HAUTE MARNE | C143: 21 | D143: CHAUMONT | E143: 410566 | F143: CHAUMONT HOTEL DE VILLE | G143: 11.1 | H143: 134 | I143: 106 | J143: 1 | K143: 106 | L143: 177 | M143: 183 | N143: 133 | O143: 80 | P143: 65 | Q143: 138 | R143: 157 | S143: 157 | T143: 159 | U143: 133 | V143: 167 | W143: 59 | X143: 135
A144: 110 | B144: BAS RHIN | C144: 5101 | D144: SELESTAT | E144: 4107 | F144: VILLE | G144: 2.0 | H144: 135 | I144: 219 | J144: 1 | K144: 219 | L144: 71 | M144: 42 | N144: 182 | O144: 23 | P144: 21 | Q144: 84 | R144: 136 | S144: 130 | T144: 138 | U144: 240 | V144: 244 | W144: 114 | X144: 226
A145: 110 | B145: MEURTHE ET MOSELLE MEUSE | C145: 26 | D145: NANCY | E145: 554486 | F145: NANCY POINT CENTRAL | G145: 3.9 | H145: 136 | I145: 200 | J145: 1 | K145: 200 | L145: 144 | M145: 159 | N145: 102 | O145: 53 | P145: 39 | Q145: 116 | R145: 99 | S145: 88 | T145: 111 | U145: 143 | V145: 65 | W145: 210 | X145: 200
A146: 110 | B146: MOSELLE | C146: 45 | D146: METZ | E146: 557224 | F146: CLOUANGE | G146: 2.0 | H146: 137 | I146: 198 | J146: 1 | K146: 198 | L146: 151 | M146: 224 | N146: 10 | O146: 215 | P146: 235 | Q146: 52 | R146: 58 | S146: 106 | T146: 12 | U146: 26 | V146: 131 | W146: 4 | X146: 14
A147: 110 | B147: MARNE ARDENNES | C147: 11 | D147: REIMS | E147: 451361 | F147: PIERRY LECLERC | G147: 2.0 | H147: 138 | I147: 93 | J147: 1 | K147: 93 | L147: 159 | M147: 151 | N147: 193 | O147: 71 | P147: 77 | Q147: 62 | R147: 210 | S147: 185 | T147: 240 | U147: 98 | V147: 62 | W147: 238 | X147: 78
A148: 110 | B148: BAS RHIN | C148: 5060 | D148: HAGUENAU | E148: 4085 | F148: INGWILLER | G148: 3.7 | H148: 139 | I148: 142 | J148: 1 | K148: 142 | L148: 93 | M148: 91 | N148: 104 | O148: 193 | P148: 182 | Q148: 206 | R148: 123 | S148: 121 | T148: 130 | U148: 78 | V148: 109 | W148: 35 | X148: 112
A149: 110 | B149: MARNE ARDENNES | C149: 11 | D149: REIMS | E149: 551314 | F149: FISMES | G149: 2.9 | H149: 140 | I149: 12 | J149: 1 | K149: 12 | L149: 120 | M149: 147 | N149: 72 | O149: 203 | P149: 223 | Q149: 75 | R149: 218 | S149: 225 | T149: 195 | U149: 61 | V149: 40 | W149: 144 | X149: 77
A150: 110 | B150: MARNE ARDENNES | C150: 2 | D150: CHARLEVILLE MEZIERES | E150: 408806 | F150: SEDAN | G150: 9.6 | H150: 141 | I150: 78 | J150: 1 | K150: 78 | L150: 124 | M150: 127 | N150: 146 | O150: 132 | P150: 150 | Q150: 82 | R150: 189 | S150: 166 | T150: 239 | U150: 101 | V150: 81 | W150: 160 | X150: 118
A151: 110 | B151: MEURTHE ET MOSELLE MEUSE | C151: 27 | D151: PONT A MOUSSON | E151: 454535 | F151: PONT A MOUSSON CENTRALE | G151: 5.7 | H151: 142 | I151: 239 | J151: 1 | K151: 239 | L151: 95 | M151: 139 | N151: 25 | O151: 83 | P151: 57 | Q151: 190 | R151: 125 | S151: 126 | T151: 121 | U151: 39 | V151: 32 | W151: 121 | X151: 39
A152: 110 | B152: AUBE HAUTE MARNE | C152: 14 | D152: TROYES | E152: 510513 | F152: TROYES 1ER MAI | G152: 3.9 | H152: 143 | I152: 193 | J152: 1 | K152: 193 | L152: 134 | M152: 173 | N152: 66 | O152: 147 | P152: 170 | Q152: 78 | R152: 74 | S152: 70 | T152: 73 | U152: 83 | V152: 56 | W152: 163 | X152: 124
A153: 110 | B153: AUBE HAUTE MARNE | C153: 21 | D153: CHAUMONT | E153: 451156 | F153: SAINT DIZIER CENTRE | G153: 8.4 | H153: 144 | I153: 156 | J153: 1 | K153: 156 | L153: 191 | M153: 201 | N153: 111 | O153: 115 | P153: 101 | Q153: 123 | R153: 79 | S153: 78 | T153: 67 | U153: 150 | V153: 204 | W153: 87 | X153: 104
A154: 110 | B154: VOSGES | C154: 55 | D154: SAINT DIE | E154: 588186 | F154: BRUYERES | G154: 3.6 | H154: 145 | I154: 125 | J154: 1 | K154: 125 | L154: 100 | M154: 89 | N154: 122 | O154: 164 | P154: 158 | Q154: 146 | R154: 202 | S154: 212 | T154: 109 | U154: 56 | V154: 69 | W154: 89 | X154: 30
A155: 110 | B155: HAUT RHIN | C155: 5169 | D155: MULHOUSE | E155: 4180 | F155: RIEDISHEIM | G155: 3.5 | H155: 146 | I155: 147 | J155: 1 | K155: 147 | L155: 129 | M155: 112 | N155: 220 | O155: 160 | P155: 133 | Q155: 202 | R155: 60 | S155: 37 | T155: 180 | U155: 213 | V155: 168 | W155: 196 | X155: 232
A156: 110 | B156: MEURTHE ET MOSELLE MEUSE | C156: 31 | D156: VERDUN | E156: 555406 | F156: LIGNY EN BARROIS | G156: 2.9 | H156: 147 | I156: 54 | J156: 1 | K156: 54 | L156: 108 | M156: 103 | N156: 125 | O156: 39 | P156: 24 | Q156: 150 | R156: 241 | S156: 242 | T156: 202 | U156: 206 | V156: 228 | W156: 96 | X156: 218
A157: 110 | B157: MEURTHE ET MOSELLE MEUSE | C157: 27 | D157: PONT A MOUSSON | E157: 454651 | F157: TOUL | G157: 10.3 | H157: 148 | I157: 232 | J157: 1 | K157: 232 | L157: 139 | M157: 154 | N157: 106 | O157: 140 | P157: 167 | Q157: 81 | R157: 76 | S157: 79 | T157: 58 | U157: 42 | V157: 28 | W157: 95 | X157: 73
A158: 110 | B158: VOSGES | C158: 55 | D158: SAINT DIE | E158: 488326 | F158: GERARDMER | G158: 4.8 | H158: 149 | I158: 115 | J158: 1 | K158: 115 | L158: 143 | M158: 126 | N158: 199 | O158: 159 | P158: 129 | Q158: 204 | R158: 160 | S158: 148 | T158: 191 | U158: 96 | V158: 88 | W158: 135 | X158: 107
A159: 110 | B159: HAUT RHIN | C159: 5169 | D159: MULHOUSE | E159: 4181 | F159: WITTELSHEIM | G159: 3.5 | H159: 150 | I159: 172 | J159: 1 | K159: 172 | L159: 211 | M159: 209 | N159: 173 | O159: 162 | P159: 134 | Q159: 208 | R159: 105 | S159: 109 | T159: 101 | U159: 37 | V159: 22 | W159: 137 | X159: 63
A160: 110 | B160: HAUT RHIN | C160: 5169 | D160: MULHOUSE | E160: 4178 | F160: SAINT LOUIS | G160: 6.8 | H160: 151 | I160: 190 | J160: 1 | K160: 190 | L160: 198 | M160: 198 | N160: 143 | O160: 51 | P160: 45 | Q160: 97 | R160: 90 | S160: 87 | T160: 91 | U160: 177 | V160: 145 | W160: 162 | X160: 197
A161: 110 | B161: MEURTHE ET MOSELLE MEUSE | C161: 31 | D161: VERDUN | E161: 455566 | F161: REVIGNY SUR ORNAIN | G161: 2.6 | H161: 152 | I161: 183 | J161: 1 | K161: 183 | L161: 125 | M161: 120 | N161: 165 | O161: 57 | P161: 42 | Q161: 122 | R161: 132 | S161: 122 | T161: 156 | U161: 200 | V161: 232 | W161: 56 | X161: 223
A162: 110 | B162: MEURTHE ET MOSELLE MEUSE | C162: 31 | D162: VERDUN | E162: 555679 | F162: VERDUN MAZEL | G162: 3.9 | H162: 153 | I162: 39 | J162: 1 | K162: 39 | L162: 180 | M162: 168 | N162: 179 | O162: 127 | P162: 106 | Q162: 151 | R162: 192 | S162: 187 | T162: 201 | U162: 152 | V162: 125 | W162: 172 | X162: 152
A163: 110 | B163: MARNE ARDENNES | C163: 11 | D163: REIMS | E163: 551367 | F163: AY CHAMPAGNE | G163: 2.9 | H163: 154 | I163: 56 | J163: 1 | K163: 56 | L163: 172 | M163: 152 | N163: 216 | O163: 178 | P163: 141 | Q163: 236 | R163: 145 | S163: 140 | T163: 162 | U163: 156 | V163: 117 | W163: 205 | X163: 156
A164: 110 | B164: HAUT RHIN | C164: 5169 | D164: MULHOUSE | E164: 4194 | F164: THANN | G164: 10.1 | H164: 155 | I164: 14 | J164: 1 | K164: 14 | L164: 203 | M164: 189 | N164: 195 | O164: 161 | P164: 145 | Q164: 162 | R164: 175 | S164: 165 | T164: 190 | U164: 197 | V164: 185 | W164: 177 | X164: 186
A165: 110 | B165: MOSELLE | C165: 42 | D165: MOSELLE EST | E165: 557503 | F165: NEUNKIRCH | G165: 3.7 | H165: 156 | I165: 8 | J165: 1 | K165: 8 | L165: 185 | M165: 169 | N165: 200 | O165: 196 | P165: 199 | Q165: 160 | R165: 201 | S165: 180 | T165: 234 | U165: 102 | V165: 105 | W165: 57 | X165: 169
A166: 110 | B166: VOSGES | C166: 55 | D166: SAINT DIE | E166: 588461 | F166: MOYENMOUTIER | G166: 4.7 | H166: 157 | I166: 192 | J166: 1 | K166: 192 | L166: 114 | M166: 83 | N166: 223 | O166: 111 | P166: 78 | Q166: 194 | R166: 112 | S166: 108 | T166: 122 | U166: 174 | V166: 214 | W166: 104 | X166: 132
A167: 110 | B167: MOSELLE | C167: 45 | D167: METZ | E167: 557612 | F167: SAINTE MARIE AUX CHENES | G167: 3.9 | H167: 158 | I167: 9 | J167: 1 | K167: 9 | L167: 216 | M167: 204 | N167: 228 | O167: 216 | P167: 196 | Q167: 221 | R167: 120 | S167: 107 | T167: 174 | U167: 180 | V167: 189 | W167: 184 | X167: 109
A168: 110 | B168: BAS RHIN | C168: 5101 | D168: SELESTAT | E168: 4109 | F168: MARCKOLSHEIM | G168: 2.9 | H168: 159 | I168: 46 | J168: 1 | K168: 46 | L168: 116 | M168: 109 | N168: 158 | O168: 224 | P168: 212 | Q168: 191 | R168: 127 | S168: 120 | T168: 140 | U168: 217 | V168: 197 | W168: 175 | X168: 230
A169: 110 | B169: VOSGES | C169: 57 | D169: EPINAL | E169: 488281 | F169: ELOYES | G169: 3.9 | H169: 160 | I169: 119 | J169: 1 | K169: 119 | L169: 149 | M169: 142 | N169: 163 | O169: 76 | P169: 64 | Q169: 113 | R169: 208 | S169: 200 | T169: 212 | U169: 159 | V169: 178 | W169: 62 | X169: 200
A170: 110 | B170: MARNE ARDENNES | C170: 2 | D170: CHARLEVILLE MEZIERES | E170: 408862 | F170: REVIN | G170: 4.5 | H170: 161 | I170: 23 | J170: 1 | K170: 23 | L170: 208 | M170: 195 | N170: 202 | O170: 163 | P170: 168 | Q170: 119 | R170: 164 | S170: 176 | T170: 104 | U170: 199 | V170: 184 | W170: 212 | X170: 150
A171: 110 | B171: VOSGES | C171: 57 | D171: EPINAL | E171: 588206 | F171: CHARMES | G171: 2.7 | H171: 162 | I171: 94 | J171: 1 | K171: 94 | L171: 235 | M171: 238 | N171: 135 | O171: 110 | P171: 68 | Q171: 224 | R171: 142 | S171: 184 | T171: 34 | U171: 138 | V171: 234 | W171: 52 | X171: 60
A172: 110 | B172: BAS RHIN | C172: 5060 | D172: HAGUENAU | E172: 4060 | F172: HAGUENAU HOUBLON | G172: 10.7 | H172: 163 | I172: 187 | J172: 1 | K172: 187 | L172: 179 | M172: 156 | N172: 211 | O172: 81 | P172: 53 | Q172: 188 | R172: 106 | S172: 96 | T172: 137 | U172: 194 | V172: 229 | W172: 70 | X172: 204
A173: 110 | B173: MARNE ARDENNES | C173: 2 | D173: CHARLEVILLE MEZIERES | E173: 508815 | F173: CARIGNAN | G173: 2.9 | H173: 164 | I173: 86 | J173: 1 | K173: 86 | L173: 130 | M173: 178 | N173: 47 | O173: 85 | P173: 118 | Q173: 38 | R173: 240 | S173: 239 | T173: 228 | U173: 121 | V173: 55 | W173: 234 | X173: 156
A174: 110 | B174: BAS RHIN | C174: 5060 | D174: HAGUENAU | E174: 4087 | F174: SAVERNE | G174: 5.8 | H174: 165 | I174: 234 | J174: 1 | K174: 234 | L174: 75 | M174: 46 | N174: 181 | O174: 136 | P174: 146 | Q174: 100 | R174: 95 | S174: 74 | T174: 143 | U174: 167 | V174: 230 | W174: 28 | X174: 205
A175: 110 | B175: BAS RHIN | C175: 5006 | D175: STRASBOURG | E175: 4026 | F175: STRASBOURG DANUBE | G175: 3.6 | H175: 166 | I175: 238 | J175: 1 | K175: 238 | L175: 165 | M175: 192 | N175: 88 | O175: 43 | P175: 47 | Q175: 58 | R175: 81 | S175: 124 | T175: 21 | U175: 192 | V175: 226 | W175: 61 | X175: 206
A176: 110 | B176: MEURTHE ET MOSELLE MEUSE | C176: 31 | D176: VERDUN | E176: 554412 | F176: LONGUYON | G176: 2.9 | H176: 167 | I176: 121 | J176: 1 | K176: 121 | L176: 87 | M176: 107 | N176: 60 | O176: 198 | P176: 202 | Q176: 155 | R176: 209 | S176: 216 | T176: 131 | U176: 97 | V176: 82 | W176: 183 | X176: 88
A177: 110 | B177: BAS RHIN | C177: 5060 | D177: HAGUENAU | E177: 4031 | F177: TRUCHTERSHEIM | G177: 2.9 | H177: 168 | I177: 28 | J177: 1 | K177: 28 | L177: 60 | M177: 20 | N177: 233 | O177: 233 | P177: 222 | Q177: 232 | R177: 215 | S177: 201 | T177: 237 | U177: 187 | V177: 119 | W177: 237 | X177: 190
A178: 110 | B178: MEURTHE ET MOSELLE MEUSE | C178: 26 | D178: NANCY | E178: 554296 | F178: ESSEY LES NANCY | G178: 3.9 | H178: 169 | I178: 35 | J178: 1 | K178: 35 | L178: 214 | M178: 220 | N178: 153 | O178: 130 | P178: 120 | Q178: 134 | R178: 194 | S178: 196 | T178: 174 | U178: 185 | V178: 236 | W178: 85 | X178: 109
A179: 110 | B179: MARNE ARDENNES | C179: 6 | D179: CHALONS EN CHAMPAGNE | E179: 551354 | F179: VERTUS | G179: 2.5 | H179: 170 | I179: 6 | J179: 1 | K179: 6 | L179: 152 | M179: 115 | N179: 243 | O179: 204 | P179: 201 | Q179: 178 | R179: 220 | S179: 219 | T179: 219 | U179: 161 | V179: 199 | W179: 106 | X179: 140
A180: 110 | B180: VOSGES | C180: 57 | D180: EPINAL | E180: 588631 | F180: THAON LES VOSGES | G180: 5.9 | H180: 171 | I180: 107 | J180: 1 | K180: 107 | L180: 169 | M180: 160 | N180: 182 | O180: 175 | P180: 159 | Q180: 180 | R180: 173 | S180: 189 | T180: 90 | U180: 154 | V180: 151 | W180: 153 | X180: 135
A181: 110 | B181: BAS RHIN | C181: 5006 | D181: STRASBOURG | E181: 4029 | F181: SCHILTIGHEIM KLEBER | G181: 2.9 | H181: 172 | I181: 110 | J181: 1 | K181: 110 | L181: 218 | M181: 213 | N181: 208 | O181: 128 | P181: 89 | Q181: 199 | R181: 137 | S181: 151 | T181: 78 | U181: 220 | V181: 174 | W181: 240 | X181: 190
A182: 160 | B182: VOSGES | C182: 55 | D182: SAINT DIE | E182: 588386 | F182: LE THILLOT | G182: 2.9 | H182: 173 | I182: 63 | J182: 1 | K182: 63 | L182: 174 | M182: 135 | N182: 239 | O182: 137 | P182: 113 | Q182: 199 | R182: 205 | S182: 195 | T182: 215 | U182: 210 | V182: 187 | W182: 223 | X182: 172
A183: 160 | B183: AUBE HAUTE MARNE | C183: 14 | D183: TROYES | E183: 410571 | F183: ROMILLY SUR SEINE | G183: 6.1 | H183: 174 | I183: 140 | J183: 1 | K183: 140 | L183: 187 | M183: 185 | N183: 162 | O183: 222 | P183: 220 | Q183: 137 | R183: 133 | S183: 135 | T183: 114 | U183: 106 | V183: 128 | W183: 41 | X183: 151
A184: 160 | B184: BAS RHIN | C184: 5006 | D184: STRASBOURG | E184: 4028 | F184: BISCHHEIM | G184: 3.9 | H184: 175 | I184: 180 | J184: 1 | K184: 180 | L184: 135 | M184: 136 | N184: 130 | O184: 214 | P184: 229 | Q184: 71 | R184: 93 | S184: 97 | T184: 74 | U184: 165 | V184: 175 | W184: 146 | X184: 142
A185: 160 | B185: BAS RHIN | C185: 5006 | D185: STRASBOURG | E185: 4039 | F185: REICHSTETT | G185: 1.8 | H185: 176 | I185: 130 | J185: 1 | K185: 130 | L185: 155 | M185: 132 | N185: 214 | O185: 173 | P185: 174 | Q185: 110 | R185: 176 | S185: 174 | T185: 157 | U185: 186 | V185: 191 | W185: 202 | X185: 120
A186: 160 | B186: MARNE ARDENNES | C186: 6 | D186: CHALONS EN CHAMPAGNE | E186: 551110 | F186: CHALONS ROOSEVELT | G186: 5.8 | H186: 177 | I186: 104 | J186: 1 | K186: 104 | L186: 193 | M186: 181 | N186: 203 | O186: 205 | P186: 206 | Q186: 163 | R186: 135 | S186: 115 | T186: 183 | U186: 188 | V186: 166 | W186: 182 | X186: 184
A187: 160 | B187: MOSELLE | C187: 45 | D187: METZ | E187: 557437 | F187: METZ SARRE | G187: 2.9 | H187: 178 | I187: 237 | J187: 1 | K187: 237 | L187: 34 | M187: 90 | N187: 8 | O187: 157 | P187: 165 | Q187: 102 | R187: 158 | S187: 205 | T187: 29 | U187: 172 | V187: 233 | W187: 191 | X187: 46
A188: 160 | B188: BAS RHIN | C188: 5101 | D188: SELESTAT | E188: 4127 | F188: ROSHEIM | G188: 2.0 | H188: 179 | I188: 153 | J188: 1 | K188: 153 | L188: 238 | M188: 226 | N188: 246 | O188: 36 | P188: 19 | Q188: 211 | R188: 172 | S188: 158 | T188: 205 | U188: 229 | V188: 247 | W188: 148 | X188: 160
A189: 160 | B189: VOSGES | C189: 55 | D189: SAINT DIE | E189: 488586 | F189: SAINT DIE | G189: 15.1 | H189: 180 | I189: 59 | J189: 1 | K189: 59 | L189: 194 | M189: 170 | N189: 229 | O189: 105 | P189: 62 | Q189: 235 | R189: 229 | S189: 218 | T189: 238 | U189: 214 | V189: 183 | W189: 219 | X189: 196
A190: 160 | B190: MOSELLE | C190: 45 | D190: METZ | E190: 557559 | F190: REMILLY | G190: 3.9 | H190: 181 | I190: 222 | J190: 1 | K190: 222 | L190: 204 | M190: 194 | N190: 163 | O190: 122 | P190: 99 | Q190: 153 | R190: 139 | S190: 134 | T190: 136 | U190: 77 | V190: 104 | W190: 38 | X190: 109
A191: 160 | B191: MEURTHE ET MOSELLE MEUSE | C191: 27 | D191: PONT A MOUSSON | E191: 454355 | F191: JARNY | G191: 4.3 | H191: 182 | I191: 150 | J191: 1 | K191: 150 | L191: 196 | M191: 191 | N191: 176 | O191: 121 | P191: 94 | Q191: 164 | R191: 163 | S191: 172 | T191: 128 | U191: 205 | V191: 182 | W191: 208 | X191: 188
A192: 160 | B192: MEURTHE ET MOSELLE MEUSE | C192: 27 | D192: PONT A MOUSSON | E192: 554184 | F192: BRIEY | G192: 3.6 | H192: 183 | I192: 70 | J192: 1 | K192: 70 | L192: 225 | M192: 233 | N192: 138 | O192: 237 | P192: 230 | Q192: 230 | R192: 154 | S192: 139 | T192: 207 | U192: 68 | V192: 61 | W192: 91 | X192: 72
A193: 160 | B193: MARNE ARDENNES | C193: 2 | D193: CHARLEVILLE MEZIERES | E193: 508819 | F193: MOUZON | G193: 2.0 | H193: 184 | I193: 101 | J193: 1 | K193: 101 | L193: 217 | M193: 234 | N193: 83 | O193: 185 | P193: 171 | Q193: 176 | R193: 200 | S193: 210 | T193: 126 | U193: 104 | V193: 120 | W193: 200 | X193: 41
A194: 160 | B194: VOSGES | C194: 57 | D194: EPINAL | E194: 488291 | F194: EPINAL AVRINSART | G194: 1.7 | H194: 185 | I194: 88 | J194: 1 | K194: 88 | L194: 186 | M194: 205 | N194: 92 | O194: 104 | P194: 72 | Q194: 203 | R194: 228 | S194: 233 | T194: 154 | U194: 242 | V194: 241 | W194: 176 | X194: 215
A195: 160 | B195: BAS RHIN | C195: 5101 | D195: SELESTAT | E195: 4008 | F195: FEGERSHEIM | G195: 2.9 | H195: 186 | I195: 217 | J195: 1 | K195: 217 | L195: 103 | M195: 58 | N195: 233 | O195: 101 | P195: 54 | Q195: 241 | R195: 167 | S195: 145 | T195: 228 | U195: 238 | V195: 194 | W195: 194 | X195: 244
A196: 160 | B196: MOSELLE | C196: 44 | D196: MOSELLE NORD | E196: 457180 | F196: BOUSSE | G196: 2.4 | H196: 187 | I196: 16 | J196: 1 | K196: 16 | L196: 132 | M196: 96 | N196: 235 | O196: 199 | P196: 157 | Q196: 247 | R196: 234 | S196: 217 | T196: 247 | U196: 247 | V196: 227 | W196: 231 | X196: 246
A197: 160 | B197: BAS RHIN | C197: 5101 | D197: SELESTAT | E197: 4101 | F197: SELESTAT CENTRE | G197: 9.7 | H197: 188 | I197: 191 | J197: 1 | K197: 191 | L197: 110 | M197: 85 | N197: 187 | O197: 191 | P197: 177 | Q197: 197 | R197: 188 | S197: 197 | T197: 123 | U197: 136 | V197: 141 | W197: 77 | X197: 163
A198: 160 | B198: MARNE ARDENNES | C198: 2 | D198: CHARLEVILLE MEZIERES | E198: 508833 | F198: VILLERS SEMEUSE CORA | G198: 4.3 | H198: 189 | I198: 173 | J198: 1 | K198: 173 | L198: 202 | M198: 202 | N198: 140 | O198: 94 | P198: 90 | Q198: 99 | R198: 225 | S198: 224 | T198: 214 | U198: 124 | V198: 89 | W198: 226 | X198: 95
A199: 160 | B199: AUBE HAUTE MARNE | C199: 14 | D199: TROYES | E199: 410550 | F199: BAR SUR AUBE | G199: 4.9 | H199: 190 | I199: 161 | J199: 1 | K199: 161 | L199: 173 | M199: 196 | N199: 75 | O199: 234 | P199: 226 | Q199: 218 | R199: 143 | S199: 154 | T199: 108 | U199: 109 | V199: 157 | W199: 17 | X199: 183
A200: 160 | B200: MOSELLE | C200: 45 | D200: METZ | E200: 557459 | F200: MOULINS LES METZ | G200: 2.0 | H200: 191 | I200: 182 | J200: 1 | K200: 182 | L200: 230 | M200: 215 | N200: 245 | O200: 125 | P200: 71 | Q200: 243 | R200: 180 | S200: 144 | T200: 244 | U200: 108 | V200: 137 | W200: 107 | X200: 78
A201: 160 | B201: VOSGES | C201: 57 | D201: EPINAL | E201: 588501 | F201: NEUFCHATEAU | G201: 5.8 | H201: 192 | I201: 134 | J201: 1 | K201: 134 | L201: 207 | M201: 210 | N201: 147 | O201: 220 | P201: 203 | Q201: 216 | R201: 107 | S201: 105 | T201: 113 | U201: 243 | V201: 220 | W201: 247 | X201: 187
A202: 160 | B202: HAUT RHIN | C202: 5130 | D202: COLMAR | E202: 4148 | F202: ORBEY | G202: 3.8 | H202: 193 | I202: 118 | J202: 1 | K202: 118 | L202: 166 | M202: 130 | N202: 241 | O202: 219 | P202: 187 | Q202: 245 | R202: 182 | S202: 163 | T202: 232 | U202: 196 | V202: 213 | W202: 128 | X202: 189
A203: 160 | B203: AUBE HAUTE MARNE | C203: 14 | D203: TROYES | E203: 410512 | F203: TROYES ZOLA | G203: 4.8 | H203: 194 | I203: 230 | J203: 1 | K203: 230 | L203: 205 | M203: 199 | N203: 161 | O203: 45 | P203: 35 | Q203: 94 | R203: 148 | S203: 152 | T203: 131 | U203: 245 | V203: 242 | W203: 124 | X203: 249
A204: 160 | B204: HAUT RHIN | C204: 5169 | D204: MULHOUSE | E204: 4185 | F204: RIXHEIM | G204: 2.4 | H204: 195 | I204: 240 | J204: 1 | K204: 240 | L204: 241 | M204: 241 | N204: 186 | O204: 24 | P204: 16 | Q204: 129 | R204: 165 | S204: 177 | T204: 106 | U204: 135 | V204: 85 | W204: 103 | X204: 239
... 55 more rows

Sheet AG_FICHE
A1: Accueil
A2: BAROMETRE GRAND PUBLIC
A4: UNITE: | B4: Agence | E4: ETP perf : | F4: =VLOOKUP(A5,'RECAP AG'!$G$6:$CY$256,3,FALSE) -> 4.51
A5: =VLOOKUP(B5,LISTES!$C$6:$D$263,2,FALSE) -> 4189 | B5: ALTKIRCH
C6: Coefficient du critère | E6: Résultats | I6: Ecart au 1ier | K6: =IF(OR(A5=4017,A5=4022),"Rang estimé","Rang") -> Rang
E7: du 1ier | G7: de l'Agence | I7: Du mois
A9: RANG GRAND PUBLIC | K9: =VLOOKUP($A$5,'RECAP AG'!$G$6:$CY$256,104,FALSE) -> 
A11: SATISFACTION CLIENTS | C11: 20% | K11: =VLOOKUP($A$5,'RECAP AG'!$G$6:$CY$256,13,FALSE) -> 247
B12: NPS à froid (SAE) | C12: 10% | E12: =+'RECAP AG'!K4 -> 2 | G12: =VLOOKUP($A$5,'RECAP AG'!$G$6:$CY$256,5,FALSE) -> 2.0 | I12: =VLOOKUP($A$5,'RECAP AG'!$G$6:$CY$256,6,FALSE) -> 0% | K12: =VLOOKUP($A$5,'RECAP AG'!$G$6:$CY$256,7,FALSE) -> 1
B13: NPS à chaud (QHD) | C13: 10% | E13: =+'RECAP AG'!M4 -> 10% | G13: =VLOOKUP($A$5,'RECAP AG'!$G$6:$CY$256,8,FALSE) -> 19% | I13: =VLOOKUP($A$5,'RECAP AG'!$G$6:$CY$256,9,FALSE) -> 79% | K13: =VLOOKUP($A$5,'RECAP AG'!$G$6:$CY$256,10,FALSE) -> 247
A15: BANCARISATION | C15: 20% | K15: =VLOOKUP($A$5,'RECAP AG'!$G$6:$CY$256,36,FALSE) -> 208
B16: Ventes Nettes produits pondérés | C16: 10% | E16: ='RECAP AG'!X4 -> 49.0 | G16: =VLOOKUP($A$5,'RECAP AG'!$G$6:$CY$256,19,FALSE) -> -9.1 | I16: =VLOOKUP($A$5,'RECAP AG'!$G$6:$CY$256,20,FALSE) -> 119% | K16: =VLOOKUP($A$5,'RECAP AG'!$G$6:$CY$256,21,FALSE) -> 248
B17: Ventes sur client non détenteur de l’univers | C17: 4% | E17: ='RECAP AG'!AB4 -> 89.5 | G17: =VLOOKUP($A$5,'RECAP AG'!$G$6:$CY$256,23,FALSE) -> 7.1 | I17: =VLOOKUP($A$5,'RECAP AG'!$G$6:$CY$256,24,FALSE) -> 92% | K17: =VLOOKUP($A$5,'RECAP AG'!$G$6:$CY$256,25,FALSE) -> 226
A19: EPARGNE | C19: 20% | K19: =VLOOKUP($A$5,'RECAP AG'!$G$6:$CY$256,51,FALSE) -> 208
B20: Excédent Epargne hors DAV pondéré | C20: 14% | E20: ='RECAP AG'!AM4 -> 1119.4 | G20: =VLOOKUP($A$5,'RECAP AG'!$G$6:$CY$256,42,FALSE) -> 0.5 | I20: =VLOOKUP($A$5,'RECAP AG'!$G$6:$CY$256,43,FALSE) -> 22100% | K20: =VLOOKUP($A$5,'RECAP AG'!$G$6:$CY$256,44,FALSE) -> 0
B21: Ventes sur client non détenteur de l’univers | C21: 6% | E21: ='RECAP AG'!AQ4 -> 73.8 | G21: =VLOOKUP($A$5,'RECAP AG'!$G$6:$CY$256,46,FALSE) -> 0.0 | I21: =VLOOKUP($A$5,'RECAP AG'!$G$6:$CY$256,47,FALSE) -> 0% | K21: =VLOOKUP($A$5,'RECAP AG'!$G$6:$CY$256,48,FALSE) -> 50.85968698
A23: IARD PREVOYANCE | C23: 20% | K23: =VLOOKUP($A$5,'RECAP AG'!$G$6:$CY$256,85,FALSE) -> 0
B24: Ventes Nettes produits pondérés | C24: 14% | E24: ='RECAP AG'!BU4 -> 191.8 | G24: =VLOOKUP($A$5,'RECAP AG'!$G$6:$CY$256,76,FALSE) -> 0.8 | I24: =VLOOKUP($A$5,'RECAP AG'!$G$6:$CY$256,77,FALSE) -> 20600% | K24: =VLOOKUP($A$5,'RECAP AG'!$G$6:$CY$256,78,FALSE) -> 0
B25: Ventes sur client non détenteur de l’univers | C25: 6% | E25: ='RECAP AG'!BY4 -> 61.0 | G25: =VLOOKUP($A$5,'RECAP AG'!$G$6:$CY$256,80,FALSE) -> 0.0 | I25: =VLOOKUP($A$5,'RECAP AG'!$G$6:$CY$256,81,FALSE) -> 0% | K25: =VLOOKUP($A$5,'RECAP AG'!$G$6:$CY$256,82,FALSE) -> 0
A27: CREDITS | C27: 20% | K27: =VLOOKUP($A$5,'RECAP AG'!$G$6:$CY$256,70,FALSE) -> 207
B28: Engagements et ventes accessoires pondérés Immo | C28: 8% | E28: ='RECAP AG'!BB4 -> 157.6 | G28: =VLOOKUP($A$5,'RECAP AG'!$G$6:$CY$256,57,FALSE) -> 2.4 | I28: =VLOOKUP($A$5,'RECAP AG'!$G$6:$CY$256,58,FALSE) -> 94% | K28: =VLOOKUP($A$5,'RECAP AG'!$G$6:$CY$256,59,FALSE) -> 229
B29: Engagements et ventes accessoires pondérés Conso | C29: 6% | E29: ='RECAP AG'!BF4 -> 96.0 | G29: =VLOOKUP($A$5,'RECAP AG'!$G$6:$CY$256,61,FALSE) -> 0.9 | I29: =VLOOKUP($A$5,'RECAP AG'!$G$6:$CY$256,62,FALSE) -> 23900% | K29: =VLOOKUP($A$5,'RECAP AG'!$G$6:$CY$256,63,FALSE) -> 0
B30: Ventes sur client non détenteur de l’univers | C30: 6% | E30: ='RECAP AG'!BJ4 -> 43.8 | G30: =VLOOKUP($A$5,'RECAP AG'!$G$6:$CY$256,65,FALSE) -> 0.0 | I30: =VLOOKUP($A$5,'RECAP AG'!$G$6:$CY$256,66,FALSE) -> 0% | K30: =VLOOKUP($A$5,'RECAP AG'!$G$6:$CY$256,67,FALSE) -> 22

Sheet AG_TOTAL
B1: Accueil | H1: BAROMETRE BDD - AGENCES
H2: TOTAL GENERAL
H3: =ACCUEIL!F7 -> 2022-03-06
H7: TOTAL GENERAL | K7: Total Satisfaction Clients | N7: Total Bancarisation | Q7: Total Epargne | T7: Total IARD Prévoyance | W7: Total Crédits
I8: coef | J8: =M8+P8+S8+V8+Y8 -> 100% | L8: coef | M8: =AG_SATISFACTION!P8 -> 20% | O8: coef | P8: =AG_BANCA!R8 -> 20% | R8: coef | S8: =AG_EPARGNE!R8 -> 20% | U8: coef | V8: =AG_IARD!R8 -> 20% | X8: coef | Y8: =AG_CREDIT!V8 -> 20%
B9: Direction | C9: eds | D9: Territoire | E9: eds | F9: Agence | G9: ="ETP perf "&DATEMAJ!$C$28 -> ETP perf 31-janv | H9: Moyenne ecart au 1er | I9: % Ecart au 1er | J9: Rang CEGEE | K9: Moyenne ecart au 1er | L9: % Ecart au 1er | M9: Rang CEGEE | N9: Moyenne ecart au 1er | O9: % Ecart au 1er | P9: Rang CEGEE | Q9: Moyenne ecart au 1er | R9: % Ecart au 1er | S9: Rang CEGEE | T9: Moyenne ecart au 1er | U9: % Ecart au 1er | V9: Rang CEGEE | W9: Moyenne ecart au 1er | X9: % Ecart au 1er | Y9: Rang CEGEE
A10: 50 | B10: MEURTHE ET MOSELLE MEUSE | C10: 26 | D10: NANCY | E10: 454171 | F10: BLAMONT | G10: 0.5 | H10: 18% | I10: 0% | J10: 1 | K10: 50% | L10: 50% | M10: 248 | N10: 0% | O10: 0% | P10: 1 | Q10: 51% | R10: 19% | S10: 9 | T10: 29% | U10: 20% | V10: 2 | W10: 0% | X10: 0% | Y10: 1
A11: 50 | B11: MOSELLE | C11: 44 | D11: MOSELLE NORD | E11: 557508 | F11: NILVANGE | G11: 2.0 | H11: 23% | I11: 5% | J11: 2 | K11: 9% | L11: 9% | M11: 50 | N11: 38% | O11: 38% | P11: 2 | Q11: 45% | R11: 13% | S11: 2 | T11: 9% | U11: 0% | V11: 1 | W11: 55% | X11: 55% | Y11: 3
A12: 50 | B12: MOSELLE | C12: 42 | D12: MOSELLE EST | E12: 457163 | F12: BEHREN LES FORBACH | G12: 2.0 | H12: 39% | I12: 21% | J12: 3 | K12: 0% | L12: 0% | M12: 1 | N12: 62% | O12: 62% | P12: 6 | Q12: 48% | R12: 17% | S12: 6 | T12: 79% | U12: 70% | V12: 84 | W12: 47% | X12: 47% | Y12: 2
A13: 50 | B13: MOSELLE | C13: 45 | D13: METZ | E13: 557447 | F13: METZ SAINT MAXIMIN | G13: 2.0 | H13: 44% | I13: 26% | J13: 4 | K13: 16% | L13: 16% | M13: 127 | N13: 71% | O13: 71% | P13: 12 | Q13: 60% | R13: 29% | S13: 25 | T13: 47% | U13: 37% | V13: 4 | W13: 67% | X13: 67% | Y13: 6
A14: 50 | B14: VOSGES | C14: 57 | D14: EPINAL | E14: 488288 | F14: EPINAL LEOPOLD BOURG | G14: 2.0 | H14: 46% | I14: 28% | J14: 5 | K14: 3% | L14: 3% | M14: 7 | N14: 70% | O14: 70% | P14: 8 | Q14: 53% | R14: 21% | S14: 11 | T14: 67% | U14: 58% | V14: 25 | W14: 79% | X14: 79% | Y14: 44
A15: 50 | B15: MARNE ARDENNES | C15: 11 | D15: REIMS | E15: 551306 | F15: REIMS SAINT MARCEAUX | G15: 4.8 | H15: 47% | I15: 30% | J15: 6 | K15: 6% | L15: 6% | M15: 25 | N15: 61% | O15: 61% | P15: 3 | Q15: 77% | R15: 45% | S15: 172 | T15: 65% | U15: 56% | V15: 22 | W15: 68% | X15: 68% | Y15: 7
A16: 50 | B16: BAS RHIN | C16: 5006 | D16: STRASBOURG | E16: 4048 | F16: STRASBOURG KOENIGSHOFFEN | G16: 2.9 | H16: 48% | I16: 31% | J16: 7 | K16: 14% | L16: 14% | M16: 100 | N16: 78% | O16: 78% | P16: 25 | Q16: 62% | R16: 31% | S16: 33 | T16: 50% | U16: 41% | V16: 5 | W16: 80% | X16: 80% | Y16: 52
A17: 50 | B17: MARNE ARDENNES | C17: 2 | D17: CHARLEVILLE MEZIERES | E17: 508820 | F17: VOUZIERS | G17: 2.9 | H17: 49% | I17: 31% | J17: 8 | K17: 11% | L17: 11% | M17: 65 | N17: 81% | O17: 81% | P17: 45 | Q17: 69% | R17: 37% | S17: 78 | T17: 46% | U17: 37% | V17: 3 | W17: 77% | X17: 77% | Y17: 35
A18: 50 | B18: MARNE ARDENNES | C18: 11 | D18: REIMS | E18: 551349 | F18: REIMS SAINT REMI | G18: 2.9 | H18: 49% | I18: 31% | J18: 9 | K18: 11% | L18: 11% | M18: 61 | N18: 61% | O18: 61% | P18: 4 | Q18: 84% | R18: 53% | S18: 227 | T18: 71% | U18: 61% | V18: 34 | W18: 58% | X18: 58% | Y18: 4
A19: 50 | B19: BAS RHIN | C19: 5006 | D19: STRASBOURG | E19: 4043 | F19: STRASBOURG HALLES | G19: 7.6 | H19: 50% | I19: 32% | J19: 10 | K19: 12% | L19: 12% | M19: 80 | N19: 75% | O19: 75% | P19: 19 | Q19: 62% | R19: 30% | S19: 30 | T19: 58% | U19: 48% | V19: 10 | W19: 82% | X19: 82% | Y19: 72
A20: 50 | B20: AUBE HAUTE MARNE | C20: 21 | D20: CHAUMONT | E20: 510590 | F20: CHAUMONT REPUBLIQUE | G20: 2.9 | H20: 50% | I20: 32% | J20: 11 | K20: 12% | L20: 12% | M20: 77 | N20: 83% | O20: 83% | P20: 68 | Q20: 63% | R20: 31% | S20: 37 | T20: 56% | U20: 47% | V20: 8 | W20: 76% | X20: 76% | Y20: 25
A21: 50 | B21: MOSELLE | C21: 44 | D21: MOSELLE NORD | E21: 557113 | F21: AUDUN LE TICHE | G21: 2.9 | H21: 50% | I21: 32% | J21: 12 | K21: 7% | L21: 7% | M21: 26 | N21: 86% | O21: 86% | P21: 92 | Q21: 68% | R21: 36% | S21: 73 | T21: 57% | U21: 48% | V21: 9 | W21: 74% | X21: 74% | Y21: 19
A22: 50 | B22: MARNE ARDENNES | C22: 2 | D22: CHARLEVILLE MEZIERES | E22: 408801 | F22: CHARLEVILLE JEAN JAURES | G22: 9.3 | H22: 50% | I22: 33% | J22: 13 | K22: 6% | L22: 6% | M22: 24 | N22: 78% | O22: 78% | P22: 31 | Q22: 72% | R22: 41% | S22: 117 | T22: 69% | U22: 59% | V22: 26 | W22: 67% | X22: 67% | Y22: 5
A23: 50 | B23: MEURTHE ET MOSELLE MEUSE | C23: 26 | D23: NANCY | E23: 554601 | F23: SAINT MAX | G23: 3.9 | H23: 51% | I23: 33% | J23: 14 | K23: 8% | L23: 8% | M23: 33 | N23: 80% | O23: 80% | P23: 40 | Q23: 59% | R23: 27% | S23: 20 | T23: 67% | U23: 57% | V23: 24 | W23: 80% | X23: 80% | Y23: 55
A24: 50 | B24: MOSELLE | C24: 45 | D24: METZ | E24: 457443 | F24: METZ REPUBLIQUE | G24: 3.9 | H24: 51% | I24: 34% | J24: 15 | K24: 3% | L24: 3% | M24: 4 | N24: 90% | O24: 90% | P24: 136 | Q24: 56% | R24: 24% | S24: 14 | T24: 62% | U24: 53% | V24: 18 | W24: 88% | X24: 88% | Y24: 149
A25: 50 | B25: MEURTHE ET MOSELLE MEUSE | C25: 27 | D25: PONT A MOUSSON | E25: 554531 | F25: POMPEY | G25: 2.9 | H25: 52% | I25: 34% | J25: 16 | K25: 23% | L25: 23% | M25: 184 | N25: 70% | O25: 70% | P25: 10 | Q25: 66% | R25: 34% | S25: 50 | T25: 71% | U25: 61% | V25: 32 | W25: 69% | X25: 69% | Y25: 9
A26: 50 | B26: BAS RHIN | C26: 5101 | D26: SELESTAT | E26: 4104 | F26: ERSTEIN | G26: 4.5 | H26: 52% | I26: 34% | J26: 17 | K26: 27% | L26: 27% | M26: 210 | N26: 62% | O26: 62% | P26: 5 | Q26: 67% | R26: 35% | S26: 66 | T26: 64% | U26: 55% | V26: 21 | W26: 79% | X26: 79% | Y26: 45
A27: 50 | B27: MARNE ARDENNES | C27: 11 | D27: REIMS | E27: 551305 | F27: REIMS HIPPODROME | G27: 5.7 | H27: 52% | I27: 34% | J27: 18 | K27: 8% | L27: 8% | M27: 31 | N27: 82% | O27: 82% | P27: 50 | Q27: 64% | R27: 32% | S27: 41 | T27: 72% | U27: 63% | V27: 38 | W27: 77% | X27: 77% | Y27: 29
A28: 262 | B28: MOSELLE | C28: 44 | D28: MOSELLE NORD | E28: 457632 | F28: THIONVILLE CENTRALE | G28: 11.5 | H28: 52% | I28: 34% | J28: 19 | K28: 11% | L28: 11% | M28: 71 | N28: 77% | O28: 77% | P28: 22 | Q28: 73% | R28: 41% | S28: 119 | T28: 64% | U28: 55% | V28: 20 | W28: 77% | X28: 77% | Y28: 32
A29: 262 | B29: MARNE ARDENNES | C29: 6 | D29: CHALONS EN CHAMPAGNE | E29: 551103 | F29: FAGNIERES LECLERC | G29: 2.9 | H29: 52% | I29: 35% | J29: 20 | K29: 7% | L29: 7% | M29: 29 | N29: 86% | O29: 86% | P29: 94 | Q29: 68% | R29: 36% | S29: 74 | T29: 63% | U29: 53% | V29: 19 | W29: 78% | X29: 78% | Y29: 41
A30: 262 | B30: MOSELLE | C30: 42 | D30: MOSELLE EST | E30: 457165 | F30: BITCHE | G30: 2.7 | H30: 52% | I30: 35% | J30: 21 | K30: 50% | L30: 50% | M30: 248 | N30: 65% | O30: 65% | P30: 7 | Q30: 55% | R30: 24% | S30: 13 | T30: 53% | U30: 44% | V30: 7 | W30: 80% | X30: 80% | Y30: 54
A31: 262 | B31: MOSELLE | C31: 42 | D31: MOSELLE EST | E31: 557523 | F31: PHALSBOURG | G31: 1.8 | H31: 53% | I31: 35% | J31: 22 | K31: 13% | L31: 13% | M31: 97 | N31: 93% | O31: 93% | P31: 184 | Q31: 56% | R31: 25% | S31: 16 | T31: 58% | U31: 49% | V31: 12 | W31: 83% | X31: 83% | Y31: 80
A32: 262 | B32: MOSELLE | C32: 42 | D32: MOSELLE EST | E32: 457583 | F32: SAINT AVOLD | G32: 7.2 | H32: 53% | I32: 35% | J32: 23 | K32: 13% | L32: 13% | M32: 91 | N32: 70% | O32: 70% | P32: 9 | Q32: 67% | R32: 35% | S32: 61 | T32: 75% | U32: 66% | V32: 51 | W32: 80% | X32: 80% | Y32: 53
A33: 262 | B33: MARNE ARDENNES | C33: 11 | D33: REIMS | E33: 451336 | F33: TINQUEUX | G33: 5.8 | H33: 53% | I33: 35% | J33: 24 | K33: 17% | L33: 17% | M33: 139 | N33: 89% | O33: 89% | P33: 121 | Q33: 32% | R33: 0% | S33: 1 | T33: 87% | U33: 78% | V33: 159 | W33: 79% | X33: 79% | Y33: 48
A34: 262 | B34: MOSELLE | C34: 45 | D34: METZ | E34: 457574 | F34: ROMBAS | G34: 3.7 | H34: 53% | I34: 35% | J34: 25 | K34: 11% | L34: 11% | M34: 58 | N34: 84% | O34: 84% | P34: 78 | Q34: 67% | R34: 36% | S34: 67 | T34: 58% | U34: 48% | V34: 11 | W34: 85% | X34: 85% | Y34: 100
A35: 262 | B35: BAS RHIN | C35: 5060 | D35: HAGUENAU | E35: 4079 | F35: SOULTZ SOUS FORETS | G35: 2.0 | H35: 53% | I35: 35% | J35: 26 | K35: 0% | L35: 0% | M35: 2 | N35: 80% | O35: 80% | P35: 39 | Q35: 61% | R35: 29% | S35: 26 | T35: 75% | U35: 66% | V35: 55 | W35: 89% | X35: 89% | Y35: 175
A36: 262 | B36: MOSELLE | C36: 44 | D36: MOSELLE NORD | E36: 457350 | F36: HAYANGE | G36: 7.7 | H36: 53% | I36: 35% | J36: 27 | K36: 19% | L36: 19% | M36: 154 | N36: 75% | O36: 75% | P36: 17 | Q36: 67% | R36: 35% | S36: 64 | T36: 69% | U36: 59% | V36: 27 | W36: 76% | X36: 76% | Y36: 27
A37: 262 | B37: MOSELLE | C37: 42 | D37: MOSELLE EST | E37: 457308 | F37: FORBACH CENTRALE | G37: 10.6 | H37: 53% | I37: 35% | J37: 28 | K37: 13% | L37: 13% | M37: 96 | N37: 74% | O37: 74% | P37: 14 | Q37: 70% | R37: 38% | S37: 86 | T37: 69% | U37: 60% | V37: 28 | W37: 81% | X37: 81% | Y37: 58
A38: 262 | B38: MOSELLE | C38: 45 | D38: METZ | E38: 457453 | F38: MONTIGNY LES METZ | G38: 7.2 | H38: 53% | I38: 35% | J38: 29 | K38: 5% | L38: 5% | M38: 13 | N38: 78% | O38: 78% | P38: 24 | Q38: 70% | R38: 38% | S38: 89 | T38: 81% | U38: 72% | V38: 103 | W38: 74% | X38: 74% | Y38: 18
A39: 262 | B39: MEURTHE ET MOSELLE MEUSE | C39: 26 | D39: NANCY | E39: 454481 | F39: NANCY PLACE DOMBASLE | G39: 8.6 | H39: 53% | I39: 35% | J39: 30 | K39: 28% | L39: 28% | M39: 212 | N39: 74% | O39: 74% | P39: 16 | Q39: 56% | R39: 24% | S39: 15 | T39: 80% | U39: 71% | V39: 98 | W39: 69% | X39: 69% | Y39: 10
A40: 262 | B40: MOSELLE | C40: 45 | D40: METZ | E40: 557105 | F40: ARS SUR MOSELLE | G40: 3.9 | H40: 53% | I40: 36% | J40: 31 | K40: 19% | L40: 19% | M40: 149 | N40: 76% | O40: 76% | P40: 20 | Q40: 71% | R40: 39% | S40: 100 | T40: 73% | U40: 64% | V40: 43 | W40: 69% | X40: 69% | Y40: 8
A41: 262 | B41: MARNE ARDENNES | C41: 6 | D41: CHALONS EN CHAMPAGNE | E41: 551330 | F41: MONTMIRAIL | G41: 2.9 | H41: 54% | I41: 36% | J41: 32 | K41: 6% | L41: 6% | M41: 21 | N41: 82% | O41: 82% | P41: 55 | Q41: 77% | R41: 45% | S41: 171 | T41: 61% | U41: 52% | V41: 16 | W41: 83% | X41: 83% | Y41: 76
A42: 262 | B42: BAS RHIN | C42: 5006 | D42: STRASBOURG | E42: 4010 | F42: STRASBOURG MEINAU | G42: 2.9 | H42: 54% | I42: 36% | J42: 33 | K42: 16% | L42: 16% | M42: 131 | N42: 83% | O42: 83% | P42: 62 | Q42: 64% | R42: 32% | S42: 40 | T42: 60% | U42: 51% | V42: 15 | W42: 87% | X42: 87% | Y42: 137
A43: 262 | B43: BAS RHIN | C43: 5006 | D43: STRASBOURG | E43: 4037 | F43: MUNDOLSHEIM | G43: 4.0 | H43: 54% | I43: 37% | J43: 34 | K43: 11% | L43: 11% | M43: 60 | N43: 87% | O43: 87% | P43: 107 | Q43: 69% | R43: 38% | S43: 82 | T43: 67% | U43: 57% | V43: 23 | W43: 79% | X43: 79% | Y43: 46
A44: 262 | B44: MOSELLE | C44: 44 | D44: MOSELLE NORD | E44: 557303 | F44: FAMECK | G44: 2.7 | H44: 54% | I44: 37% | J44: 35 | K44: 8% | L44: 8% | M44: 34 | N44: 85% | O44: 85% | P44: 86 | Q44: 61% | R44: 29% | S44: 27 | T44: 88% | U44: 79% | V44: 161 | W44: 72% | X44: 72% | Y44: 13
A45: 262 | B45: MOSELLE | C45: 45 | D45: METZ | E45: 557434 | F45: MARLY | G45: 3.2 | H45: 55% | I45: 37% | J45: 36 | K45: 5% | L45: 5% | M45: 15 | N45: 85% | O45: 85% | P45: 81 | Q45: 62% | R45: 31% | S45: 34 | T45: 76% | U45: 67% | V45: 61 | W45: 87% | X45: 87% | Y45: 140
A46: 262 | B46: BAS RHIN | C46: 5101 | D46: SELESTAT | E46: 4113 | F46: BARR | G46: 2.9 | H46: 55% | I46: 37% | J46: 37 | K46: 4% | L46: 4% | M46: 10 | N46: 71% | O46: 71% | P46: 11 | Q46: 81% | R46: 49% | S46: 200 | T46: 79% | U46: 69% | V46: 80 | W46: 81% | X46: 81% | Y46: 62
A47: 262 | B47: MOSELLE | C47: 44 | D47: MOSELLE NORD | E47: 557347 | F47: GUENANGE | G47: 5.5 | H47: 55% | I47: 37% | J47: 38 | K47: 18% | L47: 18% | M47: 144 | N47: 80% | O47: 80% | P47: 35 | Q47: 67% | R47: 35% | S47: 62 | T47: 78% | U47: 69% | V47: 78 | W47: 74% | X47: 74% | Y47: 22
A48: 262 | B48: MEURTHE ET MOSELLE MEUSE | C48: 26 | D48: NANCY | E48: 554356 | F48: JARVILLE LA MALGRANGE | G48: 4.3 | H48: 55% | I48: 38% | J48: 39 | K48: 19% | L48: 19% | M48: 148 | N48: 78% | O48: 78% | P48: 27 | Q48: 85% | R48: 53% | S48: 228 | T48: 62% | U48: 52% | V48: 17 | W48: 75% | X48: 75% | Y48: 23
A49: 262 | B49: MOSELLE | C49: 44 | D49: MOSELLE NORD | E49: 457192 | F49: CATTENOM | G49: 1.8 | H49: 55% | I49: 38% | J49: 40 | K49: 8% | L49: 8% | M49: 37 | N49: 83% | O49: 83% | P49: 63 | Q49: 66% | R49: 35% | S49: 59 | T49: 84% | U49: 75% | V49: 130 | W49: 77% | X49: 77% | Y49: 30
A50: 262 | B50: MARNE ARDENNES | C50: 11 | D50: REIMS | E50: 451350 | F50: REIMS CENTRE VILLE | G50: 7.4 | H50: 56% | I50: 38% | J50: 41 | K50: 15% | L50: 15% | M50: 112 | N50: 78% | O50: 78% | P50: 29 | Q50: 79% | R50: 48% | S50: 189 | T50: 71% | U50: 62% | V50: 36 | W50: 76% | X50: 76% | Y50: 28
A51: 262 | B51: VOSGES | C51: 57 | D51: EPINAL | E51: 588336 | F51: GOLBEY | G51: 2.9 | H51: 56% | I51: 38% | J51: 42 | K51: 9% | L51: 9% | M51: 49 | N51: 80% | O51: 80% | P51: 38 | Q51: 56% | R51: 25% | S51: 18 | T51: 89% | U51: 80% | V51: 177 | W51: 85% | X51: 85% | Y51: 103
A52: 262 | B52: AUBE HAUTE MARNE | C52: 21 | D52: CHAUMONT | E52: 451154 | F52: JOINVILLE | G52: 2.0 | H52: 56% | I52: 38% | J52: 43 | K52: 9% | L52: 9% | M52: 41 | N52: 77% | O52: 77% | P52: 23 | Q52: 91% | R52: 59% | S52: 241 | T52: 60% | U52: 50% | V52: 13 | W52: 84% | X52: 84% | Y52: 86
A53: 262 | B53: MOSELLE | C53: 42 | D53: MOSELLE EST | E53: 457543 | F53: PUTTELANGE AUX LACS | G53: 2.8 | H53: 56% | I53: 38% | J53: 44 | K53: 16% | L53: 16% | M53: 123 | N53: 86% | O53: 86% | P53: 90 | Q53: 68% | R53: 36% | S53: 75 | T53: 71% | U53: 61% | V53: 33 | W53: 81% | X53: 81% | Y53: 64
A54: 262 | B54: MOSELLE | C54: 42 | D54: MOSELLE EST | E54: 457614 | F54: SARREBOURG | G54: 8.1 | H54: 56% | I54: 38% | J54: 45 | K54: 13% | L54: 13% | M54: 99 | N54: 85% | O54: 85% | P54: 82 | Q54: 70% | R54: 39% | S54: 91 | T54: 71% | U54: 62% | V54: 35 | W54: 82% | X54: 82% | Y54: 67
A55: 262 | B55: MARNE ARDENNES | C55: 11 | D55: REIMS | E55: 551340 | F55: BETHENY | G55: 2.9 | H55: 56% | I55: 38% | J55: 46 | K55: 13% | L55: 13% | M55: 92 | N55: 85% | O55: 85% | P55: 84 | Q55: 58% | R55: 26% | S55: 19 | T55: 90% | U55: 81% | V55: 183 | W55: 76% | X55: 76% | Y55: 24
A56: 262 | B56: MEURTHE ET MOSELLE MEUSE | C56: 31 | D56: VERDUN | E56: 455678 | F56: VERDUN CENTRALE | G56: 10.0 | H56: 56% | I56: 38% | J56: 47 | K56: 12% | L56: 12% | M56: 82 | N56: 82% | O56: 82% | P56: 59 | Q56: 76% | R56: 44% | S56: 155 | T56: 80% | U56: 71% | V56: 91 | W56: 72% | X56: 72% | Y56: 14
A57: 262 | B57: MOSELLE | C57: 44 | D57: MOSELLE NORD | E57: 557352 | F57: HETTANGE GRANDE | G57: 3.9 | H57: 56% | I57: 39% | J57: 48 | K57: 13% | L57: 13% | M57: 95 | N57: 81% | O57: 81% | P57: 47 | Q57: 71% | R57: 39% | S57: 97 | T57: 84% | U57: 74% | V57: 124 | W57: 74% | X57: 74% | Y57: 21
A58: 262 | B58: MOSELLE | C58: 45 | D58: METZ | E58: 557433 | F58: MARANGE SILVANGE | G58: 2.9 | H58: 56% | I58: 39% | J58: 49 | K58: 21% | L58: 21% | M58: 169 | N58: 80% | O58: 80% | P58: 36 | Q58: 66% | R58: 35% | S58: 54 | T58: 78% | U58: 68% | V58: 73 | W58: 78% | X58: 78% | Y58: 38
A59: 262 | B59: MOSELLE | C59: 42 | D59: MOSELLE EST | E59: 557305 | F59: FAULQUEMONT | G59: 4.9 | H59: 57% | I59: 39% | J59: 50 | K59: 25% | L59: 25% | M59: 197 | N59: 72% | O59: 72% | P59: 13 | Q59: 78% | R59: 47% | S59: 182 | T59: 78% | U59: 69% | V59: 77 | W59: 70% | X59: 70% | Y59: 11
A60: 262 | B60: MOSELLE | C60: 42 | D60: MOSELLE EST | E60: 557250 | F60: CREUTZWALD | G60: 2.7 | H60: 57% | I60: 39% | J60: 51 | K60: 9% | L60: 9% | M60: 48 | N60: 92% | O60: 92% | P60: 164 | Q60: 66% | R60: 34% | S60: 48 | T60: 77% | U60: 68% | V60: 67 | W60: 80% | X60: 80% | Y60: 51
A61: 262 | B61: BAS RHIN | C61: 5006 | D61: STRASBOURG | E61: 4020 | F61: STRASBOURG ROBERTSAU | G61: 5.6 | H61: 57% | I61: 39% | J61: 52 | K61: 17% | L61: 17% | M61: 135 | N61: 88% | O61: 88% | P61: 115 | Q61: 46% | R61: 14% | S61: 4 | T61: 84% | U61: 74% | V61: 121 | W61: 89% | X61: 89% | Y61: 169
A62: 262 | B62: BAS RHIN | C62: 5060 | D62: HAGUENAU | E62: 4092 | F62: HOCHFELDEN | G62: 1.8 | H62: 57% | I62: 39% | J62: 53 | K62: 12% | L62: 12% | M62: 83 | N62: 89% | O62: 89% | P62: 119 | Q62: 61% | R62: 29% | S62: 29 | T62: 75% | U62: 65% | V62: 49 | W62: 88% | X62: 88% | Y62: 148
A63: 262 | B63: MARNE ARDENNES | C63: 11 | D63: REIMS | E63: 451301 | F63: REIMS HOTEL DE VILLE | G63: 8.3 | H63: 57% | I63: 39% | J63: 54 | K63: 15% | L63: 15% | M63: 113 | N63: 83% | O63: 83% | P63: 69 | Q63: 72% | R63: 40% | S63: 108 | T63: 76% | U63: 67% | V63: 64 | W63: 79% | X63: 79% | Y63: 43
A64: 262 | B64: BAS RHIN | C64: 5006 | D64: STRASBOURG | E64: 4047 | F64: STRASBOURG CRONENBOURG | G64: 4.8 | H64: 57% | I64: 39% | J64: 55 | K64: 12% | L64: 12% | M64: 72 | N64: 82% | O64: 82% | P64: 52 | Q64: 68% | R64: 37% | S64: 77 | T64: 77% | U64: 68% | V64: 69 | W64: 86% | X64: 86% | Y64: 113
A65: 262 | B65: MEURTHE ET MOSELLE MEUSE | C65: 27 | D65: PONT A MOUSSON | E65: 554506 | F65: CHALIGNY NEUVES MAISONS | G65: 3.9 | H65: 57% | I65: 39% | J65: 56 | K65: 30% | L65: 30% | M65: 226 | N65: 84% | O65: 84% | P65: 76 | Q65: 77% | R65: 45% | S65: 168 | T65: 60% | U65: 51% | V65: 14 | W65: 74% | X65: 74% | Y65: 20
A66: 262 | B66: MARNE ARDENNES | C66: 11 | D66: REIMS | E66: 551365 | F66: DORMANS | G66: 2.7 | H66: 57% | I66: 39% | J66: 57 | K66: 15% | L66: 15% | M66: 114 | N66: 74% | O66: 74% | P66: 15 | Q66: 79% | R66: 47% | S66: 186 | T66: 75% | U66: 66% | V66: 52 | W66: 82% | X66: 82% | Y66: 73
A67: 262 | B67: BAS RHIN | C67: 5101 | D67: SELESTAT | E67: 4007 | F67: ILLKIRCH CENTRE | G67: 7.7 | H67: 57% | I67: 39% | J67: 58 | K67: 24% | L67: 24% | M67: 189 | N67: 86% | O67: 86% | P67: 91 | Q67: 74% | R67: 42% | S67: 134 | T67: 53% | U67: 43% | V67: 6 | W67: 89% | X67: 89% | Y67: 164
A68: 262 | B68: MARNE ARDENNES | C68: 2 | D68: CHARLEVILLE MEZIERES | E68: 508839 | F68: GIVET | G68: 3.6 | H68: 57% | I68: 39% | J68: 59 | K68: 9% | L68: 9% | M68: 52 | N68: 89% | O68: 89% | P68: 126 | Q68: 76% | R68: 44% | S68: 158 | T68: 78% | U68: 68% | V68: 75 | W68: 74% | X68: 74% | Y68: 17
A69: 262 | B69: BAS RHIN | C69: 5006 | D69: STRASBOURG | E69: 4027 | F69: SCHILTIGHEIM CENTRE | G69: 3.9 | H69: 57% | I69: 39% | J69: 60 | K69: 20% | L69: 20% | M69: 162 | N69: 75% | O69: 75% | P69: 18 | Q69: 66% | R69: 34% | S69: 49 | T69: 79% | U69: 70% | V69: 85 | W69: 86% | X69: 86% | Y69: 129
A70: 262 | B70: MEURTHE ET MOSELLE MEUSE | C70: 27 | D70: PONT A MOUSSON | E70: 554686 | F70: VEZELISE | G70: 2.0 | H70: 57% | I70: 39% | J70: 61 | K70: 3% | L70: 3% | M70: 5 | N70: 83% | O70: 83% | P70: 66 | Q70: 64% | R70: 33% | S70: 44 | T70: 90% | U70: 81% | V70: 185 | W70: 87% | X70: 87% | Y70: 132
A71: 262 | B71: MEURTHE ET MOSELLE MEUSE | C71: 26 | D71: NANCY | E71: 554476 | F71: NANCY ARTEM | G71: 2.9 | H71: 57% | I71: 39% | J71: 62 | K71: 12% | L71: 12% | M71: 79 | N71: 81% | O71: 81% | P71: 43 | Q71: 80% | R71: 49% | S71: 194 | T71: 82% | U71: 73% | V71: 109 | W71: 72% | X71: 72% | Y71: 15
A72: 262 | B72: MOSELLE | C72: 44 | D72: MOSELLE NORD | E72: 457348 | F72: HAGONDANGE | G72: 8.6 | H72: 57% | I72: 39% | J72: 63 | K72: 15% | L72: 15% | M72: 116 | N72: 82% | O72: 82% | P72: 56 | Q72: 75% | R72: 44% | S72: 149 | T72: 75% | U72: 66% | V72: 56 | W72: 80% | X72: 80% | Y72: 50
A73: 262 | B73: MOSELLE | C73: 42 | D73: MOSELLE EST | E73: 557668 | F73: VALMONT | G73: 3.4 | H73: 58% | I73: 40% | J73: 64 | K73: 12% | L73: 12% | M73: 85 | N73: 88% | O73: 88% | P73: 112 | Q73: 59% | R73: 28% | S73: 21 | T73: 83% | U73: 74% | V73: 119 | W73: 85% | X73: 85% | Y73: 111
A74: 262 | B74: HAUT RHIN | C74: 5130 | D74: COLMAR | E74: 4130 | F74: COLMAR REPUBLIQUE | G74: 5.6 | H74: 58% | I74: 40% | J74: 65 | K74: 28% | L74: 28% | M74: 213 | N74: 84% | O74: 84% | P74: 79 | Q74: 62% | R74: 30% | S74: 32 | T74: 73% | U74: 64% | V74: 39 | W74: 82% | X74: 82% | Y74: 69
A75: 264 | B75: MOSELLE | C75: 45 | D75: METZ | E75: 557439 | F75: METZ POMPIDOU | G75: 3.7 | H75: 58% | I75: 40% | J75: 66 | K75: 14% | L75: 14% | M75: 102 | N75: 92% | O75: 92% | P75: 167 | Q75: 60% | R75: 28% | S75: 22 | T75: 77% | U75: 68% | V75: 68 | W75: 86% | X75: 86% | Y75: 123
A76: 264 | B76: HAUT RHIN | C76: 5130 | D76: COLMAR | E76: 4132 | F76: COLMAR MARAICHERS | G76: 3.9 | H76: 58% | I76: 40% | J76: 67 | K76: 12% | L76: 12% | M76: 74 | N76: 82% | O76: 82% | P76: 51 | Q76: 70% | R76: 38% | S76: 88 | T76: 76% | U76: 67% | V76: 63 | W76: 89% | X76: 89% | Y76: 183
A77: 264 | B77: BAS RHIN | C77: 5006 | D77: STRASBOURG | E77: 4054 | F77: STRASBOURG MONTAGNE VERTE | G77: 2.9 | H77: 58% | I77: 40% | J77: 68 | K77: 20% | L77: 20% | M77: 165 | N77: 81% | O77: 81% | P77: 49 | Q77: 68% | R77: 36% | S77: 72 | T77: 73% | U77: 64% | V77: 42 | W77: 87% | X77: 87% | Y77: 134
A78: 264 | B78: MEURTHE ET MOSELLE MEUSE | C78: 31 | D78: VERDUN | E78: 454414 | F78: LONGWY HAUT | G78: 3.7 | H78: 58% | I78: 40% | J78: 69 | K78: 15% | L78: 15% | M78: 120 | N78: 85% | O78: 85% | P78: 80 | Q78: 73% | R78: 41% | S78: 126 | T78: 75% | U78: 66% | V78: 53 | W78: 82% | X78: 82% | Y78: 71
A79: 264 | B79: MOSELLE | C79: 45 | D79: METZ | E79: 557441 | F79: METZ PLAPPEVILLE | G79: 2.9 | H79: 58% | I79: 40% | J79: 70 | K79: 21% | L79: 21% | M79: 170 | N79: 90% | O79: 90% | P79: 141 | Q79: 49% | R79: 17% | S79: 7 | T79: 84% | U79: 75% | V79: 129 | W79: 86% | X79: 86% | Y79: 126
A80: 264 | B80: MARNE ARDENNES | C80: 2 | D80: CHARLEVILLE MEZIERES | E80: 408822 | F80: CHARLEVILLE MEZIERES | G80: 6.2 | H80: 58% | I80: 40% | J80: 71 | K80: 25% | L80: 25% | M80: 194 | N80: 93% | O80: 93% | P80: 181 | Q80: 61% | R80: 29% | S80: 28 | T80: 75% | U80: 65% | V80: 50 | W80: 78% | X80: 78% | Y80: 36
A81: 264 | B81: BAS RHIN | C81: 5006 | D81: STRASBOURG | E81: 4038 | F81: OBERHAUSBERGEN | G81: 4.0 | H81: 58% | I81: 40% | J81: 72 | K81: 13% | L81: 13% | M81: 89 | N81: 81% | O81: 81% | P81: 48 | Q81: 56% | R81: 25% | S81: 17 | T81: 96% | U81: 87% | V81: 221 | W81: 86% | X81: 86% | Y81: 114
A82: 264 | B82: MARNE ARDENNES | C82: 6 | D82: CHALONS EN CHAMPAGNE | E82: 451120 | F82: SARRY | G82: 2.4 | H82: 58% | I82: 40% | J82: 73 | K82: 5% | L82: 5% | M82: 18 | N82: 83% | O82: 83% | P82: 67 | Q82: 70% | R82: 38% | S82: 87 | T82: 87% | U82: 77% | V82: 153 | W82: 88% | X82: 88% | Y82: 151
A83: 264 | B83: BAS RHIN | C83: 5101 | D83: SELESTAT | E83: 4126 | F83: MUTZIG | G83: 2.9 | H83: 58% | I83: 40% | J83: 74 | K83: 16% | L83: 16% | M83: 126 | N83: 91% | O83: 91% | P83: 145 | Q83: 53% | R83: 21% | S83: 10 | T83: 86% | U83: 77% | V83: 144 | W83: 87% | X83: 87% | Y83: 142
A84: 264 | B84: MEURTHE ET MOSELLE MEUSE | C84: 27 | D84: PONT A MOUSSON | E84: 554516 | F84: PAGNY SUR MOSELLE | G84: 2.9 | H84: 58% | I84: 41% | J84: 75 | K84: 22% | L84: 22% | M84: 175 | N84: 92% | O84: 92% | P84: 162 | Q84: 63% | R84: 32% | S84: 38 | T84: 70% | U84: 61% | V84: 30 | W84: 85% | X84: 85% | Y84: 99
A85: 264 | B85: VOSGES | C85: 57 | D85: EPINAL | E85: 588716 | F85: XERTIGNY | G85: 2.9 | H85: 58% | I85: 41% | J85: 76 | K85: 2% | L85: 2% | M85: 3 | N85: 94% | O85: 94% | P85: 189 | Q85: 71% | R85: 39% | S85: 98 | T85: 74% | U85: 64% | V85: 44 | W85: 92% | X85: 92% | Y85: 230
A86: 264 | B86: MOSELLE | C86: 44 | D86: MOSELLE NORD | E86: 557660 | F86: UCKANGE | G86: 2.0 | H86: 59% | I86: 41% | J86: 77 | K86: 30% | L86: 30% | M86: 229 | N86: 76% | O86: 76% | P86: 21 | Q86: 78% | R86: 47% | S86: 180 | T86: 72% | U86: 62% | V86: 37 | W86: 77% | X86: 77% | Y86: 33
A87: 264 | B87: MARNE ARDENNES | C87: 6 | D87: CHALONS EN CHAMPAGNE | E87: 451115 | F87: MOURMELON LE GRAND | G87: 2.9 | H87: 59% | I87: 41% | J87: 78 | K87: 6% | L87: 6% | M87: 20 | N87: 85% | O87: 85% | P87: 83 | Q87: 67% | R87: 36% | S87: 68 | T87: 89% | U87: 80% | V87: 179 | W87: 86% | X87: 86% | Y87: 130
A88: 264 | B88: MOSELLE | C88: 42 | D88: MOSELLE EST | E88: 457617 | F88: SARREGUEMINES | G88: 7.0 | H88: 59% | I88: 41% | J88: 79 | K88: 21% | L88: 21% | M88: 168 | N88: 84% | O88: 84% | P88: 74 | Q88: 66% | R88: 35% | S88: 56 | T88: 80% | U88: 70% | V88: 89 | W88: 83% | X88: 83% | Y88: 75
A89: 264 | B89: MEURTHE ET MOSELLE MEUSE | C89: 31 | D89: VERDUN | E89: 554700 | F89: VILLERUPT | G89: 2.9 | H89: 59% | I89: 41% | J89: 80 | K89: 12% | L89: 12% | M89: 76 | N89: 78% | O89: 78% | P89: 26 | Q89: 75% | R89: 44% | S89: 152 | T89: 84% | U89: 75% | V89: 131 | W89: 85% | X89: 85% | Y89: 95
A90: 264 | B90: MARNE ARDENNES | C90: 2 | D90: CHARLEVILLE MEZIERES | E90: 508802 | F90: CHARLEVILLE NEVERS | G90: 2.9 | H90: 59% | I90: 41% | J90: 81 | K90: 6% | L90: 6% | M90: 22 | N90: 88% | O90: 88% | P90: 111 | Q90: 75% | R90: 43% | S90: 143 | T90: 81% | U90: 72% | V90: 102 | W90: 84% | X90: 84% | Y90: 84
A91: 264 | B91: HAUT RHIN | C91: 5130 | D91: COLMAR | E91: 4144 | F91: RIBEAUVILLE | G91: 3.4 | H91: 59% | I91: 41% | J91: 82 | K91: 14% | L91: 14% | M91: 104 | N91: 81% | O91: 81% | P91: 46 | Q91: 78% | R91: 46% | S91: 179 | T91: 75% | U91: 65% | V91: 48 | W91: 87% | X91: 87% | Y91: 131
A92: 264 | B92: BAS RHIN | C92: 5101 | D92: SELESTAT | E92: 4121 | F92: SCHIRMECK | G92: 2.9 | H92: 59% | I92: 41% | J92: 83 | K92: 6% | L92: 6% | M92: 19 | N92: 86% | O92: 86% | P92: 96 | Q92: 76% | R92: 44% | S92: 156 | T92: 82% | U92: 73% | V92: 113 | W92: 84% | X92: 84% | Y92: 88
A93: 264 | B93: VOSGES | C93: 55 | D93: SAINT DIE | E93: 488246 | F93: CORNIMONT LA BRESSE | G93: 2.9 | H93: 59% | I93: 41% | J93: 84 | K93: 10% | L93: 10% | M93: 53 | N93: 84% | O93: 84% | P93: 72 | Q93: 77% | R93: 45% | S93: 166 | T93: 73% | U93: 64% | V93: 41 | W93: 91% | X93: 91% | Y93: 209
A94: 264 | B94: MEURTHE ET MOSELLE MEUSE | C94: 26 | D94: NANCY | E94: 554266 | F94: DOMBASLE SUR MEURTHE | G94: 3.6 | H94: 59% | I94: 41% | J94: 85 | K94: 21% | L94: 21% | M94: 171 | N94: 99% | O94: 99% | P94: 224 | Q94: 47% | R94: 15% | S94: 5 | T94: 86% | U94: 77% | V94: 147 | W94: 82% | X94: 82% | Y94: 66
A95: 264 | B95: MOSELLE | C95: 45 | D95: METZ | E95: 557440 | F95: METZ MOZART | G95: 2.9 | H95: 59% | I95: 41% | J95: 86 | K95: 16% | L95: 16% | M95: 129 | N95: 86% | O95: 86% | P95: 98 | Q95: 69% | R95: 38% | S95: 84 | T95: 82% | U95: 73% | V95: 109 | W95: 81% | X95: 81% | Y95: 60
A96: 264 | B96: MEURTHE ET MOSELLE MEUSE | C96: 31 | D96: VERDUN | E96: 455151 | F96: BAR LE DUC | G96: 9.9 | H96: 59% | I96: 41% | J96: 87 | K96: 11% | L96: 11% | M96: 69 | N96: 89% | O96: 89% | P96: 122 | Q96: 73% | R96: 42% | S96: 129 | T96: 77% | U96: 67% | V96: 65 | W96: 85% | X96: 85% | Y96: 105
A97: 30 | B97: MEURTHE ET MOSELLE MEUSE | C97: 31 | D97: VERDUN | E97: 554413 | F97: LONGWY BAS | G97: 3.9 | H97: 59% | I97: 41% | J97: 88 | K97: 7% | L97: 7% | M97: 27 | N97: 86% | O97: 86% | P97: 97 | Q97: 71% | R97: 39% | S97: 95 | T97: 85% | U97: 75% | V97: 138 | W97: 86% | X97: 86% | Y97: 128
A98: 30 | B98: HAUT RHIN | C98: 5130 | D98: COLMAR | E98: 4143 | F98: MUNSTER | G98: 4.6 | H98: 59% | I98: 41% | J98: 89 | K98: 9% | L98: 9% | M98: 42 | N98: 82% | O98: 82% | P98: 58 | Q98: 67% | R98: 36% | S98: 69 | T98: 88% | U98: 79% | V98: 162 | W98: 89% | X98: 89% | Y98: 178
A99: 30 | B99: MEURTHE ET MOSELLE MEUSE | C99: 27 | D99: PONT A MOUSSON | E99: 554416 | F99: LUDRES | G99: 3.9 | H99: 59% | I99: 41% | J99: 90 | K99: 12% | L99: 12% | M99: 73 | N99: 90% | O99: 90% | P99: 138 | Q99: 63% | R99: 31% | S99: 35 | T99: 82% | U99: 73% | V99: 111 | W99: 89% | X99: 89% | Y99: 173
A100: 30 | B100: BAS RHIN | C100: 5006 | D100: STRASBOURG | E100: 4006 | F100: STRASBOURG NEUDORF | G100: 8.4 | H100: 59% | I100: 41% | J100: 91 | K100: 4% | L100: 4% | M100: 11 | N100: 91% | O100: 91% | P100: 150 | Q100: 75% | R100: 44% | S100: 151 | T100: 76% | U100: 67% | V100: 62 | W100: 88% | X100: 88% | Y100: 157
A101: 30 | B101: MARNE ARDENNES | C101: 6 | D101: CHALONS EN CHAMPAGNE | E101: 551128 | F101: SAINTE MENEHOULD | G101: 3.9 | H101: 59% | I101: 41% | J101: 92 | K101: 14% | L101: 14% | M101: 109 | N101: 81% | O101: 81% | P101: 44 | Q101: 75% | R101: 43% | S101: 142 | T101: 77% | U101: 68% | V101: 72 | W101: 89% | X101: 89% | Y101: 162
A102: 30 | B102: HAUT RHIN | C102: 5130 | D102: COLMAR | E102: 4153 | F102: ROUFFACH | G102: 2.0 | H102: 59% | I102: 41% | J102: 93 | K102: 18% | L102: 18% | M102: 145 | N102: 91% | O102: 91% | P102: 146 | Q102: 54% | R102: 23% | S102: 12 | T102: 80% | U102: 71% | V102: 94 | W102: 92% | X102: 92% | Y102: 223
A103: 30 | B103: MOSELLE | C103: 45 | D103: METZ | E103: 457446 | F103: METZ SAINT LOUIS | G103: 6.7 | H103: 59% | I103: 41% | J103: 94 | K103: 13% | L103: 13% | M103: 87 | N103: 86% | O103: 86% | P103: 99 | Q103: 70% | R103: 39% | S103: 90 | T103: 85% | U103: 76% | V103: 141 | W103: 81% | X103: 81% | Y103: 65
A104: 30 | B104: MOSELLE | C104: 45 | D104: METZ | E104: 557444 | F104: SAINT JULIEN LES METZ | G104: 4.6 | H104: 59% | I104: 41% | J104: 95 | K104: 30% | L104: 30% | M104: 225 | N104: 83% | O104: 83% | P104: 64 | Q104: 67% | R104: 36% | S104: 70 | T104: 76% | U104: 66% | V104: 57 | W104: 81% | X104: 81% | Y104: 59
A105: 30 | B105: MEURTHE ET MOSELLE MEUSE | C105: 26 | D105: NANCY | E105: 554636 | F105: TOMBLAINE | G105: 2.9 | H105: 59% | I105: 41% | J105: 96 | K105: 11% | L105: 11% | M105: 63 | N105: 85% | O105: 85% | P105: 88 | Q105: 73% | R105: 41% | S105: 120 | T105: 80% | U105: 71% | V105: 92 | W105: 87% | X105: 87% | Y105: 141
A106: 30 | B106: BAS RHIN | C106: 5060 | D106: HAGUENAU | E106: 4041 | F106: HOERDT | G106: 1.8 | H106: 59% | I106: 41% | J106: 97 | K106: 8% | L106: 8% | M106: 37 | N106: 94% | O106: 94% | P106: 190 | Q106: 49% | R106: 17% | S106: 8 | T106: 99% | U106: 90% | V106: 236 | W106: 86% | X106: 86% | Y106: 116
A107: 30 | B107: HAUT RHIN | C107: 5130 | D107: COLMAR | E107: 4157 | F107: NEUF BRISACH | G107: 3.6 | H107: 59% | I107: 41% | J107: 98 | K107: 17% | L107: 17% | M107: 136 | N107: 92% | O107: 92% | P107: 163 | Q107: 64% | R107: 32% | S107: 42 | T107: 76% | U107: 67% | V107: 59 | W107: 87% | X107: 87% | Y107: 139
A108: 30 | B108: VOSGES | C108: 55 | D108: SAINT DIE | E108: 588316 | F108: FRAIZE | G108: 3.9 | H108: 59% | I108: 41% | J108: 99 | K108: 11% | L108: 11% | M108: 67 | N108: 91% | O108: 91% | P108: 148 | Q108: 72% | R108: 40% | S108: 116 | T108: 75% | U108: 66% | V108: 54 | W108: 87% | X108: 87% | Y108: 144
A109: 30 | B109: MOSELLE | C109: 42 | D109: MOSELLE EST | E109: 457258 | F109: DIEUZE | G109: 2.9 | H109: 59% | I109: 41% | J109: 100 | K109: 10% | L109: 10% | M109: 55 | N109: 83% | O109: 83% | P109: 70 | Q109: 71% | R109: 39% | S109: 99 | T109: 84% | U109: 75% | V109: 128 | W109: 89% | X109: 89% | Y109: 163
A110: 30 | B110: HAUT RHIN | C110: 5169 | D110: MULHOUSE | E110: 4170 | F110: MULHOUSE REUNION | G110: 5.9 | H110: 59% | I110: 41% | J110: 101 | K110: 28% | L110: 28% | M110: 211 | N110: 79% | O110: 79% | P110: 32 | Q110: 72% | R110: 40% | S110: 109 | T110: 82% | U110: 73% | V110: 108 | W110: 77% | X110: 77% | Y110: 34
A111: 30 | B111: VOSGES | C111: 57 | D111: EPINAL | E111: 488706 | F111: VITTEL | G111: 3.8 | H111: 59% | I111: 41% | J111: 102 | K111: 5% | L111: 5% | M111: 17 | N111: 94% | O111: 94% | P111: 188 | Q111: 77% | R111: 45% | S111: 165 | T111: 77% | U111: 68% | V111: 70 | W111: 84% | X111: 84% | Y111: 92
A112: 30 | B112: BAS RHIN | C112: 5006 | D112: STRASBOURG | E112: 4019 | F112: STRASBOURG ANVERS | G112: 4.8 | H112: 59% | I112: 42% | J112: 103 | K112: 27% | L112: 27% | M112: 204 | N112: 80% | O112: 80% | P112: 41 | Q112: 66% | R112: 35% | S112: 58 | T112: 79% | U112: 70% | V112: 86 | W112: 85% | X112: 85% | Y112: 107
A113: 30 | B113: MOSELLE | C113: 44 | D113: MOSELLE NORD | E113: 457158 | F113: YUTZ | G113: 4.6 | H113: 60% | I113: 42% | J113: 104 | K113: 21% | L113: 21% | M113: 166 | N113: 86% | O113: 86% | P113: 89 | Q113: 75% | R113: 43% | S113: 141 | T113: 75% | U113: 65% | V113: 47 | W113: 83% | X113: 83% | Y113: 79
A114: 30 | B114: VOSGES | C114: 57 | D114: EPINAL | E114: 488286 | F114: EPINAL ARISTIDE BRIAND | G114: 8.6 | H114: 60% | I114: 42% | J114: 105 | K114: 20% | L114: 20% | M114: 158 | N114: 82% | O114: 82% | P114: 54 | Q114: 66% | R114: 34% | S114: 52 | T114: 83% | U114: 73% | V114: 116 | W114: 89% | X114: 89% | Y114: 158
A115: 30 | B115: MOSELLE | C115: 42 | D115: MOSELLE EST | E115: 457435 | F115: MERLEBACH | G115: 3.4 | H115: 60% | I115: 42% | J115: 106 | K115: 13% | L115: 13% | M115: 98 | N115: 93% | O115: 93% | P115: 170 | Q115: 71% | R115: 40% | S115: 102 | T115: 73% | U115: 64% | V115: 40 | W115: 89% | X115: 89% | Y115: 168
A116: 30 | B116: MOSELLE | C116: 45 | D116: METZ | E116: 557712 | F116: WOIPPY | G116: 3.9 | H116: 60% | I116: 42% | J116: 107 | K116: 24% | L116: 24% | M116: 186 | N116: 85% | O116: 85% | P116: 85 | Q116: 71% | R116: 39% | S116: 96 | T116: 80% | U116: 70% | V116: 87 | W116: 81% | X116: 81% | Y116: 57
A117: 30 | B117: BAS RHIN | C117: 5060 | D117: HAGUENAU | E117: 4071 | F117: WISSEMBOURG | G117: 8.1 | H117: 60% | I117: 42% | J117: 108 | K117: 8% | L117: 8% | M117: 30 | N117: 89% | O117: 89% | P117: 117 | Q117: 74% | R117: 42% | S117: 133 | T117: 79% | U117: 70% | V117: 83 | W117: 91% | X117: 91% | Y117: 207
A118: 30 | B118: MARNE ARDENNES | C118: 11 | D118: REIMS | E118: 551310 | F118: REIMS CHATILLONS | G118: 4.6 | H118: 60% | I118: 42% | J118: 109 | K118: 18% | L118: 18% | M118: 143 | N118: 90% | O118: 90% | P118: 128 | Q118: 71% | R118: 40% | S118: 107 | T118: 77% | U118: 67% | V118: 66 | W118: 85% | X118: 85% | Y118: 94
A119: 30 | B119: MARNE ARDENNES | C119: 6 | D119: CHALONS EN CHAMPAGNE | E119: 451101 | F119: CHALONS VIVIERS | G119: 9.8 | H119: 60% | I119: 42% | J119: 110 | K119: 9% | L119: 9% | M119: 40 | N119: 87% | O119: 87% | P119: 104 | Q119: 78% | R119: 47% | S119: 184 | T119: 81% | U119: 71% | V119: 100 | W119: 86% | X119: 86% | Y119: 125
A120: 30 | B120: MOSELLE | C120: 44 | D120: MOSELLE NORD | E120: 457306 | F120: FLORANGE | G120: 5.6 | H120: 60% | I120: 42% | J120: 111 | K120: 26% | L120: 26% | M120: 201 | N120: 79% | O120: 79% | P120: 33 | Q120: 71% | R120: 40% | S120: 103 | T120: 84% | U120: 75% | V120: 134 | W120: 79% | X120: 79% | Y120: 49
A121: 30 | B121: MARNE ARDENNES | C121: 11 | D121: REIMS | E121: 451370 | F121: EPERNAY | G121: 10.3 | H121: 60% | I121: 42% | J121: 112 | K121: 9% | L121: 9% | M121: 44 | N121: 87% | O121: 87% | P121: 101 | Q121: 75% | R121: 44% | S121: 150 | T121: 88% | U121: 79% | V121: 168 | W121: 82% | X121: 82% | Y121: 70
A122: 30 | B122: MEURTHE ET MOSELLE MEUSE | C122: 27 | D122: PONT A MOUSSON | E122: 554381 | F122: LAXOU ARISTIDE BRIAND | G122: 2.9 | H122: 60% | I122: 42% | J122: 113 | K122: 22% | L122: 22% | M122: 174 | N122: 82% | O122: 82% | P122: 57 | Q122: 83% | R122: 52% | S122: 225 | T122: 70% | U122: 61% | V122: 31 | W122: 84% | X122: 84% | Y122: 85
A123: 30 | B123: VOSGES | C123: 55 | D123: SAINT DIE | E123: 588666 | F123: VAGNEY | G123: 3.9 | H123: 60% | I123: 42% | J123: 114 | K123: 9% | L123: 9% | M123: 43 | N123: 91% | O123: 91% | P123: 147 | Q123: 65% | R123: 34% | S123: 46 | T123: 89% | U123: 80% | V123: 178 | W123: 88% | X123: 88% | Y123: 147
A124: 30 | B124: BAS RHIN | C124: 5060 | D124: HAGUENAU | E124: 4057 | F124: BISCHWILLER | G124: 6.6 | H124: 60% | I124: 42% | J124: 115 | K124: 9% | L124: 9% | M124: 45 | N124: 89% | O124: 89% | P124: 118 | Q124: 73% | R124: 41% | S124: 123 | T124: 80% | U124: 71% | V124: 97 | W124: 91% | X124: 91% | Y124: 212
A125: 30 | B125: MEURTHE ET MOSELLE MEUSE | C125: 31 | D125: VERDUN | E125: 555624 | F125: STENAY | G125: 2.9 | H125: 60% | I125: 42% | J125: 116 | K125: 22% | L125: 22% | M125: 175 | N125: 83% | O125: 83% | P125: 65 | Q125: 82% | R125: 50% | S125: 210 | T125: 77% | U125: 68% | V125: 71 | W125: 78% | X125: 78% | Y125: 40
A126: 30 | B126: MEURTHE ET MOSELLE MEUSE | C126: 26 | D126: NANCY | E126: 554116 | F126: BACCARAT | G126: 2.9 | H126: 60% | I126: 43% | J126: 117 | K126: 8% | L126: 8% | M126: 31 | N126: 78% | O126: 78% | P126: 30 | Q126: 79% | R126: 47% | S126: 188 | T126: 94% | U126: 85% | V126: 214 | W126: 84% | X126: 84% | Y126: 82
A127: 30 | B127: BAS RHIN | C127: 5060 | D127: HAGUENAU | E127: 4082 | F127: BOUXWILLER | G127: 2.7 | H127: 60% | I127: 43% | J127: 118 | K127: 9% | L127: 9% | M127: 46 | N127: 92% | O127: 92% | P127: 157 | Q127: 87% | R127: 55% | S127: 236 | T127: 70% | U127: 61% | V127: 29 | W127: 85% | X127: 85% | Y127: 110
A128: 30 | B128: BAS RHIN | C128: 5060 | D128: HAGUENAU | E128: 4030 | F128: BRUMATH | G128: 5.1 | H128: 60% | I128: 43% | J128: 119 | K128: 24% | L128: 24% | M128: 188 | N128: 88% | O128: 88% | P128: 113 | Q128: 46% | R128: 14% | S128: 3 | T128: 92% | U128: 83% | V128: 204 | W128: 93% | X128: 93% | Y128: 233
A129: 30 | B129: MARNE ARDENNES | C129: 11 | D129: REIMS | E129: 551369 | F129: DAMERY | G129: 2.0 | H129: 60% | I129: 43% | J129: 120 | K129: 23% | L129: 23% | M129: 181 | N129: 78% | O129: 78% | P129: 28 | Q129: 80% | R129: 48% | S129: 192 | T129: 81% | U129: 72% | V129: 101 | W129: 81% | X129: 81% | Y129: 63
A130: 30 | B130: VOSGES | C130: 57 | D130: EPINAL | E130: 588201 | F130: CHANTRAINE | G130: 3.9 | H130: 61% | I130: 43% | J130: 121 | K130: 12% | L130: 12% | M130: 81 | N130: 84% | O130: 84% | P130: 77 | Q130: 71% | R130: 40% | S130: 106 | T130: 87% | U130: 77% | V130: 149 | W130: 89% | X130: 89% | Y130: 176
A131: 30 | B131: VOSGES | C131: 57 | D131: EPINAL | E131: 588396 | F131: LE VAL D AJOL | G131: 2.9 | H131: 61% | I131: 43% | J131: 122 | K131: 8% | L131: 8% | M131: 36 | N131: 90% | O131: 90% | P131: 127 | Q131: 75% | R131: 44% | S131: 154 | T131: 82% | U131: 72% | V131: 104 | W131: 90% | X131: 90% | Y131: 184
A132: 30 | B132: MEURTHE ET MOSELLE MEUSE | C132: 27 | D132: PONT A MOUSSON | E132: 554496 | F132: NANCY TROIS MAISONS | G132: 2.0 | H132: 61% | I132: 43% | J132: 123 | K132: 32% | L132: 32% | M132: 235 | N132: 87% | O132: 87% | P132: 106 | Q132: 69% | R132: 37% | S132: 79 | T132: 74% | U132: 64% | V132: 45 | W132: 84% | X132: 84% | Y132: 81
A133: 30 | B133: MARNE ARDENNES | C133: 6 | D133: CHALONS EN CHAMPAGNE | E133: 451381 | F133: SEZANNE | G133: 6.4 | H133: 61% | I133: 43% | J133: 124 | K133: 9% | L133: 9% | M133: 51 | N133: 92% | O133: 92% | P133: 161 | Q133: 67% | R133: 35% | S133: 65 | T133: 90% | U133: 81% | V133: 184 | W133: 86% | X133: 86% | Y133: 127
A134: 30 | B134: AUBE HAUTE MARNE | C134: 21 | D134: CHAUMONT | E134: 410541 | F134: LANGRES | G134: 9.3 | H134: 61% | I134: 43% | J134: 125 | K134: 11% | L134: 11% | M134: 66 | N134: 87% | O134: 87% | P134: 105 | Q134: 75% | R134: 43% | S134: 138 | T134: 84% | U134: 74% | V134: 122 | W134: 89% | X134: 89% | Y134: 171
A135: 30 | B135: MOSELLE | C135: 45 | D135: METZ | E135: 557436 | F135: METZ CATHEDRALE | G135: 3.8 | H135: 61% | I135: 43% | J135: 126 | K135: 30% | L135: 30% | M135: 227 | N135: 80% | O135: 80% | P135: 37 | Q135: 66% | R135: 35% | S135: 55 | T135: 87% | U135: 77% | V135: 152 | W135: 83% | X135: 83% | Y135: 74
A136: 110 | B136: MEURTHE ET MOSELLE MEUSE | C136: 27 | D136: PONT A MOUSSON | E136: 554357 | F136: JOEUF | G136: 2.9 | H136: 61% | I136: 43% | J136: 127 | K136: 16% | L136: 16% | M136: 128 | N136: 90% | O136: 90% | P136: 137 | Q136: 72% | R136: 41% | S136: 118 | T136: 83% | U136: 74% | V136: 118 | W136: 84% | X136: 84% | Y136: 90
A137: 110 | B137: AUBE HAUTE MARNE | C137: 14 | D137: TROYES | E137: 510570 | F137: NOGENT SUR SEINE | G137: 4.6 | H137: 61% | I137: 43% | J137: 128 | K137: 14% | L137: 14% | M137: 108 | N137: 87% | O137: 87% | P137: 102 | Q137: 78% | R137: 46% | S137: 176 | T137: 82% | U137: 73% | V137: 114 | W137: 86% | X137: 86% | Y137: 117
A138: 110 | B138: AUBE HAUTE MARNE | C138: 21 | D138: CHAUMONT | E138: 451151 | F138: WASSY | G138: 2.0 | H138: 61% | I138: 44% | J138: 129 | K138: 20% | L138: 20% | M138: 157 | N138: 83% | O138: 83% | P138: 61 | Q138: 66% | R138: 35% | S138: 60 | T138: 100% | U138: 90% | V138: 237 | W138: 79% | X138: 79% | Y138: 47
A139: 110 | B139: MEURTHE ET MOSELLE MEUSE | C139: 27 | D139: PONT A MOUSSON | E139: 454696 | F139: VILLERS GENERAL LECLERC | G139: 5.5 | H139: 61% | I139: 44% | J139: 130 | K139: 19% | L139: 19% | M139: 146 | N139: 93% | O139: 93% | P139: 175 | Q139: 62% | R139: 30% | S139: 31 | T139: 86% | U139: 77% | V139: 146 | W139: 89% | X139: 89% | Y139: 160
A140: 110 | B140: VOSGES | C140: 57 | D140: EPINAL | E140: 488561 | F140: REMIREMONT | G140: 7.7 | H140: 61% | I140: 44% | J140: 131 | K140: 12% | L140: 12% | M140: 75 | N140: 89% | O140: 89% | P140: 123 | Q140: 77% | R140: 45% | S140: 169 | T140: 83% | U140: 73% | V140: 115 | W140: 88% | X140: 88% | Y140: 153
A141: 110 | B141: MEURTHE ET MOSELLE MEUSE | C141: 27 | D141: PONT A MOUSSON | E141: 554196 | F141: CHAMPIGNEULLES | G141: 3.4 | H141: 62% | I141: 44% | J141: 132 | K141: 27% | L141: 27% | M141: 203 | N141: 80% | O141: 80% | P141: 42 | Q141: 77% | R141: 46% | S141: 174 | T141: 74% | U141: 65% | V141: 46 | W141: 91% | X141: 91% | Y141: 202
A142: 110 | B142: MEURTHE ET MOSELLE MEUSE | C142: 27 | D142: PONT A MOUSSON | E142: 554376 | F142: LAXOU BOUFFLERS | G142: 3.4 | H142: 62% | I142: 44% | J142: 133 | K142: 29% | L142: 29% | M142: 221 | N142: 84% | O142: 84% | P142: 73 | Q142: 85% | R142: 53% | S142: 231 | T142: 80% | U142: 71% | V142: 96 | W142: 71% | X142: 71% | Y142: 12
A143: 110 | B143: AUBE HAUTE MARNE | C143: 21 | D143: CHAUMONT | E143: 410566 | F143: CHAUMONT HOTEL DE VILLE | G143: 11.1 | H143: 62% | I143: 44% | J143: 134 | K143: 14% | L143: 14% | M143: 106 | N143: 93% | O143: 93% | P143: 177 | Q143: 69% | R143: 37% | S143: 80 | T143: 87% | U143: 78% | V143: 157 | W143: 87% | X143: 87% | Y143: 133
A144: 110 | B144: BAS RHIN | C144: 5101 | D144: SELESTAT | E144: 4107 | F144: VILLE | G144: 2.0 | H144: 62% | I144: 44% | J144: 135 | K144: 29% | L144: 29% | M144: 219 | N144: 84% | O144: 84% | P144: 71 | Q144: 60% | R144: 28% | S144: 23 | T144: 85% | U144: 75% | V144: 136 | W144: 93% | X144: 93% | Y144: 240
A145: 110 | B145: MEURTHE ET MOSELLE MEUSE | C145: 26 | D145: NANCY | E145: 554486 | F145: NANCY POINT CENTRAL | G145: 3.9 | H145: 62% | I145: 44% | J145: 136 | K145: 26% | L145: 26% | M145: 200 | N145: 91% | O145: 91% | P145: 144 | Q145: 66% | R145: 34% | S145: 53 | T145: 80% | U145: 71% | V145: 99 | W145: 87% | X145: 87% | Y145: 143
A146: 110 | B146: MOSELLE | C146: 45 | D146: METZ | E146: 557224 | F146: CLOUANGE | G146: 2.0 | H146: 62% | I146: 44% | J146: 137 | K146: 25% | L146: 25% | M146: 198 | N146: 91% | O146: 91% | P146: 151 | Q146: 82% | R146: 50% | S146: 215 | T146: 76% | U146: 66% | V146: 58 | W146: 76% | X146: 76% | Y146: 26
A147: 110 | B147: MARNE ARDENNES | C147: 11 | D147: REIMS | E147: 451361 | F147: PIERRY LECLERC | G147: 2.0 | H147: 62% | I147: 44% | J147: 138 | K147: 13% | L147: 13% | M147: 93 | N147: 92% | O147: 92% | P147: 159 | Q147: 68% | R147: 36% | S147: 71 | T147: 93% | U147: 84% | V147: 210 | W147: 85% | X147: 85% | Y147: 98
A148: 110 | B148: BAS RHIN | C148: 5060 | D148: HAGUENAU | E148: 4085 | F148: INGWILLER | G148: 3.7 | H148: 62% | I148: 44% | J148: 139 | K148: 18% | L148: 18% | M148: 142 | N148: 86% | O148: 86% | P148: 93 | Q148: 80% | R148: 48% | S148: 193 | T148: 84% | U148: 74% | V148: 123 | W148: 83% | X148: 83% | Y148: 78
A149: 110 | B149: MARNE ARDENNES | C149: 11 | D149: REIMS | E149: 551314 | F149: FISMES | G149: 2.9 | H149: 62% | I149: 44% | J149: 140 | K149: 4% | L149: 4% | M149: 12 | N149: 89% | O149: 89% | P149: 120 | Q149: 81% | R149: 50% | S149: 203 | T149: 96% | U149: 86% | V149: 218 | W149: 81% | X149: 81% | Y149: 61
A150: 110 | B150: MARNE ARDENNES | C150: 2 | D150: CHARLEVILLE MEZIERES | E150: 408806 | F150: SEDAN | G150: 9.6 | H150: 62% | I150: 44% | J150: 141 | K150: 12% | L150: 12% | M150: 78 | N150: 89% | O150: 89% | P150: 124 | Q150: 74% | R150: 42% | S150: 132 | T150: 91% | U150: 82% | V150: 189 | W150: 85% | X150: 85% | Y150: 101
A151: 110 | B151: MEURTHE ET MOSELLE MEUSE | C151: 27 | D151: PONT A MOUSSON | E151: 454535 | F151: PONT A MOUSSON CENTRALE | G151: 5.7 | H151: 62% | I151: 44% | J151: 142 | K151: 34% | L151: 34% | M151: 239 | N151: 86% | O151: 86% | P151: 95 | Q151: 69% | R151: 38% | S151: 83 | T151: 84% | U151: 74% | V151: 125 | W151: 78% | X151: 78% | Y151: 39
A152: 110 | B152: AUBE HAUTE MARNE | C152: 14 | D152: TROYES | E152: 510513 | F152: TROYES 1ER MAI | G152: 3.9 | H152: 62% | I152: 44% | J152: 143 | K152: 25% | L152: 25% | M152: 193 | N152: 90% | O152: 90% | P152: 134 | Q152: 75% | R152: 44% | S152: 147 | T152: 78% | U152: 68% | V152: 74 | W152: 84% | X152: 84% | Y152: 83
A153: 110 | B153: AUBE HAUTE MARNE | C153: 21 | D153: CHAUMONT | E153: 451156 | F153: SAINT DIZIER CENTRE | G153: 8.4 | H153: 62% | I153: 44% | J153: 144 | K153: 20% | L153: 20% | M153: 156 | N153: 94% | O153: 94% | P153: 191 | Q153: 72% | R153: 40% | S153: 115 | T153: 78% | U153: 69% | V153: 79 | W153: 88% | X153: 88% | Y153: 150
A154: 110 | B154: VOSGES | C154: 55 | D154: SAINT DIE | E154: 588186 | F154: BRUYERES | G154: 3.6 | H154: 62% | I154: 44% | J154: 145 | K154: 16% | L154: 16% | M154: 125 | N154: 86% | O154: 86% | P154: 100 | Q154: 77% | R154: 45% | S154: 164 | T154: 92% | U154: 83% | V154: 202 | W154: 80% | X154: 80% | Y154: 56
A155: 110 | B155: HAUT RHIN | C155: 5169 | D155: MULHOUSE | E155: 4180 | F155: RIEDISHEIM | G155: 3.5 | H155: 62% | I155: 44% | J155: 146 | K155: 19% | L155: 19% | M155: 147 | N155: 90% | O155: 90% | P155: 129 | Q155: 76% | R155: 44% | S155: 160 | T155: 76% | U155: 67% | V155: 60 | W155: 91% | X155: 91% | Y155: 213
A156: 110 | B156: MEURTHE ET MOSELLE MEUSE | C156: 31 | D156: VERDUN | E156: 555406 | F156: LIGNY EN BARROIS | G156: 2.9 | H156: 62% | I156: 44% | J156: 147 | K156: 10% | L156: 10% | M156: 54 | N156: 87% | O156: 87% | P156: 108 | Q156: 64% | R156: 32% | S156: 39 | T156: 101% | U156: 91% | V156: 241 | W156: 91% | X156: 91% | Y156: 206
A157: 110 | B157: MEURTHE ET MOSELLE MEUSE | C157: 27 | D157: PONT A MOUSSON | E157: 454651 | F157: TOUL | G157: 10.3 | H157: 62% | I157: 45% | J157: 148 | K157: 31% | L157: 31% | M157: 232 | N157: 90% | O157: 90% | P157: 139 | Q157: 75% | R157: 43% | S157: 140 | T157: 78% | U157: 69% | V157: 76 | W157: 79% | X157: 79% | Y157: 42
A158: 110 | B158: VOSGES | C158: 55 | D158: SAINT DIE | E158: 488326 | F158: GERARDMER | G158: 4.8 | H158: 62% | I158: 45% | J158: 149 | K158: 15% | L158: 15% | M158: 115 | N158: 90% | O158: 90% | P158: 143 | Q158: 76% | R158: 44% | S158: 159 | T158: 87% | U158: 78% | V158: 160 | W158: 85% | X158: 85% | Y158: 96
A159: 110 | B159: HAUT RHIN | C159: 5169 | D159: MULHOUSE | E159: 4181 | F159: WITTELSHEIM | G159: 3.5 | H159: 63% | I159: 45% | J159: 150 | K159: 22% | L159: 22% | M159: 172 | N159: 96% | O159: 96% | P159: 211 | Q159: 76% | R159: 45% | S159: 162 | T159: 82% | U159: 72% | V159: 105 | W159: 78% | X159: 78% | Y159: 37
A160: 110 | B160: HAUT RHIN | C160: 5169 | D160: MULHOUSE | E160: 4178 | F160: SAINT LOUIS | G160: 6.8 | H160: 63% | I160: 45% | J160: 151 | K160: 24% | L160: 24% | M160: 190 | N160: 95% | O160: 95% | P160: 198 | Q160: 66% | R160: 34% | S160: 51 | T160: 80% | U160: 70% | V160: 90 | W160: 89% | X160: 89% | Y160: 177
A161: 110 | B161: MEURTHE ET MOSELLE MEUSE | C161: 31 | D161: VERDUN | E161: 455566 | F161: REVIGNY SUR ORNAIN | G161: 2.6 | H161: 63% | I161: 45% | J161: 152 | K161: 23% | L161: 23% | M161: 183 | N161: 89% | O161: 89% | P161: 125 | Q161: 66% | R161: 35% | S161: 57 | T161: 84% | U161: 75% | V161: 132 | W161: 91% | X161: 91% | Y161: 200
A162: 110 | B162: MEURTHE ET MOSELLE MEUSE | C162: 31 | D162: VERDUN | E162: 555679 | F162: VERDUN MAZEL | G162: 3.9 | H162: 63% | I162: 45% | J162: 153 | K162: 9% | L162: 9% | M162: 39 | N162: 93% | O162: 93% | P162: 180 | Q162: 73% | R162: 42% | S162: 127 | T162: 92% | U162: 82% | V162: 192 | W162: 88% | X162: 88% | Y162: 152
A163: 110 | B163: MARNE ARDENNES | C163: 11 | D163: REIMS | E163: 551367 | F163: AY CHAMPAGNE | G163: 2.9 | H163: 63% | I163: 45% | J163: 154 | K163: 10% | L163: 10% | M163: 56 | N163: 93% | O163: 93% | P163: 172 | Q163: 78% | R163: 46% | S163: 178 | T163: 86% | U163: 77% | V163: 145 | W163: 88% | X163: 88% | Y163: 156
A164: 110 | B164: HAUT RHIN | C164: 5169 | D164: MULHOUSE | E164: 4194 | F164: THANN | G164: 10.1 | H164: 63% | I164: 45% | J164: 155 | K164: 5% | L164: 5% | M164: 14 | N164: 95% | O164: 95% | P164: 203 | Q164: 76% | R164: 44% | S164: 161 | T164: 89% | U164: 80% | V164: 175 | W164: 90% | X164: 90% | Y164: 197
A165: 110 | B165: MOSELLE | C165: 42 | D165: MOSELLE EST | E165: 557503 | F165: NEUNKIRCH | G165: 3.7 | H165: 63% | I165: 45% | J165: 156 | K165: 4% | L165: 4% | M165: 8 | N165: 94% | O165: 94% | P165: 185 | Q165: 81% | R165: 49% | S165: 196 | T165: 92% | U165: 83% | V165: 201 | W165: 85% | X165: 85% | Y165: 102
A166: 110 | B166: VOSGES | C166: 55 | D166: SAINT DIE | E166: 588461 | F166: MOYENMOUTIER | G166: 4.7 | H166: 63% | I166: 45% | J166: 157 | K166: 24% | L166: 24% | M166: 192 | N166: 88% | O166: 88% | P166: 114 | Q166: 72% | R166: 40% | S166: 111 | T166: 82% | U166: 73% | V166: 112 | W166: 89% | X166: 89% | Y166: 174
A167: 110 | B167: MOSELLE | C167: 45 | D167: METZ | E167: 557612 | F167: SAINTE MARIE AUX CHENES | G167: 3.9 | H167: 63% | I167: 45% | J167: 158 | K167: 4% | L167: 4% | M167: 9 | N167: 97% | O167: 97% | P167: 216 | Q167: 82% | R167: 50% | S167: 216 | T167: 83% | U167: 74% | V167: 120 | W167: 89% | X167: 89% | Y167: 180
A168: 110 | B168: BAS RHIN | C168: 5101 | D168: SELESTAT | E168: 4109 | F168: MARCKOLSHEIM | G168: 2.9 | H168: 63% | I168: 45% | J168: 159 | K168: 9% | L168: 9% | M168: 46 | N168: 88% | O168: 88% | P168: 116 | Q168: 83% | R168: 51% | S168: 224 | T168: 84% | U168: 75% | V168: 127 | W168: 92% | X168: 92% | Y168: 217
A169: 110 | B169: VOSGES | C169: 57 | D169: EPINAL | E169: 488281 | F169: ELOYES | G169: 3.9 | H169: 63% | I169: 45% | J169: 160 | K169: 15% | L169: 15% | M169: 119 | N169: 91% | O169: 91% | P169: 149 | Q169: 68% | R169: 37% | S169: 76 | T169: 93% | U169: 84% | V169: 208 | W169: 89% | X169: 89% | Y169: 159
A170: 110 | B170: MARNE ARDENNES | C170: 2 | D170: CHARLEVILLE MEZIERES | E170: 408862 | F170: REVIN | G170: 4.5 | H170: 63% | I170: 45% | J170: 161 | K170: 6% | L170: 6% | M170: 23 | N170: 96% | O170: 96% | P170: 208 | Q170: 76% | R170: 45% | S170: 163 | T170: 88% | U170: 79% | V170: 164 | W170: 91% | X170: 91% | Y170: 199
A171: 110 | B171: VOSGES | C171: 57 | D171: EPINAL | E171: 588206 | F171: CHARMES | G171: 2.7 | H171: 63% | I171: 45% | J171: 162 | K171: 13% | L171: 13% | M171: 94 | N171: 100% | O171: 100% | P171: 235 | Q171: 72% | R171: 40% | S171: 110 | T171: 85% | U171: 76% | V171: 142 | W171: 87% | X171: 87% | Y171: 138
A172: 110 | B172: BAS RHIN | C172: 5060 | D172: HAGUENAU | E172: 4060 | F172: HAGUENAU HOUBLON | G172: 10.7 | H172: 63% | I172: 46% | J172: 163 | K172: 24% | L172: 24% | M172: 187 | N172: 93% | O172: 93% | P172: 179 | Q172: 69% | R172: 37% | S172: 81 | T172: 82% | U172: 72% | V172: 106 | W172: 90% | X172: 90% | Y172: 194
A173: 110 | B173: MARNE ARDENNES | C173: 2 | D173: CHARLEVILLE MEZIERES | E173: 508815 | F173: CARIGNAN | G173: 2.9 | H173: 63% | I173: 46% | J173: 164 | K173: 12% | L173: 12% | M173: 86 | N173: 90% | O173: 90% | P173: 130 | Q173: 70% | R173: 38% | S173: 85 | T173: 101% | U173: 91% | V173: 240 | W173: 86% | X173: 86% | Y173: 121
A174: 110 | B174: BAS RHIN | C174: 5060 | D174: HAGUENAU | E174: 4087 | F174: SAVERNE | G174: 5.8 | H174: 64% | I174: 46% | J174: 165 | K174: 32% | L174: 32% | M174: 234 | N174: 84% | O174: 84% | P174: 75 | Q174: 74% | R174: 43% | S174: 136 | T174: 80% | U174: 71% | V174: 95 | W174: 89% | X174: 89% | Y174: 167
A175: 110 | B175: BAS RHIN | C175: 5006 | D175: STRASBOURG | E175: 4026 | F175: STRASBOURG DANUBE | G175: 3.6 | H175: 64% | I175: 46% | J175: 166 | K175: 34% | L175: 34% | M175: 238 | N175: 92% | O175: 92% | P175: 165 | Q175: 64% | R175: 33% | S175: 43 | T175: 79% | U175: 70% | V175: 81 | W175: 90% | X175: 90% | Y175: 192
A176: 110 | B176: MEURTHE ET MOSELLE MEUSE | C176: 31 | D176: VERDUN | E176: 554412 | F176: LONGUYON | G176: 2.9 | H176: 64% | I176: 46% | J176: 167 | K176: 15% | L176: 15% | M176: 121 | N176: 85% | O176: 85% | P176: 87 | Q176: 81% | R176: 49% | S176: 198 | T176: 93% | U176: 84% | V176: 209 | W176: 85% | X176: 85% | Y176: 97
A177: 110 | B177: BAS RHIN | C177: 5060 | D177: HAGUENAU | E177: 4031 | F177: TRUCHTERSHEIM | G177: 2.9 | H177: 64% | I177: 46% | J177: 168 | K177: 7% | L177: 7% | M177: 28 | N177: 83% | O177: 83% | P177: 60 | Q177: 86% | R177: 54% | S177: 233 | T177: 94% | U177: 85% | V177: 215 | W177: 90% | X177: 90% | Y177: 187
A178: 110 | B178: MEURTHE ET MOSELLE MEUSE | C178: 26 | D178: NANCY | E178: 554296 | F178: ESSEY LES NANCY | G178: 3.9 | H178: 64% | I178: 46% | J178: 169 | K178: 8% | L178: 8% | M178: 35 | N178: 97% | O178: 97% | P178: 214 | Q178: 74% | R178: 42% | S178: 130 | T178: 92% | U178: 82% | V178: 194 | W178: 90% | X178: 90% | Y178: 185
A179: 110 | B179: MARNE ARDENNES | C179: 6 | D179: CHALONS EN CHAMPAGNE | E179: 551354 | F179: VERTUS | G179: 2.5 | H179: 64% | I179: 46% | J179: 170 | K179: 3% | L179: 3% | M179: 6 | N179: 91% | O179: 91% | P179: 152 | Q179: 81% | R179: 50% | S179: 204 | T179: 96% | U179: 86% | V179: 220 | W179: 89% | X179: 89% | Y179: 161
A180: 110 | B180: VOSGES | C180: 57 | D180: EPINAL | E180: 588631 | F180: THAON LES VOSGES | G180: 5.9 | H180: 64% | I180: 46% | J180: 171 | K180: 14% | L180: 14% | M180: 107 | N180: 93% | O180: 93% | P180: 169 | Q180: 78% | R180: 46% | S180: 175 | T180: 89% | U180: 79% | V180: 173 | W180: 88% | X180: 88% | Y180: 154
A181: 110 | B181: BAS RHIN | C181: 5006 | D181: STRASBOURG | E181: 4029 | F181: SCHILTIGHEIM KLEBER | G181: 2.9 | H181: 64% | I181: 46% | J181: 172 | K181: 14% | L181: 14% | M181: 110 | N181: 98% | O181: 98% | P181: 218 | Q181: 73% | R181: 42% | S181: 128 | T181: 85% | U181: 75% | V181: 137 | W181: 92% | X181: 92% | Y181: 220
A182: 160 | B182: VOSGES | C182: 55 | D182: SAINT DIE | E182: 588386 | F182: LE THILLOT | G182: 2.9 | H182: 64% | I182: 46% | J182: 173 | K182: 11% | L182: 11% | M182: 63 | N182: 93% | O182: 93% | P182: 174 | Q182: 75% | R182: 43% | S182: 137 | T182: 93% | U182: 83% | V182: 205 | W182: 91% | X182: 91% | Y182: 210
A183: 160 | B183: AUBE HAUTE MARNE | C183: 14 | D183: TROYES | E183: 410571 | F183: ROMILLY SUR SEINE | G183: 6.1 | H183: 64% | I183: 47% | J183: 174 | K183: 17% | L183: 17% | M183: 140 | N183: 94% | O183: 94% | P183: 187 | Q183: 83% | R183: 51% | S183: 222 | T183: 84% | U183: 75% | V183: 133 | W183: 85% | X183: 85% | Y183: 106
A184: 160 | B184: BAS RHIN | C184: 5006 | D184: STRASBOURG | E184: 4028 | F184: BISCHHEIM | G184: 3.9 | H184: 65% | I184: 47% | J184: 175 | K184: 23% | L184: 23% | M184: 180 | N184: 90% | O184: 90% | P184: 135 | Q184: 82% | R184: 50% | S184: 214 | T184: 80% | U184: 71% | V184: 93 | W184: 89% | X184: 89% | Y184: 165
A185: 160 | B185: BAS RHIN | C185: 5006 | D185: STRASBOURG | E185: 4039 | F185: REICHSTETT | G185: 1.8 | H185: 65% | I185: 47% | J185: 176 | K185: 16% | L185: 16% | M185: 130 | N185: 92% | O185: 92% | P185: 155 | Q185: 77% | R185: 46% | S185: 173 | T185: 89% | U185: 80% | V185: 176 | W185: 90% | X185: 90% | Y185: 186
A186: 160 | B186: MARNE ARDENNES | C186: 6 | D186: CHALONS EN CHAMPAGNE | E186: 551110 | F186: CHALONS ROOSEVELT | G186: 5.8 | H186: 65% | I186: 47% | J186: 177 | K186: 14% | L186: 14% | M186: 104 | N186: 94% | O186: 94% | P186: 193 | Q186: 81% | R186: 50% | S186: 205 | T186: 84% | U186: 75% | V186: 135 | W186: 90% | X186: 90% | Y186: 188
A187: 160 | B187: MOSELLE | C187: 45 | D187: METZ | E187: 557437 | F187: METZ SARRE | G187: 2.9 | H187: 65% | I187: 47% | J187: 178 | K187: 33% | L187: 33% | M187: 237 | N187: 79% | O187: 79% | P187: 34 | Q187: 76% | R187: 44% | S187: 157 | T187: 87% | U187: 78% | V187: 158 | W187: 89% | X187: 89% | Y187: 172
A188: 160 | B188: BAS RHIN | C188: 5101 | D188: SELESTAT | E188: 4127 | F188: ROSHEIM | G188: 2.0 | H188: 65% | I188: 47% | J188: 179 | K188: 19% | L188: 19% | M188: 153 | N188: 101% | O188: 101% | P188: 238 | Q188: 63% | R188: 31% | S188: 36 | T188: 89% | U188: 79% | V188: 172 | W188: 92% | X188: 92% | Y188: 229
A189: 160 | B189: VOSGES | C189: 55 | D189: SAINT DIE | E189: 488586 | F189: SAINT DIE | G189: 15.1 | H189: 65% | I189: 47% | J189: 180 | K189: 11% | L189: 11% | M189: 59 | N189: 95% | O189: 95% | P189: 194 | Q189: 71% | R189: 40% | S189: 105 | T189: 97% | U189: 88% | V189: 229 | W189: 92% | X189: 92% | Y189: 214
A190: 160 | B190: MOSELLE | C190: 45 | D190: METZ | E190: 557559 | F190: REMILLY | G190: 3.9 | H190: 65% | I190: 47% | J190: 181 | K190: 29% | L190: 29% | M190: 222 | N190: 95% | O190: 95% | P190: 204 | Q190: 73% | R190: 41% | S190: 122 | T190: 85% | U190: 76% | V190: 139 | W190: 83% | X190: 83% | Y190: 77
A191: 160 | B191: MEURTHE ET MOSELLE MEUSE | C191: 27 | D191: PONT A MOUSSON | E191: 454355 | F191: JARNY | G191: 4.3 | H191: 65% | I191: 47% | J191: 182 | K191: 19% | L191: 19% | M191: 150 | N191: 95% | O191: 95% | P191: 196 | Q191: 73% | R191: 41% | S191: 121 | T191: 88% | U191: 79% | V191: 163 | W191: 91% | X191: 91% | Y191: 205
A192: 160 | B192: MEURTHE ET MOSELLE MEUSE | C192: 27 | D192: PONT A MOUSSON | E192: 554184 | F192: BRIEY | G192: 3.6 | H192: 65% | I192: 47% | J192: 183 | K192: 11% | L192: 11% | M192: 70 | N192: 99% | O192: 99% | P192: 225 | Q192: 87% | R192: 55% | S192: 237 | T192: 87% | U192: 78% | V192: 154 | W192: 82% | X192: 82% | Y192: 68
A193: 160 | B193: MARNE ARDENNES | C193: 2 | D193: CHARLEVILLE MEZIERES | E193: 508819 | F193: MOUZON | G193: 2.0 | H193: 65% | I193: 47% | J193: 184 | K193: 14% | L193: 14% | M193: 101 | N193: 97% | O193: 97% | P193: 217 | Q193: 78% | R193: 47% | S193: 185 | T193: 92% | U193: 83% | V193: 200 | W193: 85% | X193: 85% | Y193: 104
A194: 160 | B194: VOSGES | C194: 57 | D194: EPINAL | E194: 488291 | F194: EPINAL AVRINSART | G194: 1.7 | H194: 65% | I194: 47% | J194: 185 | K194: 13% | L194: 13% | M194: 88 | N194: 94% | O194: 94% | P194: 186 | Q194: 71% | R194: 40% | S194: 104 | T194: 97% | U194: 87% | V194: 228 | W194: 93% | X194: 93% | Y194: 242
A195: 160 | B195: BAS RHIN | C195: 5101 | D195: SELESTAT | E195: 4008 | F195: FEGERSHEIM | G195: 2.9 | H195: 65% | I195: 48% | J195: 186 | K195: 29% | L195: 29% | M195: 217 | N195: 87% | O195: 87% | P195: 103 | Q195: 71% | R195: 40% | S195: 101 | T195: 88% | U195: 79% | V195: 167 | W195: 93% | X195: 93% | Y195: 238
A196: 160 | B196: MOSELLE | C196: 44 | D196: MOSELLE NORD | E196: 457180 | F196: BOUSSE | G196: 2.4 | H196: 66% | I196: 48% | J196: 187 | K196: 5% | L196: 5% | M196: 16 | N196: 90% | O196: 90% | P196: 132 | Q196: 81% | R196: 49% | S196: 199 | T196: 98% | U196: 89% | V196: 234 | W196: 95% | X196: 95% | Y196: 247
A197: 160 | B197: BAS RHIN | C197: 5101 | D197: SELESTAT | E197: 4101 | F197: SELESTAT CENTRE | G197: 9.7 | H197: 66% | I197: 48% | J197: 188 | K197: 24% | L197: 24% | M197: 191 | N197: 88% | O197: 88% | P197: 110 | Q197: 80% | R197: 48% | S197: 191 | T197: 91% | U197: 81% | V197: 188 | W197: 87% | X197: 87% | Y197: 136
A198: 160 | B198: MARNE ARDENNES | C198: 2 | D198: CHARLEVILLE MEZIERES | E198: 508833 | F198: VILLERS SEMEUSE CORA | G198: 4.3 | H198: 66% | I198: 48% | J198: 189 | K198: 22% | L198: 22% | M198: 173 | N198: 95% | O198: 95% | P198: 202 | Q198: 71% | R198: 39% | S198: 94 | T198: 96% | U198: 87% | V198: 225 | W198: 86% | X198: 86% | Y198: 124
A199: 160 | B199: AUBE HAUTE MARNE | C199: 14 | D199: TROYES | E199: 410550 | F199: BAR SUR AUBE | G199: 4.9 | H199: 66% | I199: 48% | J199: 190 | K199: 20% | L199: 20% | M199: 161 | N199: 93% | O199: 93% | P199: 173 | Q199: 86% | R199: 54% | S199: 234 | T199: 86% | U199: 76% | V199: 143 | W199: 85% | X199: 85% | Y199: 109
A200: 160 | B200: MOSELLE | C200: 45 | D200: METZ | E200: 557459 | F200: MOULINS LES METZ | G200: 2.0 | H200: 66% | I200: 48% | J200: 191 | K200: 23% | L200: 23% | M200: 182 | N200: 99% | O200: 99% | P200: 230 | Q200: 73% | R200: 41% | S200: 125 | T200: 90% | U200: 80% | V200: 180 | W200: 85% | X200: 85% | Y200: 108
A201: 160 | B201: VOSGES | C201: 57 | D201: EPINAL | E201: 588501 | F201: NEUFCHATEAU | G201: 5.8 | H201: 66% | I201: 48% | J201: 192 | K201: 17% | L201: 17% | M201: 134 | N201: 96% | O201: 96% | P201: 207 | Q201: 83% | R201: 51% | S201: 220 | T201: 82% | U201: 72% | V201: 107 | W201: 93% | X201: 93% | Y201: 243
A202: 160 | B202: HAUT RHIN | C202: 5130 | D202: COLMAR | E202: 4148 | F202: ORBEY | G202: 3.8 | H202: 66% | I202: 48% | J202: 193 | K202: 15% | L202: 15% | M202: 118 | N202: 92% | O202: 92% | P202: 166 | Q202: 83% | R202: 51% | S202: 219 | T202: 90% | U202: 81% | V202: 182 | W202: 90% | X202: 90% | Y202: 196
A203: 160 | B203: AUBE HAUTE MARNE | C203: 14 | D203: TROYES | E203: 410512 | F203: TROYES ZOLA | G203: 4.8 | H203: 66% | I203: 48% | J203: 194 | K203: 30% | L203: 30% | M203: 230 | N203: 95% | O203: 95% | P203: 205 | Q203: 64% | R203: 33% | S203: 45 | T203: 86% | U203: 77% | V203: 148 | W203: 95% | X203: 95% | Y203: 245
... 56 more rows

Sheet AG_BANCA
B1: Accueil | H1: BAROMETRE BDD - AGENCES
H2: BANCARISATION
H3: =ACCUEIL!F7 -> 2022-03-06
H7: Ventes Nettes produits pondérés | L7: Ventes sur client non détenteur de l’univers | P7: Total Bancarisation
H8: =DATEMAJ!C8 -> au 06/03 | J8: coef | K8: ='RECAP DIRCOM'!AA4 -> 12% | L8: =DATEMAJ!C9 -> au 06/03 | N8: coef | O8: ='RECAP DIRCOM'!AE4 -> 8% | Q8: coef | R8: ='RECAP DIRCOM'!$AH$4 -> 20%
B9: Direction | C9: eds | D9: Territoire | E9: eds | F9: Agence | G9: ="ETP perf "&DATEMAJ!$C$28 -> ETP perf 31-janv | H9: VN | I9: VN / ETP | J9: % Ecart au 1er | K9: Rang | L9: VB | M9: VB / ETP | N9: % Ecart au 1er | O9: Rang | P9: Moyenne ecart au 1er | Q9: % Ecart au 1er | R9: Rang CEGEE
A10: 50 | B10: AUBE HAUTE MARNE | C10: 21 | D10: CHAUMONT | E10: 410541 | F10: LANGRES | G10: =VLOOKUP($E10,'RECAP AG'!$G$6:$CU$255,3,FALSE) -> 9.3 | H10: =VLOOKUP($E10,'RECAP AG'!$G$6:$CU$255,18,FALSE) -> 66.6 | I10: =VLOOKUP($E10,'RECAP AG'!$G$6:$CU$255,19,FALSE) -> 7.13 | J10: =VLOOKUP($E10,'RECAP AG'!$G$6:$CU$255,20,FALSE) -> 85% | K10: =VLOOKUP($E10,'RECAP AG'!$G$6:$CU$255,21,FALSE) -> 81 | L10: =VLOOKUP($E10,'RECAP AG'!$G$6:$CU$255,22,FALSE) -> 94 | M10: =VLOOKUP($E10,'RECAP AG'!$G$6:$CU$255,23,FALSE) -> 10.06 | N10: =VLOOKUP($E10,'RECAP AG'!$G$6:$CU$255,24,FALSE) -> 89% | O10: =VLOOKUP($E10,'RECAP AG'!$G$6:$CU$255,25,FALSE) -> 174 | P10: =VLOOKUP($E10,'RECAP AG'!$G$6:$CU$255,26,FALSE) -> 87% | Q10: =VLOOKUP($E10,'RECAP AG'!$G$6:$CU$255,27,FALSE) -> 87% | R10: =VLOOKUP($E10,'RECAP AG'!$G$6:$CU$255,28,FALSE) -> 105
A11: 50 | B11: AUBE HAUTE MARNE | C11: 21 | D11: CHAUMONT | E11: 410566 | F11: CHAUMONT HOTEL DE VILLE | G11: =VLOOKUP($E11,'RECAP AG'!$G$6:$CU$255,3,FALSE) -> 11.1 | H11: =VLOOKUP($E11,'RECAP AG'!$G$6:$CU$255,18,FALSE) -> 14.7 | I11: =VLOOKUP($E11,'RECAP AG'!$G$6:$CU$255,19,FALSE) -> 1.33 | J11: =VLOOKUP($E11,'RECAP AG'!$G$6:$CU$255,20,FALSE) -> 97% | K11: =VLOOKUP($E11,'RECAP AG'!$G$6:$CU$255,21,FALSE) -> 183 | L11: =VLOOKUP($E11,'RECAP AG'!$G$6:$CU$255,22,FALSE) -> 133 | M11: =VLOOKUP($E11,'RECAP AG'!$G$6:$CU$255,23,FALSE) -> 12.04 | N11: =VLOOKUP($E11,'RECAP AG'!$G$6:$CU$255,24,FALSE) -> 87% | O11: =VLOOKUP($E11,'RECAP AG'!$G$6:$CU$255,25,FALSE) -> 133 | P11: =VLOOKUP($E11,'RECAP AG'!$G$6:$CU$255,26,FALSE) -> 93% | Q11: =VLOOKUP($E11,'RECAP AG'!$G$6:$CU$255,27,FALSE) -> 93% | R11: =VLOOKUP($E11,'RECAP AG'!$G$6:$CU$255,28,FALSE) -> 177
A12: 50 | B12: AUBE HAUTE MARNE | C12: 21 | D12: CHAUMONT | E12: 510590 | F12: CHAUMONT REPUBLIQUE | G12: =VLOOKUP($E12,'RECAP AG'!$G$6:$CU$255,3,FALSE) -> 2.9 | H12: =VLOOKUP($E12,'RECAP AG'!$G$6:$CU$255,18,FALSE) -> 21.3 | I12: =VLOOKUP($E12,'RECAP AG'!$G$6:$CU$255,19,FALSE) -> 7.34 | J12: =VLOOKUP($E12,'RECAP AG'!$G$6:$CU$255,20,FALSE) -> 85% | K12: =VLOOKUP($E12,'RECAP AG'!$G$6:$CU$255,21,FALSE) -> 76 | L12: =VLOOKUP($E12,'RECAP AG'!$G$6:$CU$255,22,FALSE) -> 53 | M12: =VLOOKUP($E12,'RECAP AG'!$G$6:$CU$255,23,FALSE) -> 18.28 | N12: =VLOOKUP($E12,'RECAP AG'!$G$6:$CU$255,24,FALSE) -> 80% | O12: =VLOOKUP($E12,'RECAP AG'!$G$6:$CU$255,25,FALSE) -> 47 | P12: =VLOOKUP($E12,'RECAP AG'!$G$6:$CU$255,26,FALSE) -> 83% | Q12: =VLOOKUP($E12,'RECAP AG'!$G$6:$CU$255,27,FALSE) -> 83% | R12: =VLOOKUP($E12,'RECAP AG'!$G$6:$CU$255,28,FALSE) -> 68
A13: 50 | B13: AUBE HAUTE MARNE | C13: 21 | D13: CHAUMONT | E13: 451154 | F13: JOINVILLE | G13: =VLOOKUP($E13,'RECAP AG'!$G$6:$CU$255,3,FALSE) -> 2.0 | H13: =VLOOKUP($E13,'RECAP AG'!$G$6:$CU$255,18,FALSE) -> 22.1 | I13: =VLOOKUP($E13,'RECAP AG'!$G$6:$CU$255,19,FALSE) -> 11.33 | J13: =VLOOKUP($E13,'RECAP AG'!$G$6:$CU$255,20,FALSE) -> 77% | K13: =VLOOKUP($E13,'RECAP AG'!$G$6:$CU$255,21,FALSE) -> 27 | L13: =VLOOKUP($E13,'RECAP AG'!$G$6:$CU$255,22,FALSE) -> 39 | M13: =VLOOKUP($E13,'RECAP AG'!$G$6:$CU$255,23,FALSE) -> 20.00 | N13: =VLOOKUP($E13,'RECAP AG'!$G$6:$CU$255,24,FALSE) -> 78% | O13: =VLOOKUP($E13,'RECAP AG'!$G$6:$CU$255,25,FALSE) -> 32 | P13: =VLOOKUP($E13,'RECAP AG'!$G$6:$CU$255,26,FALSE) -> 77% | Q13: =VLOOKUP($E13,'RECAP AG'!$G$6:$CU$255,27,FALSE) -> 77% | R13: =VLOOKUP($E13,'RECAP AG'!$G$6:$CU$255,28,FALSE) -> 23
A14: 50 | B14: AUBE HAUTE MARNE | C14: 21 | D14: CHAUMONT | E14: 451156 | F14: SAINT DIZIER CENTRE | G14: =VLOOKUP($E14,'RECAP AG'!$G$6:$CU$255,3,FALSE) -> 8.4 | H14: =VLOOKUP($E14,'RECAP AG'!$G$6:$CU$255,18,FALSE) -> -1.3 | I14: =VLOOKUP($E14,'RECAP AG'!$G$6:$CU$255,19,FALSE) -> -0.15 | J14: =VLOOKUP($E14,'RECAP AG'!$G$6:$CU$255,20,FALSE) -> 100% | K14: =VLOOKUP($E14,'RECAP AG'!$G$6:$CU$255,21,FALSE) -> 201 | L14: =VLOOKUP($E14,'RECAP AG'!$G$6:$CU$255,22,FALSE) -> 115 | M14: =VLOOKUP($E14,'RECAP AG'!$G$6:$CU$255,23,FALSE) -> 13.71 | N14: =VLOOKUP($E14,'RECAP AG'!$G$6:$CU$255,24,FALSE) -> 85% | O14: =VLOOKUP($E14,'RECAP AG'!$G$6:$CU$255,25,FALSE) -> 111 | P14: =VLOOKUP($E14,'RECAP AG'!$G$6:$CU$255,26,FALSE) -> 94% | Q14: =VLOOKUP($E14,'RECAP AG'!$G$6:$CU$255,27,FALSE) -> 94% | R14: =VLOOKUP($E14,'RECAP AG'!$G$6:$CU$255,28,FALSE) -> 191
A15: 50 | B15: AUBE HAUTE MARNE | C15: 21 | D15: CHAUMONT | E15: 451151 | F15: WASSY | G15: =VLOOKUP($E15,'RECAP AG'!$G$6:$CU$255,3,FALSE) -> 2.0 | H15: =VLOOKUP($E15,'RECAP AG'!$G$6:$CU$255,18,FALSE) -> 17.1 | I15: =VLOOKUP($E15,'RECAP AG'!$G$6:$CU$255,19,FALSE) -> 8.77 | J15: =VLOOKUP($E15,'RECAP AG'!$G$6:$CU$255,20,FALSE) -> 82% | K15: =VLOOKUP($E15,'RECAP AG'!$G$6:$CU$255,21,FALSE) -> 56 | L15: =VLOOKUP($E15,'RECAP AG'!$G$6:$CU$255,22,FALSE) -> 29 | M15: =VLOOKUP($E15,'RECAP AG'!$G$6:$CU$255,23,FALSE) -> 14.87 | N15: =VLOOKUP($E15,'RECAP AG'!$G$6:$CU$255,24,FALSE) -> 83% | O15: =VLOOKUP($E15,'RECAP AG'!$G$6:$CU$255,25,FALSE) -> 93 | P15: =VLOOKUP($E15,'RECAP AG'!$G$6:$CU$255,26,FALSE) -> 83% | Q15: =VLOOKUP($E15,'RECAP AG'!$G$6:$CU$255,27,FALSE) -> 83% | R15: =VLOOKUP($E15,'RECAP AG'!$G$6:$CU$255,28,FALSE) -> 61
A16: 50 | B16: AUBE HAUTE MARNE | C16: 14 | D16: TROYES | E16: 510523 | F16: LA CHAPELLE ST LUC | G16: =VLOOKUP($E16,'RECAP AG'!$G$6:$CU$255,3,FALSE) -> 5.5 | H16: =VLOOKUP($E16,'RECAP AG'!$G$6:$CU$255,18,FALSE) -> -7.5 | I16: =VLOOKUP($E16,'RECAP AG'!$G$6:$CU$255,19,FALSE) -> -1.35 | J16: =VLOOKUP($E16,'RECAP AG'!$G$6:$CU$255,20,FALSE) -> 103% | K16: =VLOOKUP($E16,'RECAP AG'!$G$6:$CU$255,21,FALSE) -> 217 | L16: =VLOOKUP($E16,'RECAP AG'!$G$6:$CU$255,22,FALSE) -> 55 | M16: =VLOOKUP($E16,'RECAP AG'!$G$6:$CU$255,23,FALSE) -> 9.92 | N16: =VLOOKUP($E16,'RECAP AG'!$G$6:$CU$255,24,FALSE) -> 89% | O16: =VLOOKUP($E16,'RECAP AG'!$G$6:$CU$255,25,FALSE) -> 177 | P16: =VLOOKUP($E16,'RECAP AG'!$G$6:$CU$255,26,FALSE) -> 97% | Q16: =VLOOKUP($E16,'RECAP AG'!$G$6:$CU$255,27,FALSE) -> 97% | R16: =VLOOKUP($E16,'RECAP AG'!$G$6:$CU$255,28,FALSE) -> 215
A17: 50 | B17: AUBE HAUTE MARNE | C17: 14 | D17: TROYES | E17: 510530 | F17: ARCIS SUR AUBE | G17: =VLOOKUP($E17,'RECAP AG'!$G$6:$CU$255,3,FALSE) -> 3.9 | H17: =VLOOKUP($E17,'RECAP AG'!$G$6:$CU$255,18,FALSE) -> -5.6 | I17: =VLOOKUP($E17,'RECAP AG'!$G$6:$CU$255,19,FALSE) -> -1.45 | J17: =VLOOKUP($E17,'RECAP AG'!$G$6:$CU$255,20,FALSE) -> 103% | K17: =VLOOKUP($E17,'RECAP AG'!$G$6:$CU$255,21,FALSE) -> 218 | L17: =VLOOKUP($E17,'RECAP AG'!$G$6:$CU$255,22,FALSE) -> 21 | M17: =VLOOKUP($E17,'RECAP AG'!$G$6:$CU$255,23,FALSE) -> 5.45 | N17: =VLOOKUP($E17,'RECAP AG'!$G$6:$CU$255,24,FALSE) -> 94% | O17: =VLOOKUP($E17,'RECAP AG'!$G$6:$CU$255,25,FALSE) -> 242 | P17: =VLOOKUP($E17,'RECAP AG'!$G$6:$CU$255,26,FALSE) -> 99% | Q17: =VLOOKUP($E17,'RECAP AG'!$G$6:$CU$255,27,FALSE) -> 99% | R17: =VLOOKUP($E17,'RECAP AG'!$G$6:$CU$255,28,FALSE) -> 229
A18: 50 | B18: AUBE HAUTE MARNE | C18: 14 | D18: TROYES | E18: 410550 | F18: BAR SUR AUBE | G18: =VLOOKUP($E18,'RECAP AG'!$G$6:$CU$255,3,FALSE) -> 4.9 | H18: =VLOOKUP($E18,'RECAP AG'!$G$6:$CU$255,18,FALSE) -> 0.7 | I18: =VLOOKUP($E18,'RECAP AG'!$G$6:$CU$255,19,FALSE) -> 0.14 | J18: =VLOOKUP($E18,'RECAP AG'!$G$6:$CU$255,20,FALSE) -> 100% | K18: =VLOOKUP($E18,'RECAP AG'!$G$6:$CU$255,21,FALSE) -> 196 | L18: =VLOOKUP($E18,'RECAP AG'!$G$6:$CU$255,22,FALSE) -> 78 | M18: =VLOOKUP($E18,'RECAP AG'!$G$6:$CU$255,23,FALSE) -> 15.92 | N18: =VLOOKUP($E18,'RECAP AG'!$G$6:$CU$255,24,FALSE) -> 82% | O18: =VLOOKUP($E18,'RECAP AG'!$G$6:$CU$255,25,FALSE) -> 75 | P18: =VLOOKUP($E18,'RECAP AG'!$G$6:$CU$255,26,FALSE) -> 93% | Q18: =VLOOKUP($E18,'RECAP AG'!$G$6:$CU$255,27,FALSE) -> 93% | R18: =VLOOKUP($E18,'RECAP AG'!$G$6:$CU$255,28,FALSE) -> 173
A19: 50 | B19: AUBE HAUTE MARNE | C19: 14 | D19: TROYES | E19: 510556 | F19: BAR SUR SEINE | G19: =VLOOKUP($E19,'RECAP AG'!$G$6:$CU$255,3,FALSE) -> 3.6 | H19: =VLOOKUP($E19,'RECAP AG'!$G$6:$CU$255,18,FALSE) -> -10.9 | I19: =VLOOKUP($E19,'RECAP AG'!$G$6:$CU$255,19,FALSE) -> -2.99 | J19: =VLOOKUP($E19,'RECAP AG'!$G$6:$CU$255,20,FALSE) -> 106% | K19: =VLOOKUP($E19,'RECAP AG'!$G$6:$CU$255,21,FALSE) -> 228 | L19: =VLOOKUP($E19,'RECAP AG'!$G$6:$CU$255,22,FALSE) -> 23 | M19: =VLOOKUP($E19,'RECAP AG'!$G$6:$CU$255,23,FALSE) -> 6.32 | N19: =VLOOKUP($E19,'RECAP AG'!$G$6:$CU$255,24,FALSE) -> 93% | O19: =VLOOKUP($E19,'RECAP AG'!$G$6:$CU$255,25,FALSE) -> 232 | P19: =VLOOKUP($E19,'RECAP AG'!$G$6:$CU$255,26,FALSE) -> 101% | Q19: =VLOOKUP($E19,'RECAP AG'!$G$6:$CU$255,27,FALSE) -> 101% | R19: =VLOOKUP($E19,'RECAP AG'!$G$6:$CU$255,28,FALSE) -> 236
A20: 50 | B20: AUBE HAUTE MARNE | C20: 14 | D20: TROYES | E20: 510570 | F20: NOGENT SUR SEINE | G20: =VLOOKUP($E20,'RECAP AG'!$G$6:$CU$255,3,FALSE) -> 4.6 | H20: =VLOOKUP($E20,'RECAP AG'!$G$6:$CU$255,18,FALSE) -> 25.9 | I20: =VLOOKUP($E20,'RECAP AG'!$G$6:$CU$255,19,FALSE) -> 5.64 | J20: =VLOOKUP($E20,'RECAP AG'!$G$6:$CU$255,20,FALSE) -> 88% | K20: =VLOOKUP($E20,'RECAP AG'!$G$6:$CU$255,21,FALSE) -> 105 | L20: =VLOOKUP($E20,'RECAP AG'!$G$6:$CU$255,22,FALSE) -> 66 | M20: =VLOOKUP($E20,'RECAP AG'!$G$6:$CU$255,23,FALSE) -> 14.38 | N20: =VLOOKUP($E20,'RECAP AG'!$G$6:$CU$255,24,FALSE) -> 84% | O20: =VLOOKUP($E20,'RECAP AG'!$G$6:$CU$255,25,FALSE) -> 100 | P20: =VLOOKUP($E20,'RECAP AG'!$G$6:$CU$255,26,FALSE) -> 87% | Q20: =VLOOKUP($E20,'RECAP AG'!$G$6:$CU$255,27,FALSE) -> 87% | R20: =VLOOKUP($E20,'RECAP AG'!$G$6:$CU$255,28,FALSE) -> 102
A21: 50 | B21: AUBE HAUTE MARNE | C21: 14 | D21: TROYES | E21: 410571 | F21: ROMILLY SUR SEINE | G21: =VLOOKUP($E21,'RECAP AG'!$G$6:$CU$255,3,FALSE) -> 6.1 | H21: =VLOOKUP($E21,'RECAP AG'!$G$6:$CU$255,18,FALSE) -> 7.5 | I21: =VLOOKUP($E21,'RECAP AG'!$G$6:$CU$255,19,FALSE) -> 1.22 | J21: =VLOOKUP($E21,'RECAP AG'!$G$6:$CU$255,20,FALSE) -> 98% | K21: =VLOOKUP($E21,'RECAP AG'!$G$6:$CU$255,21,FALSE) -> 185 | L21: =VLOOKUP($E21,'RECAP AG'!$G$6:$CU$255,22,FALSE) -> 64 | M21: =VLOOKUP($E21,'RECAP AG'!$G$6:$CU$255,23,FALSE) -> 10.44 | N21: =VLOOKUP($E21,'RECAP AG'!$G$6:$CU$255,24,FALSE) -> 88% | O21: =VLOOKUP($E21,'RECAP AG'!$G$6:$CU$255,25,FALSE) -> 162 | P21: =VLOOKUP($E21,'RECAP AG'!$G$6:$CU$255,26,FALSE) -> 94% | Q21: =VLOOKUP($E21,'RECAP AG'!$G$6:$CU$255,27,FALSE) -> 94% | R21: =VLOOKUP($E21,'RECAP AG'!$G$6:$CU$255,28,FALSE) -> 187
A22: 50 | B22: AUBE HAUTE MARNE | C22: 14 | D22: TROYES | E22: 510520 | F22: SAINT ANDRE LES VERGERS | G22: =VLOOKUP($E22,'RECAP AG'!$G$6:$CU$255,3,FALSE) -> 4.8 | H22: =VLOOKUP($E22,'RECAP AG'!$G$6:$CU$255,18,FALSE) -> 8.5 | I22: =VLOOKUP($E22,'RECAP AG'!$G$6:$CU$255,19,FALSE) -> 1.77 | J22: =VLOOKUP($E22,'RECAP AG'!$G$6:$CU$255,20,FALSE) -> 96% | K22: =VLOOKUP($E22,'RECAP AG'!$G$6:$CU$255,21,FALSE) -> 176 | L22: =VLOOKUP($E22,'RECAP AG'!$G$6:$CU$255,22,FALSE) -> 52 | M22: =VLOOKUP($E22,'RECAP AG'!$G$6:$CU$255,23,FALSE) -> 10.83 | N22: =VLOOKUP($E22,'RECAP AG'!$G$6:$CU$255,24,FALSE) -> 88% | O22: =VLOOKUP($E22,'RECAP AG'!$G$6:$CU$255,25,FALSE) -> 156 | P22: =VLOOKUP($E22,'RECAP AG'!$G$6:$CU$255,26,FALSE) -> 93% | Q22: =VLOOKUP($E22,'RECAP AG'!$G$6:$CU$255,27,FALSE) -> 93% | R22: =VLOOKUP($E22,'RECAP AG'!$G$6:$CU$255,28,FALSE) -> 176
A23: 50 | B23: AUBE HAUTE MARNE | C23: 14 | D23: TROYES | E23: 410524 | F23: SAINT JULIEN LES VILLAS | G23: =VLOOKUP($E23,'RECAP AG'!$G$6:$CU$255,3,FALSE) -> 5.8 | H23: =VLOOKUP($E23,'RECAP AG'!$G$6:$CU$255,18,FALSE) -> 13.7 | I23: =VLOOKUP($E23,'RECAP AG'!$G$6:$CU$255,19,FALSE) -> 2.38 | J23: =VLOOKUP($E23,'RECAP AG'!$G$6:$CU$255,20,FALSE) -> 95% | K23: =VLOOKUP($E23,'RECAP AG'!$G$6:$CU$255,21,FALSE) -> 162 | L23: =VLOOKUP($E23,'RECAP AG'!$G$6:$CU$255,22,FALSE) -> 72 | M23: =VLOOKUP($E23,'RECAP AG'!$G$6:$CU$255,23,FALSE) -> 12.52 | N23: =VLOOKUP($E23,'RECAP AG'!$G$6:$CU$255,24,FALSE) -> 86% | O23: =VLOOKUP($E23,'RECAP AG'!$G$6:$CU$255,25,FALSE) -> 124 | P23: =VLOOKUP($E23,'RECAP AG'!$G$6:$CU$255,26,FALSE) -> 91% | Q23: =VLOOKUP($E23,'RECAP AG'!$G$6:$CU$255,27,FALSE) -> 91% | R23: =VLOOKUP($E23,'RECAP AG'!$G$6:$CU$255,28,FALSE) -> 154
A24: 50 | B24: AUBE HAUTE MARNE | C24: 14 | D24: TROYES | E24: 410521 | F24: SAINTE SAVINE | G24: =VLOOKUP($E24,'RECAP AG'!$G$6:$CU$255,3,FALSE) -> 4.8 | H24: =VLOOKUP($E24,'RECAP AG'!$G$6:$CU$255,18,FALSE) -> -14.6 | I24: =VLOOKUP($E24,'RECAP AG'!$G$6:$CU$255,19,FALSE) -> -3.04 | J24: =VLOOKUP($E24,'RECAP AG'!$G$6:$CU$255,20,FALSE) -> 106% | K24: =VLOOKUP($E24,'RECAP AG'!$G$6:$CU$255,21,FALSE) -> 229 | L24: =VLOOKUP($E24,'RECAP AG'!$G$6:$CU$255,22,FALSE) -> 54 | M24: =VLOOKUP($E24,'RECAP AG'!$G$6:$CU$255,23,FALSE) -> 11.25 | N24: =VLOOKUP($E24,'RECAP AG'!$G$6:$CU$255,24,FALSE) -> 87% | O24: =VLOOKUP($E24,'RECAP AG'!$G$6:$CU$255,25,FALSE) -> 149 | P24: =VLOOKUP($E24,'RECAP AG'!$G$6:$CU$255,26,FALSE) -> 99% | Q24: =VLOOKUP($E24,'RECAP AG'!$G$6:$CU$255,27,FALSE) -> 99% | R24: =VLOOKUP($E24,'RECAP AG'!$G$6:$CU$255,28,FALSE) -> 222
A25: 50 | B25: AUBE HAUTE MARNE | C25: 14 | D25: TROYES | E25: 510513 | F25: TROYES 1ER MAI | G25: =VLOOKUP($E25,'RECAP AG'!$G$6:$CU$255,3,FALSE) -> 3.9 | H25: =VLOOKUP($E25,'RECAP AG'!$G$6:$CU$255,18,FALSE) -> 7.6 | I25: =VLOOKUP($E25,'RECAP AG'!$G$6:$CU$255,19,FALSE) -> 1.97 | J25: =VLOOKUP($E25,'RECAP AG'!$G$6:$CU$255,20,FALSE) -> 96% | K25: =VLOOKUP($E25,'RECAP AG'!$G$6:$CU$255,21,FALSE) -> 173 | L25: =VLOOKUP($E25,'RECAP AG'!$G$6:$CU$255,22,FALSE) -> 65 | M25: =VLOOKUP($E25,'RECAP AG'!$G$6:$CU$255,23,FALSE) -> 16.88 | N25: =VLOOKUP($E25,'RECAP AG'!$G$6:$CU$255,24,FALSE) -> 81% | O25: =VLOOKUP($E25,'RECAP AG'!$G$6:$CU$255,25,FALSE) -> 66 | P25: =VLOOKUP($E25,'RECAP AG'!$G$6:$CU$255,26,FALSE) -> 90% | Q25: =VLOOKUP($E25,'RECAP AG'!$G$6:$CU$255,27,FALSE) -> 90% | R25: =VLOOKUP($E25,'RECAP AG'!$G$6:$CU$255,28,FALSE) -> 134
A26: 50 | B26: AUBE HAUTE MARNE | C26: 14 | D26: TROYES | E26: 410510 | F26: TROYES GAMBETTA | G26: =VLOOKUP($E26,'RECAP AG'!$G$6:$CU$255,3,FALSE) -> 9.6 | H26: =VLOOKUP($E26,'RECAP AG'!$G$6:$CU$255,18,FALSE) -> 8.8 | I26: =VLOOKUP($E26,'RECAP AG'!$G$6:$CU$255,19,FALSE) -> 0.92 | J26: =VLOOKUP($E26,'RECAP AG'!$G$6:$CU$255,20,FALSE) -> 98% | K26: =VLOOKUP($E26,'RECAP AG'!$G$6:$CU$255,21,FALSE) -> 187 | L26: =VLOOKUP($E26,'RECAP AG'!$G$6:$CU$255,22,FALSE) -> 75 | M26: =VLOOKUP($E26,'RECAP AG'!$G$6:$CU$255,23,FALSE) -> 7.85 | N26: =VLOOKUP($E26,'RECAP AG'!$G$6:$CU$255,24,FALSE) -> 91% | O26: =VLOOKUP($E26,'RECAP AG'!$G$6:$CU$255,25,FALSE) -> 218 | P26: =VLOOKUP($E26,'RECAP AG'!$G$6:$CU$255,26,FALSE) -> 95% | Q26: =VLOOKUP($E26,'RECAP AG'!$G$6:$CU$255,27,FALSE) -> 95% | R26: =VLOOKUP($E26,'RECAP AG'!$G$6:$CU$255,28,FALSE) -> 206
A27: 50 | B27: AUBE HAUTE MARNE | C27: 14 | D27: TROYES | E27: 410512 | F27: TROYES ZOLA | G27: =VLOOKUP($E27,'RECAP AG'!$G$6:$CU$255,3,FALSE) -> 4.8 | H27: =VLOOKUP($E27,'RECAP AG'!$G$6:$CU$255,18,FALSE) -> 0.1 | I27: =VLOOKUP($E27,'RECAP AG'!$G$6:$CU$255,19,FALSE) -> 0.02 | J27: =VLOOKUP($E27,'RECAP AG'!$G$6:$CU$255,20,FALSE) -> 100% | K27: =VLOOKUP($E27,'RECAP AG'!$G$6:$CU$255,21,FALSE) -> 199 | L27: =VLOOKUP($E27,'RECAP AG'!$G$6:$CU$255,22,FALSE) -> 51 | M27: =VLOOKUP($E27,'RECAP AG'!$G$6:$CU$255,23,FALSE) -> 10.63 | N27: =VLOOKUP($E27,'RECAP AG'!$G$6:$CU$255,24,FALSE) -> 88% | O27: =VLOOKUP($E27,'RECAP AG'!$G$6:$CU$255,25,FALSE) -> 161 | P27: =VLOOKUP($E27,'RECAP AG'!$G$6:$CU$255,26,FALSE) -> 95% | Q27: =VLOOKUP($E27,'RECAP AG'!$G$6:$CU$255,27,FALSE) -> 95% | R27: =VLOOKUP($E27,'RECAP AG'!$G$6:$CU$255,28,FALSE) -> 205
A28: 262 | B28: BAS RHIN | C28: 5060 | D28: HAGUENAU | E28: 4057 | F28: BISCHWILLER | G28: =VLOOKUP($E28,'RECAP AG'!$G$6:$CU$255,3,FALSE) -> 6.6 | H28: =VLOOKUP($E28,'RECAP AG'!$G$6:$CU$255,18,FALSE) -> 41.2 | I28: =VLOOKUP($E28,'RECAP AG'!$G$6:$CU$255,19,FALSE) -> 6.20 | J28: =VLOOKUP($E28,'RECAP AG'!$G$6:$CU$255,20,FALSE) -> 87% | K28: =VLOOKUP($E28,'RECAP AG'!$G$6:$CU$255,21,FALSE) -> 92 | L28: =VLOOKUP($E28,'RECAP AG'!$G$6:$CU$255,22,FALSE) -> 57 | M28: =VLOOKUP($E28,'RECAP AG'!$G$6:$CU$255,23,FALSE) -> 8.58 | N28: =VLOOKUP($E28,'RECAP AG'!$G$6:$CU$255,24,FALSE) -> 90% | O28: =VLOOKUP($E28,'RECAP AG'!$G$6:$CU$255,25,FALSE) -> 204 | P28: =VLOOKUP($E28,'RECAP AG'!$G$6:$CU$255,26,FALSE) -> 89% | Q28: =VLOOKUP($E28,'RECAP AG'!$G$6:$CU$255,27,FALSE) -> 89% | R28: =VLOOKUP($E28,'RECAP AG'!$G$6:$CU$255,28,FALSE) -> 118
A29: 262 | B29: BAS RHIN | C29: 5060 | D29: HAGUENAU | E29: 4082 | F29: BOUXWILLER | G29: =VLOOKUP($E29,'RECAP AG'!$G$6:$CU$255,3,FALSE) -> 2.7 | H29: =VLOOKUP($E29,'RECAP AG'!$G$6:$CU$255,18,FALSE) -> 2.3 | I29: =VLOOKUP($E29,'RECAP AG'!$G$6:$CU$255,19,FALSE) -> 0.85 | J29: =VLOOKUP($E29,'RECAP AG'!$G$6:$CU$255,20,FALSE) -> 98% | K29: =VLOOKUP($E29,'RECAP AG'!$G$6:$CU$255,21,FALSE) -> 188 | L29: =VLOOKUP($E29,'RECAP AG'!$G$6:$CU$255,22,FALSE) -> 44 | M29: =VLOOKUP($E29,'RECAP AG'!$G$6:$CU$255,23,FALSE) -> 16.24 | N29: =VLOOKUP($E29,'RECAP AG'!$G$6:$CU$255,24,FALSE) -> 82% | O29: =VLOOKUP($E29,'RECAP AG'!$G$6:$CU$255,25,FALSE) -> 71 | P29: =VLOOKUP($E29,'RECAP AG'!$G$6:$CU$255,26,FALSE) -> 92% | Q29: =VLOOKUP($E29,'RECAP AG'!$G$6:$CU$255,27,FALSE) -> 92% | R29: =VLOOKUP($E29,'RECAP AG'!$G$6:$CU$255,28,FALSE) -> 157
A30: 262 | B30: BAS RHIN | C30: 5060 | D30: HAGUENAU | E30: 4030 | F30: BRUMATH | G30: =VLOOKUP($E30,'RECAP AG'!$G$6:$CU$255,3,FALSE) -> 5.1 | H30: =VLOOKUP($E30,'RECAP AG'!$G$6:$CU$255,18,FALSE) -> 30.0 | I30: =VLOOKUP($E30,'RECAP AG'!$G$6:$CU$255,19,FALSE) -> 5.90 | J30: =VLOOKUP($E30,'RECAP AG'!$G$6:$CU$255,20,FALSE) -> 88% | K30: =VLOOKUP($E30,'RECAP AG'!$G$6:$CU$255,21,FALSE) -> 98 | L30: =VLOOKUP($E30,'RECAP AG'!$G$6:$CU$255,22,FALSE) -> 52 | M30: =VLOOKUP($E30,'RECAP AG'!$G$6:$CU$255,23,FALSE) -> 10.23 | N30: =VLOOKUP($E30,'RECAP AG'!$G$6:$CU$255,24,FALSE) -> 89% | O30: =VLOOKUP($E30,'RECAP AG'!$G$6:$CU$255,25,FALSE) -> 167 | P30: =VLOOKUP($E30,'RECAP AG'!$G$6:$CU$255,26,FALSE) -> 88% | Q30: =VLOOKUP($E30,'RECAP AG'!$G$6:$CU$255,27,FALSE) -> 88% | R30: =VLOOKUP($E30,'RECAP AG'!$G$6:$CU$255,28,FALSE) -> 113
A31: 262 | B31: BAS RHIN | C31: 5060 | D31: HAGUENAU | E31: 4060 | F31: HAGUENAU HOUBLON | G31: =VLOOKUP($E31,'RECAP AG'!$G$6:$CU$255,3,FALSE) -> 10.7 | H31: =VLOOKUP($E31,'RECAP AG'!$G$6:$CU$255,18,FALSE) -> 28.9 | I31: =VLOOKUP($E31,'RECAP AG'!$G$6:$CU$255,19,FALSE) -> 2.71 | J31: =VLOOKUP($E31,'RECAP AG'!$G$6:$CU$255,20,FALSE) -> 94% | K31: =VLOOKUP($E31,'RECAP AG'!$G$6:$CU$255,21,FALSE) -> 156 | L31: =VLOOKUP($E31,'RECAP AG'!$G$6:$CU$255,22,FALSE) -> 87 | M31: =VLOOKUP($E31,'RECAP AG'!$G$6:$CU$255,23,FALSE) -> 8.16 | N31: =VLOOKUP($E31,'RECAP AG'!$G$6:$CU$255,24,FALSE) -> 91% | O31: =VLOOKUP($E31,'RECAP AG'!$G$6:$CU$255,25,FALSE) -> 211 | P31: =VLOOKUP($E31,'RECAP AG'!$G$6:$CU$255,26,FALSE) -> 93% | Q31: =VLOOKUP($E31,'RECAP AG'!$G$6:$CU$255,27,FALSE) -> 93% | R31: =VLOOKUP($E31,'RECAP AG'!$G$6:$CU$255,28,FALSE) -> 179
A32: 262 | B32: BAS RHIN | C32: 5060 | D32: HAGUENAU | E32: 4092 | F32: HOCHFELDEN | G32: =VLOOKUP($E32,'RECAP AG'!$G$6:$CU$255,3,FALSE) -> 1.8 | H32: =VLOOKUP($E32,'RECAP AG'!$G$6:$CU$255,18,FALSE) -> 6.1 | I32: =VLOOKUP($E32,'RECAP AG'!$G$6:$CU$255,19,FALSE) -> 3.47 | J32: =VLOOKUP($E32,'RECAP AG'!$G$6:$CU$255,20,FALSE) -> 93% | K32: =VLOOKUP($E32,'RECAP AG'!$G$6:$CU$255,21,FALSE) -> 141 | L32: =VLOOKUP($E32,'RECAP AG'!$G$6:$CU$255,22,FALSE) -> 28 | M32: =VLOOKUP($E32,'RECAP AG'!$G$6:$CU$255,23,FALSE) -> 15.91 | N32: =VLOOKUP($E32,'RECAP AG'!$G$6:$CU$255,24,FALSE) -> 82% | O32: =VLOOKUP($E32,'RECAP AG'!$G$6:$CU$255,25,FALSE) -> 76 | P32: =VLOOKUP($E32,'RECAP AG'!$G$6:$CU$255,26,FALSE) -> 89% | Q32: =VLOOKUP($E32,'RECAP AG'!$G$6:$CU$255,27,FALSE) -> 89% | R32: =VLOOKUP($E32,'RECAP AG'!$G$6:$CU$255,28,FALSE) -> 119
A33: 262 | B33: BAS RHIN | C33: 5060 | D33: HAGUENAU | E33: 4041 | F33: HOERDT | G33: =VLOOKUP($E33,'RECAP AG'!$G$6:$CU$255,3,FALSE) -> 1.8 | H33: =VLOOKUP($E33,'RECAP AG'!$G$6:$CU$255,18,FALSE) -> 3.5 | I33: =VLOOKUP($E33,'RECAP AG'!$G$6:$CU$255,19,FALSE) -> 1.99 | J33: =VLOOKUP($E33,'RECAP AG'!$G$6:$CU$255,20,FALSE) -> 96% | K33: =VLOOKUP($E33,'RECAP AG'!$G$6:$CU$255,21,FALSE) -> 172 | L33: =VLOOKUP($E33,'RECAP AG'!$G$6:$CU$255,22,FALSE) -> 14 | M33: =VLOOKUP($E33,'RECAP AG'!$G$6:$CU$255,23,FALSE) -> 7.95 | N33: =VLOOKUP($E33,'RECAP AG'!$G$6:$CU$255,24,FALSE) -> 91% | O33: =VLOOKUP($E33,'RECAP AG'!$G$6:$CU$255,25,FALSE) -> 214 | P33: =VLOOKUP($E33,'RECAP AG'!$G$6:$CU$255,26,FALSE) -> 94% | Q33: =VLOOKUP($E33,'RECAP AG'!$G$6:$CU$255,27,FALSE) -> 94% | R33: =VLOOKUP($E33,'RECAP AG'!$G$6:$CU$255,28,FALSE) -> 190
A34: 262 | B34: BAS RHIN | C34: 5060 | D34: HAGUENAU | E34: 4085 | F34: INGWILLER | G34: =VLOOKUP($E34,'RECAP AG'!$G$6:$CU$255,3,FALSE) -> 3.7 | H34: =VLOOKUP($E34,'RECAP AG'!$G$6:$CU$255,18,FALSE) -> 22.8 | I34: =VLOOKUP($E34,'RECAP AG'!$G$6:$CU$255,19,FALSE) -> 6.23 | J34: =VLOOKUP($E34,'RECAP AG'!$G$6:$CU$255,20,FALSE) -> 87% | K34: =VLOOKUP($E34,'RECAP AG'!$G$6:$CU$255,21,FALSE) -> 91 | L34: =VLOOKUP($E34,'RECAP AG'!$G$6:$CU$255,22,FALSE) -> 51 | M34: =VLOOKUP($E34,'RECAP AG'!$G$6:$CU$255,23,FALSE) -> 13.93 | N34: =VLOOKUP($E34,'RECAP AG'!$G$6:$CU$255,24,FALSE) -> 84% | O34: =VLOOKUP($E34,'RECAP AG'!$G$6:$CU$255,25,FALSE) -> 104 | P34: =VLOOKUP($E34,'RECAP AG'!$G$6:$CU$255,26,FALSE) -> 86% | Q34: =VLOOKUP($E34,'RECAP AG'!$G$6:$CU$255,27,FALSE) -> 86% | R34: =VLOOKUP($E34,'RECAP AG'!$G$6:$CU$255,28,FALSE) -> 93
A35: 262 | B35: BAS RHIN | C35: 5060 | D35: HAGUENAU | E35: 4066 | F35: NIEDERBRONN LES BAINS | G35: =VLOOKUP($E35,'RECAP AG'!$G$6:$CU$255,3,FALSE) -> 6.5 | H35: =VLOOKUP($E35,'RECAP AG'!$G$6:$CU$255,18,FALSE) -> -38.3 | I35: =VLOOKUP($E35,'RECAP AG'!$G$6:$CU$255,19,FALSE) -> -5.86 | J35: =VLOOKUP($E35,'RECAP AG'!$G$6:$CU$255,20,FALSE) -> 112% | K35: =VLOOKUP($E35,'RECAP AG'!$G$6:$CU$255,21,FALSE) -> 243 | L35: =VLOOKUP($E35,'RECAP AG'!$G$6:$CU$255,22,FALSE) -> 55 | M35: =VLOOKUP($E35,'RECAP AG'!$G$6:$CU$255,23,FALSE) -> 8.42 | N35: =VLOOKUP($E35,'RECAP AG'!$G$6:$CU$255,24,FALSE) -> 91% | O35: =VLOOKUP($E35,'RECAP AG'!$G$6:$CU$255,25,FALSE) -> 206 | P35: =VLOOKUP($E35,'RECAP AG'!$G$6:$CU$255,26,FALSE) -> 103% | Q35: =VLOOKUP($E35,'RECAP AG'!$G$6:$CU$255,27,FALSE) -> 103% | R35: =VLOOKUP($E35,'RECAP AG'!$G$6:$CU$255,28,FALSE) -> 244
A36: 262 | B36: BAS RHIN | C36: 5060 | D36: HAGUENAU | E36: 4067 | F36: PFAFFENHOFFEN | G36: =VLOOKUP($E36,'RECAP AG'!$G$6:$CU$255,3,FALSE) -> 2.0 | H36: =VLOOKUP($E36,'RECAP AG'!$G$6:$CU$255,18,FALSE) -> 2.6 | I36: =VLOOKUP($E36,'RECAP AG'!$G$6:$CU$255,19,FALSE) -> 1.33 | J36: =VLOOKUP($E36,'RECAP AG'!$G$6:$CU$255,20,FALSE) -> 97% | K36: =VLOOKUP($E36,'RECAP AG'!$G$6:$CU$255,21,FALSE) -> 182 | L36: =VLOOKUP($E36,'RECAP AG'!$G$6:$CU$255,22,FALSE) -> 15 | M36: =VLOOKUP($E36,'RECAP AG'!$G$6:$CU$255,23,FALSE) -> 7.69 | N36: =VLOOKUP($E36,'RECAP AG'!$G$6:$CU$255,24,FALSE) -> 91% | O36: =VLOOKUP($E36,'RECAP AG'!$G$6:$CU$255,25,FALSE) -> 222 | P36: =VLOOKUP($E36,'RECAP AG'!$G$6:$CU$255,26,FALSE) -> 95% | Q36: =VLOOKUP($E36,'RECAP AG'!$G$6:$CU$255,27,FALSE) -> 95% | R36: =VLOOKUP($E36,'RECAP AG'!$G$6:$CU$255,28,FALSE) -> 201
A37: 262 | B37: BAS RHIN | C37: 5060 | D37: HAGUENAU | E37: 4095 | F37: SARRE UNION | G37: =VLOOKUP($E37,'RECAP AG'!$G$6:$CU$255,3,FALSE) -> 4.1 | H37: =VLOOKUP($E37,'RECAP AG'!$G$6:$CU$255,18,FALSE) -> 30.1 | I37: =VLOOKUP($E37,'RECAP AG'!$G$6:$CU$255,19,FALSE) -> 7.28 | J37: =VLOOKUP($E37,'RECAP AG'!$G$6:$CU$255,20,FALSE) -> 85% | K37: =VLOOKUP($E37,'RECAP AG'!$G$6:$CU$255,21,FALSE) -> 78 | L37: =VLOOKUP($E37,'RECAP AG'!$G$6:$CU$255,22,FALSE) -> 34 | M37: =VLOOKUP($E37,'RECAP AG'!$G$6:$CU$255,23,FALSE) -> 8.22 | N37: =VLOOKUP($E37,'RECAP AG'!$G$6:$CU$255,24,FALSE) -> 91% | O37: =VLOOKUP($E37,'RECAP AG'!$G$6:$CU$255,25,FALSE) -> 209 | P37: =VLOOKUP($E37,'RECAP AG'!$G$6:$CU$255,26,FALSE) -> 87% | Q37: =VLOOKUP($E37,'RECAP AG'!$G$6:$CU$255,27,FALSE) -> 87% | R37: =VLOOKUP($E37,'RECAP AG'!$G$6:$CU$255,28,FALSE) -> 109
A38: 262 | B38: BAS RHIN | C38: 5060 | D38: HAGUENAU | E38: 4087 | F38: SAVERNE | G38: =VLOOKUP($E38,'RECAP AG'!$G$6:$CU$255,3,FALSE) -> 5.8 | H38: =VLOOKUP($E38,'RECAP AG'!$G$6:$CU$255,18,FALSE) -> 55.0 | I38: =VLOOKUP($E38,'RECAP AG'!$G$6:$CU$255,19,FALSE) -> 9.43 | J38: =VLOOKUP($E38,'RECAP AG'!$G$6:$CU$255,20,FALSE) -> 81% | K38: =VLOOKUP($E38,'RECAP AG'!$G$6:$CU$255,21,FALSE) -> 46 | L38: =VLOOKUP($E38,'RECAP AG'!$G$6:$CU$255,22,FALSE) -> 57 | M38: =VLOOKUP($E38,'RECAP AG'!$G$6:$CU$255,23,FALSE) -> 9.77 | N38: =VLOOKUP($E38,'RECAP AG'!$G$6:$CU$255,24,FALSE) -> 89% | O38: =VLOOKUP($E38,'RECAP AG'!$G$6:$CU$255,25,FALSE) -> 181 | P38: =VLOOKUP($E38,'RECAP AG'!$G$6:$CU$255,26,FALSE) -> 84% | Q38: =VLOOKUP($E38,'RECAP AG'!$G$6:$CU$255,27,FALSE) -> 84% | R38: =VLOOKUP($E38,'RECAP AG'!$G$6:$CU$255,28,FALSE) -> 75
A39: 262 | B39: BAS RHIN | C39: 5060 | D39: HAGUENAU | E39: 4079 | F39: SOULTZ SOUS FORETS | G39: =VLOOKUP($E39,'RECAP AG'!$G$6:$CU$255,3,FALSE) -> 2.0 | H39: =VLOOKUP($E39,'RECAP AG'!$G$6:$CU$255,18,FALSE) -> 20.4 | I39: =VLOOKUP($E39,'RECAP AG'!$G$6:$CU$255,19,FALSE) -> 10.46 | J39: =VLOOKUP($E39,'RECAP AG'!$G$6:$CU$255,20,FALSE) -> 79% | K39: =VLOOKUP($E39,'RECAP AG'!$G$6:$CU$255,21,FALSE) -> 38 | L39: =VLOOKUP($E39,'RECAP AG'!$G$6:$CU$255,22,FALSE) -> 30 | M39: =VLOOKUP($E39,'RECAP AG'!$G$6:$CU$255,23,FALSE) -> 15.38 | N39: =VLOOKUP($E39,'RECAP AG'!$G$6:$CU$255,24,FALSE) -> 83% | O39: =VLOOKUP($E39,'RECAP AG'!$G$6:$CU$255,25,FALSE) -> 83 | P39: =VLOOKUP($E39,'RECAP AG'!$G$6:$CU$255,26,FALSE) -> 80% | Q39: =VLOOKUP($E39,'RECAP AG'!$G$6:$CU$255,27,FALSE) -> 80% | R39: =VLOOKUP($E39,'RECAP AG'!$G$6:$CU$255,28,FALSE) -> 39
A40: 262 | B40: BAS RHIN | C40: 5060 | D40: HAGUENAU | E40: 4031 | F40: TRUCHTERSHEIM | G40: =VLOOKUP($E40,'RECAP AG'!$G$6:$CU$255,3,FALSE) -> 2.9 | H40: =VLOOKUP($E40,'RECAP AG'!$G$6:$CU$255,18,FALSE) -> 34.7 | I40: =VLOOKUP($E40,'RECAP AG'!$G$6:$CU$255,19,FALSE) -> 11.97 | J40: =VLOOKUP($E40,'RECAP AG'!$G$6:$CU$255,20,FALSE) -> 76% | K40: =VLOOKUP($E40,'RECAP AG'!$G$6:$CU$255,21,FALSE) -> 20 | L40: =VLOOKUP($E40,'RECAP AG'!$G$6:$CU$255,22,FALSE) -> 18 | M40: =VLOOKUP($E40,'RECAP AG'!$G$6:$CU$255,23,FALSE) -> 6.21 | N40: =VLOOKUP($E40,'RECAP AG'!$G$6:$CU$255,24,FALSE) -> 93% | O40: =VLOOKUP($E40,'RECAP AG'!$G$6:$CU$255,25,FALSE) -> 233 | P40: =VLOOKUP($E40,'RECAP AG'!$G$6:$CU$255,26,FALSE) -> 83% | Q40: =VLOOKUP($E40,'RECAP AG'!$G$6:$CU$255,27,FALSE) -> 83% | R40: =VLOOKUP($E40,'RECAP AG'!$G$6:$CU$255,28,FALSE) -> 60
A41: 262 | B41: BAS RHIN | C41: 5060 | D41: HAGUENAU | E41: 4071 | F41: WISSEMBOURG | G41: =VLOOKUP($E41,'RECAP AG'!$G$6:$CU$255,3,FALSE) -> 8.1 | H41: =VLOOKUP($E41,'RECAP AG'!$G$6:$CU$255,18,FALSE) -> 38.8 | I41: =VLOOKUP($E41,'RECAP AG'!$G$6:$CU$255,19,FALSE) -> 4.81 | J41: =VLOOKUP($E41,'RECAP AG'!$G$6:$CU$255,20,FALSE) -> 90% | K41: =VLOOKUP($E41,'RECAP AG'!$G$6:$CU$255,21,FALSE) -> 121 | L41: =VLOOKUP($E41,'RECAP AG'!$G$6:$CU$255,22,FALSE) -> 100 | M41: =VLOOKUP($E41,'RECAP AG'!$G$6:$CU$255,23,FALSE) -> 12.41 | N41: =VLOOKUP($E41,'RECAP AG'!$G$6:$CU$255,24,FALSE) -> 86% | O41: =VLOOKUP($E41,'RECAP AG'!$G$6:$CU$255,25,FALSE) -> 126 | P41: =VLOOKUP($E41,'RECAP AG'!$G$6:$CU$255,26,FALSE) -> 89% | Q41: =VLOOKUP($E41,'RECAP AG'!$G$6:$CU$255,27,FALSE) -> 89% | R41: =VLOOKUP($E41,'RECAP AG'!$G$6:$CU$255,28,FALSE) -> 117
A42: 262 | B42: BAS RHIN | C42: 5101 | D42: SELESTAT | E42: 4113 | F42: BARR | G42: =VLOOKUP($E42,'RECAP AG'!$G$6:$CU$255,3,FALSE) -> 2.9 | H42: =VLOOKUP($E42,'RECAP AG'!$G$6:$CU$255,18,FALSE) -> 46.1 | I42: =VLOOKUP($E42,'RECAP AG'!$G$6:$CU$255,19,FALSE) -> 15.90 | J42: =VLOOKUP($E42,'RECAP AG'!$G$6:$CU$255,20,FALSE) -> 68% | K42: =VLOOKUP($E42,'RECAP AG'!$G$6:$CU$255,21,FALSE) -> 10 | L42: =VLOOKUP($E42,'RECAP AG'!$G$6:$CU$255,22,FALSE) -> 62 | M42: =VLOOKUP($E42,'RECAP AG'!$G$6:$CU$255,23,FALSE) -> 21.38 | N42: =VLOOKUP($E42,'RECAP AG'!$G$6:$CU$255,24,FALSE) -> 76% | O42: =VLOOKUP($E42,'RECAP AG'!$G$6:$CU$255,25,FALSE) -> 24 | P42: =VLOOKUP($E42,'RECAP AG'!$G$6:$CU$255,26,FALSE) -> 71% | Q42: =VLOOKUP($E42,'RECAP AG'!$G$6:$CU$255,27,FALSE) -> 71% | R42: =VLOOKUP($E42,'RECAP AG'!$G$6:$CU$255,28,FALSE) -> 11
A43: 262 | B43: BAS RHIN | C43: 5101 | D43: SELESTAT | E43: 4111 | F43: BENFELD | G43: =VLOOKUP($E43,'RECAP AG'!$G$6:$CU$255,3,FALSE) -> 3.7 | H43: =VLOOKUP($E43,'RECAP AG'!$G$6:$CU$255,18,FALSE) -> 7.3 | I43: =VLOOKUP($E43,'RECAP AG'!$G$6:$CU$255,19,FALSE) -> 1.99 | J43: =VLOOKUP($E43,'RECAP AG'!$G$6:$CU$255,20,FALSE) -> 96% | K43: =VLOOKUP($E43,'RECAP AG'!$G$6:$CU$255,21,FALSE) -> 171 | L43: =VLOOKUP($E43,'RECAP AG'!$G$6:$CU$255,22,FALSE) -> 22 | M43: =VLOOKUP($E43,'RECAP AG'!$G$6:$CU$255,23,FALSE) -> 6.01 | N43: =VLOOKUP($E43,'RECAP AG'!$G$6:$CU$255,24,FALSE) -> 93% | O43: =VLOOKUP($E43,'RECAP AG'!$G$6:$CU$255,25,FALSE) -> 237 | P43: =VLOOKUP($E43,'RECAP AG'!$G$6:$CU$255,26,FALSE) -> 95% | Q43: =VLOOKUP($E43,'RECAP AG'!$G$6:$CU$255,27,FALSE) -> 95% | R43: =VLOOKUP($E43,'RECAP AG'!$G$6:$CU$255,28,FALSE) -> 199
A44: 262 | B44: BAS RHIN | C44: 5101 | D44: SELESTAT | E44: 4104 | F44: ERSTEIN | G44: =VLOOKUP($E44,'RECAP AG'!$G$6:$CU$255,3,FALSE) -> 4.5 | H44: =VLOOKUP($E44,'RECAP AG'!$G$6:$CU$255,18,FALSE) -> 108.3 | I44: =VLOOKUP($E44,'RECAP AG'!$G$6:$CU$255,19,FALSE) -> 24.09 | J44: =VLOOKUP($E44,'RECAP AG'!$G$6:$CU$255,20,FALSE) -> 51% | K44: =VLOOKUP($E44,'RECAP AG'!$G$6:$CU$255,21,FALSE) -> 3 | L44: =VLOOKUP($E44,'RECAP AG'!$G$6:$CU$255,22,FALSE) -> 86 | M44: =VLOOKUP($E44,'RECAP AG'!$G$6:$CU$255,23,FALSE) -> 19.13 | N44: =VLOOKUP($E44,'RECAP AG'!$G$6:$CU$255,24,FALSE) -> 79% | O44: =VLOOKUP($E44,'RECAP AG'!$G$6:$CU$255,25,FALSE) -> 40 | P44: =VLOOKUP($E44,'RECAP AG'!$G$6:$CU$255,26,FALSE) -> 62% | Q44: =VLOOKUP($E44,'RECAP AG'!$G$6:$CU$255,27,FALSE) -> 62% | R44: =VLOOKUP($E44,'RECAP AG'!$G$6:$CU$255,28,FALSE) -> 5
A45: 262 | B45: BAS RHIN | C45: 5101 | D45: SELESTAT | E45: 4008 | F45: FEGERSHEIM | G45: =VLOOKUP($E45,'RECAP AG'!$G$6:$CU$255,3,FALSE) -> 2.9 | H45: =VLOOKUP($E45,'RECAP AG'!$G$6:$CU$255,18,FALSE) -> 24.9 | I45: =VLOOKUP($E45,'RECAP AG'!$G$6:$CU$255,19,FALSE) -> 8.59 | J45: =VLOOKUP($E45,'RECAP AG'!$G$6:$CU$255,20,FALSE) -> 82% | K45: =VLOOKUP($E45,'RECAP AG'!$G$6:$CU$255,21,FALSE) -> 58 | L45: =VLOOKUP($E45,'RECAP AG'!$G$6:$CU$255,22,FALSE) -> 18 | M45: =VLOOKUP($E45,'RECAP AG'!$G$6:$CU$255,23,FALSE) -> 6.21 | N45: =VLOOKUP($E45,'RECAP AG'!$G$6:$CU$255,24,FALSE) -> 93% | O45: =VLOOKUP($E45,'RECAP AG'!$G$6:$CU$255,25,FALSE) -> 233 | P45: =VLOOKUP($E45,'RECAP AG'!$G$6:$CU$255,26,FALSE) -> 87% | Q45: =VLOOKUP($E45,'RECAP AG'!$G$6:$CU$255,27,FALSE) -> 87% | R45: =VLOOKUP($E45,'RECAP AG'!$G$6:$CU$255,28,FALSE) -> 103
A46: 262 | B46: BAS RHIN | C46: 5101 | D46: SELESTAT | E46: 4007 | F46: ILLKIRCH CENTRE | G46: =VLOOKUP($E46,'RECAP AG'!$G$6:$CU$255,3,FALSE) -> 7.7 | H46: =VLOOKUP($E46,'RECAP AG'!$G$6:$CU$255,18,FALSE) -> 57.0 | I46: =VLOOKUP($E46,'RECAP AG'!$G$6:$CU$255,19,FALSE) -> 7.45 | J46: =VLOOKUP($E46,'RECAP AG'!$G$6:$CU$255,20,FALSE) -> 85% | K46: =VLOOKUP($E46,'RECAP AG'!$G$6:$CU$255,21,FALSE) -> 74 | L46: =VLOOKUP($E46,'RECAP AG'!$G$6:$CU$255,22,FALSE) -> 86 | M46: =VLOOKUP($E46,'RECAP AG'!$G$6:$CU$255,23,FALSE) -> 11.24 | N46: =VLOOKUP($E46,'RECAP AG'!$G$6:$CU$255,24,FALSE) -> 87% | O46: =VLOOKUP($E46,'RECAP AG'!$G$6:$CU$255,25,FALSE) -> 151 | P46: =VLOOKUP($E46,'RECAP AG'!$G$6:$CU$255,26,FALSE) -> 86% | Q46: =VLOOKUP($E46,'RECAP AG'!$G$6:$CU$255,27,FALSE) -> 86% | R46: =VLOOKUP($E46,'RECAP AG'!$G$6:$CU$255,28,FALSE) -> 91
A47: 262 | B47: BAS RHIN | C47: 5101 | D47: SELESTAT | E47: 4015 | F47: LINGOLSHEIM | G47: =VLOOKUP($E47,'RECAP AG'!$G$6:$CU$255,3,FALSE) -> 3.7 | H47: =VLOOKUP($E47,'RECAP AG'!$G$6:$CU$255,18,FALSE) -> -17.8 | I47: =VLOOKUP($E47,'RECAP AG'!$G$6:$CU$255,19,FALSE) -> -4.86 | J47: =VLOOKUP($E47,'RECAP AG'!$G$6:$CU$255,20,FALSE) -> 110% | K47: =VLOOKUP($E47,'RECAP AG'!$G$6:$CU$255,21,FALSE) -> 239 | L47: =VLOOKUP($E47,'RECAP AG'!$G$6:$CU$255,22,FALSE) -> 30 | M47: =VLOOKUP($E47,'RECAP AG'!$G$6:$CU$255,23,FALSE) -> 8.20 | N47: =VLOOKUP($E47,'RECAP AG'!$G$6:$CU$255,24,FALSE) -> 91% | O47: =VLOOKUP($E47,'RECAP AG'!$G$6:$CU$255,25,FALSE) -> 210 | P47: =VLOOKUP($E47,'RECAP AG'!$G$6:$CU$255,26,FALSE) -> 102% | Q47: =VLOOKUP($E47,'RECAP AG'!$G$6:$CU$255,27,FALSE) -> 102% | R47: =VLOOKUP($E47,'RECAP AG'!$G$6:$CU$255,28,FALSE) -> 242
A48: 262 | B48: BAS RHIN | C48: 5101 | D48: SELESTAT | E48: 4109 | F48: MARCKOLSHEIM | G48: =VLOOKUP($E48,'RECAP AG'!$G$6:$CU$255,3,FALSE) -> 2.9 | H48: =VLOOKUP($E48,'RECAP AG'!$G$6:$CU$255,18,FALSE) -> 16.0 | I48: =VLOOKUP($E48,'RECAP AG'!$G$6:$CU$255,19,FALSE) -> 5.52 | J48: =VLOOKUP($E48,'RECAP AG'!$G$6:$CU$255,20,FALSE) -> 89% | K48: =VLOOKUP($E48,'RECAP AG'!$G$6:$CU$255,21,FALSE) -> 109 | L48: =VLOOKUP($E48,'RECAP AG'!$G$6:$CU$255,22,FALSE) -> 31 | M48: =VLOOKUP($E48,'RECAP AG'!$G$6:$CU$255,23,FALSE) -> 10.69 | N48: =VLOOKUP($E48,'RECAP AG'!$G$6:$CU$255,24,FALSE) -> 88% | O48: =VLOOKUP($E48,'RECAP AG'!$G$6:$CU$255,25,FALSE) -> 158 | P48: =VLOOKUP($E48,'RECAP AG'!$G$6:$CU$255,26,FALSE) -> 88% | Q48: =VLOOKUP($E48,'RECAP AG'!$G$6:$CU$255,27,FALSE) -> 88% | R48: =VLOOKUP($E48,'RECAP AG'!$G$6:$CU$255,28,FALSE) -> 116
A49: 262 | B49: BAS RHIN | C49: 5101 | D49: SELESTAT | E49: 4120 | F49: WASSELONNE | G49: =VLOOKUP($E49,'RECAP AG'!$G$6:$CU$255,3,FALSE) -> 4.8 | H49: =VLOOKUP($E49,'RECAP AG'!$G$6:$CU$255,18,FALSE) -> -10.5 | I49: =VLOOKUP($E49,'RECAP AG'!$G$6:$CU$255,19,FALSE) -> -2.21 | J49: =VLOOKUP($E49,'RECAP AG'!$G$6:$CU$255,20,FALSE) -> 105% | K49: =VLOOKUP($E49,'RECAP AG'!$G$6:$CU$255,21,FALSE) -> 223 | L49: =VLOOKUP($E49,'RECAP AG'!$G$6:$CU$255,22,FALSE) -> 40 | M49: =VLOOKUP($E49,'RECAP AG'!$G$6:$CU$255,23,FALSE) -> 8.41 | N49: =VLOOKUP($E49,'RECAP AG'!$G$6:$CU$255,24,FALSE) -> 91% | O49: =VLOOKUP($E49,'RECAP AG'!$G$6:$CU$255,25,FALSE) -> 207 | P49: =VLOOKUP($E49,'RECAP AG'!$G$6:$CU$255,26,FALSE) -> 99% | Q49: =VLOOKUP($E49,'RECAP AG'!$G$6:$CU$255,27,FALSE) -> 99% | R49: =VLOOKUP($E49,'RECAP AG'!$G$6:$CU$255,28,FALSE) -> 226
A50: 262 | B50: BAS RHIN | C50: 5101 | D50: SELESTAT | E50: 4116 | F50: MOLSHEIM | G50: =VLOOKUP($E50,'RECAP AG'!$G$6:$CU$255,3,FALSE) -> 5.0 | H50: =VLOOKUP($E50,'RECAP AG'!$G$6:$CU$255,18,FALSE) -> 11.5 | I50: =VLOOKUP($E50,'RECAP AG'!$G$6:$CU$255,19,FALSE) -> 2.29 | J50: =VLOOKUP($E50,'RECAP AG'!$G$6:$CU$255,20,FALSE) -> 95% | K50: =VLOOKUP($E50,'RECAP AG'!$G$6:$CU$255,21,FALSE) -> 166 | L50: =VLOOKUP($E50,'RECAP AG'!$G$6:$CU$255,22,FALSE) -> 33 | M50: =VLOOKUP($E50,'RECAP AG'!$G$6:$CU$255,23,FALSE) -> 6.56 | N50: =VLOOKUP($E50,'RECAP AG'!$G$6:$CU$255,24,FALSE) -> 93% | O50: =VLOOKUP($E50,'RECAP AG'!$G$6:$CU$255,25,FALSE) -> 230 | P50: =VLOOKUP($E50,'RECAP AG'!$G$6:$CU$255,26,FALSE) -> 94% | Q50: =VLOOKUP($E50,'RECAP AG'!$G$6:$CU$255,27,FALSE) -> 94% | R50: =VLOOKUP($E50,'RECAP AG'!$G$6:$CU$255,28,FALSE) -> 192
